Workbook

Sheet Sheet1
A1: โปรแกรมคำนวณแผ่นพื้นสองทางไร้คาน 2-5 ช่วง
A3: จำนวนช่วงพื้นตามแกน x = | B3: 3
A4: จำนวนช่วงพื้นตามแกน y = | B4: 2
A7: รายละเอียด
A8: คุณสมบัติวัสดุ | C8: ขนาดเสา | E8: ความยาวช่วงพื้น | G8: น้ำหนักบรรทุกจร | I8: น้ำหนักวัสดุตกแต่ง | K8: ความกว้างช่วงพื้น | M8: ความสูงชั้น
A9: fy (kg/cm^2) = | B9: 3058 | C9: C1 (m) = | D9: 0.5 | E9: =IF(B3>=1,("L1 (m) ="),("")) -> L1 (m) = | F9: 5 | G9: =IF(B3>=1,("LL1 (kg/m^2) ="),("")) -> LL1 (kg/m^2) = | H9: 300 | I9: =IF(B3>=1,("SDL1 (kg/m^2) ="),("")) -> SDL1 (kg/m^2) = | J9: 700 | K9: R1 (m) = | L9: 6 | M9: ความต่างชั้น (m) = | N9: 2.7
A10: fc' (kg/cm^2) = | B10: 320 | C10: C2 (m) = | D10: 0.4 | E10: =IF(B3>=2,("L2 (m) ="),("")) -> L2 (m) = | F10: 6 | G10: =IF(B3>=2,("LL2 (kg/m^2) ="),("")) -> LL2 (kg/m^2) = | H10: 300 | I10: =IF(B3>=2,("SDL2 (kg/m^2) ="),("")) -> SDL2 (kg/m^2) = | J10: 700 | K10: R2 (m) = | L10: 5
A11: ความหนาแนนคอนกรีต (kg/m^3) = | B11: 2400 | E11: =IF(B3>=3,("L3 (m) ="),("")) -> L3 (m) = | F11: 5 | G11: =IF(B3>=3,("LL3 (kg/m^2) ="),("")) -> LL3 (kg/m^2) = | H11: 300 | I11: =IF(B3>=3,("SDL3 (kg/m^2) ="),("")) -> SDL3 (kg/m^2) = | J11: 700 | K11: =IF(B4>=3,("R3 (m) ="),("")) -> 
A12: ขนาดเหล็กเสริม (unit : cm) = | B12: 1.6 | E12: =IF(B3>=4,("L4 (m) ="),("")) ->  | G12: =IF(B3>=4,("LL4 (kg/m^2) ="),("")) ->  | I12: =IF(B3>=4,("SDL4 (kg/m^2) ="),("")) ->  | K12: =IF(B4>=4,("R4 (m) ="),("")) -> 
A13: ระยะหุ้มคอนกรีต (unit : cm) | B13: 2.5 | E13: =IF(B3>=5,("L5 (m) ="),("")) ->  | G13: =IF(B3>=5,("LL5 (kg/m^2) ="),("")) ->  | I13: =IF(B3>=5,("SDL5 (kg/m^2) ="),("")) ->  | K13: =IF(B4>=5,("R5 (m) ="),("")) -> 
A14: รายละเอียดความหนาพื้น
A15: ความหนาพื้นขั่นต่ำ ACI Code (unit:m) = | B15: =IF('r2'!B5>0.12,('r2'!B5),(0.12)) -> 0.1815309832
A16: ความหนาที่เลือกใช้ (unit:m) = | B16: 0.25
A18: รายละเอียดเหล็กเสริม
A19: แถบนอกหน้าตัด R1 | B19: span L1 | E19: span L2 | H19: span L3 | K19: span L4 | N19: span L5
B20: โมเมนต์ลบซ้าย | C20: โมเมนต์บวกกลาง | D20: โมเมนต์ลบขวา | E20: โมเมนต์ลบซ้าย | F20: โมเมนต์บวกกลาง | G20: โมเมนต์ลบขวา | H20: โมเมนต์ลบซ้าย | I20: โมเมนต์บวกกลาง | J20: โมเมนต์ลบขวา | K20: โมเมนต์ลบซ้าย | L20: โมเมนต์บวกกลาง | M20: โมเมนต์ลบขวา | N20: โมเมนต์ลบซ้าย | O20: โมเมนต์บวกกลาง | P20: โมเมนต์ลบขวา
A21: ="แถบเสา "& 'r1'!$J$58&" m " -> แถบเสา 1.5 m | B21: ="DB"&$B$12*10&"@"&ROUND(INT(100/((('r1'!$J$70+'r1'!$J$84)/(3.142*($B$12*10)^2/4))))/100,1)&""&"m" -> DB16@0.3m | C21: ="DB"&$B$12*10&"@"&ROUND(INT(100/((('r1'!$J$66)/(3.142*($B$12*10)^2/4))))/100,1)&""&"m" -> DB16@0.3m | D21: ="DB"&$B$12*10&"@"&ROUND(INT(100/((('r1'!$J$62+'r1'!$M$84)/(3.142*($B$12*10)^2/4))))/100,1)&""&"m" -> DB16@0.2m | E21: ="DB"&$B$12*10&"@"&ROUND(INT(100/((('r1'!$M$70+'r1'!$O$84)/(3.142*($B$12*10)^2/4))))/100,1)&""&"m" -> DB16@0.2m | F21: ="DB"&$B$12*10&"@"&ROUND(INT(100/((('r1'!$M$66)/(3.142*($B$12*10)^2/4))))/100,1)&""&"m" -> DB16@0.3m | G21: ="DB"&$B$12*10&"@"&ROUND(INT(100/((('r1'!$M$62+'r1'!$N$84)/(3.142*($B$12*10)^2/4))))/100,1)&""&"m" -> DB16@0.2m | H21: =IF(('r1'!$O$70)=0,(0),("DB"&$B$12*10&"@"&ROUND(INT(100/((('r1'!$O$70+'r1'!$Q$84)/(3.142*($B$12*10)^2/4))))/100,1)&""&"m")) -> DB16@0.2m | I21: =IF($B$12=0,0,IF(('r1'!$O$66)<1,(0),("DB"&$B$12*10&"@"&ROUND(INT(100/((('r1'!$O$66)/(3.142*($B$12*10)^2/4))))/100,1)&""&"m"))) -> DB16@0.3m | J21: =IF('r1'!$O$62=0,(0),("DB"&$B$12*10&"@"&ROUND(INT(100/((('r1'!$O$62+'r1'!$P$84)/(3.142*($B$12*10)^2/4))))/100,1)&""&"m")) -> DB16@0.3m | K21: =IF('r1'!$Q$70=0,(0),("DB"&$B$12*10&"@"&ROUND(INT(100/((('r1'!$Q$70+'r1'!$S$84)/(3.142*($B$12*10)^2/4))))/100,1)&""&"m")) -> 0 | L21: =IF('r1'!$Q$66=0,(0),("DB"&$B$12*10&"@"&ROUND(INT(100/((('r1'!$Q$66)/(3.142*($B$12*10)^2/4))))/100,1)&""&"m")) -> 0 | M21: =IF('r1'!$Q$62=0,(0),("DB"&$B$12*10&"@"&ROUND(INT(100/((('r1'!$Q$62+'r1'!$R$84)/(3.142*($B$12*10)^2/4))))/100,1)&""&"m")) -> 0 | N21: =IF('r1'!$S$70=0,(0),("DB"&$B$12*10&"@"&ROUND(INT(100/((('r1'!$S$70+'r1'!$U$84)/(3.142*($B$12*10)^2/4))))/100,1)&""&"m")) -> 0 | O21: =IF('r1'!$S$66=0,(0),("DB"&$B$12*10&"@"&ROUND(INT(100/((('r1'!$S$66)/(3.142*($B$12*10)^2/4))))/100,1)&""&"m")) -> 0 | P21: =IF('r1'!$S$62=0,(0),("DB"&$B$12*10&"@"&ROUND(INT(100/((('r1'!$S$62+'r1'!$T$84)/(3.142*($B$12*10)^2/4))))/100,1)&""&"m")) -> 0
A22: ="แถบกลาง "& 'r1'!$K$58&" m " -> แถบกลาง 1.5 m | B22: ="DB"&$B$12*10&"@"&ROUND(INT(100/((('r1'!$K$70)/(3.142*($B$12*10)^2/4))))/100,1)&""&"m" -> DB16@0.4m | C22: ="DB"&$B$12*10&"@"&ROUND(INT(100/((('r1'!$K$66)/(3.142*($B$12*10)^2/4))))/100,1)&""&"m" -> DB16@0.4m | D22: ="DB"&$B$12*10&"@"&ROUND(INT(100/((('r1'!$K$62)/(3.142*($B$12*10)^2/4))))/100,1)&""&"m" -> DB16@0.4m | E22: ="DB"&$B$12*10&"@"&ROUND(INT(100/((('r1'!$N$70)/(3.142*($B$12*10)^2/4))))/100,1)&""&"m" -> DB16@0.4m | F22: ="DB"&$B$12*10&"@"&ROUND(INT(100/((('r1'!$N$66)/(3.142*($B$12*10)^2/4))))/100,1)&""&"m" -> DB16@0.4m | G22: ="DB"&$B$12*10&"@"&ROUND(INT(100/((('r1'!N$62)/(3.142*($B$12*10)^2/4))))/100,1)&""&"m" -> DB16@0.4m | H22: =IF(('r1'!$P$70)=0,(0),("DB"&$B$12*10&"@"&ROUND(INT(100/((('r1'!$P$70)/(3.142*($B$12*10)^2/4))))/100,1)&""&"m")) -> DB16@0.4m | I22: =IF(('r1'!$P$66)=0,(0),("DB"&$B$12*10&"@"&ROUND(INT(100/((('r1'!$P$66)/(3.142*($B$12*10)^2/4))))/100,1)&""&"m")) -> DB16@0.4m | J22: =IF(('r1'!$P$62)=0,(0),("DB"&$B$12*10&"@"&ROUND(INT(100/((('r1'!$P$62)/(3.142*($B$12*10)^2/4))))/100,1)&""&"m")) -> DB16@0.4m | K22: =IF(('r1'!$R$70)=0,(0),("DB"&$B$12*10&"@"&ROUND(INT(100/((('r1'!$R$70)/(3.142*($B$12*10)^2/4))))/100,1)&""&"m")) -> 0 | L22: =IF(('r1'!$R$66)=0,(0),("DB"&$B$12*10&"@"&ROUND(INT(100/((('r1'!$R$66)/(3.142*($B$12*10)^2/4))))/100,1)&""&"m")) -> 0 | M22: =IF(('r1'!$R$62)=0,(0),("DB"&$B$12*10&"@"&ROUND(INT(100/((('r1'!$R$62)/(3.142*($B$12*10)^2/4))))/100,1)&""&"m")) -> 0 | N22: =IF(('r1'!$T$70)=0,(0),("DB"&$B$12*10&"@"&ROUND(INT(100/((('r1'!$T$70)/(3.142*($B$12*10)^2/4))))/100,1)&""&"m")) -> 0 | O22: =IF(('r1'!$T$66)=0,(0),("DB"&$B$12*10&"@"&ROUND(INT(100/((('r1'!$T$66)/(3.142*($B$12*10)^2/4))))/100,1)&""&"m")) -> 0 | P22: =IF(('r1'!$T$62)=0,(0),("DB"&$B$12*10&"@"&ROUND(INT(100/((('r1'!$T$62)/(3.142*($B$12*10)^2/4))))/100,1)&""&"m")) -> 0
A24: แถบในหน้าตัด R1-R2 | B24: span L1 | E24: span L2 | H24: span L3 | K24: span L4 | N24: span L5
B25: โมเมนต์ลบซ้าย | C25: โมเมนต์บวกกลาง | D25: โมเมนต์ลบขวา | E25: โมเมนต์ลบซ้าย | F25: โมเมนต์บวกกลาง | G25: โมเมนต์ลบขวา | H25: โมเมนต์ลบซ้าย | I25: โมเมนต์บวกกลาง | J25: โมเมนต์ลบขวา | K25: โมเมนต์ลบซ้าย | L25: โมเมนต์บวกกลาง | M25: โมเมนต์ลบขวา | N25: โมเมนต์ลบซ้าย | O25: โมเมนต์บวกกลาง | P25: โมเมนต์ลบขวา
A26: ="แถบเสา "& 'r2'!$J$58&" m " -> แถบเสา 2.75 m | B26: ="DB"&$B$12*10&"@"&ROUND(INT(100/((('r2'!$J$70)/(3.142*($B$12*10)^2/4))))/100,1)&""&"m" -> DB16@0.4m | C26: ="DB"&$B$12*10&"@"&ROUND(INT(100/((('r2'!$J$66)/(3.142*($B$12*10)^2/4))))/100,1)&""&"m" -> DB16@0.3m | D26: ="DB"&$B$12*10&"@"&ROUND(INT(100/((('r2'!$J$62)/(3.142*($B$12*10)^2/4))))/100,1)&""&"m" -> DB16@0.2m | E26: ="DB"&$B$12*10&"@"&ROUND(INT(100/((('r2'!$M$70)/(3.142*($B$12*10)^2/4))))/100,1)&""&"m" -> DB16@0.2m | F26: ="DB"&$B$12*10&"@"&ROUND(INT(100/((('r2'!$M$66)/(3.142*($B$12*10)^2/4))))/100,1)&""&"m" -> DB16@0.3m | G26: ="DB"&$B$12*10&"@"&ROUND(INT(100/((('r2'!$M$62)/(3.142*($B$12*10)^2/4))))/100,1)&""&"m" -> DB16@0.2m | H26: =IF(('r2'!$O$70)<1,(0),("DB"&$B$12*10&"@"&ROUND(INT(100/((('r2'!$O$70)/(3.142*($B$12*10)^2/4))))/100,1)&""&"m")) -> DB16@0.2m | I26: =IF(('r2'!$O$66)=0,(0),("DB"&$B$12*10&"@"&ROUND(INT(100/((('r2'!$O$66)/(3.142*($B$12*10)^2/4))))/100,1)&""&"m")) -> DB16@0.3m | J26: =IF('r2'!$O$62=0,(0),("DB"&$B$12*10&"@"&ROUND(INT(100/((('r2'!$O$62)/(3.142*($B$12*10)^2/4))))/100,1)&""&"m")) -> DB16@0.4m | K26: =IF('r2'!$Q$70=0,(0),("DB"&$B$12*10&"@"&ROUND(INT(100/((('r2'!$Q$70)/(3.142*($B$12*10)^2/4))))/100,1)&""&"m")) -> 0 | L26: =IF('r2'!$Q$66=0,(0),("DB"&$B$12*10&"@"&ROUND(INT(100/((('r2'!$Q$66)/(3.142*($B$12*10)^2/4))))/100,1)&""&"m")) -> 0 | M26: =IF('r2'!$Q$62=0,(0),("DB"&$B$12*10&"@"&ROUND(INT(100/((('r2'!$Q$62)/(3.142*($B$12*10)^2/4))))/100,1)&""&"m")) -> 0 | N26: =IF('r2'!$S$70=0,(0),("DB"&$B$12*10&"@"&ROUND(INT(100/((('r2'!$S$70)/(3.142*($B$12*10)^2/4))))/100,1)&""&"m")) -> 0 | O26: =IF('r2'!$S$66=0,(0),("DB"&$B$12*10&"@"&ROUND(INT(100/((('r2'!$S$66)/(3.142*($B$12*10)^2/4))))/100,1)&""&"m")) -> 0 | P26: =IF('r2'!$S$62=0,(0),("DB"&$B$12*10&"@"&ROUND(INT(100/((('r2'!$S$62)/(3.142*($B$12*10)^2/4))))/100,1)&""&"m")) -> 0
A27: ="แถบกลาง "& 'r2'!$K$58&" m " -> แถบกลาง 2.25 m | B27: ="DB"&$B$12*10&"@"&ROUND(INT(100/((('r2'!$K$70)/(3.142*($B$12*10)^2/4))))/100,1)&""&"m" -> DB16@0.4m | C27: ="DB"&$B$12*10&"@"&ROUND(INT(100/((('r2'!$K$66)/(3.142*($B$12*10)^2/4))))/100,1)&""&"m" -> DB16@0.4m | D27: ="DB"&$B$12*10&"@"&ROUND(INT(100/((('r2'!$K$62)/(3.142*($B$12*10)^2/4))))/100,1)&""&"m" -> DB16@0.4m | E27: ="DB"&$B$12*10&"@"&ROUND(INT(100/((('r2'!$N$70)/(3.142*($B$12*10)^2/4))))/100,1)&""&"m" -> DB16@0.4m | F27: ="DB"&$B$12*10&"@"&ROUND(INT(100/((('r2'!$N$66)/(3.142*($B$12*10)^2/4))))/100,1)&""&"m" -> DB16@0.3m | G27: ="DB"&$B$12*10&"@"&ROUND(INT(100/((('r2'!N$62)/(3.142*($B$12*10)^2/4))))/100,1)&""&"m" -> DB16@0.4m | H27: =IF(('r2'!$P$70)<10,(0),("DB"&$B$12*10&"@"&ROUND(INT(100/((('r2'!$P$70)/(3.142*($B$12*10)^2/4))))/100,1)&""&"m")) -> DB16@0.4m | I27: =IF(('r2'!$P$66)=0,(0),("DB"&$B$12*10&"@"&ROUND(INT(100/((('r2'!$P$66)/(3.142*($B$12*10)^2/4))))/100,1)&""&"m")) -> DB16@0.4m | J27: =IF(('r2'!$P$62)=0,(0),("DB"&$B$12*10&"@"&ROUND(INT(100/((('r2'!$P$62)/(3.142*($B$12*10)^2/4))))/100,1)&""&"m")) -> DB16@0.4m | K27: =IF(('r2'!$R$70)=0,(0),("DB"&$B$12*10&"@"&ROUND(INT(100/((('r2'!$R$70)/(3.142*($B$12*10)^2/4))))/100,1)&""&"m")) -> 0 | L27: =IF(('r2'!$R$66)=0,(0),("DB"&$B$12*10&"@"&ROUND(INT(100/((('r2'!$R$66)/(3.142*($B$12*10)^2/4))))/100,1)&""&"m")) -> 0 | M27: =IF(('r2'!$R$62)=0,(0),("DB"&$B$12*10&"@"&ROUND(INT(100/((('r2'!$R$62)/(3.142*($B$12*10)^2/4))))/100,1)&""&"m")) -> 0 | N27: =IF(('r2'!$T$70)=0,(0),("DB"&$B$12*10&"@"&ROUND(INT(100/((('r2'!$T$70)/(3.142*($B$12*10)^2/4))))/100,1)&""&"m")) -> 0 | O27: =IF(('r2'!$T$66)=0,(0),("DB"&$B$12*10&"@"&ROUND(INT(100/((('r2'!$T$66)/(3.142*($B$12*10)^2/4))))/100,1)&""&"m")) -> 0 | P27: =IF(('r2'!$T$62)=0,(0),("DB"&$B$12*10&"@"&ROUND(INT(100/((('r2'!$T$62)/(3.142*($B$12*10)^2/4))))/100,1)&""&"m")) -> 0
A29: =IF($B$4=2,("แถบนอกหน้าตัด R2"),(IF($B$4>2,("แถบในหน้าตัด R2-R3"),("ไม่มีพื้น")))) -> แถบนอกหน้าตัด R2 | B29: span L1 | E29: span L2 | H29: span L3 | K29: span L4 | N29: span L5
B30: โมเมนต์ลบซ้าย | C30: โมเมนต์บวกกลาง | D30: โมเมนต์ลบขวา | E30: โมเมนต์ลบซ้าย | F30: โมเมนต์บวกกลาง | G30: โมเมนต์ลบขวา | H30: โมเมนต์ลบซ้าย | I30: โมเมนต์บวกกลาง | J30: โมเมนต์ลบขวา | K30: โมเมนต์ลบซ้าย | L30: โมเมนต์บวกกลาง | M30: โมเมนต์ลบขวา | N30: โมเมนต์ลบซ้าย | O30: โมเมนต์บวกกลาง | P30: โมเมนต์ลบขวา
A31: ="แถบเสา "& 'r3'!$J$58&" m " -> แถบเสา 1.25 m | B31: =IF('r3'!$J$70=0,(0),("DB"&$B$12*10&"@"&ROUND(INT(100/((('r3'!$J$70)/(3.142*($B$12*10)^2/4))))/100,1)&""&"m")) -> DB16@0.3m | C31: =IF('r3'!$J$66=0,(0),("DB"&$B$12*10&"@"&ROUND(INT(100/((('r3'!$J$66)/(3.142*($B$12*10)^2/4))))/100,1)&""&"m")) -> DB16@0.4m | D31: =IF('r3'!$J$62=0,(0),("DB"&$B$12*10&"@"&ROUND(INT(100/((('r3'!$J$62)/(3.142*($B$12*10)^2/4))))/100,1)&""&"m")) -> DB16@0.2m | E31: =IF('r3'!$M$70=0,(0),("DB"&$B$12*10&"@"&ROUND(INT(100/((('r3'!$M$70)/(3.142*($B$12*10)^2/4))))/100,1)&""&"m")) -> DB16@0.2m | F31: =IF('r3'!$M$66=0,(0),("DB"&$B$12*10&"@"&ROUND(INT(100/((('r3'!$M$66)/(3.142*($B$12*10)^2/4))))/100,1)&""&"m")) -> DB16@0.3m | G31: =IF('r3'!$M$62=0,(0),("DB"&$B$12*10&"@"&ROUND(INT(100/((('r3'!$M$62)/(3.142*($B$12*10)^2/4))))/100,1)&""&"m")) -> DB16@0.2m | H31: =IF(('r3'!$O$70)<1,(0),("DB"&$B$12*10&"@"&ROUND(INT(100/((('r3'!$O$70)/(3.142*($B$12*10)^2/4))))/100,1)&""&"m")) -> DB16@0.2m | I31: =IF(('r3'!$O$66)=0,(0),("DB"&$B$12*10&"@"&ROUND(INT(100/((('r3'!$O$66)/(3.142*($B$12*10)^2/4))))/100,1)&""&"m")) -> DB16@0.4m | J31: =IF('r3'!$O$62=0,(0),("DB"&$B$12*10&"@"&ROUND(INT(100/((('r3'!$O$62)/(3.142*($B$12*10)^2/4))))/100,1)&""&"m")) -> DB16@0.3m | K31: =IF('r3'!$Q$70=0,(0),("DB"&$B$12*10&"@"&ROUND(INT(100/((('r3'!$Q$70)/(3.142*($B$12*10)^2/4))))/100,1)&""&"m")) -> 0 | L31: =IF('r3'!$Q$66=0,(0),("DB"&$B$12*10&"@"&ROUND(INT(100/((('r3'!$Q$66)/(3.142*($B$12*10)^2/4))))/100,1)&""&"m")) -> 0 | M31: =IF('r3'!$Q$62=0,(0),("DB"&$B$12*10&"@"&ROUND(INT(100/((('r3'!$Q$62)/(3.142*($B$12*10)^2/4))))/100,1)&""&"m")) -> 0 | N31: =IF('r3'!$S$70=0,(0),("DB"&$B$12*10&"@"&ROUND(INT(100/((('r3'!$S$70)/(3.142*($B$12*10)^2/4))))/100,1)&""&"m")) -> 0 | O31: =IF('r3'!$S$66=0,(0),("DB"&$B$12*10&"@"&ROUND(INT(100/((('r3'!$S$66)/(3.142*($B$12*10)^2/4))))/100,1)&""&"m")) -> 0 | P31: =IF('r3'!$S$62=0,(0),("DB"&$B$12*10&"@"&ROUND(INT(100/((('r3'!$S$62)/(3.142*($B$12*10)^2/4))))/100,1)&""&"m")) -> 0
A32: ="แถบกลาง "& 'r3'!$K$58&" m " -> แถบกลาง 1.25 m | B32: =IF('r3'!$K$70=0,(0),("DB"&$B$12*10&"@"&ROUND(INT(100/((('r3'!$K$70)/(3.142*($B$12*10)^2/4))))/100,1)&""&"m")) -> DB16@0.4m | C32: =IF('r3'!$K$66=0,(0),("DB"&$B$12*10&"@"&ROUND(INT(100/((('r3'!$K$66)/(3.142*($B$12*10)^2/4))))/100,1)&""&"m")) -> DB16@0.4m | D32: =IF('r3'!$K$62=0,(0),("DB"&$B$12*10&"@"&ROUND(INT(100/((('r3'!$K$62)/(3.142*($B$12*10)^2/4))))/100,1)&""&"m")) -> DB16@0.4m | E32: =IF('r3'!$N$70=0,(0),("DB"&$B$12*10&"@"&ROUND(INT(100/((('r3'!$N$70)/(3.142*($B$12*10)^2/4))))/100,1)&""&"m")) -> DB16@0.4m | F32: =IF(('r3'!$N$66)=0,(0),("DB"&$B$12*10&"@"&ROUND(INT(100/((('r3'!$N$66)/(3.142*($B$12*10)^2/4))))/100,1)&""&"m")) -> DB16@0.4m | G32: =IF('r3'!$N$62=0,(0),("DB"&$B$12*10&"@"&ROUND(INT(100/((('r3'!$N$62)/(3.142*($B$12*10)^2/4))))/100,1)&""&"m")) -> DB16@0.4m | H32: =IF(('r3'!$P$70)=0,(0),("DB"&$B$12*10&"@"&ROUND(INT(100/((('r3'!$P$70)/(3.142*($B$12*10)^2/4))))/100,1)&""&"m")) -> DB16@0.4m | I32: =IF(('r3'!$P$66)=0,(0),("DB"&$B$12*10&"@"&ROUND(INT(100/((('r3'!$P$66)/(3.142*($B$12*10)^2/4))))/100,1)&""&"m")) -> DB16@0.4m | J32: =IF(('r3'!$P$62)=0,(0),("DB"&$B$12*10&"@"&ROUND(INT(100/((('r3'!$P$62)/(3.142*($B$12*10)^2/4))))/100,1)&""&"m")) -> DB16@0.4m | K32: =IF(('r3'!$R$70)=0,(0),("DB"&$B$12*10&"@"&ROUND(INT(100/((('r3'!$R$70)/(3.142*($B$12*10)^2/4))))/100,1)&""&"m")) -> 0 | L32: =IF(('r3'!$R$66)=0,(0),("DB"&$B$12*10&"@"&ROUND(INT(100/((('r3'!$R$66)/(3.142*($B$12*10)^2/4))))/100,1)&""&"m")) -> 0 | M32: =IF(('r3'!$R$62)=0,(0),("DB"&$B$12*10&"@"&ROUND(INT(100/((('r3'!$R$62)/(3.142*($B$12*10)^2/4))))/100,1)&""&"m")) -> 0 | N32: =IF(('r3'!$T$70)=0,(0),("DB"&$B$12*10&"@"&ROUND(INT(100/((('r3'!$T$70)/(3.142*($B$12*10)^2/4))))/100,1)&""&"m")) -> 0 | O32: =IF(('r3'!$T$66)=0,(0),("DB"&$B$12*10&"@"&ROUND(INT(100/((('r3'!$T$66)/(3.142*($B$12*10)^2/4))))/100,1)&""&"m")) -> 0 | P32: =IF(('r3'!$T$62)=0,(0),("DB"&$B$12*10&"@"&ROUND(INT(100/((('r3'!$T$62)/(3.142*($B$12*10)^2/4))))/100,1)&""&"m")) -> 0
A34: =IF($B$4=3,("แถบนอกหน้าตัด R3"),(IF($B$4>3,("แถบในหน้าตัด R3-R4"),("ไม่มีพื้น")))) -> ไม่มีพื้น | B34: span L1 | E34: span L2 | H34: span L3 | K34: span L4 | N34: span L5
B35: โมเมนต์ลบซ้าย | C35: โมเมนต์บวกกลาง | D35: โมเมนต์ลบขวา | E35: โมเมนต์ลบซ้าย | F35: โมเมนต์บวกกลาง | G35: โมเมนต์ลบขวา | H35: โมเมนต์ลบซ้าย | I35: โมเมนต์บวกกลาง | J35: โมเมนต์ลบขวา | K35: โมเมนต์ลบซ้าย | L35: โมเมนต์บวกกลาง | M35: โมเมนต์ลบขวา | N35: โมเมนต์ลบซ้าย | O35: โมเมนต์บวกกลาง | P35: โมเมนต์ลบขวา
A36: ="แถบเสา "& 'r4'!$J$58&" m " -> แถบเสา 0 m | B36: =IF('r4'!$J$70=0,(0),("DB"&$B$12*10&"@"&ROUND(INT(100/((('r4'!$J$70)/(3.142*($B$12*10)^2/4))))/100,1)&""&"m")) -> 0 | C36: =IF('r4'!$J$66=0,(0),("DB"&$B$12*10&"@"&ROUND(INT(100/((('r4'!$J$66)/(3.142*($B$12*10)^2/4))))/100,1)&""&"m")) -> 0 | D36: =IF('r4'!$J$62=0,(0),("DB"&$B$12*10&"@"&ROUND(INT(100/((('r4'!$J$62)/(3.142*($B$12*10)^2/4))))/100,1)&""&"m")) -> 0 | E36: =IF('r4'!$M$70=0,(0),("DB"&$B$12*10&"@"&ROUND(INT(100/((('r4'!$M$70)/(3.142*($B$12*10)^2/4))))/100,1)&""&"m")) -> 0 | F36: =IF('r4'!$M$66=0,(0),("DB"&$B$12*10&"@"&ROUND(INT(100/((('r4'!$M$66)/(3.142*($B$12*10)^2/4))))/100,1)&""&"m")) -> 0 | G36: =IF('r4'!$M$62=0,(0),("DB"&$B$12*10&"@"&ROUND(INT(100/((('r4'!$M$62)/(3.142*($B$12*10)^2/4))))/100,1)&""&"m")) -> 0 | H36: =IF(('r4'!$O$70)<1,(0),("DB"&$B$12*10&"@"&ROUND(INT(100/((('r4'!$O$70)/(3.142*($B$12*10)^2/4))))/100,1)&""&"m")) -> 0 | I36: =IF(('r4'!$O$66)=0,(0),("DB"&$B$12*10&"@"&ROUND(INT(100/((('r4'!$O$66)/(3.142*($B$12*10)^2/4))))/100,1)&""&"m")) -> 0 | J36: =IF('r4'!$O$62=0,(0),("DB"&$B$12*10&"@"&ROUND(INT(100/((('r4'!$O$62)/(3.142*($B$12*10)^2/4))))/100,1)&""&"m")) -> 0 | K36: =IF('r4'!$Q$70=0,(0),("DB"&$B$12*10&"@"&ROUND(INT(100/((('r4'!$Q$70)/(3.142*($B$12*10)^2/4))))/100,1)&""&"m")) -> 0 | L36: =IF('r4'!$Q$66=0,(0),("DB"&$B$12*10&"@"&ROUND(INT(100/((('r4'!$Q$66)/(3.142*($B$12*10)^2/4))))/100,1)&""&"m")) -> 0 | M36: =IF('r4'!$Q$62=0,(0),("DB"&$B$12*10&"@"&ROUND(INT(100/((('r4'!$Q$62)/(3.142*($B$12*10)^2/4))))/100,1)&""&"m")) -> 0 | N36: =IF('r4'!$S$70=0,(0),("DB"&$B$12*10&"@"&ROUND(INT(100/((('r4'!$S$70)/(3.142*($B$12*10)^2/4))))/100,1)&""&"m")) -> 0 | O36: =IF('r4'!$S$66=0,(0),("DB"&$B$12*10&"@"&ROUND(INT(100/((('r4'!$S$66)/(3.142*($B$12*10)^2/4))))/100,1)&""&"m")) -> 0 | P36: =IF('r4'!$S$62=0,(0),("DB"&$B$12*10&"@"&ROUND(INT(100/((('r4'!$S$62)/(3.142*($B$12*10)^2/4))))/100,1)&""&"m")) -> 0
A37: ="แถบกลาง "& 'r4'!$K$58&" m " -> แถบกลาง 0 m | B37: =IF('r4'!$K$70=0,(0),("DB"&$B$12*10&"@"&ROUND(INT(100/((('r4'!$K$70)/(3.142*($B$12*10)^2/4))))/100,1)&""&"m")) -> 0 | C37: =IF('r4'!$K$66=0,(0),("DB"&$B$12*10&"@"&ROUND(INT(100/((('r4'!$K$66)/(3.142*($B$12*10)^2/4))))/100,1)&""&"m")) -> 0 | D37: =IF('r4'!$K$62=0,(0),("DB"&$B$12*10&"@"&ROUND(INT(100/((('r4'!$K$62)/(3.142*($B$12*10)^2/4))))/100,1)&""&"m")) -> 0 | E37: =IF('r4'!$N$70=0,(0),("DB"&$B$12*10&"@"&ROUND(INT(100/((('r4'!$N$70)/(3.142*($B$12*10)^2/4))))/100,1)&""&"m")) -> 0 | F37: =IF(('r4'!$N$66)=0,(0),("DB"&$B$12*10&"@"&ROUND(INT(100/((('r4'!$N$66)/(3.142*($B$12*10)^2/4))))/100,1)&""&"m")) -> 0 | G37: =IF('r4'!$N$62=0,(0),("DB"&$B$12*10&"@"&ROUND(INT(100/((('r4'!$N$62)/(3.142*($B$12*10)^2/4))))/100,1)&""&"m")) -> 0 | H37: =IF(('r4'!$P$70)=0,(0),("DB"&$B$12*10&"@"&ROUND(INT(100/((('r4'!$P$70)/(3.142*($B$12*10)^2/4))))/100,1)&""&"m")) -> 0 | I37: =IF(('r4'!$P$66)=0,(0),("DB"&$B$12*10&"@"&ROUND(INT(100/((('r4'!$P$66)/(3.142*($B$12*10)^2/4))))/100,1)&""&"m")) -> 0 | J37: =IF(('r4'!$P$62)=0,(0),("DB"&$B$12*10&"@"&ROUND(INT(100/((('r4'!$P$62)/(3.142*($B$12*10)^2/4))))/100,1)&""&"m")) -> 0 | K37: =IF(('r4'!$R$70)=0,(0),("DB"&$B$12*10&"@"&ROUND(INT(100/((('r4'!$R$70)/(3.142*($B$12*10)^2/4))))/100,1)&""&"m")) -> 0 | L37: =IF(('r4'!$R$66)=0,(0),("DB"&$B$12*10&"@"&ROUND(INT(100/((('r4'!$R$66)/(3.142*($B$12*10)^2/4))))/100,1)&""&"m")) -> 0 | M37: =IF(('r4'!$R$62)=0,(0),("DB"&$B$12*10&"@"&ROUND(INT(100/((('r4'!$R$62)/(3.142*($B$12*10)^2/4))))/100,1)&""&"m")) -> 0 | N37: =IF(('r4'!$T$70)=0,(0),("DB"&$B$12*10&"@"&ROUND(INT(100/((('r4'!$T$70)/(3.142*($B$12*10)^2/4))))/100,1)&""&"m")) -> 0 | O37: =IF(('r4'!$T$66)=0,(0),("DB"&$B$12*10&"@"&ROUND(INT(100/((('r4'!$T$66)/(3.142*($B$12*10)^2/4))))/100,1)&""&"m")) -> 0 | P37: =IF(('r4'!$T$62)=0,(0),("DB"&$B$12*10&"@"&ROUND(INT(100/((('r4'!$T$62)/(3.142*($B$12*10)^2/4))))/100,1)&""&"m")) -> 0
A39: =IF($B$4=4,("แถบนอกหน้าตัด R4"),(IF($B$4>4,("แถบในหน้าตัด R4-R5"),("ไม่มีพื้น")))) -> ไม่มีพื้น | B39: span L1 | E39: span L2 | H39: span L3 | K39: span L4 | N39: span L5
B40: โมเมนต์ลบซ้าย | C40: โมเมนต์บวกกลาง | D40: โมเมนต์ลบขวา | E40: โมเมนต์ลบซ้าย | F40: โมเมนต์บวกกลาง | G40: โมเมนต์ลบขวา | H40: โมเมนต์ลบซ้าย | I40: โมเมนต์บวกกลาง | J40: โมเมนต์ลบขวา | K40: โมเมนต์ลบซ้าย | L40: โมเมนต์บวกกลาง | M40: โมเมนต์ลบขวา | N40: โมเมนต์ลบซ้าย | O40: โมเมนต์บวกกลาง | P40: โมเมนต์ลบขวา
A41: ="แถบเสา "& 'r5'!$J$58&" m " -> แถบเสา 0 m | B41: =IF('r5'!$J$70=0,(0),("DB"&$B$12*10&"@"&ROUND(INT(100/((('r5'!$J$70)/(3.142*($B$12*10)^2/4))))/100,1)&""&"m")) -> 0 | C41: =IF('r5'!$J$66=0,(0),("DB"&$B$12*10&"@"&ROUND(INT(100/((('r5'!$J$66)/(3.142*($B$12*10)^2/4))))/100,1)&""&"m")) -> 0 | D41: =IF('r5'!$J$62=0,(0),("DB"&$B$12*10&"@"&ROUND(INT(100/((('r5'!$J$62)/(3.142*($B$12*10)^2/4))))/100,1)&""&"m")) -> 0 | E41: =IF('r5'!$M$70=0,(0),("DB"&$B$12*10&"@"&ROUND(INT(100/((('r5'!$M$70)/(3.142*($B$12*10)^2/4))))/100,1)&""&"m")) -> 0 | F41: =IF('r5'!$M$66=0,(0),("DB"&$B$12*10&"@"&ROUND(INT(100/((('r5'!$M$66)/(3.142*($B$12*10)^2/4))))/100,1)&""&"m")) -> 0 | G41: =IF('r5'!$M$62=0,(0),("DB"&$B$12*10&"@"&ROUND(INT(100/((('r5'!$M$62)/(3.142*($B$12*10)^2/4))))/100,1)&""&"m")) -> 0 | H41: =IF(('r5'!$O$70)=0,(0),("DB"&$B$12*10&"@"&ROUND(INT(100/((('r5'!$O$70)/(3.142*($B$12*10)^2/4))))/100,1)&""&"m")) -> 0 | I41: =IF(('r5'!$O$66)=0,(0),("DB"&$B$12*10&"@"&ROUND(INT(100/((('r5'!$O$66)/(3.142*($B$12*10)^2/4))))/100,1)&""&"m")) -> 0 | J41: =IF('r5'!$O$62=0,(0),("DB"&$B$12*10&"@"&ROUND(INT(100/((('r5'!$O$62)/(3.142*($B$12*10)^2/4))))/100,1)&""&"m")) -> 0 | K41: =IF('r5'!$Q$70=0,(0),("DB"&$B$12*10&"@"&ROUND(INT(100/((('r5'!$Q$70)/(3.142*($B$12*10)^2/4))))/100,1)&""&"m")) -> 0 | L41: =IF('r5'!$Q$66=0,(0),("DB"&$B$12*10&"@"&ROUND(INT(100/((('r5'!$Q$66)/(3.142*($B$12*10)^2/4))))/100,1)&""&"m")) -> 0 | M41: =IF('r5'!$Q$62=0,(0),("DB"&$B$12*10&"@"&ROUND(INT(100/((('r5'!$Q$62)/(3.142*($B$12*10)^2/4))))/100,1)&""&"m")) -> 0 | N41: =IF('r5'!$S$70=0,(0),("DB"&$B$12*10&"@"&ROUND(INT(100/((('r5'!$S$70)/(3.142*($B$12*10)^2/4))))/100,1)&""&"m")) -> 0 | O41: =IF('r5'!$S$66=0,(0),("DB"&$B$12*10&"@"&ROUND(INT(100/((('r5'!$S$66)/(3.142*($B$12*10)^2/4))))/100,1)&""&"m")) -> 0 | P41: =IF('r5'!$S$62=0,(0),("DB"&$B$12*10&"@"&ROUND(INT(100/((('r5'!$S$62)/(3.142*($B$12*10)^2/4))))/100,1)&""&"m")) -> 0
A42: ="แถบกลาง "& 'r5'!$K$58&" m " -> แถบกลาง 0 m | B42: =IF('r5'!$K$70=0,(0),("DB"&$B$12*10&"@"&ROUND(INT(100/((('r5'!$K$70)/(3.142*($B$12*10)^2/4))))/100,1)&""&"m")) -> 0 | C42: =IF('r5'!$K$66=0,(0),("DB"&$B$12*10&"@"&ROUND(INT(100/((('r5'!$K$66)/(3.142*($B$12*10)^2/4))))/100,1)&""&"m")) -> 0 | D42: =IF('r5'!$K$62=0,(0),("DB"&$B$12*10&"@"&ROUND(INT(100/((('r5'!$K$62)/(3.142*($B$12*10)^2/4))))/100,1)&""&"m")) -> 0 | E42: =IF('r5'!$N$70=0,(0),("DB"&$B$12*10&"@"&ROUND(INT(100/((('r5'!$N$70)/(3.142*($B$12*10)^2/4))))/100,1)&""&"m")) -> 0 | F42: =IF(('r5'!$N$66)=0,(0),("DB"&$B$12*10&"@"&ROUND(INT(100/((('r5'!$N$66)/(3.142*($B$12*10)^2/4))))/100,1)&""&"m")) -> 0 | G42: =IF('r5'!$N$62=0,(0),("DB"&$B$12*10&"@"&ROUND(INT(100/((('r5'!$N$62)/(3.142*($B$12*10)^2/4))))/100,1)&""&"m")) -> 0 | H42: =IF(('r5'!$P$70)=0,(0),("DB"&$B$12*10&"@"&ROUND(INT(100/((('r5'!$P$70)/(3.142*($B$12*10)^2/4))))/100,1)&""&"m")) -> 0 | I42: =IF(('r5'!$P$66)=0,(0),("DB"&$B$12*10&"@"&ROUND(INT(100/((('r5'!$P$66)/(3.142*($B$12*10)^2/4))))/100,1)&""&"m")) -> 0 | J42: =IF(('r5'!$P$62)=0,(0),("DB"&$B$12*10&"@"&ROUND(INT(100/((('r5'!$P$62)/(3.142*($B$12*10)^2/4))))/100,1)&""&"m")) -> 0 | K42: =IF(('r5'!$R$70)=0,(0),("DB"&$B$12*10&"@"&ROUND(INT(100/((('r5'!$R$70)/(3.142*($B$12*10)^2/4))))/100,1)&""&"m")) -> 0 | L42: =IF(('r5'!$R$66)=0,(0),("DB"&$B$12*10&"@"&ROUND(INT(100/((('r5'!$R$66)/(3.142*($B$12*10)^2/4))))/100,1)&""&"m")) -> 0 | M42: =IF(('r5'!$R$62)=0,(0),("DB"&$B$12*10&"@"&ROUND(INT(100/((('r5'!$R$62)/(3.142*($B$12*10)^2/4))))/100,1)&""&"m")) -> 0 | N42: =IF(('r5'!$T$70)=0,(0),("DB"&$B$12*10&"@"&ROUND(INT(100/((('r5'!$T$70)/(3.142*($B$12*10)^2/4))))/100,1)&""&"m")) -> 0 | O42: =IF(('r5'!$T$66)=0,(0),("DB"&$B$12*10&"@"&ROUND(INT(100/((('r5'!$T$66)/(3.142*($B$12*10)^2/4))))/100,1)&""&"m")) -> 0 | P42: =IF(('r5'!$T$62)=0,(0),("DB"&$B$12*10&"@"&ROUND(INT(100/((('r5'!$T$62)/(3.142*($B$12*10)^2/4))))/100,1)&""&"m")) -> 0
A44: =IF($B$4=5,("แถบนอกหน้าตัด R5"),(IF($B$4>5,("แถบในหน้าตัด R5-R6"),("ไม่มีพื้น")))) -> ไม่มีพื้น | B44: span L1 | E44: span L2 | H44: span L3 | K44: span L4 | N44: span L5
B45: โมเมนต์ลบซ้าย | C45: โมเมนต์บวกกลาง | D45: โมเมนต์ลบขวา | E45: โมเมนต์ลบซ้าย | F45: โมเมนต์บวกกลาง | G45: โมเมนต์ลบขวา | H45: โมเมนต์ลบซ้าย | I45: โมเมนต์บวกกลาง | J45: โมเมนต์ลบขวา | K45: โมเมนต์ลบซ้าย | L45: โมเมนต์บวกกลาง | M45: โมเมนต์ลบขวา | N45: โมเมนต์ลบซ้าย | O45: โมเมนต์บวกกลาง | P45: โมเมนต์ลบขวา
A46: ="แถบเสา "& 'r6'!$J$58&" m " -> แถบเสา 0 m | B46: =IF('r6'!$J$70=0,(0),("DB"&$B$12*10&"@"&ROUND(INT(100/((('r6'!$J$70+'r6'!$J$86)/(3.142*($B$12*10)^2/4))))/100,1)&""&"m")) -> 0 | C46: =IF('r6'!$J$66=0,(0),("DB"&$B$12*10&"@"&ROUND(INT(100/((('r6'!$J$66)/(3.142*($B$12*10)^2/4))))/100,1)&""&"m")) -> 0 | D46: =IF('r6'!$J$62=0,(0),("DB"&$B$12*10&"@"&ROUND(INT(100/((('r6'!$J$62+'r6'!$M$86)/(3.142*($B$12*10)^2/4))))/100,1)&""&"m")) -> 0 | E46: =IF('r6'!$M$70=0,(0),("DB"&$B$12*10&"@"&ROUND(INT(100/((('r6'!$M$70+'r6'!$O$86)/(3.142*($B$12*10)^2/4))))/100,1)&""&"m")) -> 0 | F46: =IF('r6'!$M$66=0,(0),("DB"&$B$12*10&"@"&ROUND(INT(100/((('r6'!$M$66)/(3.142*($B$12*10)^2/4))))/100,1)&""&"m")) -> 0 | G46: =IF('r6'!$M$62=0,(0),("DB"&$B$12*10&"@"&ROUND(INT(100/((('r6'!$M$62+'r6'!$N$86)/(3.142*($B$12*10)^2/4))))/100,1)&""&"m")) -> 0 | H46: =IF(('r6'!$O$70)=0,(0),("DB"&$B$12*10&"@"&ROUND(INT(100/((('r6'!$O$70+'r6'!$Q$86)/(3.142*($B$12*10)^2/4))))/100,1)&""&"m")) -> 0 | I46: =IF(('r6'!$O$66)=0,(0),("DB"&$B$12*10&"@"&ROUND(INT(100/((('r6'!$O$66)/(3.142*($B$12*10)^2/4))))/100,1)&""&"m")) -> 0 | J46: =IF('r6'!$O$62=0,(0),("DB"&$B$12*10&"@"&ROUND(INT(100/((('r6'!$O$62+'r6'!$P$86)/(3.142*($B$12*10)^2/4))))/100,1)&""&"m")) -> 0 | K46: =IF('r6'!$Q$70=0,(0),("DB"&$B$12*10&"@"&ROUND(INT(100/((('r6'!$Q$70+'r6'!$S$86)/(3.142*($B$12*10)^2/4))))/100,1)&""&"m")) -> 0 | L46: =IF('r6'!$Q$66=0,(0),("DB"&$B$12*10&"@"&ROUND(INT(100/((('r6'!$Q$66)/(3.142*($B$12*10)^2/4))))/100,1)&""&"m")) -> 0 | M46: =IF('r6'!$Q$62=0,(0),("DB"&$B$12*10&"@"&ROUND(INT(100/((('r6'!$Q$62+'r6'!$R$86)/(3.142*($B$12*10)^2/4))))/100,1)&""&"m")) -> 0 | N46: =IF('r6'!$S$70=0,(0),("DB"&$B$12*10&"@"&ROUND(INT(100/((('r6'!$S$70+'r6'!$U$86)/(3.142*($B$12*10)^2/4))))/100,1)&""&"m")) -> 0 | O46: =IF('r6'!$S$66=0,(0),("DB"&$B$12*10&"@"&ROUND(INT(100/((('r6'!$S$66)/(3.142*($B$12*10)^2/4))))/100,1)&""&"m")) -> 0 | P46: =IF('r6'!$S$62=0,(0),("DB"&$B$12*10&"@"&ROUND(INT(100/((('r6'!$S$62+'r6'!$T$86)/(3.142*($B$12*10)^2/4))))/100,1)&""&"m")) -> 0
A47: ="แถบกลาง "& 'r6'!$K$58&" m " -> แถบกลาง 0 m | B47: =IF('r6'!$K$70=0,(0),("DB"&$B$12*10&"@"&ROUND(INT(100/((('r6'!$K$70)/(3.142*($B$12*10)^2/4))))/100,1)&""&"m")) -> 0 | C47: =IF('r6'!$K$66=0,(0),("DB"&$B$12*10&"@"&ROUND(INT(100/((('r6'!$K$66)/(3.142*($B$12*10)^2/4))))/100,1)&""&"m")) -> 0 | D47: =IF('r6'!$K$62=0,(0),("DB"&$B$12*10&"@"&ROUND(INT(100/((('r6'!$K$62)/(3.142*($B$12*10)^2/4))))/100,1)&""&"m")) -> 0 | E47: =IF('r6'!$N$70=0,(0),("DB"&$B$12*10&"@"&ROUND(INT(100/((('r6'!$N$70)/(3.142*($B$12*10)^2/4))))/100,1)&""&"m")) -> 0 | F47: =IF(('r6'!$N$66)=0,(0),("DB"&$B$12*10&"@"&ROUND(INT(100/((('r6'!$N$66)/(3.142*($B$12*10)^2/4))))/100,1)&""&"m")) -> 0 | G47: =IF('r6'!$N$62=0,(0),("DB"&$B$12*10&"@"&ROUND(INT(100/((('r6'!$N$62)/(3.142*($B$12*10)^2/4))))/100,1)&""&"m")) -> 0 | H47: =IF(('r6'!$P$70)=0,(0),("DB"&$B$12*10&"@"&ROUND(INT(100/((('r6'!$P$70)/(3.142*($B$12*10)^2/4))))/100,1)&""&"m")) -> 0 | I47: =IF(('r6'!$P$66)=0,(0),("DB"&$B$12*10&"@"&ROUND(INT(100/((('r6'!$P$66)/(3.142*($B$12*10)^2/4))))/100,1)&""&"m")) -> 0 | J47: =IF(('r6'!$P$62)=0,(0),("DB"&$B$12*10&"@"&ROUND(INT(100/((('r6'!$P$62)/(3.142*($B$12*10)^2/4))))/100,1)&""&"m")) -> 0 | K47: =IF(('r6'!$R$70)=0,(0),("DB"&$B$12*10&"@"&ROUND(INT(100/((('r6'!$R$70)/(3.142*($B$12*10)^2/4))))/100,1)&""&"m")) -> 0 | L47: =IF(('r6'!$R$66)=0,(0),("DB"&$B$12*10&"@"&ROUND(INT(100/((('r6'!$R$66)/(3.142*($B$12*10)^2/4))))/100,1)&""&"m")) -> 0 | M47: =IF(('r6'!$R$62)=0,(0),("DB"&$B$12*10&"@"&ROUND(INT(100/((('r6'!$R$62)/(3.142*($B$12*10)^2/4))))/100,1)&""&"m")) -> 0 | N47: =IF(('r6'!$T$70)=0,(0),("DB"&$B$12*10&"@"&ROUND(INT(100/((('r6'!$T$70)/(3.142*($B$12*10)^2/4))))/100,1)&""&"m")) -> 0 | O47: =IF(('r6'!$T$66)=0,(0),("DB"&$B$12*10&"@"&ROUND(INT(100/((('r6'!$T$66)/(3.142*($B$12*10)^2/4))))/100,1)&""&"m")) -> 0 | P47: =IF(('r6'!$T$62)=0,(0),("DB"&$B$12*10&"@"&ROUND(INT(100/((('r6'!$T$62)/(3.142*($B$12*10)^2/4))))/100,1)&""&"m")) -> 0
A49: แถบนอกหน้าตัด L1 | B49: span R1 | E49: span R2 | H49: span R3 | K49: span R4 | N49: span R5
B50: โมเมนต์ลบบน | C50: โมเมนต์บวกกลาง | D50: โมเมนต์ลบล่าง | E50: โมเมนต์ลบบน | F50: โมเมนต์บวกกลาง | G50: โมเมนต์ลบล่าง | H50: โมเมนต์ลบบน | I50: โมเมนต์บวกกลาง | J50: โมเมนต์ลบล่าง | K50: โมเมนต์ลบบน | L50: โมเมนต์บวกกลาง | M50: โมเมนต์ลบล่าง | N50: โมเมนต์ลบบน | O50: โมเมนต์บวกกลาง | P50: โมเมนต์ลบล่าง
A51: ="แถบเสา "& 'l1'!$J$58&" m " -> แถบเสา 1.25 m | B51: ="DB"&$B$12*10&"@"&ROUND(INT(100/((('l1'!$J$70+'l1'!$J$84)/(3.142*($B$12*10)^2/4))))/100,1)&""&"m" -> DB16@0.2m | C51: ="DB"&$B$12*10&"@"&ROUND(INT(100/((('l1'!$J$66)/(3.142*($B$12*10)^2/4))))/100,1)&""&"m" -> DB16@0.2m | D51: ="DB"&$B$12*10&"@"&ROUND(INT(100/((('l1'!$J$62+'l1'!$M$84)/(3.142*($B$12*10)^2/4))))/100,1)&""&"m" -> DB16@0.1m | E51: ="DB"&$B$12*10&"@"&ROUND(INT(100/((('l1'!$M$70+'l1'!$O$84)/(3.142*($B$12*10)^2/4))))/100,1)&""&"m" -> DB16@0.1m | F51: ="DB"&$B$12*10&"@"&ROUND(INT(100/((('l1'!$M$66)/(3.142*($B$12*10)^2/4))))/100,1)&""&"m" -> DB16@0.4m | G51: ="DB"&$B$12*10&"@"&ROUND(INT(100/((('l1'!$M$62+'l1'!$N$84)/(3.142*($B$12*10)^2/4))))/100,1)&""&"m" -> DB16@0.3m | H51: =IF(('l1'!$O$70)=0,(0),("DB"&$B$12*10&"@"&ROUND(INT(100/((('l1'!$O$70+'l1'!$Q$84)/(3.142*($B$12*10)^2/4))))/100,1)&""&"m")) -> 0 | I51: =IF(('l1'!$O$66)=0,(0),("DB"&$B$12*10&"@"&ROUND(INT(100/((('l1'!$O$66)/(3.142*($B$12*10)^2/4))))/100,1)&""&"m")) -> 0 | J51: =IF('l1'!$O$62=0,(0),("DB"&$B$12*10&"@"&ROUND(INT(100/((('l1'!$O$62+'l1'!$P$84)/(3.142*($B$12*10)^2/4))))/100,1)&""&"m")) -> 0 | K51: =IF('l1'!$Q$70=0,(0),("DB"&$B$12*10&"@"&ROUND(INT(100/((('l1'!$Q$70+'l1'!$S$84)/(3.142*($B$12*10)^2/4))))/100,1)&""&"m")) -> 0 | L51: =IF('l1'!$Q$66=0,(0),("DB"&$B$12*10&"@"&ROUND(INT(100/((('l1'!$Q$66)/(3.142*($B$12*10)^2/4))))/100,1)&""&"m")) -> 0 | M51: =IF('l1'!$Q$62=0,(0),("DB"&$B$12*10&"@"&ROUND(INT(100/((('l1'!$Q$62+'l1'!$R$84)/(3.142*($B$12*10)^2/4))))/100,1)&""&"m")) -> 0 | N51: =IF('l1'!$S$70=0,(0),("DB"&$B$12*10&"@"&ROUND(INT(100/((('l1'!$S$70+'l1'!$U$84)/(3.142*($B$12*10)^2/4))))/100,1)&""&"m")) -> 0 | O51: =IF('l1'!$S$66=0,(0),("DB"&$B$12*10&"@"&ROUND(INT(100/((('l1'!$S$66)/(3.142*($B$12*10)^2/4))))/100,1)&""&"m")) -> 0 | P51: =IF('l1'!$S$62=0,(0),("DB"&$B$12*10&"@"&ROUND(INT(100/((('l1'!$S$62+'l1'!$T$84)/(3.142*($B$12*10)^2/4))))/100,1)&""&"m")) -> 0
A52: ="แถบกลาง "& 'l1'!$K$58&" m " -> แถบกลาง 1.25 m | B52: ="DB"&$B$12*10&"@"&ROUND(INT(100/((('l1'!$K$70)/(3.142*($B$12*10)^2/4))))/100,1)&""&"m" -> DB16@0.4m | C52: ="DB"&$B$12*10&"@"&ROUND(INT(100/((('l1'!$K$66)/(3.142*($B$12*10)^2/4))))/100,1)&""&"m" -> DB16@0.4m | D52: ="DB"&$B$12*10&"@"&ROUND(INT(100/((('l1'!$K$62)/(3.142*($B$12*10)^2/4))))/100,1)&""&"m" -> DB16@0.4m | E52: ="DB"&$B$12*10&"@"&ROUND(INT(100/((('l1'!$N$70)/(3.142*($B$12*10)^2/4))))/100,1)&""&"m" -> DB16@0.4m | F52: ="DB"&$B$12*10&"@"&ROUND(INT(100/((('l1'!$N$66)/(3.142*($B$12*10)^2/4))))/100,1)&""&"m" -> DB16@0.4m | G52: ="DB"&$B$12*10&"@"&ROUND(INT(100/((('l1'!N$62)/(3.142*($B$12*10)^2/4))))/100,1)&""&"m" -> DB16@0.4m | H52: =IF(('l1'!$P$70)=0,(0),("DB"&$B$12*10&"@"&ROUND(INT(100/((('l1'!$P$70)/(3.142*($B$12*10)^2/4))))/100,1)&""&"m")) -> 0 | I52: =IF(('l1'!$P$66)=0,(0),("DB"&$B$12*10&"@"&ROUND(INT(100/((('l1'!$P$66)/(3.142*($B$12*10)^2/4))))/100,1)&""&"m")) -> 0 | J52: =IF(('l1'!$P$62)=0,(0),("DB"&$B$12*10&"@"&ROUND(INT(100/((('l1'!$P$62)/(3.142*($B$12*10)^2/4))))/100,1)&""&"m")) -> 0 | K52: =IF(('l1'!$R$70)=0,(0),("DB"&$B$12*10&"@"&ROUND(INT(100/((('l1'!$R$70)/(3.142*($B$12*10)^2/4))))/100,1)&""&"m")) -> 0 | L52: =IF(('l1'!$R$66)=0,(0),("DB"&$B$12*10&"@"&ROUND(INT(100/((('l1'!$R$66)/(3.142*($B$12*10)^2/4))))/100,1)&""&"m")) -> 0 | M52: =IF(('l1'!$R$62)=0,(0),("DB"&$B$12*10&"@"&ROUND(INT(100/((('l1'!$R$62)/(3.142*($B$12*10)^2/4))))/100,1)&""&"m")) -> 0 | N52: =IF(('l1'!$T$70)=0,(0),("DB"&$B$12*10&"@"&ROUND(INT(100/((('l1'!$T$70)/(3.142*($B$12*10)^2/4))))/100,1)&""&"m")) -> 0 | O52: =IF(('l1'!$T$66)=0,(0),("DB"&$B$12*10&"@"&ROUND(INT(100/((('l1'!$T$66)/(3.142*($B$12*10)^2/4))))/100,1)&""&"m")) -> 0 | P52: =IF(('l1'!$T$62)=0,(0),("DB"&$B$12*10&"@"&ROUND(INT(100/((('l1'!$T$62)/(3.142*($B$12*10)^2/4))))/100,1)&""&"m")) -> 0
A54: แถบในหน้าตัด L1-L2 | B54: span R1 | E54: span R2 | H54: span R3 | K54: span R4 | N54: span R5
B55: โมเมนต์ลบบน | C55: โมเมนต์บวกกลาง | D55: โมเมนต์ลบล่าง | E55: โมเมนต์ลบบน | F55: โมเมนต์บวกกลาง | G55: โมเมนต์ลบล่าง | H55: โมเมนต์ลบบน | I55: โมเมนต์บวกกลาง | J55: โมเมนต์ลบล่าง | K55: โมเมนต์ลบบน | L55: โมเมนต์บวกกลาง | M55: โมเมนต์ลบล่าง | N55: โมเมนต์ลบบน | O55: โมเมนต์บวกกลาง | P55: โมเมนต์ลบล่าง
A56: ="แถบเสา "& 'l2'!$J$58&" m " -> แถบเสา 2.75 m | B56: ="DB"&$B$12*10&"@"&ROUND(INT(100/((('l2'!$J$70)/(3.142*($B$12*10)^2/4))))/100,1)&""&"m" -> DB16@0.4m | C56: ="DB"&$B$12*10&"@"&ROUND(INT(100/((('l2'!$J$66)/(3.142*($B$12*10)^2/4))))/100,1)&""&"m" -> DB16@0.2m | D56: ="DB"&$B$12*10&"@"&ROUND(INT(100/((('l2'!$J$62)/(3.142*($B$12*10)^2/4))))/100,1)&""&"m" -> DB16@0.1m | E56: ="DB"&$B$12*10&"@"&ROUND(INT(100/((('l2'!$M$70)/(3.142*($B$12*10)^2/4))))/100,1)&""&"m" -> DB16@0.1m | F56: ="DB"&$B$12*10&"@"&ROUND(INT(100/((('l2'!$M$66)/(3.142*($B$12*10)^2/4))))/100,1)&""&"m" -> DB16@0.3m | G56: ="DB"&$B$12*10&"@"&ROUND(INT(100/((('l2'!$M$62)/(3.142*($B$12*10)^2/4))))/100,1)&""&"m" -> DB16@0.4m | H56: =IF(('l2'!$O$70)=0,(0),("DB"&$B$12*10&"@"&ROUND(INT(100/((('l2'!$O$70)/(3.142*($B$12*10)^2/4))))/100,1)&""&"m")) -> 0 | I56: =IF(('l2'!$O$66)=0,(0),("DB"&$B$12*10&"@"&ROUND(INT(100/((('l2'!$O$66)/(3.142*($B$12*10)^2/4))))/100,1)&""&"m")) -> 0 | J56: =IF('l2'!$O$62=0,(0),("DB"&$B$12*10&"@"&ROUND(INT(100/((('l2'!$O$62)/(3.142*($B$12*10)^2/4))))/100,1)&""&"m")) -> 0 | K56: =IF('l2'!$Q$70=0,(0),("DB"&$B$12*10&"@"&ROUND(INT(100/((('l2'!$Q$70)/(3.142*($B$12*10)^2/4))))/100,1)&""&"m")) -> 0 | L56: =IF('l2'!$Q$66=0,(0),("DB"&$B$12*10&"@"&ROUND(INT(100/((('l2'!$Q$66)/(3.142*($B$12*10)^2/4))))/100,1)&""&"m")) -> 0 | M56: =IF('l2'!$Q$62=0,(0),("DB"&$B$12*10&"@"&ROUND(INT(100/((('l2'!$Q$62)/(3.142*($B$12*10)^2/4))))/100,1)&""&"m")) -> 0 | N56: =IF('l2'!$S$70=0,(0),("DB"&$B$12*10&"@"&ROUND(INT(100/((('l2'!$S$70)/(3.142*($B$12*10)^2/4))))/100,1)&""&"m")) -> 0 | O56: =IF('l2'!$S$66=0,(0),("DB"&$B$12*10&"@"&ROUND(INT(100/((('l2'!$S$66)/(3.142*($B$12*10)^2/4))))/100,1)&""&"m")) -> 0 | P56: =IF('l2'!$S$62=0,(0),("DB"&$B$12*10&"@"&ROUND(INT(100/((('l2'!$S$62)/(3.142*($B$12*10)^2/4))))/100,1)&""&"m")) -> 0
A57: ="แถบกลาง "& 'l2'!$K$58&" m " -> แถบกลาง 2.75 m | B57: ="DB"&$B$12*10&"@"&ROUND(INT(100/((('l2'!$K$70)/(3.142*($B$12*10)^2/4))))/100,1)&""&"m" -> DB16@0.4m | C57: ="DB"&$B$12*10&"@"&ROUND(INT(100/((('l2'!$K$66)/(3.142*($B$12*10)^2/4))))/100,1)&""&"m" -> DB16@0.3m | D57: ="DB"&$B$12*10&"@"&ROUND(INT(100/((('l2'!$K$62)/(3.142*($B$12*10)^2/4))))/100,1)&""&"m" -> DB16@0.4m | E57: ="DB"&$B$12*10&"@"&ROUND(INT(100/((('l2'!$N$70)/(3.142*($B$12*10)^2/4))))/100,1)&""&"m" -> DB16@0.4m | F57: ="DB"&$B$12*10&"@"&ROUND(INT(100/((('l2'!$N$66)/(3.142*($B$12*10)^2/4))))/100,1)&""&"m" -> DB16@0.4m | G57: ="DB"&$B$12*10&"@"&ROUND(INT(100/((('l2'!N$62)/(3.142*($B$12*10)^2/4))))/100,1)&""&"m" -> DB16@0.4m | H57: =IF(('l2'!$P$70)=0,(0),("DB"&$B$12*10&"@"&ROUND(INT(100/((('l2'!$P$70)/(3.142*($B$12*10)^2/4))))/100,1)&""&"m")) -> 0 | I57: =IF(('l2'!$P$66)=0,(0),("DB"&$B$12*10&"@"&ROUND(INT(100/((('l2'!$P$66)/(3.142*($B$12*10)^2/4))))/100,1)&""&"m")) -> 0 | J57: =IF(('l2'!$P$62)=0,(0),("DB"&$B$12*10&"@"&ROUND(INT(100/((('l2'!$P$62)/(3.142*($B$12*10)^2/4))))/100,1)&""&"m")) -> 0 | K57: =IF(('l2'!$R$70)=0,(0),("DB"&$B$12*10&"@"&ROUND(INT(100/((('l2'!$R$70)/(3.142*($B$12*10)^2/4))))/100,1)&""&"m")) -> 0 | L57: =IF(('l2'!$R$66)=0,(0),("DB"&$B$12*10&"@"&ROUND(INT(100/((('l2'!$R$66)/(3.142*($B$12*10)^2/4))))/100,1)&""&"m")) -> 0 | M57: =IF(('l2'!$R$62)=0,(0),("DB"&$B$12*10&"@"&ROUND(INT(100/((('l2'!$R$62)/(3.142*($B$12*10)^2/4))))/100,1)&""&"m")) -> 0 | N57: =IF(('l2'!$T$70)=0,(0),("DB"&$B$12*10&"@"&ROUND(INT(100/((('l2'!$T$70)/(3.142*($B$12*10)^2/4))))/100,1)&""&"m")) -> 0 | O57: =IF(('l2'!$T$66)=0,(0),("DB"&$B$12*10&"@"&ROUND(INT(100/((('l2'!$T$66)/(3.142*($B$12*10)^2/4))))/100,1)&""&"m")) -> 0 | P57: =IF(('l2'!$T$62)=0,(0),("DB"&$B$12*10&"@"&ROUND(INT(100/((('l2'!$T$62)/(3.142*($B$12*10)^2/4))))/100,1)&""&"m")) -> 0
A59: =IF($B$3=2,("แถบนอกหน้าตัด L2"),(IF($B$3>2,("แถบในหน้าตัด L2-L3"),("ไม่มีพื้น")))) -> แถบในหน้าตัด L2-L3 | B59: span R1 | E59: span R2 | H59: span R3 | K59: span R4 | N59: span R5
B60: โมเมนต์ลบบน | C60: โมเมนต์บวกกลาง | D60: โมเมนต์ลบล่าง | E60: โมเมนต์ลบบน | F60: โมเมนต์บวกกลาง | G60: โมเมนต์ลบล่าง | H60: โมเมนต์ลบบน | I60: โมเมนต์บวกกลาง | J60: โมเมนต์ลบล่าง | K60: โมเมนต์ลบบน | L60: โมเมนต์บวกกลาง | M60: โมเมนต์ลบล่าง | N60: โมเมนต์ลบบน | O60: โมเมนต์บวกกลาง | P60: โมเมนต์ลบล่าง
A61: ="แถบเสา "& 'l3'!$J$58&" m " -> แถบเสา 2.75 m | B61: =IF('l3'!$J$70=0,(0),("DB"&$B$12*10&"@"&ROUND(INT(100/((('l3'!$J$70)/(3.142*($B$12*10)^2/4))))/100,1)&""&"m")) -> DB16@0.4m | C61: =IF('l3'!$J$66=0,(0),("DB"&$B$12*10&"@"&ROUND(INT(100/((('l3'!$J$66)/(3.142*($B$12*10)^2/4))))/100,1)&""&"m")) -> DB16@0.2m | D61: =IF('l3'!$J$62=0,(0),("DB"&$B$12*10&"@"&ROUND(INT(100/((('l3'!$J$62)/(3.142*($B$12*10)^2/4))))/100,1)&""&"m")) -> DB16@0.1m | E61: =IF('l3'!$M$70=0,(0),("DB"&$B$12*10&"@"&ROUND(INT(100/((('l3'!$M$70)/(3.142*($B$12*10)^2/4))))/100,1)&""&"m")) -> DB16@0.1m | F61: =IF('l3'!$M$66=0,(0),("DB"&$B$12*10&"@"&ROUND(INT(100/((('l3'!$M$66)/(3.142*($B$12*10)^2/4))))/100,1)&""&"m")) -> DB16@0.3m | G61: =IF('l3'!$M$62=0,(0),("DB"&$B$12*10&"@"&ROUND(INT(100/((('l3'!$M$62)/(3.142*($B$12*10)^2/4))))/100,1)&""&"m")) -> DB16@0.4m | H61: =IF(('l3'!$O$70)<1,(0),("DB"&$B$12*10&"@"&ROUND(INT(100/((('l3'!$O$70)/(3.142*($B$12*10)^2/4))))/100,1)&""&"m")) -> 0 | I61: =IF(('l3'!$O$66)=0,(0),("DB"&$B$12*10&"@"&ROUND(INT(100/((('l3'!$O$66)/(3.142*($B$12*10)^2/4))))/100,1)&""&"m")) -> 0 | J61: =IF('l3'!$O$62=0,(0),("DB"&$B$12*10&"@"&ROUND(INT(100/((('l3'!$O$62)/(3.142*($B$12*10)^2/4))))/100,1)&""&"m")) -> 0 | K61: =IF('l3'!$Q$70=0,(0),("DB"&$B$12*10&"@"&ROUND(INT(100/((('l3'!$Q$70)/(3.142*($B$12*10)^2/4))))/100,1)&""&"m")) -> 0 | L61: =IF('l3'!$Q$66=0,(0),("DB"&$B$12*10&"@"&ROUND(INT(100/((('l3'!$Q$66)/(3.142*($B$12*10)^2/4))))/100,1)&""&"m")) -> 0 | M61: =IF('l3'!$Q$62=0,(0),("DB"&$B$12*10&"@"&ROUND(INT(100/((('l3'!$Q$62)/(3.142*($B$12*10)^2/4))))/100,1)&""&"m")) -> 0 | N61: =IF('l3'!$S$70=0,(0),("DB"&$B$12*10&"@"&ROUND(INT(100/((('l3'!$S$70)/(3.142*($B$12*10)^2/4))))/100,1)&""&"m")) -> 0 | O61: =IF('l3'!$S$66=0,(0),("DB"&$B$12*10&"@"&ROUND(INT(100/((('l3'!$S$66)/(3.142*($B$12*10)^2/4))))/100,1)&""&"m")) -> 0 | P61: =IF('l3'!$S$62=0,(0),("DB"&$B$12*10&"@"&ROUND(INT(100/((('l3'!$S$62)/(3.142*($B$12*10)^2/4))))/100,1)&""&"m")) -> 0
A62: ="แถบกลาง "& 'l3'!$K$58&" m " -> แถบกลาง 2.75 m | B62: =IF('l3'!$K$70=0,(0),("DB"&$B$12*10&"@"&ROUND(INT(100/((('l3'!$K$70)/(3.142*($B$12*10)^2/4))))/100,1)&""&"m")) -> DB16@0.4m | C62: =IF('l3'!$K$66=0,(0),("DB"&$B$12*10&"@"&ROUND(INT(100/((('l3'!$K$66)/(3.142*($B$12*10)^2/4))))/100,1)&""&"m")) -> DB16@0.3m | D62: =IF('l3'!$K$62=0,(0),("DB"&$B$12*10&"@"&ROUND(INT(100/((('l3'!$K$62)/(3.142*($B$12*10)^2/4))))/100,1)&""&"m")) -> DB16@0.4m | E62: =IF('l3'!$N$70=0,(0),("DB"&$B$12*10&"@"&ROUND(INT(100/((('l3'!$N$70)/(3.142*($B$12*10)^2/4))))/100,1)&""&"m")) -> DB16@0.4m | F62: =IF(('l3'!$N$66)=0,(0),("DB"&$B$12*10&"@"&ROUND(INT(100/((('l3'!$N$66)/(3.142*($B$12*10)^2/4))))/100,1)&""&"m")) -> DB16@0.4m | G62: =IF('l3'!$N$62=0,(0),("DB"&$B$12*10&"@"&ROUND(INT(100/((('l3'!$N$62)/(3.142*($B$12*10)^2/4))))/100,1)&""&"m")) -> DB16@0.4m | H62: =IF(('l3'!$P$70)=0,(0),("DB"&$B$12*10&"@"&ROUND(INT(100/((('l3'!$P$70)/(3.142*($B$12*10)^2/4))))/100,1)&""&"m")) -> 0 | I62: =IF(('l3'!$P$66)=0,(0),("DB"&$B$12*10&"@"&ROUND(INT(100/((('l3'!$P$66)/(3.142*($B$12*10)^2/4))))/100,1)&""&"m")) -> 0 | J62: =IF(('l3'!$P$62)=0,(0),("DB"&$B$12*10&"@"&ROUND(INT(100/((('l3'!$P$62)/(3.142*($B$12*10)^2/4))))/100,1)&""&"m")) -> 0 | K62: =IF(('l3'!$R$70)=0,(0),("DB"&$B$12*10&"@"&ROUND(INT(100/((('l3'!$R$70)/(3.142*($B$12*10)^2/4))))/100,1)&""&"m")) -> 0 | L62: =IF(('l3'!$R$66)=0,(0),("DB"&$B$12*10&"@"&ROUND(INT(100/((('l3'!$R$66)/(3.142*($B$12*10)^2/4))))/100,1)&""&"m")) -> 0 | M62: =IF(('l3'!$R$62)=0,(0),("DB"&$B$12*10&"@"&ROUND(INT(100/((('l3'!$R$62)/(3.142*($B$12*10)^2/4))))/100,1)&""&"m")) -> 0 | N62: =IF(('l3'!$T$70)=0,(0),("DB"&$B$12*10&"@"&ROUND(INT(100/((('l3'!$T$70)/(3.142*($B$12*10)^2/4))))/100,1)&""&"m")) -> 0 | O62: =IF(('l3'!$T$66)=0,(0),("DB"&$B$12*10&"@"&ROUND(INT(100/((('l3'!$T$66)/(3.142*($B$12*10)^2/4))))/100,1)&""&"m")) -> 0 | P62: =IF(('l3'!$T$62)=0,(0),("DB"&$B$12*10&"@"&ROUND(INT(100/((('l3'!$T$62)/(3.142*($B$12*10)^2/4))))/100,1)&""&"m")) -> 0
A64: =IF($B$3=3,("แถบนอกหน้าตัด L3"),(IF($B$3>3,("แถบในหน้าตัด L3-L4"),("ไม่มีพื้น")))) -> แถบนอกหน้าตัด L3 | B64: span R1 | E64: span R2 | H64: span R3 | K64: span R4 | N64: span R5
B65: โมเมนต์ลบบน | C65: โมเมนต์บวกกลาง | D65: โมเมนต์ลบล่าง | E65: โมเมนต์ลบบน | F65: โมเมนต์บวกกลาง | G65: โมเมนต์ลบล่าง | H65: โมเมนต์ลบบน | I65: โมเมนต์บวกกลาง | J65: โมเมนต์ลบล่าง | K65: โมเมนต์ลบบน | L65: โมเมนต์บวกกลาง | M65: โมเมนต์ลบล่าง | N65: โมเมนต์ลบบน | O65: โมเมนต์บวกกลาง | P65: โมเมนต์ลบล่าง
A66: ="แถบเสา "& 'l4'!$J$58&" m " -> แถบเสา 1.25 m | B66: =IF('l4'!$J$70=0,(0),("DB"&$B$12*10&"@"&ROUND(INT(100/((('l4'!$J$70)/(3.142*($B$12*10)^2/4))))/100,1)&""&"m")) -> DB16@0.2m | C66: =IF('l4'!$J$66=0,(0),("DB"&$B$12*10&"@"&ROUND(INT(100/((('l4'!$J$66)/(3.142*($B$12*10)^2/4))))/100,1)&""&"m")) -> DB16@0.2m | D66: =IF('l4'!$J$62=0,(0),("DB"&$B$12*10&"@"&ROUND(INT(100/((('l4'!$J$62)/(3.142*($B$12*10)^2/4))))/100,1)&""&"m")) -> DB16@0.1m | E66: =IF('l4'!$M$70=0,(0),("DB"&$B$12*10&"@"&ROUND(INT(100/((('l4'!$M$70)/(3.142*($B$12*10)^2/4))))/100,1)&""&"m")) -> DB16@0.1m | F66: =IF('l4'!$M$66=0,(0),("DB"&$B$12*10&"@"&ROUND(INT(100/((('l4'!$M$66)/(3.142*($B$12*10)^2/4))))/100,1)&""&"m")) -> DB16@0.4m | G66: =IF('l4'!$M$62=0,(0),("DB"&$B$12*10&"@"&ROUND(INT(100/((('l4'!$M$62)/(3.142*($B$12*10)^2/4))))/100,1)&""&"m")) -> DB16@0.3m | H66: =IF(('l4'!$O$70)=0,(0),("DB"&$B$12*10&"@"&ROUND(INT(100/((('l4'!$O$70)/(3.142*($B$12*10)^2/4))))/100,1)&""&"m")) -> 0 | I66: =IF(('l4'!$O$66)=0,(0),("DB"&$B$12*10&"@"&ROUND(INT(100/((('l4'!$O$66)/(3.142*($B$12*10)^2/4))))/100,1)&""&"m")) -> 0 | J66: =IF('l4'!$O$62=0,(0),("DB"&$B$12*10&"@"&ROUND(INT(100/((('l4'!$O$62)/(3.142*($B$12*10)^2/4))))/100,1)&""&"m")) -> 0 | K66: =IF('l4'!$Q$70=0,(0),("DB"&$B$12*10&"@"&ROUND(INT(100/((('l4'!$Q$70)/(3.142*($B$12*10)^2/4))))/100,1)&""&"m")) -> 0 | L66: =IF('l4'!$Q$66=0,(0),("DB"&$B$12*10&"@"&ROUND(INT(100/((('l4'!$Q$66)/(3.142*($B$12*10)^2/4))))/100,1)&""&"m")) -> 0 | M66: =IF('l4'!$Q$62=0,(0),("DB"&$B$12*10&"@"&ROUND(INT(100/((('l4'!$Q$62)/(3.142*($B$12*10)^2/4))))/100,1)&""&"m")) -> 0 | N66: =IF('l4'!$S$70=0,(0),("DB"&$B$12*10&"@"&ROUND(INT(100/((('l4'!$S$70)/(3.142*($B$12*10)^2/4))))/100,1)&""&"m")) -> 0 | O66: =IF('l4'!$S$66=0,(0),("DB"&$B$12*10&"@"&ROUND(INT(100/((('l4'!$S$66)/(3.142*($B$12*10)^2/4))))/100,1)&""&"m")) -> 0 | P66: =IF('l4'!$S$62=0,(0),("DB"&$B$12*10&"@"&ROUND(INT(100/((('l4'!$S$62)/(3.142*($B$12*10)^2/4))))/100,1)&""&"m")) -> 0
A67: ="แถบกลาง "& 'l4'!$K$58&" m " -> แถบกลาง 1.25 m | B67: =IF('l4'!$K$70=0,(0),("DB"&$B$12*10&"@"&ROUND(INT(100/((('l4'!$K$70)/(3.142*($B$12*10)^2/4))))/100,1)&""&"m")) -> DB16@0.4m | C67: =IF('l4'!$K$66=0,(0),("DB"&$B$12*10&"@"&ROUND(INT(100/((('l4'!$K$66)/(3.142*($B$12*10)^2/4))))/100,1)&""&"m")) -> DB16@0.4m | D67: =IF('l4'!$K$62=0,(0),("DB"&$B$12*10&"@"&ROUND(INT(100/((('l4'!$K$62)/(3.142*($B$12*10)^2/4))))/100,1)&""&"m")) -> DB16@0.4m | E67: =IF('l4'!$N$70=0,(0),("DB"&$B$12*10&"@"&ROUND(INT(100/((('l4'!$N$70)/(3.142*($B$12*10)^2/4))))/100,1)&""&"m")) -> DB16@0.4m | F67: =IF(('l4'!$N$66)=0,(0),("DB"&$B$12*10&"@"&ROUND(INT(100/((('l4'!$N$66)/(3.142*($B$12*10)^2/4))))/100,1)&""&"m")) -> DB16@0.4m | G67: =IF('l4'!$N$62=0,(0),("DB"&$B$12*10&"@"&ROUND(INT(100/((('l4'!$N$62)/(3.142*($B$12*10)^2/4))))/100,1)&""&"m")) -> DB16@0.4m | H67: =IF(('l4'!$P$70)=0,(0),("DB"&$B$12*10&"@"&ROUND(INT(100/((('l4'!$P$70)/(3.142*($B$12*10)^2/4))))/100,1)&""&"m")) -> 0 | I67: =IF(('l4'!$P$66)=0,(0),("DB"&$B$12*10&"@"&ROUND(INT(100/((('l4'!$P$66)/(3.142*($B$12*10)^2/4))))/100,1)&""&"m")) -> 0 | J67: =IF(('l4'!$P$62)=0,(0),("DB"&$B$12*10&"@"&ROUND(INT(100/((('l4'!$P$62)/(3.142*($B$12*10)^2/4))))/100,1)&""&"m")) -> 0 | K67: =IF(('l4'!$R$70)=0,(0),("DB"&$B$12*10&"@"&ROUND(INT(100/((('l4'!$R$70)/(3.142*($B$12*10)^2/4))))/100,1)&""&"m")) -> 0 | L67: =IF(('l4'!$R$66)=0,(0),("DB"&$B$12*10&"@"&ROUND(INT(100/((('l4'!$R$66)/(3.142*($B$12*10)^2/4))))/100,1)&""&"m")) -> 0 | M67: =IF(('l4'!$R$62)=0,(0),("DB"&$B$12*10&"@"&ROUND(INT(100/((('l4'!$R$62)/(3.142*($B$12*10)^2/4))))/100,1)&""&"m")) -> 0 | N67: =IF(('l4'!$T$70)=0,(0),("DB"&$B$12*10&"@"&ROUND(INT(100/((('l4'!$T$70)/(3.142*($B$12*10)^2/4))))/100,1)&""&"m")) -> 0 | O67: =IF(('l4'!$T$66)=0,(0),("DB"&$B$12*10&"@"&ROUND(INT(100/((('l4'!$T$66)/(3.142*($B$12*10)^2/4))))/100,1)&""&"m")) -> 0 | P67: =IF(('l4'!$T$62)=0,(0),("DB"&$B$12*10&"@"&ROUND(INT(100/((('l4'!$T$62)/(3.142*($B$12*10)^2/4))))/100,1)&""&"m")) -> 0
A69: =IF($B$3=4,("แถบนอกหน้าตัด L4"),(IF($B$3>4,("แถบในหน้าตัด L4-L5"),("ไม่มีพื้น")))) -> ไม่มีพื้น | B69: span R1 | E69: span R2 | H69: span R3 | K69: span R4 | N69: span R5
B70: โมเมนต์ลบบน | C70: โมเมนต์บวกกลาง | D70: โมเมนต์ลบล่าง | E70: โมเมนต์ลบบน | F70: โมเมนต์บวกกลาง | G70: โมเมนต์ลบล่าง | H70: โมเมนต์ลบบน | I70: โมเมนต์บวกกลาง | J70: โมเมนต์ลบล่าง | K70: โมเมนต์ลบบน | L70: โมเมนต์บวกกลาง | M70: โมเมนต์ลบล่าง | N70: โมเมนต์ลบบน | O70: โมเมนต์บวกกลาง | P70: โมเมนต์ลบล่าง
A71: ="แถบเสา "& 'l5'!$J$58&" m " -> แถบเสา 0 m | B71: =IF('l5'!$J$70=0,(0),("DB"&$B$12*10&"@"&ROUND(INT(100/((('l5'!$J$70)/(3.142*($B$12*10)^2/4))))/100,1)&""&"m")) -> 0 | C71: =IF('l5'!$J$66=0,(0),("DB"&$B$12*10&"@"&ROUND(INT(100/((('l5'!$J$66)/(3.142*($B$12*10)^2/4))))/100,1)&""&"m")) -> 0 | D71: =IF('l5'!$J$62=0,(0),("DB"&$B$12*10&"@"&ROUND(INT(100/((('l5'!$J$62)/(3.142*($B$12*10)^2/4))))/100,1)&""&"m")) -> 0 | E71: =IF('l5'!$M$70=0,(0),("DB"&$B$12*10&"@"&ROUND(INT(100/((('l5'!$M$70)/(3.142*($B$12*10)^2/4))))/100,1)&""&"m")) -> 0 | F71: =IF('l5'!$M$66=0,(0),("DB"&$B$12*10&"@"&ROUND(INT(100/((('l5'!$M$66)/(3.142*($B$12*10)^2/4))))/100,1)&""&"m")) -> 0 | G71: =IF('l5'!$M$62=0,(0),("DB"&$B$12*10&"@"&ROUND(INT(100/((('l5'!$M$62)/(3.142*($B$12*10)^2/4))))/100,1)&""&"m")) -> 0 | H71: =IF(('l5'!$O$70)=0,(0),("DB"&$B$12*10&"@"&ROUND(INT(100/((('l5'!$O$70)/(3.142*($B$12*10)^2/4))))/100,1)&""&"m")) -> 0 | I71: =IF(('l5'!$O$66)=0,(0),("DB"&$B$12*10&"@"&ROUND(INT(100/((('l5'!$O$66)/(3.142*($B$12*10)^2/4))))/100,1)&""&"m")) -> 0 | J71: =IF('l5'!$O$62=0,(0),("DB"&$B$12*10&"@"&ROUND(INT(100/((('l5'!$O$62)/(3.142*($B$12*10)^2/4))))/100,1)&""&"m")) -> 0 | K71: =IF('l5'!$Q$70=0,(0),("DB"&$B$12*10&"@"&ROUND(INT(100/((('l5'!$Q$70)/(3.142*($B$12*10)^2/4))))/100,1)&""&"m")) -> 0 | L71: =IF('l5'!$Q$66=0,(0),("DB"&$B$12*10&"@"&ROUND(INT(100/((('l5'!$Q$66)/(3.142*($B$12*10)^2/4))))/100,1)&""&"m")) -> 0 | M71: =IF('l5'!$Q$62=0,(0),("DB"&$B$12*10&"@"&ROUND(INT(100/((('l5'!$Q$62)/(3.142*($B$12*10)^2/4))))/100,1)&""&"m")) -> 0 | N71: =IF('l5'!$S$70=0,(0),("DB"&$B$12*10&"@"&ROUND(INT(100/((('l5'!$S$70)/(3.142*($B$12*10)^2/4))))/100,1)&""&"m")) -> 0 | O71: =IF('l5'!$S$66=0,(0),("DB"&$B$12*10&"@"&ROUND(INT(100/((('l5'!$S$66)/(3.142*($B$12*10)^2/4))))/100,1)&""&"m")) -> 0 | P71: =IF('l5'!$S$62=0,(0),("DB"&$B$12*10&"@"&ROUND(INT(100/((('l5'!$S$62)/(3.142*($B$12*10)^2/4))))/100,1)&""&"m")) -> 0
A72: ="แถบกลาง "& 'l5'!$K$58&" m " -> แถบกลาง 0 m | B72: =IF('l5'!$K$70=0,(0),("DB"&$B$12*10&"@"&ROUND(INT(100/((('l5'!$K$70)/(3.142*($B$12*10)^2/4))))/100,1)&""&"m")) -> 0 | C72: =IF('l5'!$K$66=0,(0),("DB"&$B$12*10&"@"&ROUND(INT(100/((('l5'!$K$66)/(3.142*($B$12*10)^2/4))))/100,1)&""&"m")) -> 0 | D72: =IF('l5'!$K$62=0,(0),("DB"&$B$12*10&"@"&ROUND(INT(100/((('l5'!$K$62)/(3.142*($B$12*10)^2/4))))/100,1)&""&"m")) -> 0 | E72: =IF('l5'!$N$70=0,(0),("DB"&$B$12*10&"@"&ROUND(INT(100/((('l5'!$N$70)/(3.142*($B$12*10)^2/4))))/100,1)&""&"m")) -> 0 | F72: =IF(('l5'!$N$66)=0,(0),("DB"&$B$12*10&"@"&ROUND(INT(100/((('l5'!$N$66)/(3.142*($B$12*10)^2/4))))/100,1)&""&"m")) -> 0 | G72: =IF('l5'!$N$62=0,(0),("DB"&$B$12*10&"@"&ROUND(INT(100/((('l5'!$N$62)/(3.142*($B$12*10)^2/4))))/100,1)&""&"m")) -> 0 | H72: =IF(('l5'!$P$70)=0,(0),("DB"&$B$12*10&"@"&ROUND(INT(100/((('l5'!$P$70)/(3.142*($B$12*10)^2/4))))/100,1)&""&"m")) -> 0 | I72: =IF(('l5'!$P$66)=0,(0),("DB"&$B$12*10&"@"&ROUND(INT(100/((('l5'!$P$66)/(3.142*($B$12*10)^2/4))))/100,1)&""&"m")) -> 0 | J72: =IF(('l5'!$P$62)=0,(0),("DB"&$B$12*10&"@"&ROUND(INT(100/((('l5'!$P$62)/(3.142*($B$12*10)^2/4))))/100,1)&""&"m")) -> 0 | K72: =IF(('l5'!$R$70)=0,(0),("DB"&$B$12*10&"@"&ROUND(INT(100/((('l5'!$R$70)/(3.142*($B$12*10)^2/4))))/100,1)&""&"m")) -> 0 | L72: =IF(('l5'!$R$66)=0,(0),("DB"&$B$12*10&"@"&ROUND(INT(100/((('l5'!$R$66)/(3.142*($B$12*10)^2/4))))/100,1)&""&"m")) -> 0 | M72: =IF(('l5'!$R$62)=0,(0),("DB"&$B$12*10&"@"&ROUND(INT(100/((('l5'!$R$62)/(3.142*($B$12*10)^2/4))))/100,1)&""&"m")) -> 0 | N72: =IF(('l5'!$T$70)=0,(0),("DB"&$B$12*10&"@"&ROUND(INT(100/((('l5'!$T$70)/(3.142*($B$12*10)^2/4))))/100,1)&""&"m")) -> 0 | O72: =IF(('l5'!$T$66)=0,(0),("DB"&$B$12*10&"@"&ROUND(INT(100/((('l5'!$T$66)/(3.142*($B$12*10)^2/4))))/100,1)&""&"m")) -> 0 | P72: =IF(('l5'!$T$62)=0,(0),("DB"&$B$12*10&"@"&ROUND(INT(100/((('l5'!$T$62)/(3.142*($B$12*10)^2/4))))/100,1)&""&"m")) -> 0
A74: =IF($B$3=5,("แถบนอกหน้าตัด L5"),(IF($B$3>5,("แถบในหน้าตัด L5-L6"),("ไม่มีพื้น")))) -> ไม่มีพื้น | B74: span R1 | E74: span R2 | H74: span R3 | K74: span R4 | N74: span R5
B75: โมเมนต์ลบบน | C75: โมเมนต์บวกกลาง | D75: โมเมนต์ลบล่าง | E75: โมเมนต์ลบบน | F75: โมเมนต์บวกกลาง | G75: โมเมนต์ลบล่าง | H75: โมเมนต์ลบบน | I75: โมเมนต์บวกกลาง | J75: โมเมนต์ลบล่าง | K75: โมเมนต์ลบบน | L75: โมเมนต์บวกกลาง | M75: โมเมนต์ลบล่าง | N75: โมเมนต์ลบบน | O75: โมเมนต์บวกกลาง | P75: โมเมนต์ลบล่าง
A76: ="แถบเสา "& 'l6'!$J$58&" m " -> แถบเสา 0 m | B76: =IF('l6'!$J$70=0,(0),("DB"&$B$12*10&"@"&ROUND(INT(100/((('l6'!$J$70+'l6'!$J$86)/(3.142*($B$12*10)^2/4))))/100,1)&""&"m")) -> 0 | C76: =IF('l6'!$J$66=0,(0),("DB"&$B$12*10&"@"&ROUND(INT(100/((('l6'!$J$66)/(3.142*($B$12*10)^2/4))))/100,1)&""&"m")) -> 0 | D76: =IF('l6'!$J$62=0,(0),("DB"&$B$12*10&"@"&ROUND(INT(100/((('l6'!$J$62+'l6'!$M$86)/(3.142*($B$12*10)^2/4))))/100,1)&""&"m")) -> 0 | E76: =IF('l6'!$M$70=0,(0),("DB"&$B$12*10&"@"&ROUND(INT(100/((('l6'!$M$70+'l6'!$O$86)/(3.142*($B$12*10)^2/4))))/100,1)&""&"m")) -> 0 | F76: =IF('l6'!$M$66=0,(0),("DB"&$B$12*10&"@"&ROUND(INT(100/((('l6'!$M$66)/(3.142*($B$12*10)^2/4))))/100,1)&""&"m")) -> 0 | G76: =IF('l6'!$M$62=0,(0),("DB"&$B$12*10&"@"&ROUND(INT(100/((('l6'!$M$62+'l6'!$N$86)/(3.142*($B$12*10)^2/4))))/100,1)&""&"m")) -> 0 | H76: =IF(('l6'!$O$70)=0,(0),("DB"&$B$12*10&"@"&ROUND(INT(100/((('l6'!$O$70+'l6'!$Q$86)/(3.142*($B$12*10)^2/4))))/100,1)&""&"m")) -> 0 | I76: =IF(('l6'!$O$66)=0,(0),("DB"&$B$12*10&"@"&ROUND(INT(100/((('l6'!$O$66)/(3.142*($B$12*10)^2/4))))/100,1)&""&"m")) -> 0 | J76: =IF('l6'!$O$62=0,(0),("DB"&$B$12*10&"@"&ROUND(INT(100/((('l6'!$O$62+'l6'!$P$86)/(3.142*($B$12*10)^2/4))))/100,1)&""&"m")) -> 0 | K76: =IF('l6'!$Q$70=0,(0),("DB"&$B$12*10&"@"&ROUND(INT(100/((('l6'!$Q$70+'l6'!$S$86)/(3.142*($B$12*10)^2/4))))/100,1)&""&"m")) -> 0 | L76: =IF('l6'!$Q$66=0,(0),("DB"&$B$12*10&"@"&ROUND(INT(100/((('l6'!$Q$66)/(3.142*($B$12*10)^2/4))))/100,1)&""&"m")) -> 0 | M76: =IF('l6'!$Q$62=0,(0),("DB"&$B$12*10&"@"&ROUND(INT(100/((('l6'!$Q$62+'l6'!$R$86)/(3.142*($B$12*10)^2/4))))/100,1)&""&"m")) -> 0 | N76: =IF('l6'!$S$70=0,(0),("DB"&$B$12*10&"@"&ROUND(INT(100/((('l6'!$S$70+'l6'!$U$86)/(3.142*($B$12*10)^2/4))))/100,1)&""&"m")) -> 0 | O76: =IF('l6'!$S$66=0,(0),("DB"&$B$12*10&"@"&ROUND(INT(100/((('l6'!$S$66)/(3.142*($B$12*10)^2/4))))/100,1)&""&"m")) -> 0 | P76: =IF('l6'!$S$62=0,(0),("DB"&$B$12*10&"@"&ROUND(INT(100/((('l6'!$S$62+'l6'!$T$86)/(3.142*($B$12*10)^2/4))))/100,1)&""&"m")) -> 0
A77: ="แถบกลาง "& 'l6'!$K$58&" m " -> แถบกลาง 0 m | B77: =IF('l6'!$K$70=0,(0),("DB"&$B$12*10&"@"&ROUND(INT(100/((('l6'!$K$70)/(3.142*($B$12*10)^2/4))))/100,1)&""&"m")) -> 0 | C77: =IF('l6'!$K$66=0,(0),("DB"&$B$12*10&"@"&ROUND(INT(100/((('l6'!$K$66)/(3.142*($B$12*10)^2/4))))/100,1)&""&"m")) -> 0 | D77: =IF('l6'!$K$62=0,(0),("DB"&$B$12*10&"@"&ROUND(INT(100/((('l6'!$K$62)/(3.142*($B$12*10)^2/4))))/100,1)&""&"m")) -> 0 | E77: =IF('l6'!$N$70=0,(0),("DB"&$B$12*10&"@"&ROUND(INT(100/((('l6'!$N$70)/(3.142*($B$12*10)^2/4))))/100,1)&""&"m")) -> 0 | F77: =IF(('l6'!$N$66)=0,(0),("DB"&$B$12*10&"@"&ROUND(INT(100/((('l6'!$N$66)/(3.142*($B$12*10)^2/4))))/100,1)&""&"m")) -> 0 | G77: =IF('l6'!$N$62=0,(0),("DB"&$B$12*10&"@"&ROUND(INT(100/((('l6'!$N$62)/(3.142*($B$12*10)^2/4))))/100,1)&""&"m")) -> 0 | H77: =IF(('l6'!$P$70)=0,(0),("DB"&$B$12*10&"@"&ROUND(INT(100/((('l6'!$P$70)/(3.142*($B$12*10)^2/4))))/100,1)&""&"m")) -> 0 | I77: =IF(('l6'!$P$66)=0,(0),("DB"&$B$12*10&"@"&ROUND(INT(100/((('l6'!$P$66)/(3.142*($B$12*10)^2/4))))/100,1)&""&"m")) -> 0 | J77: =IF(('l6'!$P$62)=0,(0),("DB"&$B$12*10&"@"&ROUND(INT(100/((('l6'!$P$62)/(3.142*($B$12*10)^2/4))))/100,1)&""&"m")) -> 0 | K77: =IF(('l6'!$R$70)=0,(0),("DB"&$B$12*10&"@"&ROUND(INT(100/((('l6'!$R$70)/(3.142*($B$12*10)^2/4))))/100,1)&""&"m")) -> 0 | L77: =IF(('l6'!$R$66)=0,(0),("DB"&$B$12*10&"@"&ROUND(INT(100/((('l6'!$R$66)/(3.142*($B$12*10)^2/4))))/100,1)&""&"m")) -> 0 | M77: =IF(('l6'!$R$62)=0,(0),("DB"&$B$12*10&"@"&ROUND(INT(100/((('l6'!$R$62)/(3.142*($B$12*10)^2/4))))/100,1)&""&"m")) -> 0 | N77: =IF(('l6'!$T$70)=0,(0),("DB"&$B$12*10&"@"&ROUND(INT(100/((('l6'!$T$70)/(3.142*($B$12*10)^2/4))))/100,1)&""&"m")) -> 0 | O77: =IF(('l6'!$T$66)=0,(0),("DB"&$B$12*10&"@"&ROUND(INT(100/((('l6'!$T$66)/(3.142*($B$12*10)^2/4))))/100,1)&""&"m")) -> 0 | P77: =IF(('l6'!$T$62)=0,(0),("DB"&$B$12*10&"@"&ROUND(INT(100/((('l6'!$T$62)/(3.142*($B$12*10)^2/4))))/100,1)&""&"m")) -> 0
A79: เช็ค Punching shear
A80: รายการ | B80: หน่วย | C80: ค่า
A81: หน่วยแรงเฉือนประลัย | B81: kg/cm^2 | C81: =MAX('r2'!J86:L86,'r3'!J87:L87,'r4'!J87:L87,'r5'!J87:L87,'l2'!J86:L86,'l3'!J86:L86,'l4'!J86:L86,'l5'!J86:L86,'l2'!T87,'l3'!T87,'l4'!T87,'l5'!T88,'r2'!Q86,'r3'!R87,'r4'!R87,'r5'!R87) -> 14.96474092
A82: หน่วยแรงเฉือนที่ยอมให้ | B82: kg/cm^2 | C82: ='r2'!J87 -> 18.96185645
C83: =IF(C82>C81,(" OK "),("เพิ่มความหนาพื้น")) -> OK
A85: ตำแหน่งสร้างไฟล์ข้อมูลในงาน CAD | B85: C:\Users\Administrator.VOI41WPMDT3XNKN\Desktop | E85: ต้องนำไฟล์ข้อมูลไว้ทีเดียวกันกับไฟล์ pro.Lsp
B99: span L1 | E99: span L2 | H99: span L3 | K99: span L4 | N99: span L5
B100: =INT(100/((('r1'!$J$70)/(3.142*($B$12*10)^2/4))))&"" -> 34 | C100: =INT(100/((('r1'!$J$66)/(3.142*($B$12*10)^2/4))))&"" -> 34 | D100: =INT(100/((('r1'!$J$62)/(3.142*($B$12*10)^2/4))))&"" -> 16 | E100: =INT(100/((('r1'!$M$70)/(3.142*($B$12*10)^2/4))))&"" -> 16 | F100: =INT(100/((('r1'!$M$66)/(3.142*($B$12*10)^2/4))))&"" -> 27 | G100: =INT(100/((('r1'!$M$62)/(3.142*($B$12*10)^2/4))))&"" -> 16 | H100: =IF(('r1'!$O$70)=0,(0),(INT(100/((('r1'!$O$70)/(3.142*($B$12*10)^2/4))))&"")) -> 16 | I100: =IF($B$12=0,0,IF(('r1'!$O$66)<1,(0),(INT(100/((('r1'!$O$66)/(3.142*($B$12*10)^2/4))))&""))) -> 34 | J100: =IF('r1'!$O$62=0,(0),(INT(100/((('r1'!$O$62)/(3.142*($B$12*10)^2/4))))&"")) -> 34 | K100: =IF('r1'!$Q$70=0,(0),(INT(100/((('r1'!$Q$70)/(3.142*($B$12*10)^2/4))))&"")) -> 0 | L100: =IF('r1'!$Q$66=0,(0),(INT(100/((('r1'!$Q$66)/(3.142*($B$12*10)^2/4))))&"")) -> 0 | M100: =IF('r1'!$Q$62=0,(0),(INT(100/((('r1'!$Q$62)/(3.142*($B$12*10)^2/4))))&"")) -> 0 | N100: =IF('r1'!$S$70=0,(0),(INT(100/((('r1'!$S$70)/(3.142*($B$12*10)^2/4))))&"")) -> 0 | O100: =IF('r1'!$S$66=0,(0),(INT(100/((('r1'!$S$66)/(3.142*($B$12*10)^2/4))))&"")) -> 0 | P100: =IF('r1'!$S$62=0,(0),(INT(100/((('r1'!$S$62)/(3.142*($B$12*10)^2/4))))&"")) -> 0
B101: =INT(100/((('r1'!$K$70)/(3.142*($B$12*10)^2/4))))&"" -> 37 | C101: =INT(100/((('r1'!$K$66)/(3.142*($B$12*10)^2/4))))&"" -> 37 | D101: =INT(100/((('r1'!$K$62)/(3.142*($B$12*10)^2/4))))&"" -> 37 | E101: =INT(100/((('r1'!$N$70)/(3.142*($B$12*10)^2/4))))&"" -> 37 | F101: =INT(100/((('r1'!$N$66)/(3.142*($B$12*10)^2/4))))&"" -> 37 | G101: =INT(100/((('r1'!N$62)/(3.142*($B$12*10)^2/4))))&"" -> 37 | H101: =IF(('r1'!$P$70)=0,(0),(INT(100/((('r1'!$P$70)/(3.142*($B$12*10)^2/4))))&"")) -> 37 | I101: =IF(('r1'!$P$66)=0,(0),(INT(100/((('r1'!$P$66)/(3.142*($B$12*10)^2/4))))&"")) -> 37 | J101: =IF(('r1'!$P$62)=0,(0),(INT(100/((('r1'!$P$62)/(3.142*($B$12*10)^2/4))))&"")) -> 37 | K101: =IF(('r1'!$R$70)=0,(0),(INT(100/((('r1'!$R$70)/(3.142*($B$12*10)^2/4))))&"")) -> 0 | L101: =IF(('r1'!$R$66)=0,(0),(INT(100/((('r1'!$R$66)/(3.142*($B$12*10)^2/4))))&"")) -> 0 | M101: =IF(('r1'!$R$62)=0,(0),(INT(100/((('r1'!$R$62)/(3.142*($B$12*10)^2/4))))&"")) -> 0 | N101: =IF(('r1'!$T$70)=0,(0),(INT(100/((('r1'!$T$70)/(3.142*($B$12*10)^2/4))))&"")) -> 0 | O101: =IF(('r1'!$T$66)=0,(0),(INT(100/((('r1'!$T$66)/(3.142*($B$12*10)^2/4))))&"")) -> 0 | P101: =IF(('r1'!$T$62)=0,(0),(INT(100/((('r1'!$T$62)/(3.142*($B$12*10)^2/4))))&"")) -> 0
B103: span L1 | E103: span L2 | H103: span L3 | K103: span L4 | N103: span L5
B104: โมเมนต์ลบซ้าย | C104: โมเมนต์บวกกลาง | D104: โมเมนต์ลบขวา | E104: โมเมนต์ลบซ้าย | F104: โมเมนต์บวกกลาง | G104: โมเมนต์ลบขวา | H104: โมเมนต์ลบซ้าย | I104: โมเมนต์บวกกลาง | J104: โมเมนต์ลบขวา | K104: โมเมนต์ลบซ้าย | L104: โมเมนต์บวกกลาง | M104: โมเมนต์ลบขวา | N104: โมเมนต์ลบซ้าย | O104: โมเมนต์บวกกลาง | P104: โมเมนต์ลบขวา
B105: =INT(100/((('r2'!$J$70)/(3.142*($B$12*10)^2/4))))&"" -> 37 | C105: =INT(100/((('r2'!$J$66)/(3.142*($B$12*10)^2/4))))&"" -> 28 | D105: =INT(100/((('r2'!$J$62)/(3.142*($B$12*10)^2/4))))&"" -> 15 | E105: =INT(100/((('r2'!$M$70)/(3.142*($B$12*10)^2/4))))&"" -> 15 | F105: =INT(100/((('r2'!$M$66)/(3.142*($B$12*10)^2/4))))&"" -> 26 | G105: =INT(100/((('r2'!$M$62)/(3.142*($B$12*10)^2/4))))&"" -> 15 | H105: =IF(('r2'!$O$70)<1,(0),(INT(100/((('r2'!$O$70)/(3.142*($B$12*10)^2/4))))&"")) -> 15 | I105: =IF(('r2'!$O$66)=0,(0),(INT(100/((('r2'!$O$66)/(3.142*($B$12*10)^2/4))))&"")) -> 28 | J105: =IF('r2'!$O$62=0,(0),(INT(100/((('r2'!$O$62)/(3.142*($B$12*10)^2/4))))&"")) -> 37 | K105: =IF('r2'!$Q$70=0,(0),(INT(100/((('r2'!$Q$70)/(3.142*($B$12*10)^2/4))))&"")) -> 0 | L105: =IF('r2'!$Q$66=0,(0),(INT(100/((('r2'!$Q$66)/(3.142*($B$12*10)^2/4))))&"")) -> 0 | M105: =IF('r2'!$Q$62=0,(0),(INT(100/((('r2'!$Q$62)/(3.142*($B$12*10)^2/4))))&"")) -> 0 | N105: =IF('r2'!$S$70=0,(0),(INT(100/((('r2'!$S$70)/(3.142*($B$12*10)^2/4))))&"")) -> 0 | O105: =IF('r2'!$S$66=0,(0),(INT(100/((('r2'!$S$66)/(3.142*($B$12*10)^2/4))))&"")) -> 0 | P105: =IF('r2'!$S$62=0,(0),(INT(100/((('r2'!$S$62)/(3.142*($B$12*10)^2/4))))&"")) -> 0
B106: =INT(100/((('r2'!$K$70)/(3.142*($B$12*10)^2/4))))&"" -> 37 | C106: =INT(100/((('r2'!$K$66)/(3.142*($B$12*10)^2/4))))&"" -> 35 | D106: =INT(100/((('r2'!$K$62)/(3.142*($B$12*10)^2/4))))&"" -> 37 | E106: =INT(100/((('r2'!$N$70)/(3.142*($B$12*10)^2/4))))&"" -> 37 | F106: =INT(100/((('r2'!$N$66)/(3.142*($B$12*10)^2/4))))&"" -> 32 | G106: =INT(100/((('r2'!N$62)/(3.142*($B$12*10)^2/4))))&"" -> 37 | H106: =IF(('r2'!$P$70)<10,(0),(INT(100/((('r2'!$P$70)/(3.142*($B$12*10)^2/4))))&"")) -> 37 | I106: =IF(('r2'!$P$66)=0,(0),(INT(100/((('r2'!$P$66)/(3.142*($B$12*10)^2/4))))&"")) -> 35 | J106: =IF(('r2'!$P$62)=0,(0),(INT(100/((('r2'!$P$62)/(3.142*($B$12*10)^2/4))))&"")) -> 37 | K106: =IF(('r2'!$R$70)=0,(0),(INT(100/((('r2'!$R$70)/(3.142*($B$12*10)^2/4))))&"")) -> 0 | L106: =IF(('r2'!$R$66)=0,(0),(INT(100/((('r2'!$R$66)/(3.142*($B$12*10)^2/4))))&"")) -> 0 | M106: =IF(('r2'!$R$62)=0,(0),(INT(100/((('r2'!$R$62)/(3.142*($B$12*10)^2/4))))&"")) -> 0 | N106: =IF(('r2'!$T$70)=0,(0),(INT(100/((('r2'!$T$70)/(3.142*($B$12*10)^2/4))))&"")) -> 0 | O106: =IF(('r2'!$T$66)=0,(0),(INT(100/((('r2'!$T$66)/(3.142*($B$12*10)^2/4))))&"")) -> 0 | P106: =IF(('r2'!$T$62)=0,(0),(INT(100/((('r2'!$T$62)/(3.142*($B$12*10)^2/4))))&"")) -> 0
B108: span L1 | E108: span L2 | H108: span L3 | K108: span L4 | N108: span L5
B109: โมเมนต์ลบซ้าย | C109: โมเมนต์บวกกลาง | D109: โมเมนต์ลบขวา | E109: โมเมนต์ลบซ้าย | F109: โมเมนต์บวกกลาง | G109: โมเมนต์ลบขวา | H109: โมเมนต์ลบซ้าย | I109: โมเมนต์บวกกลาง | J109: โมเมนต์ลบขวา | K109: โมเมนต์ลบซ้าย | L109: โมเมนต์บวกกลาง | M109: โมเมนต์ลบขวา | N109: โมเมนต์ลบซ้าย | O109: โมเมนต์บวกกลาง | P109: โมเมนต์ลบขวา
B110: =IF('r3'!$J$70=0,(0),(INT(100/((('r3'!$J$70)/(3.142*($B$12*10)^2/4))))&"")) -> 28 | C110: =IF('r3'!$J$66=0,(0),(INT(100/((('r3'!$J$66)/(3.142*($B$12*10)^2/4))))&"")) -> 35 | D110: =IF('r3'!$J$62=0,(0),(INT(100/((('r3'!$J$62)/(3.142*($B$12*10)^2/4))))&"")) -> 16 | E110: =IF('r3'!$M$70=0,(0),(INT(100/((('r3'!$M$70)/(3.142*($B$12*10)^2/4))))&"")) -> 16 | F110: =IF('r3'!$M$66=0,(0),(INT(100/((('r3'!$M$66)/(3.142*($B$12*10)^2/4))))&"")) -> 27 | G110: =IF('r3'!$M$62=0,(0),(INT(100/((('r3'!$M$62)/(3.142*($B$12*10)^2/4))))&"")) -> 16 | H110: =IF(('r3'!$O$70)<1,(0),(INT(100/((('r3'!$O$70)/(3.142*($B$12*10)^2/4))))&"")) -> 16 | I110: =IF(('r3'!$O$66)=0,(0),(INT(100/((('r3'!$O$66)/(3.142*($B$12*10)^2/4))))&"")) -> 35 | J110: =IF('r3'!$O$62=0,(0),(INT(100/((('r3'!$O$62)/(3.142*($B$12*10)^2/4))))&"")) -> 28 | K110: =IF('r3'!$Q$70=0,(0),(INT(100/((('r3'!$Q$70)/(3.142*($B$12*10)^2/4))))&"")) -> 0 | L110: =IF('r3'!$Q$66=0,(0),(INT(100/((('r3'!$Q$66)/(3.142*($B$12*10)^2/4))))&"")) -> 0 | M110: =IF('r3'!$Q$62=0,(0),(INT(100/((('r3'!$Q$62)/(3.142*($B$12*10)^2/4))))&"")) -> 0 | N110: =IF('r3'!$S$70=0,(0),(INT(100/((('r3'!$S$70)/(3.142*($B$12*10)^2/4))))&"")) -> 0 | O110: =IF('r3'!$S$66=0,(0),(INT(100/((('r3'!$S$66)/(3.142*($B$12*10)^2/4))))&"")) -> 0 | P110: =IF('r3'!$S$62=0,(0),(INT(100/((('r3'!$S$62)/(3.142*($B$12*10)^2/4))))&"")) -> 0
B111: =IF('r3'!$K$70=0,(0),(INT(100/((('r3'!$K$70)/(3.142*($B$12*10)^2/4))))&"")) -> 37 | C111: =IF('r3'!$K$66=0,(0),(INT(100/((('r3'!$K$66)/(3.142*($B$12*10)^2/4))))&"")) -> 37 | D111: =IF('r3'!$K$62=0,(0),(INT(100/((('r3'!$K$62)/(3.142*($B$12*10)^2/4))))&"")) -> 37 | E111: =IF('r3'!$N$70=0,(0),(INT(100/((('r3'!$N$70)/(3.142*($B$12*10)^2/4))))&"")) -> 37 | F111: =IF(('r3'!$N$66)=0,(0),(INT(100/((('r3'!$N$66)/(3.142*($B$12*10)^2/4))))&"")) -> 37 | G111: =IF('r3'!$N$62=0,(0),(INT(100/((('r3'!$N$62)/(3.142*($B$12*10)^2/4))))&"")) -> 37 | H111: =IF(('r3'!$P$70)=0,(0),(INT(100/((('r3'!$P$70)/(3.142*($B$12*10)^2/4))))&"")) -> 37 | I111: =IF(('r3'!$P$66)=0,(0),(INT(100/((('r3'!$P$66)/(3.142*($B$12*10)^2/4))))&"")) -> 37 | J111: =IF(('r3'!$P$62)=0,(0),(INT(100/((('r3'!$P$62)/(3.142*($B$12*10)^2/4))))&"")) -> 37 | K111: =IF(('r3'!$R$70)=0,(0),(INT(100/((('r3'!$R$70)/(3.142*($B$12*10)^2/4))))&"")) -> 0 | L111: =IF(('r3'!$R$66)=0,(0),(INT(100/((('r3'!$R$66)/(3.142*($B$12*10)^2/4))))&"")) -> 0 | M111: =IF(('r3'!$R$62)=0,(0),(INT(100/((('r3'!$R$62)/(3.142*($B$12*10)^2/4))))&"")) -> 0 | N111: =IF(('r3'!$T$70)=0,(0),(INT(100/((('r3'!$T$70)/(3.142*($B$12*10)^2/4))))&"")) -> 0 | O111: =IF(('r3'!$T$66)=0,(0),(INT(100/((('r3'!$T$66)/(3.142*($B$12*10)^2/4))))&"")) -> 0 | P111: =IF(('r3'!$T$62)=0,(0),(INT(100/((('r3'!$T$62)/(3.142*($B$12*10)^2/4))))&"")) -> 0
B113: span L1 | E113: span L2 | H113: span L3 | K113: span L4 | N113: span L5
B114: โมเมนต์ลบซ้าย | C114: โมเมนต์บวกกลาง | D114: โมเมนต์ลบขวา | E114: โมเมนต์ลบซ้าย | F114: โมเมนต์บวกกลาง | G114: โมเมนต์ลบขวา | H114: โมเมนต์ลบซ้าย | I114: โมเมนต์บวกกลาง | J114: โมเมนต์ลบขวา | K114: โมเมนต์ลบซ้าย | L114: โมเมนต์บวกกลาง | M114: โมเมนต์ลบขวา | N114: โมเมนต์ลบซ้าย | O114: โมเมนต์บวกกลาง | P114: โมเมนต์ลบขวา
B115: =IF('r4'!$J$70=0,(0),(INT(100/((('r4'!$J$70)/(3.142*($B$12*10)^2/4))))&"")) -> 0 | C115: =IF('r4'!$J$66=0,(0),(INT(100/((('r4'!$J$66)/(3.142*($B$12*10)^2/4))))&"")) -> 0 | D115: =IF('r4'!$J$62=0,(0),(INT(100/((('r4'!$J$62)/(3.142*($B$12*10)^2/4))))&"")) -> 0 | E115: =IF('r4'!$M$70=0,(0),(INT(100/((('r4'!$M$70)/(3.142*($B$12*10)^2/4))))&"")) -> 0 | F115: =IF('r4'!$M$66=0,(0),(INT(100/((('r4'!$M$66)/(3.142*($B$12*10)^2/4))))&"")) -> 0 | G115: =IF('r4'!$M$62=0,(0),(INT(100/((('r4'!$M$62)/(3.142*($B$12*10)^2/4))))&"")) -> 0 | H115: =IF(('r4'!$O$70)<1,(0),(INT(100/((('r4'!$O$70)/(3.142*($B$12*10)^2/4))))&"")) -> 0 | I115: =IF(('r4'!$O$66)=0,(0),(INT(100/((('r4'!$O$66)/(3.142*($B$12*10)^2/4))))&"")) -> 0 | J115: =IF('r4'!$O$62=0,(0),(INT(100/((('r4'!$O$62)/(3.142*($B$12*10)^2/4))))&"")) -> 0 | K115: =IF('r4'!$Q$70=0,(0),(INT(100/((('r4'!$Q$70)/(3.142*($B$12*10)^2/4))))&"")) -> 0 | L115: =IF('r4'!$Q$66=0,(0),(INT(100/((('r4'!$Q$66)/(3.142*($B$12*10)^2/4))))&"")) -> 0 | M115: =IF('r4'!$Q$62=0,(0),(INT(100/((('r4'!$Q$62)/(3.142*($B$12*10)^2/4))))&"")) -> 0 | N115: =IF('r4'!$S$70=0,(0),(INT(100/((('r4'!$S$70)/(3.142*($B$12*10)^2/4))))&"")) -> 0 | O115: =IF('r4'!$S$66=0,(0),(INT(100/((('r4'!$S$66)/(3.142*($B$12*10)^2/4))))&"")) -> 0 | P115: =IF('r4'!$S$62=0,(0),(INT(100/((('r4'!$S$62)/(3.142*($B$12*10)^2/4))))&"")) -> 0
B116: =IF('r4'!$K$70=0,(0),(INT(100/((('r4'!$K$70)/(3.142*($B$12*10)^2/4))))&"")) -> 0 | C116: =IF('r4'!$K$66=0,(0),(INT(100/((('r4'!$K$66)/(3.142*($B$12*10)^2/4))))&"")) -> 0 | D116: =IF('r4'!$K$62=0,(0),(INT(100/((('r4'!$K$62)/(3.142*($B$12*10)^2/4))))&"")) -> 0 | E116: =IF('r4'!$N$70=0,(0),(INT(100/((('r4'!$N$70)/(3.142*($B$12*10)^2/4))))&"")) -> 0 | F116: =IF(('r4'!$N$66)=0,(0),(INT(100/((('r4'!$N$66)/(3.142*($B$12*10)^2/4))))&"")) -> 0 | G116: =IF('r4'!$N$62=0,(0),(INT(100/((('r4'!$N$62)/(3.142*($B$12*10)^2/4))))&"")) -> 0 | H116: =IF(('r4'!$P$70)=0,(0),(INT(100/((('r4'!$P$70)/(3.142*($B$12*10)^2/4))))&"")) -> 0 | I116: =IF(('r4'!$P$66)=0,(0),(INT(100/((('r4'!$P$66)/(3.142*($B$12*10)^2/4))))&"")) -> 0 | J116: =IF(('r4'!$P$62)=0,(0),(INT(100/((('r4'!$P$62)/(3.142*($B$12*10)^2/4))))&"")) -> 0 | K116: =IF(('r4'!$R$70)=0,(0),(INT(100/((('r4'!$R$70)/(3.142*($B$12*10)^2/4))))&"")) -> 0 | L116: =IF(('r4'!$R$66)=0,(0),(INT(100/((('r4'!$R$66)/(3.142*($B$12*10)^2/4))))&"")) -> 0 | M116: =IF(('r4'!$R$62)=0,(0),(INT(100/((('r4'!$R$62)/(3.142*($B$12*10)^2/4))))&"")) -> 0 | N116: =IF(('r4'!$T$70)=0,(0),(INT(100/((('r4'!$T$70)/(3.142*($B$12*10)^2/4))))&"")) -> 0 | O116: =IF(('r4'!$T$66)=0,(0),(INT(100/((('r4'!$T$66)/(3.142*($B$12*10)^2/4))))&"")) -> 0 | P116: =IF(('r4'!$T$62)=0,(0),(INT(100/((('r4'!$T$62)/(3.142*($B$12*10)^2/4))))&"")) -> 0
B118: span L1 | E118: span L2 | H118: span L3 | K118: span L4 | N118: span L5
B119: โมเมนต์ลบซ้าย | C119: โมเมนต์บวกกลาง | D119: โมเมนต์ลบขวา | E119: โมเมนต์ลบซ้าย | F119: โมเมนต์บวกกลาง | G119: โมเมนต์ลบขวา | H119: โมเมนต์ลบซ้าย | I119: โมเมนต์บวกกลาง | J119: โมเมนต์ลบขวา | K119: โมเมนต์ลบซ้าย | L119: โมเมนต์บวกกลาง | M119: โมเมนต์ลบขวา | N119: โมเมนต์ลบซ้าย | O119: โมเมนต์บวกกลาง | P119: โมเมนต์ลบขวา
B120: =IF('r5'!$J$70=0,(0),(INT(100/((('r5'!$J$70)/(3.142*($B$12*10)^2/4))))&"")) -> 0 | C120: =IF('r5'!$J$66=0,(0),(INT(100/((('r5'!$J$66)/(3.142*($B$12*10)^2/4))))&"")) -> 0 | D120: =IF('r5'!$J$62=0,(0),(INT(100/((('r5'!$J$62)/(3.142*($B$12*10)^2/4))))&"")) -> 0 | E120: =IF('r5'!$M$70=0,(0),(INT(100/((('r5'!$M$70)/(3.142*($B$12*10)^2/4))))&"")) -> 0 | F120: =IF('r5'!$M$66=0,(0),(INT(100/((('r5'!$M$66)/(3.142*($B$12*10)^2/4))))&"")) -> 0 | G120: =IF('r5'!$M$62=0,(0),(INT(100/((('r5'!$M$62)/(3.142*($B$12*10)^2/4))))&"")) -> 0 | H120: =IF(('r5'!$O$70)<1,(0),(INT(100/((('r5'!$O$70)/(3.142*($B$12*10)^2/4))))&"")) -> 0 | I120: =IF(('r5'!$O$66)=0,(0),(INT(100/((('r5'!$O$66)/(3.142*($B$12*10)^2/4))))&"")) -> 0 | J120: =IF('r5'!$O$62=0,(0),(INT(100/((('r5'!$O$62)/(3.142*($B$12*10)^2/4))))&"")) -> 0 | K120: =IF('r5'!$Q$70=0,(0),(INT(100/((('r5'!$Q$70)/(3.142*($B$12*10)^2/4))))&"")) -> 0 | L120: =IF('r5'!$Q$66=0,(0),(INT(100/((('r5'!$Q$66)/(3.142*($B$12*10)^2/4))))&"")) -> 0 | M120: =IF('r5'!$Q$62=0,(0),(INT(100/((('r5'!$Q$62)/(3.142*($B$12*10)^2/4))))&"")) -> 0 | N120: =IF('r5'!$S$70=0,(0),(INT(100/((('r5'!$S$70)/(3.142*($B$12*10)^2/4))))&"")) -> 0 | O120: =IF('r5'!$S$66=0,(0),(INT(100/((('r5'!$S$66)/(3.142*($B$12*10)^2/4))))&"")) -> 0 | P120: =IF('r5'!$S$62=0,(0),(INT(100/((('r5'!$S$62)/(3.142*($B$12*10)^2/4))))&"")) -> 0
B121: =IF('r5'!$K$70=0,(0),(INT(100/((('r5'!$K$70)/(3.142*($B$12*10)^2/4))))&"")) -> 0 | C121: =IF('r5'!$K$66=0,(0),(INT(100/((('r5'!$K$66)/(3.142*($B$12*10)^2/4))))&"")) -> 0 | D121: =IF('r5'!$K$62=0,(0),(INT(100/((('r5'!$K$62)/(3.142*($B$12*10)^2/4))))&"")) -> 0 | E121: =IF('r5'!$N$70=0,(0),(INT(100/((('r5'!$N$70)/(3.142*($B$12*10)^2/4))))&"")) -> 0 | F121: =IF(('r5'!$N$66)=0,(0),(INT(100/((('r5'!$N$66)/(3.142*($B$12*10)^2/4))))&"")) -> 0 | G121: =IF('r5'!$N$62=0,(0),(INT(100/((('r5'!$N$62)/(3.142*($B$12*10)^2/4))))&"")) -> 0 | H121: =IF(('r5'!$P$70)=0,(0),(INT(100/((('r5'!$P$70)/(3.142*($B$12*10)^2/4))))&"")) -> 0 | I121: =IF(('r5'!$P$66)=0,(0),(INT(100/((('r5'!$P$66)/(3.142*($B$12*10)^2/4))))&"")) -> 0 | J121: =IF(('r5'!$P$62)=0,(0),(INT(100/((('r5'!$P$62)/(3.142*($B$12*10)^2/4))))&"")) -> 0 | K121: =IF(('r5'!$R$70)=0,(0),(INT(100/((('r5'!$R$70)/(3.142*($B$12*10)^2/4))))&"")) -> 0 | L121: =IF(('r5'!$R$66)=0,(0),(INT(100/((('r5'!$R$66)/(3.142*($B$12*10)^2/4))))&"")) -> 0 | M121: =IF(('r5'!$R$62)=0,(0),(INT(100/((('r5'!$R$62)/(3.142*($B$12*10)^2/4))))&"")) -> 0 | N121: =IF(('r5'!$T$70)=0,(0),(INT(100/((('r5'!$T$70)/(3.142*($B$12*10)^2/4))))&"")) -> 0 | O121: =IF(('r5'!$T$66)=0,(0),(INT(100/((('r5'!$T$66)/(3.142*($B$12*10)^2/4))))&"")) -> 0 | P121: =IF(('r5'!$T$62)=0,(0),(INT(100/((('r5'!$T$62)/(3.142*($B$12*10)^2/4))))&"")) -> 0
B123: span L1 | E123: span L2 | H123: span L3 | K123: span L4 | N123: span L5
B124: โมเมนต์ลบซ้าย | C124: โมเมนต์บวกกลาง | D124: โมเมนต์ลบขวา | E124: โมเมนต์ลบซ้าย | F124: โมเมนต์บวกกลาง | G124: โมเมนต์ลบขวา | H124: โมเมนต์ลบซ้าย | I124: โมเมนต์บวกกลาง | J124: โมเมนต์ลบขวา | K124: โมเมนต์ลบซ้าย | L124: โมเมนต์บวกกลาง | M124: โมเมนต์ลบขวา | N124: โมเมนต์ลบซ้าย | O124: โมเมนต์บวกกลาง | P124: โมเมนต์ลบขวา
B125: =IF('r6'!$J$70=0,(0),(INT(100/((('r6'!$J$70)/(3.142*($B$12*10)^2/4))))&"")) -> 0 | C125: =IF('r6'!$J$66=0,(0),(INT(100/((('r6'!$J$66)/(3.142*($B$12*10)^2/4))))&"")) -> 0 | D125: =IF('r6'!$J$62=0,(0),(INT(100/((('r6'!$J$62)/(3.142*($B$12*10)^2/4))))&"")) -> 0 | E125: =IF('r6'!$M$70=0,(0),(INT(100/((('r6'!$M$70)/(3.142*($B$12*10)^2/4))))&"")) -> 0 | F125: =IF('r6'!$M$66=0,(0),(INT(100/((('r6'!$M$66)/(3.142*($B$12*10)^2/4))))&"")) -> 0 | G125: =IF('r6'!$M$62=0,(0),(INT(100/((('r6'!$M$62)/(3.142*($B$12*10)^2/4))))&"")) -> 0 | H125: =IF(('r6'!$O$70)<1,(0),(INT(100/((('r6'!$O$70)/(3.142*($B$12*10)^2/4))))&"")) -> 0 | I125: =IF(('r6'!$O$66)=0,(0),(INT(100/((('r6'!$O$66)/(3.142*($B$12*10)^2/4))))&"")) -> 0 | J125: =IF('r6'!$O$62=0,(0),(INT(100/((('r6'!$O$62)/(3.142*($B$12*10)^2/4))))&"")) -> 0 | K125: =IF('r6'!$Q$70=0,(0),(INT(100/((('r6'!$Q$70)/(3.142*($B$12*10)^2/4))))&"")) -> 0 | L125: =IF('r6'!$Q$66=0,(0),(INT(100/((('r6'!$Q$66)/(3.142*($B$12*10)^2/4))))&"")) -> 0 | M125: =IF('r6'!$Q$62=0,(0),(INT(100/((('r6'!$Q$62)/(3.142*($B$12*10)^2/4))))&"")) -> 0 | N125: =IF('r6'!$S$70=0,(0),(INT(100/((('r6'!$S$70)/(3.142*($B$12*10)^2/4))))&"")) -> 0 | O125: =IF('r6'!$S$66=0,(0),(INT(100/((('r6'!$S$66)/(3.142*($B$12*10)^2/4))))&"")) -> 0 | P125: =IF('r6'!$S$62=0,(0),(INT(100/((('r6'!$S$62)/(3.142*($B$12*10)^2/4))))&"")) -> 0
B126: =IF('r6'!$K$70=0,(0),(INT(100/((('r6'!$K$70)/(3.142*($B$12*10)^2/4))))&"")) -> 0 | C126: =IF('r6'!$K$66=0,(0),(INT(100/((('r6'!$K$66)/(3.142*($B$12*10)^2/4))))&"")) -> 0 | D126: =IF('r6'!$K$62=0,(0),(INT(100/((('r6'!$K$62)/(3.142*($B$12*10)^2/4))))&"")) -> 0 | E126: =IF('r6'!$N$70=0,(0),(INT(100/((('r6'!$N$70)/(3.142*($B$12*10)^2/4))))&"")) -> 0 | F126: =IF(('r6'!$N$66)=0,(0),(INT(100/((('r6'!$N$66)/(3.142*($B$12*10)^2/4))))&"")) -> 0 | G126: =IF('r6'!$N$62=0,(0),(INT(100/((('r6'!$N$62)/(3.142*($B$12*10)^2/4))))&"")) -> 0 | H126: =IF(('r6'!$P$70)=0,(0),(INT(100/((('r6'!$P$70)/(3.142*($B$12*10)^2/4))))&"")) -> 0 | I126: =IF(('r6'!$P$66)=0,(0),(INT(100/((('r6'!$P$66)/(3.142*($B$12*10)^2/4))))&"")) -> 0 | J126: =IF(('r6'!$P$62)=0,(0),(INT(100/((('r6'!$P$62)/(3.142*($B$12*10)^2/4))))&"")) -> 0 | K126: =IF(('r6'!$R$70)=0,(0),(INT(100/((('r6'!$R$70)/(3.142*($B$12*10)^2/4))))&"")) -> 0 | L126: =IF(('r6'!$R$66)=0,(0),(INT(100/((('r6'!$R$66)/(3.142*($B$12*10)^2/4))))&"")) -> 0 | M126: =IF(('r6'!$R$62)=0,(0),(INT(100/((('r6'!$R$62)/(3.142*($B$12*10)^2/4))))&"")) -> 0 | N126: =IF(('r6'!$T$70)=0,(0),(INT(100/((('r6'!$T$70)/(3.142*($B$12*10)^2/4))))&"")) -> 0 | O126: =IF(('r6'!$T$66)=0,(0),(INT(100/((('r6'!$T$66)/(3.142*($B$12*10)^2/4))))&"")) -> 0 | P126: =IF(('r6'!$T$62)=0,(0),(INT(100/((('r6'!$T$62)/(3.142*($B$12*10)^2/4))))&"")) -> 0
B128: span R1 | E128: span R2 | H128: span R3 | K128: span R4 | N128: span R5
B129: โมเมนต์ลบบน | C129: โมเมนต์บวกกลาง | D129: โมเมนต์ลบล่าง | E129: โมเมนต์ลบบน | F129: โมเมนต์บวกกลาง | G129: โมเมนต์ลบล่าง | H129: โมเมนต์ลบบน | I129: โมเมนต์บวกกลาง | J129: โมเมนต์ลบล่าง | K129: โมเมนต์ลบบน | L129: โมเมนต์บวกกลาง | M129: โมเมนต์ลบล่าง | N129: โมเมนต์ลบบน | O129: โมเมนต์บวกกลาง | P129: โมเมนต์ลบล่าง
B130: =IF('l1'!$J$70=0,(0),(INT(100/((('l1'!$J$70)/(3.142*($B$12*10)^2/4))))&"")) -> 17 | C130: =IF('l1'!$J$66=0,(0),(INT(100/((('l1'!$J$66)/(3.142*($B$12*10)^2/4))))&"")) -> 23 | D130: =IF('l1'!$J$62=0,(0),(INT(100/((('l1'!$J$62)/(3.142*($B$12*10)^2/4))))&"")) -> 13 | E130: =IF('l1'!$M$70=0,(0),(INT(100/((('l1'!$M$70)/(3.142*($B$12*10)^2/4))))&"")) -> 13 | F130: =IF('l1'!$M$66=0,(0),(INT(100/((('l1'!$M$66)/(3.142*($B$12*10)^2/4))))&"")) -> 35 | G130: =IF('l1'!$M$62=0,(0),(INT(100/((('l1'!$M$62)/(3.142*($B$12*10)^2/4))))&"")) -> 30 | H130: =IF(('l1'!$O$70)<1,(0),(INT(100/((('l1'!$O$70)/(3.142*($B$12*10)^2/4))))&"")) -> 0 | I130: =IF(('l1'!$O$66)=0,(0),(INT(100/((('l1'!$O$66)/(3.142*($B$12*10)^2/4))))&"")) -> 0 | J130: =IF('l1'!$O$62=0,(0),(INT(100/((('l1'!$O$62)/(3.142*($B$12*10)^2/4))))&"")) -> 0 | K130: =IF('l1'!$Q$70=0,(0),(INT(100/((('l1'!$Q$70)/(3.142*($B$12*10)^2/4))))&"")) -> 0 | L130: =IF('l1'!$Q$66=0,(0),(INT(100/((('l1'!$Q$66)/(3.142*($B$12*10)^2/4))))&"")) -> 0 | M130: =IF('l1'!$Q$62=0,(0),(INT(100/((('l1'!$Q$62)/(3.142*($B$12*10)^2/4))))&"")) -> 0 | N130: =IF('l1'!$S$70=0,(0),(INT(100/((('l1'!$S$70)/(3.142*($B$12*10)^2/4))))&"")) -> 0 | O130: =IF('l1'!$S$66=0,(0),(INT(100/((('l1'!$S$66)/(3.142*($B$12*10)^2/4))))&"")) -> 0 | P130: =IF('l1'!$S$62=0,(0),(INT(100/((('l1'!$S$62)/(3.142*($B$12*10)^2/4))))&"")) -> 0
B131: =INT(100/((('l1'!$K$70)/(3.142*($B$12*10)^2/4))))&"" -> 37 | C131: =INT(100/((('l1'!$K$66)/(3.142*($B$12*10)^2/4))))&"" -> 35 | D131: =INT(100/((('l1'!$K$62)/(3.142*($B$12*10)^2/4))))&"" -> 37 | E131: =INT(100/((('l1'!$N$70)/(3.142*($B$12*10)^2/4))))&"" -> 37 | F131: =INT(100/((('l1'!$N$66)/(3.142*($B$12*10)^2/4))))&"" -> 37 | G131: =INT(100/((('l1'!N$62)/(3.142*($B$12*10)^2/4))))&"" -> 37 | H131: =IF(('l1'!$P$70)=0,(0),(INT(100/((('l1'!$P$70)/(3.142*($B$12*10)^2/4))))&"")) -> 0 | I131: =IF(('l1'!$P$66)=0,(0),(INT(100/((('l1'!$P$66)/(3.142*($B$12*10)^2/4))))&"")) -> 0 | J131: =IF(('l1'!$P$62)=0,(0),(INT(100/((('l1'!$P$62)/(3.142*($B$12*10)^2/4))))&"")) -> 0 | K131: =IF(('l1'!$R$70)=0,(0),(INT(100/((('l1'!$R$70)/(3.142*($B$12*10)^2/4))))&"")) -> 0 | L131: =IF(('l1'!$R$66)=0,(0),(INT(100/((('l1'!$R$66)/(3.142*($B$12*10)^2/4))))&"")) -> 0 | M131: =IF(('l1'!$R$62)=0,(0),(INT(100/((('l1'!$R$62)/(3.142*($B$12*10)^2/4))))&"")) -> 0 | N131: =IF(('l1'!$T$70)=0,(0),(INT(100/((('l1'!$T$70)/(3.142*($B$12*10)^2/4))))&"")) -> 0 | O131: =IF(('l1'!$T$66)=0,(0),(INT(100/((('l1'!$T$66)/(3.142*($B$12*10)^2/4))))&"")) -> 0 | P131: =IF(('l1'!$T$62)=0,(0),(INT(100/((('l1'!$T$62)/(3.142*($B$12*10)^2/4))))&"")) -> 0
B133: span R1 | E133: span R2 | H133: span R3 | K133: span R4 | N133: span R5
B134: โมเมนต์ลบบน | C134: โมเมนต์บวกกลาง | D134: โมเมนต์ลบล่าง | E134: โมเมนต์ลบบน | F134: โมเมนต์บวกกลาง | G134: โมเมนต์ลบล่าง | H134: โมเมนต์ลบบน | I134: โมเมนต์บวกกลาง | J134: โมเมนต์ลบล่าง | K134: โมเมนต์ลบบน | L134: โมเมนต์บวกกลาง | M134: โมเมนต์ลบล่าง | N134: โมเมนต์ลบบน | O134: โมเมนต์บวกกลาง | P134: โมเมนต์ลบล่าง
B135: =IF('l2'!$J$70=0,(0),(INT(100/((('l2'!$J$70)/(3.142*($B$12*10)^2/4))))&"")) -> 37 | C135: =IF('l2'!$J$66=0,(0),(INT(100/((('l2'!$J$66)/(3.142*($B$12*10)^2/4))))&"")) -> 18 | D135: =IF('l2'!$J$62=0,(0),(INT(100/((('l2'!$J$62)/(3.142*($B$12*10)^2/4))))&"")) -> 12 | E135: =IF('l2'!$M$70=0,(0),(INT(100/((('l2'!$M$70)/(3.142*($B$12*10)^2/4))))&"")) -> 12 | F135: =IF('l2'!$M$66=0,(0),(INT(100/((('l2'!$M$66)/(3.142*($B$12*10)^2/4))))&"")) -> 29 | G135: =IF('l2'!$M$62=0,(0),(INT(100/((('l2'!$M$62)/(3.142*($B$12*10)^2/4))))&"")) -> 37 | H135: =IF(('l2'!$O$70)<1,(0),(INT(100/((('l2'!$O$70)/(3.142*($B$12*10)^2/4))))&"")) -> 0 | I135: =IF(('l2'!$O$66)=0,(0),(INT(100/((('l2'!$O$66)/(3.142*($B$12*10)^2/4))))&"")) -> 0 | J135: =IF('l2'!$O$62=0,(0),(INT(100/((('l2'!$O$62)/(3.142*($B$12*10)^2/4))))&"")) -> 0 | K135: =IF('l2'!$Q$70=0,(0),(INT(100/((('l2'!$Q$70)/(3.142*($B$12*10)^2/4))))&"")) -> 0 | L135: =IF('l2'!$Q$66=0,(0),(INT(100/((('l2'!$Q$66)/(3.142*($B$12*10)^2/4))))&"")) -> 0 | M135: =IF('l2'!$Q$62=0,(0),(INT(100/((('l2'!$Q$62)/(3.142*($B$12*10)^2/4))))&"")) -> 0 | N135: =IF('l2'!$S$70=0,(0),(INT(100/((('l2'!$S$70)/(3.142*($B$12*10)^2/4))))&"")) -> 0 | O135: =IF('l2'!$S$66=0,(0),(INT(100/((('l2'!$S$66)/(3.142*($B$12*10)^2/4))))&"")) -> 0 | P135: =IF('l2'!$S$62=0,(0),(INT(100/((('l2'!$S$62)/(3.142*($B$12*10)^2/4))))&"")) -> 0
B136: =INT(100/((('l2'!$K$70)/(3.142*($B$12*10)^2/4))))&"" -> 37 | C136: =INT(100/((('l2'!$K$66)/(3.142*($B$12*10)^2/4))))&"" -> 27 | D136: =INT(100/((('l2'!$K$62)/(3.142*($B$12*10)^2/4))))&"" -> 36 | E136: =INT(100/((('l2'!$N$70)/(3.142*($B$12*10)^2/4))))&"" -> 36 | F136: =INT(100/((('l2'!$N$66)/(3.142*($B$12*10)^2/4))))&"" -> 37 | G136: =INT(100/((('l2'!N$62)/(3.142*($B$12*10)^2/4))))&"" -> 37 | H136: =IF(('l2'!$P$70)=0,(0),(INT(100/((('l2'!$P$70)/(3.142*($B$12*10)^2/4))))&"")) -> 0 | I136: =IF(('l2'!$P$66)=0,(0),(INT(100/((('l2'!$P$66)/(3.142*($B$12*10)^2/4))))&"")) -> 0 | J136: =IF(('l2'!$P$62)=0,(0),(INT(100/((('l2'!$P$62)/(3.142*($B$12*10)^2/4))))&"")) -> 0 | K136: =IF(('l2'!$R$70)=0,(0),(INT(100/((('l2'!$R$70)/(3.142*($B$12*10)^2/4))))&"")) -> 0 | L136: =IF(('l2'!$R$66)=0,(0),(INT(100/((('l2'!$R$66)/(3.142*($B$12*10)^2/4))))&"")) -> 0 | M136: =IF(('l2'!$R$62)=0,(0),(INT(100/((('l2'!$R$62)/(3.142*($B$12*10)^2/4))))&"")) -> 0 | N136: =IF(('l2'!$T$70)=0,(0),(INT(100/((('l2'!$T$70)/(3.142*($B$12*10)^2/4))))&"")) -> 0 | O136: =IF(('l2'!$T$66)=0,(0),(INT(100/((('l2'!$T$66)/(3.142*($B$12*10)^2/4))))&"")) -> 0 | P136: =IF(('l2'!$T$62)=0,(0),(INT(100/((('l2'!$T$62)/(3.142*($B$12*10)^2/4))))&"")) -> 0
B138: span R1 | E138: span R2 | H138: span R3 | K138: span R4 | N138: span R5
B139: โมเมนต์ลบบน | C139: โมเมนต์บวกกลาง | D139: โมเมนต์ลบล่าง | E139: โมเมนต์ลบบน | F139: โมเมนต์บวกกลาง | G139: โมเมนต์ลบล่าง | H139: โมเมนต์ลบบน | I139: โมเมนต์บวกกลาง | J139: โมเมนต์ลบล่าง | K139: โมเมนต์ลบบน | L139: โมเมนต์บวกกลาง | M139: โมเมนต์ลบล่าง | N139: โมเมนต์ลบบน | O139: โมเมนต์บวกกลาง | P139: โมเมนต์ลบล่าง
B140: =IF('l3'!$J$70=0,(0),(INT(100/((('l3'!$J$70)/(3.142*($B$12*10)^2/4))))&"")) -> 37 | C140: =IF('l3'!$J$66=0,(0),(INT(100/((('l3'!$J$66)/(3.142*($B$12*10)^2/4))))&"")) -> 18 | D140: =IF('l3'!$J$62=0,(0),(INT(100/((('l3'!$J$62)/(3.142*($B$12*10)^2/4))))&"")) -> 12 | E140: =IF('l3'!$M$70=0,(0),(INT(100/((('l3'!$M$70)/(3.142*($B$12*10)^2/4))))&"")) -> 12 | F140: =IF('l3'!$M$66=0,(0),(INT(100/((('l3'!$M$66)/(3.142*($B$12*10)^2/4))))&"")) -> 29 | G140: =IF('l3'!$M$62=0,(0),(INT(100/((('l3'!$M$62)/(3.142*($B$12*10)^2/4))))&"")) -> 37 | H140: =IF(('l3'!$O$70)<1,(0),(INT(100/((('l3'!$O$70)/(3.142*($B$12*10)^2/4))))&"")) -> 0 | I140: =IF(('l3'!$O$66)=0,(0),(INT(100/((('l3'!$O$66)/(3.142*($B$12*10)^2/4))))&"")) -> 0 | J140: =IF('l3'!$O$62=0,(0),(INT(100/((('l3'!$O$62)/(3.142*($B$12*10)^2/4))))&"")) -> 0 | K140: =IF('l3'!$Q$70=0,(0),(INT(100/((('l3'!$Q$70)/(3.142*($B$12*10)^2/4))))&"")) -> 0 | L140: =IF('l3'!$Q$66=0,(0),(INT(100/((('l3'!$Q$66)/(3.142*($B$12*10)^2/4))))&"")) -> 0 | M140: =IF('l3'!$Q$62=0,(0),(INT(100/((('l3'!$Q$62)/(3.142*($B$12*10)^2/4))))&"")) -> 0 | N140: =IF('l3'!$S$70=0,(0),(INT(100/((('l3'!$S$70)/(3.142*($B$12*10)^2/4))))&"")) -> 0 | O140: =IF('l3'!$S$66=0,(0),(INT(100/((('l3'!$S$66)/(3.142*($B$12*10)^2/4))))&"")) -> 0 | P140: =IF('l3'!$S$62=0,(0),(INT(100/((('l3'!$S$62)/(3.142*($B$12*10)^2/4))))&"")) -> 0
B141: =IF('l3'!$K$70=0,(0),(INT(100/((('l3'!$K$70)/(3.142*($B$12*10)^2/4))))&"")) -> 37 | C141: =IF('l3'!$K$66=0,(0),(INT(100/((('l3'!$K$66)/(3.142*($B$12*10)^2/4))))&"")) -> 27 | D141: =IF('l3'!$K$62=0,(0),(INT(100/((('l3'!$K$62)/(3.142*($B$12*10)^2/4))))&"")) -> 36 | E141: =IF('l3'!$N$70=0,(0),(INT(100/((('l3'!$N$70)/(3.142*($B$12*10)^2/4))))&"")) -> 36 | F141: =IF(('l3'!$N$66)=0,(0),(INT(100/((('l3'!$N$66)/(3.142*($B$12*10)^2/4))))&"")) -> 37 | G141: =IF('l3'!$N$62=0,(0),(INT(100/((('l3'!$N$62)/(3.142*($B$12*10)^2/4))))&"")) -> 37 | H141: =IF(('l3'!$P$70)=0,(0),(INT(100/((('l3'!$P$70)/(3.142*($B$12*10)^2/4))))&"")) -> 0 | I141: =IF(('l3'!$P$66)=0,(0),(INT(100/((('l3'!$P$66)/(3.142*($B$12*10)^2/4))))&"")) -> 0 | J141: =IF(('l3'!$P$62)=0,(0),(INT(100/((('l3'!$P$62)/(3.142*($B$12*10)^2/4))))&"")) -> 0 | K141: =IF(('l3'!$R$70)=0,(0),(INT(100/((('l3'!$R$70)/(3.142*($B$12*10)^2/4))))&"")) -> 0 | L141: =IF(('l3'!$R$66)=0,(0),(INT(100/((('l3'!$R$66)/(3.142*($B$12*10)^2/4))))&"")) -> 0 | M141: =IF(('l3'!$R$62)=0,(0),(INT(100/((('l3'!$R$62)/(3.142*($B$12*10)^2/4))))&"")) -> 0 | N141: =IF(('l3'!$T$70)=0,(0),(INT(100/((('l3'!$T$70)/(3.142*($B$12*10)^2/4))))&"")) -> 0 | O141: =IF(('l3'!$T$66)=0,(0),(INT(100/((('l3'!$T$66)/(3.142*($B$12*10)^2/4))))&"")) -> 0 | P141: =IF(('l3'!$T$62)=0,(0),(INT(100/((('l3'!$T$62)/(3.142*($B$12*10)^2/4))))&"")) -> 0
B143: span R1 | E143: span R2 | H143: span R3 | K143: span R4 | N143: span R5
B144: โมเมนต์ลบบน | C144: โมเมนต์บวกกลาง | D144: โมเมนต์ลบล่าง | E144: โมเมนต์ลบบน | F144: โมเมนต์บวกกลาง | G144: โมเมนต์ลบล่าง | H144: โมเมนต์ลบบน | I144: โมเมนต์บวกกลาง | J144: โมเมนต์ลบล่าง | K144: โมเมนต์ลบบน | L144: โมเมนต์บวกกลาง | M144: โมเมนต์ลบล่าง | N144: โมเมนต์ลบบน | O144: โมเมนต์บวกกลาง | P144: โมเมนต์ลบล่าง
B145: =IF('l4'!$J$70=0,(0),(INT(100/((('l4'!$J$70)/(3.142*($B$12*10)^2/4))))&"")) -> 17 | C145: =IF('l4'!$J$66=0,(0),(INT(100/((('l4'!$J$66)/(3.142*($B$12*10)^2/4))))&"")) -> 23 | D145: =IF('l4'!$J$62=0,(0),(INT(100/((('l4'!$J$62)/(3.142*($B$12*10)^2/4))))&"")) -> 13 | E145: =IF('l4'!$M$70=0,(0),(INT(100/((('l4'!$M$70)/(3.142*($B$12*10)^2/4))))&"")) -> 13 | F145: =IF('l4'!$M$66=0,(0),(INT(100/((('l4'!$M$66)/(3.142*($B$12*10)^2/4))))&"")) -> 35 | G145: =IF('l4'!$M$62=0,(0),(INT(100/((('l4'!$M$62)/(3.142*($B$12*10)^2/4))))&"")) -> 30 | H145: =IF(('l4'!$O$70)<1,(0),(INT(100/((('l4'!$O$70)/(3.142*($B$12*10)^2/4))))&"")) -> 0 | I145: =IF(('l4'!$O$66)=0,(0),(INT(100/((('l4'!$O$66)/(3.142*($B$12*10)^2/4))))&"")) -> 0 | J145: =IF('l4'!$O$62=0,(0),(INT(100/((('l4'!$O$62)/(3.142*($B$12*10)^2/4))))&"")) -> 0 | K145: =IF('l4'!$Q$70=0,(0),(INT(100/((('l4'!$Q$70)/(3.142*($B$12*10)^2/4))))&"")) -> 0 | L145: =IF('l4'!$Q$66=0,(0),(INT(100/((('l4'!$Q$66)/(3.142*($B$12*10)^2/4))))&"")) -> 0 | M145: =IF('l4'!$Q$62=0,(0),(INT(100/((('l4'!$Q$62)/(3.142*($B$12*10)^2/4))))&"")) -> 0 | N145: =IF('l4'!$S$70=0,(0),(INT(100/((('l4'!$S$70)/(3.142*($B$12*10)^2/4))))&"")) -> 0 | O145: =IF('l4'!$S$66=0,(0),(INT(100/((('l4'!$S$66)/(3.142*($B$12*10)^2/4))))&"")) -> 0 | P145: =IF('l4'!$S$62=0,(0),(INT(100/((('l4'!$S$62)/(3.142*($B$12*10)^2/4))))&"")) -> 0
B146: =IF('l4'!$K$70=0,(0),(INT(100/((('l4'!$K$70)/(3.142*($B$12*10)^2/4))))&"")) -> 37 | C146: =IF('l4'!$K$66=0,(0),(INT(100/((('l4'!$K$66)/(3.142*($B$12*10)^2/4))))&"")) -> 35 | D146: =IF('l4'!$K$62=0,(0),(INT(100/((('l4'!$K$62)/(3.142*($B$12*10)^2/4))))&"")) -> 37 | E146: =IF('l4'!$N$70=0,(0),(INT(100/((('l4'!$N$70)/(3.142*($B$12*10)^2/4))))&"")) -> 37 | F146: =IF(('l4'!$N$66)=0,(0),(INT(100/((('l4'!$N$66)/(3.142*($B$12*10)^2/4))))&"")) -> 37 | G146: =IF('l4'!$N$62=0,(0),(INT(100/((('l4'!$N$62)/(3.142*($B$12*10)^2/4))))&"")) -> 37 | H146: =IF(('l4'!$P$70)=0,(0),(INT(100/((('l4'!$P$70)/(3.142*($B$12*10)^2/4))))&"")) -> 0 | I146: =IF(('l4'!$P$66)=0,(0),(INT(100/((('l4'!$P$66)/(3.142*($B$12*10)^2/4))))&"")) -> 0 | J146: =IF(('l4'!$P$62)=0,(0),(INT(100/((('l4'!$P$62)/(3.142*($B$12*10)^2/4))))&"")) -> 0 | K146: =IF(('l4'!$R$70)=0,(0),(INT(100/((('l4'!$R$70)/(3.142*($B$12*10)^2/4))))&"")) -> 0 | L146: =IF(('l4'!$R$66)=0,(0),(INT(100/((('l4'!$R$66)/(3.142*($B$12*10)^2/4))))&"")) -> 0 | M146: =IF(('l4'!$R$62)=0,(0),(INT(100/((('l4'!$R$62)/(3.142*($B$12*10)^2/4))))&"")) -> 0 | N146: =IF(('l4'!$T$70)=0,(0),(INT(100/((('l4'!$T$70)/(3.142*($B$12*10)^2/4))))&"")) -> 0 | O146: =IF(('l4'!$T$66)=0,(0),(INT(100/((('l4'!$T$66)/(3.142*($B$12*10)^2/4))))&"")) -> 0 | P146: =IF(('l4'!$T$62)=0,(0),(INT(100/((('l4'!$T$62)/(3.142*($B$12*10)^2/4))))&"")) -> 0
B148: span R1 | E148: span R2 | H148: span R3 | K148: span R4 | N148: span R5
B149: โมเมนต์ลบบน | C149: โมเมนต์บวกกลาง | D149: โมเมนต์ลบล่าง | E149: โมเมนต์ลบบน | F149: โมเมนต์บวกกลาง | G149: โมเมนต์ลบล่าง | H149: โมเมนต์ลบบน | I149: โมเมนต์บวกกลาง | J149: โมเมนต์ลบล่าง | K149: โมเมนต์ลบบน | L149: โมเมนต์บวกกลาง | M149: โมเมนต์ลบล่าง | N149: โมเมนต์ลบบน | O149: โมเมนต์บวกกลาง | P149: โมเมนต์ลบล่าง
B150: =IF('l5'!$J$70=0,(0),(INT(100/((('l5'!$J$70)/(3.142*($B$12*10)^2/4))))&"")) -> 0 | C150: =IF('l5'!$J$66=0,(0),(INT(100/((('l5'!$J$66)/(3.142*($B$12*10)^2/4))))&"")) -> 0 | D150: =IF('l5'!$J$62=0,(0),(INT(100/((('l5'!$J$62)/(3.142*($B$12*10)^2/4))))&"")) -> 0 | E150: =IF('l5'!$M$70=0,(0),(INT(100/((('l5'!$M$70)/(3.142*($B$12*10)^2/4))))&"")) -> 0 | F150: =IF('l5'!$M$66=0,(0),(INT(100/((('l5'!$M$66)/(3.142*($B$12*10)^2/4))))&"")) -> 0 | G150: =IF('l5'!$M$62=0,(0),(INT(100/((('l5'!$M$62)/(3.142*($B$12*10)^2/4))))&"")) -> 0 | H150: =IF(('l5'!$O$70)<1,(0),(INT(100/((('l5'!$O$70)/(3.142*($B$12*10)^2/4))))&"")) -> 0 | I150: =IF(('l5'!$O$66)=0,(0),(INT(100/((('l5'!$O$66)/(3.142*($B$12*10)^2/4))))&"")) -> 0 | J150: =IF('l5'!$O$62=0,(0),(INT(100/((('l5'!$O$62)/(3.142*($B$12*10)^2/4))))&"")) -> 0 | K150: =IF('l5'!$Q$70=0,(0),(INT(100/((('l5'!$Q$70)/(3.142*($B$12*10)^2/4))))&"")) -> 0 | L150: =IF('l5'!$Q$66=0,(0),(INT(100/((('l5'!$Q$66)/(3.142*($B$12*10)^2/4))))&"")) -> 0 | M150: =IF('l5'!$Q$62=0,(0),(INT(100/((('l5'!$Q$62)/(3.142*($B$12*10)^2/4))))&"")) -> 0 | N150: =IF('l5'!$S$70=0,(0),(INT(100/((('l5'!$S$70)/(3.142*($B$12*10)^2/4))))&"")) -> 0 | O150: =IF('l5'!$S$66=0,(0),(INT(100/((('l5'!$S$66)/(3.142*($B$12*10)^2/4))))&"")) -> 0 | P150: =IF('l5'!$S$62=0,(0),(INT(100/((('l5'!$S$62)/(3.142*($B$12*10)^2/4))))&"")) -> 0
B151: =IF('l5'!$K$70=0,(0),(INT(100/((('l5'!$K$70)/(3.142*($B$12*10)^2/4))))&"")) -> 0 | C151: =IF('l5'!$K$66=0,(0),(INT(100/((('l5'!$K$66)/(3.142*($B$12*10)^2/4))))&"")) -> 0 | D151: =IF('l5'!$K$62=0,(0),(INT(100/((('l5'!$K$62)/(3.142*($B$12*10)^2/4))))&"")) -> 0 | E151: =IF('l5'!$N$70=0,(0),(INT(100/((('l5'!$N$70)/(3.142*($B$12*10)^2/4))))&"")) -> 0 | F151: =IF(('l5'!$N$66)=0,(0),(INT(100/((('l5'!$N$66)/(3.142*($B$12*10)^2/4))))&"")) -> 0 | G151: =IF('l5'!$N$62=0,(0),(INT(100/((('l5'!$N$62)/(3.142*($B$12*10)^2/4))))&"")) -> 0 | H151: =IF(('l5'!$P$70)=0,(0),(INT(100/((('l5'!$P$70)/(3.142*($B$12*10)^2/4))))&"")) -> 0 | I151: =IF(('l5'!$P$66)=0,(0),(INT(100/((('l5'!$P$66)/(3.142*($B$12*10)^2/4))))&"")) -> 0 | J151: =IF(('l5'!$P$62)=0,(0),(INT(100/((('l5'!$P$62)/(3.142*($B$12*10)^2/4))))&"")) -> 0 | K151: =IF(('l5'!$R$70)=0,(0),(INT(100/((('l5'!$R$70)/(3.142*($B$12*10)^2/4))))&"")) -> 0 | L151: =IF(('l5'!$R$66)=0,(0),(INT(100/((('l5'!$R$66)/(3.142*($B$12*10)^2/4))))&"")) -> 0 | M151: =IF(('l5'!$R$62)=0,(0),(INT(100/((('l5'!$R$62)/(3.142*($B$12*10)^2/4))))&"")) -> 0 | N151: =IF(('l5'!$T$70)=0,(0),(INT(100/((('l5'!$T$70)/(3.142*($B$12*10)^2/4))))&"")) -> 0 | O151: =IF(('l5'!$T$66)=0,(0),(INT(100/((('l5'!$T$66)/(3.142*($B$12*10)^2/4))))&"")) -> 0 | P151: =IF(('l5'!$T$62)=0,(0),(INT(100/((('l5'!$T$62)/(3.142*($B$12*10)^2/4))))&"")) -> 0
B153: span R1 | E153: span R2 | H153: span R3 | K153: span R4 | N153: span R5
B154: โมเมนต์ลบบน | C154: โมเมนต์บวกกลาง | D154: โมเมนต์ลบล่าง | E154: โมเมนต์ลบบน | F154: โมเมนต์บวกกลาง | G154: โมเมนต์ลบล่าง | H154: โมเมนต์ลบบน | I154: โมเมนต์บวกกลาง | J154: โมเมนต์ลบล่าง | K154: โมเมนต์ลบบน | L154: โมเมนต์บวกกลาง | M154: โมเมนต์ลบล่าง | N154: โมเมนต์ลบบน | O154: โมเมนต์บวกกลาง | P154: โมเมนต์ลบล่าง
B155: =IF('l6'!$J$70=0,(0),(INT(100/((('l6'!$J$70)/(3.142*($B$12*10)^2/4))))&"")) -> 0 | C155: =IF('l6'!$J$66=0,(0),(INT(100/((('l6'!$J$66)/(3.142*($B$12*10)^2/4))))&"")) -> 0 | D155: =IF('l6'!$J$62=0,(0),(INT(100/((('l6'!$J$62)/(3.142*($B$12*10)^2/4))))&"")) -> 0 | E155: =IF('l6'!$M$70=0,(0),(INT(100/((('l6'!$M$70)/(3.142*($B$12*10)^2/4))))&"")) -> 0 | F155: =IF('l6'!$M$66=0,(0),(INT(100/((('l6'!$M$66)/(3.142*($B$12*10)^2/4))))&"")) -> 0 | G155: =IF('l6'!$M$62=0,(0),(INT(100/((('l6'!$M$62)/(3.142*($B$12*10)^2/4))))&"")) -> 0 | H155: =IF(('l6'!$O$70)<1,(0),(INT(100/((('l6'!$O$70)/(3.142*($B$12*10)^2/4))))&"")) -> 0 | I155: =IF(('l6'!$O$66)=0,(0),(INT(100/((('l6'!$O$66)/(3.142*($B$12*10)^2/4))))&"")) -> 0 | J155: =IF('l6'!$O$62=0,(0),(INT(100/((('l6'!$O$62)/(3.142*($B$12*10)^2/4))))&"")) -> 0 | K155: =IF('l6'!$Q$70=0,(0),(INT(100/((('l6'!$Q$70)/(3.142*($B$12*10)^2/4))))&"")) -> 0 | L155: =IF('l6'!$Q$66=0,(0),(INT(100/((('l6'!$Q$66)/(3.142*($B$12*10)^2/4))))&"")) -> 0 | M155: =IF('l6'!$Q$62=0,(0),(INT(100/((('l6'!$Q$62)/(3.142*($B$12*10)^2/4))))&"")) -> 0 | N155: =IF('l6'!$S$70=0,(0),(INT(100/((('l6'!$S$70)/(3.142*($B$12*10)^2/4))))&"")) -> 0 | O155: =IF('l6'!$S$66=0,(0),(INT(100/((('l6'!$S$66)/(3.142*($B$12*10)^2/4))))&"")) -> 0 | P155: =IF('l6'!$S$62=0,(0),(INT(100/((('l6'!$S$62)/(3.142*($B$12*10)^2/4))))&"")) -> 0
B156: =IF('l6'!$K$70=0,(0),(INT(100/((('l6'!$K$70)/(3.142*($B$12*10)^2/4))))&"")) -> 0 | C156: =IF('l6'!$K$66=0,(0),(INT(100/((('l6'!$K$66)/(3.142*($B$12*10)^2/4))))&"")) -> 0 | D156: =IF('l6'!$K$62=0,(0),(INT(100/((('l6'!$K$62)/(3.142*($B$12*10)^2/4))))&"")) -> 0 | E156: =IF('l6'!$N$70=0,(0),(INT(100/((('l6'!$N$70)/(3.142*($B$12*10)^2/4))))&"")) -> 0 | F156: =IF(('l6'!$N$66)=0,(0),(INT(100/((('l6'!$N$66)/(3.142*($B$12*10)^2/4))))&"")) -> 0 | G156: =IF('l6'!$N$62=0,(0),(INT(100/((('l6'!$N$62)/(3.142*($B$12*10)^2/4))))&"")) -> 0 | H156: =IF(('l6'!$P$70)=0,(0),(INT(100/((('l6'!$P$70)/(3.142*($B$12*10)^2/4))))&"")) -> 0 | I156: =IF(('l6'!$P$66)=0,(0),(INT(100/((('l6'!$P$66)/(3.142*($B$12*10)^2/4))))&"")) -> 0 | J156: =IF(('l6'!$P$62)=0,(0),(INT(100/((('l6'!$P$62)/(3.142*($B$12*10)^2/4))))&"")) -> 0 | K156: =IF(('l6'!$R$70)=0,(0),(INT(100/((('l6'!$R$70)/(3.142*($B$12*10)^2/4))))&"")) -> 0 | L156: =IF(('l6'!$R$66)=0,(0),(INT(100/((('l6'!$R$66)/(3.142*($B$12*10)^2/4))))&"")) -> 0 | M156: =IF(('l6'!$R$62)=0,(0),(INT(100/((('l6'!$R$62)/(3.142*($B$12*10)^2/4))))&"")) -> 0 | N156: =IF(('l6'!$T$70)=0,(0),(INT(100/((('l6'!$T$70)/(3.142*($B$12*10)^2/4))))&"")) -> 0 | O156: =IF(('l6'!$T$66)=0,(0),(INT(100/((('l6'!$T$66)/(3.142*($B$12*10)^2/4))))&"")) -> 0 | P156: =IF(('l6'!$T$62)=0,(0),(INT(100/((('l6'!$T$62)/(3.142*($B$12*10)^2/4))))&"")) -> 0

Sheet r1
A1: รายการคำนวณโมเมนต์แกน x แถบนอก Rslab1
A2: ระยะช่วงพื้น (unit: m) | B2: =MAX(Sheet1!F9,Sheet1!F10,Sheet1!F11,Sheet1!F12,Sheet1!F13,Sheet1!L9,Sheet1!L10,Sheet1!L11,Sheet1!L12,Sheet1!F13) -> 6 | D2: ความกว้างแถบเสา = | E2: =(Sheet1!L9)/2 -> 3
A3: ตัวคูณหาความหนาพื้นขั้นต่ำ | B3: =0.01*LN(Sheet1!B9)-0.05 -> 0.03025516386
A5: ความหนาพื้น (unit:m) | B5: =IF((B2*B3)>0.12,(B2*B3),(0.12)) -> 0.1815309832
A6: น้ำหนัก DL+WDS | D6: น้ำหนัก LL
A7: Wdl1+Wsd1 (unit:KG/m^2) = | B7: =IF(Sheet1!B3>=2,(((Sheet1!B16*Sheet1!B11)+Sheet1!J9)*1.4),(0)) -> 1820 | D7: Wtl1 (unit:kg/m^2) = | E7: =(1.7*Sheet1!H9) -> 510
A8: Wdl2+Wsd2 (unit:KG/m^2) = | B8: =IF(Sheet1!B3>=2,(((Sheet1!B16*Sheet1!B11)+Sheet1!J10)*1.4),(0)) -> 1820 | D8: Wtl2 (unit:kg/m^2) = | E8: =1.7*Sheet1!H10 -> 510
A9: =IF(Sheet1!B3>2,("Wdl3+Wsd3 (unit:KG/m^2) ="),("")) -> Wdl3+Wsd3 (unit:KG/m^2) = | B9: =IF(Sheet1!B3>=3,(((Sheet1!B16*Sheet1!B11)+Sheet1!J11)*1.4),(0)) -> 1820 | D9: =IF(Sheet1!B3>2,("Wtl3 (unit:KG/m^2) ="),("")) -> Wtl3 (unit:KG/m^2) = | E9: =1.7*Sheet1!H11 -> 510
A10: =IF(Sheet1!B3>3,("Wdl4+Wsd4 (unit:KG/m^2) ="),("")) ->  | B10: =IF(Sheet1!B3>=4,(((Sheet1!B16*Sheet1!B11)+Sheet1!J12)*1.4),(0)) -> 0 | D10: =IF(Sheet1!B3>3,("Wtl4 (unit:KG/m^2) ="),("")) ->  | E10: =1.7*Sheet1!H12 -> 0
A11: =IF(Sheet1!B3>4,("Wdl5+Wsd5 (unit:KG/m^2) ="),("")) ->  | B11: =IF(Sheet1!B3>=5,(((Sheet1!B16*Sheet1!B11)+Sheet1!J13)*1.4),(0)) -> 0 | D11: =IF(Sheet1!B3>4,("Wtl5 (unit:KG/m^2) ="),("")) ->  | E11: =1.7*Sheet1!H13 -> 0
A13: โมเมนต์ DL+WSD | D13: โมเมนต LL
A14: FEM.DL1 (unit:kg*m) = | B14: =B7*E2*Sheet1!F9^2/12 -> 11375 | D14: FEM.TL1 (unit:kg*m) = | E14: =E7*E2*Sheet1!F9^2/12 -> 3187.5
A15: FEM.DL2 (unit:kg*m) = | B15: =B8*E2*Sheet1!F10^2/12 -> 16380 | D15: FEM.TL2 (unit:kg*m) = | E15: =E8*E2*Sheet1!F10^2/12 -> 4590
A16: =IF(Sheet1!B3>=3,("FEM.DL3 (unit:kg*m) ="),("")) -> FEM.DL3 (unit:kg*m) = | B16: =IF(Sheet1!B3>=3,('r1'!B9*'r1'!E2*Sheet1!F11^2/12),(0)) -> 11375 | D16: =IF(Sheet1!B3>=3,("FEM.TL3 (unit:kg*m) ="),("")) -> FEM.TL3 (unit:kg*m) = | E16: =IF(Sheet1!B3>=3,('r1'!E9*'r1'!E2*Sheet1!F11^2/12),(0)) -> 3187.5
A17: =IF(Sheet1!B3>=4,("FEM.DL4 (unit:kg*m) ="),("")) ->  | B17: =IF(Sheet1!B3>=4,('r1'!B10*'r1'!E2*Sheet1!F12^2/12),(0)) -> 0 | D17: =IF(Sheet1!B3>=4,("FEM.TL4 (unit:kg*m) ="),("")) ->  | E17: =IF(Sheet1!B3>=4,('r1'!E10*'r1'!E2*Sheet1!F12^2/12),(0)) -> 0
A18: =IF(Sheet1!B3>=5,("FEM.DL5 (unit:kg*m) ="),("")) ->  | B18: =IF(Sheet1!B3>=5,('r1'!B11*'r1'!E2*Sheet1!F13^2/12),(0)) -> 0 | D18: =IF(Sheet1!B3>=5,("FEM.TL5 (unit:kg*m) ="),("")) ->  | E18: =IF(Sheet1!B3>=5,('r1'!E11*'r1'!E2*Sheet1!F13^2/12),(0)) -> 0
J21: วางน้ำหนัก LL สแปน 1 | V21: วางน้ำหนัก LL สแปน 2 | AH21: วางน้ำหนัก LL สแปน 3 | AT21: วางน้ำหนัก LL สแปน 4 | BF21: วางน้ำหนัก LL สแปน 5 | BR21: วางน้ำหนัก DL ทุกสแปน
K22: 1r | L22: 2l | M22: 2r | N22: 3l | O22: 3r | P22: 4l | Q22: 4r | R22: 5l | S22: 5r | T22: 6l | W22: 1r | X22: 2l | Y22: 2r | Z22: 3l | AA22: 3r | AB22: 4l | AC22: 4r | AD22: 5l | AE22: 5r | AF22: 6l | AI22: 1r | AJ22: 2l | AK22: 2r | AL22: 3l | AM22: 3r | AN22: 4l | AO22: 4r | AP22: 5l | AQ22: 5r | AR22: 6l | AU22: 1r | AV22: 2l | AW22: 2r | AX22: 3l | AY22: 3r | AZ22: 4l | BA22: 4r | BB22: 5l | BC22: 5r | BD22: 6l | BG22: 1r | BH22: 2l | BI22: 2r | BJ22: 3l | BK22: 3r | BL22: 4l | BM22: 4r | BN22: 5l | BO22: 5r | BP22: 6l | BS22: 1r | BT22: 2l | BU22: 2r | BV22: 3l | BW22: 3r | BX22: 4l | BY22: 4r | BZ22: 5l | CA22: 5r | CB22: 6l
J23: D.o.f | K23: 0.3816611198 | L23: 0.2367879909 | M23: 0.1956074708 | N23: 0.1956074708 | O23: 0.2367879909 | P23: 0.3816611198 | V23: D.o.f | W23: 0.3816611198 | X23: 0.2367879909 | Y23: 0.1956074708 | Z23: 0.1956074708 | AA23: 0.2367879909 | AB23: 0.3816611198 | AH23: D.o.f | AI23: 0.3816611198 | AJ23: 0.2367879909 | AK23: 0.1956074708 | AL23: 0.1956074708 | AM23: 0.2367879909 | AN23: 0.3816611198 | AT23: D.o.f | AU23: 0.3816611198 | AV23: 0.2367879909 | AW23: 0.1956074708 | AX23: 0.1956074708 | AY23: 0.2367879909 | AZ23: 0.3816611198 | BF23: D.o.f | BG23: 0.3816611198 | BH23: 0.2367879909 | BI23: 0.1956074708 | BJ23: 0.1956074708 | BK23: 0.2367879909 | BL23: 0.3816611198 | BR23: D.o.f | BS23: 0.3816611198 | BT23: 0.2367879909 | BU23: 0.1956074708 | BV23: 0.1956074708 | BW23: 0.2367879909 | BX23: 0.3816611198
J24: FEM | K24: =E14*-1 -> -3187.5 | L24: =E14 -> 3187.5 | V24: FEM | Y24: =-E15 -> -4590 | Z24: =E15 -> 4590 | AH24: FEM | AM24: =-E16 -> -3187.5 | AN24: =E16 -> 3187.5 | AT24: FEM | BA24: =-E17 -> 0 | BB24: =E17 -> 0 | BF24: FEM | BO24: =-E18 -> 0 | BP24: =E18 -> 0 | BR24: FEM | BS24: =-B14 -> -11375 | BT24: =B14 -> 11375 | BU24: =-B15 -> -16380 | BV24: =B15 -> 16380 | BW24: =-B16 -> -11375 | BX24: =B16 -> 11375 | BY24: =-B17 -> 0 | BZ24: =B17 -> 0 | CA24: =-B18 -> 0 | CB24: =B18 -> 0
J25: Dis | K25: =(K24)*K23*-1 -> 1216.544819 | L25: =(L24+M24)*L23*-1 -> -754.7617211 | M25: =(M24+L24)*M23*-1 -> -623.498813 | N25: =(N24+O24)*N23*-1 -> 0 | O25: =(O24+N24)*O23*-1 -> 0 | P25: =(P24+Q24)*P23*-1 -> 0 | Q25: =(Q24+P24)*Q23*-1 -> 0 | R25: =(R24+S24)*R23*-1 -> 0 | S25: =(S24+R24)*S23*-1 -> 0 | T25: =(T24+U24)*T23*-1 -> 0 | V25: Dis | W25: =(W24)*W23*-1 -> 0 | X25: =(X24+Y24)*X23*-1 -> 1086.856878 | Y25: =(Y24+X24)*Y23*-1 -> 897.8382908 | Z25: =(Z24+AA24)*Z23*-1 -> -897.8382908 | AA25: =(AA24+Z24)*AA23*-1 -> -1086.856878 | AB25: =(AB24+AC24)*AB23*-1 -> 0 | AC25: =(AC24+AB24)*AC23*-1 -> 0 | AD25: =(AD24+AE24)*AD23*-1 -> 0 | AE25: =(AE24+AD24)*AE23*-1 -> 0 | AF25: =(AF24+AG24)*AF23*-1 -> 0 | AH25: Dis | AI25: =(AI24)*AI23*-1 -> 0 | AJ25: =(AJ24+AK24)*AJ23*-1 -> 0 | AK25: =(AK24+AJ24)*AK23*-1 -> 0 | AL25: =(AL24+AM24)*AL23*-1 -> 623.498813 | AM25: =(AM24+AL24)*AM23*-1 -> 754.7617211 | AN25: =(AN24+AO24)*AN23*-1 -> -1216.544819 | AO25: =(AO24+AN24)*AO23*-1 -> 0 | AP25: =(AP24+AQ24)*AP23*-1 -> 0 | AQ25: =(AQ24+AP24)*AQ23*-1 -> 0 | AR25: =(AR24+AS24)*AR23*-1 -> 0 | AT25: Dis | AU25: =(AU24)*AU23*-1 -> 0 | AV25: =(AV24+AW24)*AV23*-1 -> 0 | AW25: =(AW24+AV24)*AW23*-1 -> 0 | AX25: =(AX24+AY24)*AX23*-1 -> 0 | AY25: =(AY24+AX24)*AY23*-1 -> 0 | AZ25: =(AZ24+BA24)*AZ23*-1 -> 0 | BA25: =(BA24+AZ24)*BA23*-1 -> 0 | BB25: =(BB24+BC24)*BB23*-1 -> 0 | BC25: =(BC24+BB24)*BC23*-1 -> 0 | BD25: =(BD24+BE24)*BD23*-1 -> 0 | BF25: Dis | BG25: =(BG24)*BG23*-1 -> 0 | BH25: =(BH24+BI24)*BH23*-1 -> 0 | BI25: =(BI24+BH24)*BI23*-1 -> 0 | BJ25: =(BJ24+BK24)*BJ23*-1 -> 0 | BK25: =(BK24+BJ24)*BK23*-1 -> 0 | BL25: =(BL24+BM24)*BL23*-1 -> 0 | BM25: =(BM24+BL24)*BM23*-1 -> 0 | BN25: =(BN24+BO24)*BN23*-1 -> 0 | BO25: =(BO24+BN24)*BO23*-1 -> 0 | BP25: =(BP24+BQ24)*BP23*-1 -> 0 | BR25: Dis | BS25: =(BS24)*BS23*-1 -> 4341.395238 | BT25: =(BT24+BU24)*BT23*-1 -> 1185.123895 | BU25: =(BU24+BT24)*BU23*-1 -> 979.0153912 | BV25: =(BV24+BW24)*BV23*-1 -> -979.0153912 | BW25: =(BW24+BV24)*BW23*-1 -> -1185.123895 | BX25: =(BX24+BY24)*BX23*-1 -> -4341.395238 | BY25: =(BY24+BX24)*BY23*-1 -> 0 | BZ25: =(BZ24+CA24)*BZ23*-1 -> 0 | CA25: =(CA24+BZ24)*CA23*-1 -> 0 | CB25: =(CB24+CC24)*CB23*-1 -> 0
J26: Co | K26: =L25/2 -> -377.3808605 | L26: =K25/2 -> 608.2724097 | M26: =N25/2 -> 0 | N26: =M25/2 -> -311.7494065 | O26: =P25/2 -> 0 | P26: =O25/2 -> 0 | Q26: =R25/2 -> 0 | R26: =Q25/2 -> 0 | S26: =T25/2 -> 0 | T26: =S25/2 -> 0 | V26: Co | W26: =X25/2 -> 543.4284392 | X26: =W25/2 -> 0 | Y26: =Z25/2 -> -448.9191454 | Z26: =Y25/2 -> 448.9191454 | AA26: =AB25/2 -> 0 | AB26: =AA25/2 -> -543.4284392 | AC26: =AD25/2 -> 0 | AD26: =AC25/2 -> 0 | AE26: =AF25/2 -> 0 | AF26: =AE25/2 -> 0 | AH26: Co | AI26: =AJ25/2 -> 0 | AJ26: =AI25/2 -> 0 | AK26: =AL25/2 -> 311.7494065 | AL26: =AK25/2 -> 0 | AM26: =AN25/2 -> -608.2724097 | AN26: =AM25/2 -> 377.3808605 | AO26: =AP25/2 -> 0 | AP26: =AO25/2 -> 0 | AQ26: =AR25/2 -> 0 | AR26: =AQ25/2 -> 0 | AT26: Co | AU26: =AV25/2 -> 0 | AV26: =AU25/2 -> 0 | AW26: =AX25/2 -> 0 | AX26: =AW25/2 -> 0 | AY26: =AZ25/2 -> 0 | AZ26: =AY25/2 -> 0 | BA26: =BB25/2 -> 0 | BB26: =BA25/2 -> 0 | BC26: =BD25/2 -> 0 | BD26: =BC25/2 -> 0 | BF26: Co | BG26: =BH25/2 -> 0 | BH26: =BG25/2 -> 0 | BI26: =BJ25/2 -> 0 | BJ26: =BI25/2 -> 0 | BK26: =BL25/2 -> 0 | BL26: =BK25/2 -> 0 | BM26: =BN25/2 -> 0 | BN26: =BM25/2 -> 0 | BO26: =BP25/2 -> 0 | BP26: =BO25/2 -> 0 | BR26: Co | BS26: =BT25/2 -> 592.5619473 | BT26: =BS25/2 -> 2170.697619 | BU26: =BV25/2 -> -489.5076956 | BV26: =BU25/2 -> 489.5076956 | BW26: =BX25/2 -> -2170.697619 | BX26: =BW25/2 -> -592.5619473 | BY26: =BZ25/2 -> 0 | BZ26: =BY25/2 -> 0 | CA26: =CB25/2 -> 0 | CB26: =CA25/2 -> 0
J27: dis | K27: =(K26)*K23*-1 -> 144.0316018 | L27: =(L26+M26)*L23*-1 -> -144.0316018 | M27: =(M26+L26)*M23*-1 -> -118.9826276 | N27: =(N26+O26)*N23*-1 -> 60.98051292 | O27: =(O26+N26)*O23*-1 -> 73.81851564 | P27: =(P26+Q26)*P23*-1 -> 0 | Q27: =(Q26+P26)*Q23*-1 -> 0 | R27: =(R26+S26)*R23*-1 -> 0 | S27: =(S26+R26)*S23*-1 -> 0 | T27: =(T26+U26)*T23*-1 -> 0 | V27: dis | W27: =(W26)*W23*-1 -> -207.4055066 | X27: =(X26+Y26)*X23*-1 -> 106.2986625 | Y27: =(Y26+X26)*Y23*-1 -> 87.81193861 | Z27: =(Z26+AA26)*Z23*-1 -> -87.81193861 | AA27: =(AA26+Z26)*AA23*-1 -> -106.2986625 | AB27: =(AB26+AC26)*AB23*-1 -> 207.4055066 | AC27: =(AC26+AB26)*AC23*-1 -> 0 | AD27: =(AD26+AE26)*AD23*-1 -> 0 | AE27: =(AE26+AD26)*AE23*-1 -> 0 | AF27: =(AF26+AG26)*AF23*-1 -> 0 | AH27: dis | AI27: =(AI26)*AI23*-1 -> 0 | AJ27: =(AJ26+AK26)*AJ23*-1 -> -73.81851564 | AK27: =(AK26+AJ26)*AK23*-1 -> -60.98051292 | AL27: =(AL26+AM26)*AL23*-1 -> 118.9826276 | AM27: =(AM26+AL26)*AM23*-1 -> 144.0316018 | AN27: =(AN26+AO26)*AN23*-1 -> -144.0316018 | AO27: =(AO26+AN26)*AO23*-1 -> 0 | AP27: =(AP26+AQ26)*AP23*-1 -> 0 | AQ27: =(AQ26+AP26)*AQ23*-1 -> 0 | AR27: =(AR26+AS26)*AR23*-1 -> 0 | AT27: dis | AU27: =(AU26)*AU23*-1 -> 0 | AV27: =(AV26+AW26)*AV23*-1 -> 0 | AW27: =(AW26+AV26)*AW23*-1 -> 0 | AX27: =(AX26+AY26)*AX23*-1 -> 0 | AY27: =(AY26+AX26)*AY23*-1 -> 0 | AZ27: =(AZ26+BA26)*AZ23*-1 -> 0 | BA27: =(BA26+AZ26)*BA23*-1 -> 0 | BB27: =(BB26+BC26)*BB23*-1 -> 0 | BC27: =(BC26+BB26)*BC23*-1 -> 0 | BD27: =(BD26+BE26)*BD23*-1 -> 0 | BF27: dis | BG27: =(BG26)*BG23*-1 -> 0 | BH27: =(BH26+BI26)*BH23*-1 -> 0 | BI27: =(BI26+BH26)*BI23*-1 -> 0 | BJ27: =(BJ26+BK26)*BJ23*-1 -> 0 | BK27: =(BK26+BJ26)*BK23*-1 -> 0 | BL27: =(BL26+BM26)*BL23*-1 -> 0 | BM27: =(BM26+BL26)*BM23*-1 -> 0 | BN27: =(BN26+BO26)*BN23*-1 -> 0 | BO27: =(BO26+BN26)*BO23*-1 -> 0 | BP27: =(BP26+BQ26)*BP23*-1 -> 0 | BR27: dis | BS27: =(BS26)*BS23*-1 -> -226.1578564 | BT27: =(BT26+BU26)*BT23*-1 -> -398.0855843 | BU27: =(BU26+BT26)*BU23*-1 -> -328.8533088 | BV27: =(BV26+BW26)*BV23*-1 -> 328.8533088 | BW27: =(BW26+BV26)*BW23*-1 -> 398.0855843 | BX27: =(BX26+BY26)*BX23*-1 -> 226.1578564 | BY27: =(BY26+BX26)*BY23*-1 -> 0 | BZ27: =(BZ26+CA26)*BZ23*-1 -> 0 | CA27: =(CA26+BZ26)*CA23*-1 -> 0 | CB27: =(CB26+CC26)*CB23*-1 -> 0
J28: co | K28: =L27/2 -> -72.01580092 | L28: =K27/2 -> 72.01580092 | M28: =N27/2 -> 30.49025646 | N28: =M27/2 -> -59.4913138 | O28: =P27/2 -> 0 | P28: =O27/2 -> 36.90925782 | Q28: =R27/2 -> 0 | R28: =Q27/2 -> 0 | S28: =T27/2 -> 0 | T28: =S27/2 -> 0 | V28: co | W28: =X27/2 -> 53.14933126 | X28: =W27/2 -> -103.7027533 | Y28: =Z27/2 -> -43.9059693 | Z28: =Y27/2 -> 43.9059693 | AA28: =AB27/2 -> 103.7027533 | AB28: =AA27/2 -> -53.14933126 | AC28: =AD27/2 -> 0 | AD28: =AC27/2 -> 0 | AE28: =AF27/2 -> 0 | AF28: =AE27/2 -> 0 | AH28: co | AI28: =AJ27/2 -> -36.90925782 | AJ28: =AI27/2 -> 0 | AK28: =AL27/2 -> 59.4913138 | AL28: =AK27/2 -> -30.49025646 | AM28: =AN27/2 -> -72.01580092 | AN28: =AM27/2 -> 72.01580092 | AO28: =AP27/2 -> 0 | AP28: =AO27/2 -> 0 | AQ28: =AR27/2 -> 0 | AR28: =AQ27/2 -> 0 | AT28: co | AU28: =AV27/2 -> 0 | AV28: =AU27/2 -> 0 | AW28: =AX27/2 -> 0 | AX28: =AW27/2 -> 0 | AY28: =AZ27/2 -> 0 | AZ28: =AY27/2 -> 0 | BA28: =BB27/2 -> 0 | BB28: =BA27/2 -> 0 | BC28: =BD27/2 -> 0 | BD28: =BC27/2 -> 0 | BF28: co | BG28: =BH27/2 -> 0 | BH28: =BG27/2 -> 0 | BI28: =BJ27/2 -> 0 | BJ28: =BI27/2 -> 0 | BK28: =BL27/2 -> 0 | BL28: =BK27/2 -> 0 | BM28: =BN27/2 -> 0 | BN28: =BM27/2 -> 0 | BO28: =BP27/2 -> 0 | BP28: =BO27/2 -> 0 | BR28: co | BS28: =BT27/2 -> -199.0427922 | BT28: =BS27/2 -> -113.0789282 | BU28: =BV27/2 -> 164.4266544 | BV28: =BU27/2 -> -164.4266544 | BW28: =BX27/2 -> 113.0789282 | BX28: =BW27/2 -> 199.0427922 | BY28: =BZ27/2 -> 0 | BZ28: =BY27/2 -> 0 | CA28: =CB27/2 -> 0 | CB28: =CA27/2 -> 0
J29: dis | K29: =(K28)*K23*-1 -> 27.48563122 | L29: =(L28+M28)*L23*-1 -> -24.27220338 | M29: =(M28+L28)*M23*-1 -> -20.05095062 | N29: =(N28+O28)*N23*-1 -> 11.63694542 | O29: =(O28+N28)*O23*-1 -> 14.08682867 | P29: =(P28+Q28)*P23*-1 -> -14.08682867 | Q29: =(Q28+P28)*Q23*-1 -> 0 | R29: =(R28+S28)*R23*-1 -> 0 | S29: =(S28+R28)*S23*-1 -> 0 | T29: =(T28+U28)*T23*-1 -> 0 | V29: dis | W29: =(W28)*W23*-1 -> -20.28503329 | X29: =(X28+Y28)*X23*-1 -> 34.95197287 | Y29: =(Y28+X28)*Y23*-1 -> 28.87336889 | Z29: =(Z28+AA28)*Z23*-1 -> -28.87336889 | AA29: =(AA28+Z28)*AA23*-1 -> -34.95197287 | AB29: =(AB28+AC28)*AB23*-1 -> 20.28503329 | AC29: =(AC28+AB28)*AC23*-1 -> 0 | AD29: =(AD28+AE28)*AD23*-1 -> 0 | AE29: =(AE28+AD28)*AE23*-1 -> 0 | AF29: =(AF28+AG28)*AF23*-1 -> 0 | AH29: dis | AI29: =(AI28)*AI23*-1 -> 14.08682867 | AJ29: =(AJ28+AK28)*AJ23*-1 -> -14.08682867 | AK29: =(AK28+AJ28)*AK23*-1 -> -11.63694542 | AL29: =(AL28+AM28)*AL23*-1 -> 20.05095062 | AM29: =(AM28+AL28)*AM23*-1 -> 24.27220338 | AN29: =(AN28+AO28)*AN23*-1 -> -27.48563122 | AO29: =(AO28+AN28)*AO23*-1 -> 0 | AP29: =(AP28+AQ28)*AP23*-1 -> 0 | AQ29: =(AQ28+AP28)*AQ23*-1 -> 0 | AR29: =(AR28+AS28)*AR23*-1 -> 0 | AT29: dis | AU29: =(AU28)*AU23*-1 -> 0 | AV29: =(AV28+AW28)*AV23*-1 -> 0 | AW29: =(AW28+AV28)*AW23*-1 -> 0 | AX29: =(AX28+AY28)*AX23*-1 -> 0 | AY29: =(AY28+AX28)*AY23*-1 -> 0 | AZ29: =(AZ28+BA28)*AZ23*-1 -> 0 | BA29: =(BA28+AZ28)*BA23*-1 -> 0 | BB29: =(BB28+BC28)*BB23*-1 -> 0 | BC29: =(BC28+BB28)*BC23*-1 -> 0 | BD29: =(BD28+BE28)*BD23*-1 -> 0 | BF29: dis | BG29: =(BG28)*BG23*-1 -> 0 | BH29: =(BH28+BI28)*BH23*-1 -> 0 | BI29: =(BI28+BH28)*BI23*-1 -> 0 | BJ29: =(BJ28+BK28)*BJ23*-1 -> 0 | BK29: =(BK28+BJ28)*BK23*-1 -> 0 | BL29: =(BL28+BM28)*BL23*-1 -> 0 | BM29: =(BM28+BL28)*BM23*-1 -> 0 | BN29: =(BN28+BO28)*BN23*-1 -> 0 | BO29: =(BO28+BN28)*BO23*-1 -> 0 | BP29: =(BP28+BQ28)*BP23*-1 -> 0 | BR29: dis | BS29: =(BS28)*BS23*-1 -> 75.96689495 | BT29: =(BT28+BU28)*BT23*-1 -> -12.15852493 | BU29: =(BU28+BT28)*BU23*-1 -> -10.04399885 | BV29: =(BV28+BW28)*BV23*-1 -> 10.04399885 | BW29: =(BW28+BV28)*BW23*-1 -> 12.15852493 | BX29: =(BX28+BY28)*BX23*-1 -> -75.96689495 | BY29: =(BY28+BX28)*BY23*-1 -> 0 | BZ29: =(BZ28+CA28)*BZ23*-1 -> 0 | CA29: =(CA28+BZ28)*CA23*-1 -> 0 | CB29: =(CB28+CC28)*CB23*-1 -> 0
J30: co | K30: =L29/2 -> -12.13610169 | L30: =K29/2 -> 13.74281561 | M30: =N29/2 -> 5.818472712 | N30: =M29/2 -> -10.02547531 | O30: =P29/2 -> -7.043414336 | P30: =O29/2 -> 7.043414336 | Q30: =R29/2 -> 0 | R30: =Q29/2 -> 0 | S30: =T29/2 -> 0 | T30: =S29/2 -> 0 | V30: co | W30: =X29/2 -> 17.47598644 | X30: -10.14251664 | Y30: =Z29/2 -> -14.43668445 | Z30: =Y29/2 -> 14.43668445 | AA30: =AB29/2 -> 10.14251664 | AB30: =AA29/2 -> -17.47598644 | AC30: =AD29/2 -> 0 | AD30: =AC29/2 -> 0 | AE30: =AF29/2 -> 0 | AF30: =AE29/2 -> 0 | AH30: co | AI30: =AJ29/2 -> -7.043414336 | AJ30: =AI29/2 -> 7.043414336 | AK30: =AL29/2 -> 10.02547531 | AL30: =AK29/2 -> -5.818472712 | AM30: =AN29/2 -> -13.74281561 | AN30: =AM29/2 -> 12.13610169 | AO30: =AP29/2 -> 0 | AP30: =AO29/2 -> 0 | AQ30: =AR29/2 -> 0 | AR30: =AQ29/2 -> 0 | AT30: co | AU30: =AV29/2 -> 0 | AV30: =AU29/2 -> 0 | AW30: =AX29/2 -> 0 | AX30: =AW29/2 -> 0 | AY30: =AZ29/2 -> 0 | AZ30: =AY29/2 -> 0 | BA30: =BB29/2 -> 0 | BB30: =BA29/2 -> 0 | BC30: =BD29/2 -> 0 | BD30: =BC29/2 -> 0 | BF30: co | BG30: =BH29/2 -> 0 | BH30: =BG29/2 -> 0 | BI30: =BJ29/2 -> 0 | BJ30: =BI29/2 -> 0 | BK30: =BL29/2 -> 0 | BL30: =BK29/2 -> 0 | BM30: =BN29/2 -> 0 | BN30: =BM29/2 -> 0 | BO30: =BP29/2 -> 0 | BP30: =BO29/2 -> 0 | BR30: co | BS30: =BT29/2 -> -6.079262464 | BT30: =BS29/2 -> 37.98344748 | BU30: =BV29/2 -> 5.021999427 | BV30: =BU29/2 -> -5.021999427 | BW30: =BX29/2 -> -37.98344748 | BX30: =BW29/2 -> 6.079262464 | BY30: =BZ29/2 -> 0 | BZ30: =BY29/2 -> 0 | CA30: =CB29/2 -> 0 | CB30: =CA29/2 -> 0
J31: dis | K31: =(K30)*K23*-1 -> 4.631878162 | L31: =(L30+M30)*L23*-1 -> -4.631878162 | M31: =(M30+L30)*M23*-1 -> -3.826334134 | N31: =(N30+O30)*N23*-1 -> 3.338802332 | O31: =(O30+N30)*O23*-1 -> 4.041708087 | P31: =(P30+Q30)*P23*-1 -> -2.688197403 | Q31: =(Q30+P30)*Q23*-1 -> 0 | R31: =(R30+S30)*R23*-1 -> 0 | S31: =(S30+R30)*S23*-1 -> 0 | T31: =(T30+U30)*T23*-1 -> 0 | V31: dis | W31: =(W30)*W23*-1 -> -6.669904553 | X31: =(X30+Y30)*X23*-1 -> 5.820059645 | Y31: =(Y30+X30)*Y23*-1 -> 4.807875359 | Z31: =(Z30+AA30)*Z23*-1 -> -4.807875359 | AA31: =(AA30+Z30)*AA23*-1 -> -5.820059645 | AB31: =(AB30+AC30)*AB23*-1 -> 6.669904553 | AC31: =(AC30+AB30)*AC23*-1 -> 0 | AD31: =(AD30+AE30)*AD23*-1 -> 0 | AE31: =(AE30+AD30)*AE23*-1 -> 0 | AF31: =(AF30+AG30)*AF23*-1 -> 0 | AH31: dis | AI31: =(AI30)*AI23*-1 -> 2.688197403 | AJ31: =(AJ30+AK30)*AJ23*-1 -> -4.041708087 | AK31: =(AK30+AJ30)*AK23*-1 -> -3.338802332 | AL31: =(AL30+AM30)*AL23*-1 -> 3.826334134 | AM31: =(AM30+AL30)*AM23*-1 -> 4.631878162 | AN31: =(AN30+AO30)*AN23*-1 -> -4.631878162 | AO31: =(AO30+AN30)*AO23*-1 -> 0 | AP31: =(AP30+AQ30)*AP23*-1 -> 0 | AQ31: =(AQ30+AP30)*AQ23*-1 -> 0 | AR31: =(AR30+AS30)*AR23*-1 -> 0 | AT31: dis | AU31: =(AU30)*AU23*-1 -> 0 | AV31: =(AV30+AW30)*AV23*-1 -> 0 | AW31: =(AW30+AV30)*AW23*-1 -> 0 | AX31: =(AX30+AY30)*AX23*-1 -> 0 | AY31: =(AY30+AX30)*AY23*-1 -> 0 | AZ31: =(AZ30+BA30)*AZ23*-1 -> 0 | BA31: =(BA30+AZ30)*BA23*-1 -> 0 | BB31: =(BB30+BC30)*BB23*-1 -> 0 | BC31: =(BC30+BB30)*BC23*-1 -> 0 | BD31: =(BD30+BE30)*BD23*-1 -> 0 | BF31: dis | BG31: =(BG30)*BG23*-1 -> 0 | BH31: =(BH30+BI30)*BH23*-1 -> 0 | BI31: =(BI30+BH30)*BI23*-1 -> 0 | BJ31: =(BJ30+BK30)*BJ23*-1 -> 0 | BK31: =(BK30+BJ30)*BK23*-1 -> 0 | BL31: =(BL30+BM30)*BL23*-1 -> 0 | BM31: =(BM30+BL30)*BM23*-1 -> 0 | BN31: =(BN30+BO30)*BN23*-1 -> 0 | BO31: =(BO30+BN30)*BO23*-1 -> 0 | BP31: =(BP30+BQ30)*BP23*-1 -> 0 | BR31: dis | BS31: =(BS30)*BS23*-1 -> 2.32021812 | BT31: =(BT30+BU30)*BT23*-1 -> -10.18317337 | BU31: =(BU30+BT30)*BU23*-1 -> -8.412186698 | BV31: =(BV30+BW30)*BV23*-1 -> 8.412186698 | BW31: =(BW30+BV30)*BW23*-1 -> 10.18317337 | BX31: =(BX30+BY30)*BX23*-1 -> -2.32021812 | BY31: =(BY30+BX30)*BY23*-1 -> 0 | BZ31: =(BZ30+CA30)*BZ23*-1 -> 0 | CA31: =(CA30+BZ30)*CA23*-1 -> 0 | CB31: =(CB30+CC30)*CB23*-1 -> 0
J32: co | K32: =L31/2 -> -2.315939081 | L32: =K31/2 -> 2.315939081 | M32: =N31/2 -> 1.669401166 | N32: =M31/2 -> -1.913167067 | O32: =P31/2 -> -1.344098701 | P32: =O31/2 -> 2.020854043 | Q32: =R31/2 -> 0 | R32: =Q31/2 -> 0 | S32: =T31/2 -> 0 | T32: =S31/2 -> 0 | V32: co | W32: =X31/2 -> 2.910029822 | X32: =W31/2 -> -3.334952277 | Y32: =Z31/2 -> -2.403937679 | Z32: =Y31/2 -> 2.403937679 | AA32: =AB31/2 -> 3.334952277 | AB32: =AA31/2 -> -2.910029822 | AC32: =AD31/2 -> 0 | AD32: =AC31/2 -> 0 | AE32: =AF31/2 -> 0 | AF32: =AE31/2 -> 0 | AH32: co | AI32: =AJ31/2 -> -2.020854043 | AJ32: =AI31/2 -> 1.344098701 | AK32: =AL31/2 -> 1.913167067 | AL32: =AK31/2 -> -1.669401166 | AM32: =AN31/2 -> -2.315939081 | AN32: =AM31/2 -> 2.315939081 | AO32: =AP31/2 -> 0 | AP32: =AO31/2 -> 0 | AQ32: =AR31/2 -> 0 | AR32: =AQ31/2 -> 0 | AT32: co | AU32: =AV31/2 -> 0 | AV32: =AU31/2 -> 0 | AW32: =AX31/2 -> 0 | AX32: =AW31/2 -> 0 | AY32: =AZ31/2 -> 0 | AZ32: =AY31/2 -> 0 | BA32: =BB31/2 -> 0 | BB32: =BA31/2 -> 0 | BC32: =BD31/2 -> 0 | BD32: =BC31/2 -> 0 | BF32: co | BG32: =BH31/2 -> 0 | BH32: =BG31/2 -> 0 | BI32: =BJ31/2 -> 0 | BJ32: =BI31/2 -> 0 | BK32: =BL31/2 -> 0 | BL32: =BK31/2 -> 0 | BM32: =BN31/2 -> 0 | BN32: =BM31/2 -> 0 | BO32: =BP31/2 -> 0 | BP32: =BO31/2 -> 0 | BR32: co | BS32: =BT31/2 -> -5.091586686 | BT32: =BS31/2 -> 1.16010906 | BU32: =BV31/2 -> 4.206093349 | BV32: =BU31/2 -> -4.206093349 | BW32: =BX31/2 -> -1.16010906 | BX32: =BW31/2 -> 5.091586686 | BY32: =BZ31/2 -> 0 | BZ32: =BY31/2 -> 0 | CA32: =CB31/2 -> 0 | CB32: =CA31/2 -> 0
J33: dis | K33: =(K32)*K23*-1 -> 0.8839039031 | L33: =(L32+M32)*L23*-1 -> -0.9436807103 | M33: =(M32+L32)*M23*-1 -> -0.7795623259 | N33: =(N32+O32)*N23*-1 -> 0.6371455186 | O33: =(O32+N32)*O23*-1 -> 0.7712814172 | P33: =(P32+Q32)*P23*-1 -> -0.7712814172 | Q33: =(Q32+P32)*Q23*-1 -> 0 | R33: =(R32+S32)*R23*-1 -> 0 | S33: =(S32+R32)*S23*-1 -> 0 | T33: =(T32+U32)*T23*-1 -> 0 | V33: dis | W33: =(W32)*W23*-1 -> -1.110645241 | X33: =(X32+Y32)*X23*-1 -> 1.358900223 | Y33: =(Y32+X32)*Y23*-1 -> 1.122569749 | Z33: =(Z32+AA32)*Z23*-1 -> -1.122569749 | AA33: =(AA32+Z32)*AA23*-1 -> -1.358900223 | AB33: =(AB32+AC32)*AB23*-1 -> 1.110645241 | AC33: =(AC32+AB32)*AC23*-1 -> 0 | AD33: =(AD32+AE32)*AD23*-1 -> 0 | AE33: =(AE32+AD32)*AE23*-1 -> 0 | AF33: =(AF32+AG32)*AF23*-1 -> 0 | AH33: dis | AI33: =(AI32)*AI23*-1 -> 0.7712814172 | AJ33: =(AJ32+AK32)*AJ23*-1 -> -0.7712814172 | AK33: =(AK32+AJ32)*AK23*-1 -> -0.6371455186 | AL33: =(AL32+AM32)*AL23*-1 -> 0.7795623259 | AM33: =(AM32+AL32)*AM23*-1 -> 0.9436807103 | AN33: =(AN32+AO32)*AN23*-1 -> -0.8839039031 | AO33: =(AO32+AN32)*AO23*-1 -> 0 | AP33: =(AP32+AQ32)*AP23*-1 -> 0 | AQ33: =(AQ32+AP32)*AQ23*-1 -> 0 | AR33: =(AR32+AS32)*AR23*-1 -> 0 | AT33: dis | AU33: =(AU32)*AU23*-1 -> 0 | AV33: =(AV32+AW32)*AV23*-1 -> 0 | AW33: =(AW32+AV32)*AW23*-1 -> 0 | AX33: =(AX32+AY32)*AX23*-1 -> 0 | AY33: =(AY32+AX32)*AY23*-1 -> 0 | AZ33: =(AZ32+BA32)*AZ23*-1 -> 0 | BA33: =(BA32+AZ32)*BA23*-1 -> 0 | BB33: =(BB32+BC32)*BB23*-1 -> 0 | BC33: =(BC32+BB32)*BC23*-1 -> 0 | BD33: =(BD32+BE32)*BD23*-1 -> 0 | BF33: dis | BG33: =(BG32)*BG23*-1 -> 0 | BH33: =(BH32+BI32)*BH23*-1 -> 0 | BI33: =(BI32+BH32)*BI23*-1 -> 0 | BJ33: =(BJ32+BK32)*BJ23*-1 -> 0 | BK33: =(BK32+BJ32)*BK23*-1 -> 0 | BL33: =(BL32+BM32)*BL23*-1 -> 0 | BM33: =(BM32+BL32)*BM23*-1 -> 0 | BN33: =(BN32+BO32)*BN23*-1 -> 0 | BO33: =(BO32+BN32)*BO23*-1 -> 0 | BP33: =(BP32+BQ32)*BP23*-1 -> 0 | BR33: dis | BS33: =(BS32)*BS23*-1 -> 1.943260676 | BT33: =(BT32+BU32)*BT23*-1 -> -1.270652287 | BU33: =(BU32+BT32)*BU23*-1 -> -1.049669281 | BV33: =(BV32+BW32)*BV23*-1 -> 1.049669281 | BW33: =(BW32+BV32)*BW23*-1 -> 1.270652287 | BX33: =(BX32+BY32)*BX23*-1 -> -1.943260676 | BY33: =(BY32+BX32)*BY23*-1 -> 0 | BZ33: =(BZ32+CA32)*BZ23*-1 -> 0 | CA33: =(CA32+BZ32)*CA23*-1 -> 0 | CB33: =(CB32+CC32)*CB23*-1 -> 0
J34: co | K34: =L33/2 -> -0.4718403551 | L34: =K33/2 -> 0.4419519516 | M34: =N33/2 -> 0.3185727593 | N34: =M33/2 -> -0.3897811629 | O34: =P33/2 -> -0.3856407086 | P34: =O33/2 -> 0.3856407086 | Q34: =R33/2 -> 0 | R34: =Q33/2 -> 0 | S34: =T33/2 -> 0 | T34: =S33/2 -> 0 | V34: co | W34: =X33/2 -> 0.6794501114 | X34: =W33/2 -> -0.5553226204 | Y34: =Z33/2 -> -0.5612848746 | Z34: =Y33/2 -> 0.5612848746 | AA34: =AB33/2 -> 0.5553226204 | AB34: =AA33/2 -> -0.6794501114 | AC34: =AD33/2 -> 0 | AD34: =AC33/2 -> 0 | AE34: =AF33/2 -> 0 | AF34: =AE33/2 -> 0 | AH34: co | AI34: =AJ33/2 -> -0.3856407086 | AJ34: =AI33/2 -> 0.3856407086 | AK34: =AL33/2 -> 0.3897811629 | AL34: =AK33/2 -> -0.3185727593 | AM34: =AN33/2 -> -0.4419519516 | AN34: =AM33/2 -> 0.4718403551 | AO34: =AP33/2 -> 0 | AP34: =AO33/2 -> 0 | AQ34: =AR33/2 -> 0 | AR34: =AQ33/2 -> 0 | AT34: co | AU34: =AV33/2 -> 0 | AV34: =AU33/2 -> 0 | AW34: =AX33/2 -> 0 | AX34: =AW33/2 -> 0 | AY34: =AZ33/2 -> 0 | AZ34: =AY33/2 -> 0 | BA34: =BB33/2 -> 0 | BB34: =BA33/2 -> 0 | BC34: =BD33/2 -> 0 | BD34: =BC33/2 -> 0 | BF34: co | BG34: =BH33/2 -> 0 | BH34: =BG33/2 -> 0 | BI34: =BJ33/2 -> 0 | BJ34: =BI33/2 -> 0 | BK34: =BL33/2 -> 0 | BL34: =BK33/2 -> 0 | BM34: =BN33/2 -> 0 | BN34: =BM33/2 -> 0 | BO34: =BP33/2 -> 0 | BP34: =BO33/2 -> 0 | BR34: co | BS34: =BT33/2 -> -0.6353261436 | BT34: =BS33/2 -> 0.9716303381 | BU34: =BV33/2 -> 0.5248346404 | BV34: =BU33/2 -> -0.5248346404 | BW34: =BX33/2 -> -0.9716303381 | BX34: =BW33/2 -> 0.6353261436 | BY34: =BZ33/2 -> 0 | BZ34: =BY33/2 -> 0 | CA34: =CB33/2 -> 0 | CB34: =CA33/2 -> 0
J35: dis | K35: =(K34)*K23*-1 -> 0.1800831183 | L35: =(L34+M34)*L23*-1 -> -0.1800831183 | M35: =(M34+L34)*M23*-1 -> -0.1487643151 | N35: =(N34+O34)*N23*-1 -> 0.1516783111 | O35: =(O34+N34)*O23*-1 -> 0.1836105871 | P35: =(P34+Q34)*P23*-1 -> -0.1471840647 | Q35: =(Q34+P34)*Q23*-1 -> 0 | R35: =(R34+S34)*R23*-1 -> 0 | S35: =(S34+R34)*S23*-1 -> 0 | T35: =(T34+U34)*T23*-1 -> 0 | V35: dis | W35: =(W34)*W23*-1 -> -0.2593196904 | X35: =(X34+Y34)*X23*-1 -> 0.2643992454 | Y35: =(Y34+X34)*Y23*-1 -> 0.2184167679 | Z35: =(Z34+AA34)*Z23*-1 -> -0.2184167679 | AA35: =(AA34+Z34)*AA23*-1 -> -0.2643992454 | AB35: =(AB34+AC34)*AB23*-1 -> 0.2593196904 | AC35: =(AC34+AB34)*AC23*-1 -> 0 | AD35: =(AD34+AE34)*AD23*-1 -> 0 | AE35: =(AE34+AD34)*AE23*-1 -> 0 | AF35: =(AF34+AG34)*AF23*-1 -> 0 | AH35: dis | AI35: =(AI34)*AI23*-1 -> 0.1471840647 | AJ35: =(AJ34+AK34)*AJ23*-1 -> -0.1836105871 | AK35: =(AK34+AJ34)*AK23*-1 -> -0.1516783111 | AL35: =(AL34+AM34)*AL23*-1 -> 0.1487643151 | AM35: =(AM34+AL34)*AM23*-1 -> 0.1800831183 | AN35: =(AN34+AO34)*AN23*-1 -> -0.1800831183 | AO35: =(AO34+AN34)*AO23*-1 -> 0 | AP35: =(AP34+AQ34)*AP23*-1 -> 0 | AQ35: =(AQ34+AP34)*AQ23*-1 -> 0 | AR35: =(AR34+AS34)*AR23*-1 -> 0 | AT35: dis | AU35: =(AU34)*AU23*-1 -> 0 | AV35: =(AV34+AW34)*AV23*-1 -> 0 | AW35: =(AW34+AV34)*AW23*-1 -> 0 | AX35: =(AX34+AY34)*AX23*-1 -> 0 | AY35: =(AY34+AX34)*AY23*-1 -> 0 | AZ35: =(AZ34+BA34)*AZ23*-1 -> 0 | BA35: =(BA34+AZ34)*BA23*-1 -> 0 | BB35: =(BB34+BC34)*BB23*-1 -> 0 | BC35: =(BC34+BB34)*BC23*-1 -> 0 | BD35: =(BD34+BE34)*BD23*-1 -> 0 | BF35: dis | BG35: =(BG34)*BG23*-1 -> 0 | BH35: =(BH34+BI34)*BH23*-1 -> 0 | BI35: =(BI34+BH34)*BI23*-1 -> 0 | BJ35: =(BJ34+BK34)*BJ23*-1 -> 0 | BK35: =(BK34+BJ34)*BK23*-1 -> 0 | BL35: =(BL34+BM34)*BL23*-1 -> 0 | BM35: =(BM34+BL34)*BM23*-1 -> 0 | BN35: =(BN34+BO34)*BN23*-1 -> 0 | BO35: =(BO34+BN34)*BO23*-1 -> 0 | BP35: =(BP34+BQ34)*BP23*-1 -> 0 | BR35: dis | BS35: =(BS34)*BS23*-1 -> 0.2424792874 | BT35: =(BT34+BU34)*BT23*-1 -> -0.3543449357 | BU35: =(BU34+BT34)*BU23*-1 -> -0.2927197295 | BV35: =(BV34+BW34)*BV23*-1 -> 0.2927197295 | BW35: =(BW34+BV34)*BW23*-1 -> 0.3543449357 | BX35: =(BX34+BY34)*BX23*-1 -> -0.2424792874 | BY35: =(BY34+BX34)*BY23*-1 -> 0 | BZ35: =(BZ34+CA34)*BZ23*-1 -> 0 | CA35: =(CA34+BZ34)*CA23*-1 -> 0 | CB35: =(CB34+CC34)*CB23*-1 -> 0
J36: co | K36: =L35/2 -> -0.09004155916 | L36: =K35/2 -> 0.09004155916 | M36: =N35/2 -> 0.07583915553 | N36: =M35/2 -> -0.07438215757 | O36: =P35/2 -> -0.07359203235 | P36: =O35/2 -> 0.09180529354 | Q36: =R35/2 -> 0 | R36: =Q35/2 -> 0 | S36: =T35/2 -> 0 | T36: =S35/2 -> 0 | V36: co | W36: 0.1321996227 | X36: -0.1296598452 | Y36: =Z35/2 -> -0.109208384 | Z36: =Y35/2 -> 0.109208384 | AA36: =AB35/2 -> 0.1296598452 | AB36: =AA35/2 -> -0.1321996227 | AC36: =AD35/2 -> 0 | AD36: =AC35/2 -> 0 | AE36: =AF35/2 -> 0 | AF36: =AE35/2 -> 0 | AH36: co | AI36: =AJ35/2 -> -0.09180529354 | AJ36: =AI35/2 -> 0.07359203235 | AK36: =AL35/2 -> 0.07438215757 | AL36: =AK35/2 -> -0.07583915553 | AM36: =AN35/2 -> -0.09004155916 | AN36: =AM35/2 -> 0.09004155916 | AO36: =AP35/2 -> 0 | AP36: =AO35/2 -> 0 | AQ36: =AR35/2 -> 0 | AR36: =AQ35/2 -> 0 | AT36: co | AU36: =AV35/2 -> 0 | AV36: =AU35/2 -> 0 | AW36: =AX35/2 -> 0 | AX36: =AW35/2 -> 0 | AY36: =AZ35/2 -> 0 | AZ36: =AY35/2 -> 0 | BA36: =BB35/2 -> 0 | BB36: =BA35/2 -> 0 | BC36: =BD35/2 -> 0 | BD36: =BC35/2 -> 0 | BF36: co | BG36: =BH35/2 -> 0 | BH36: =BG35/2 -> 0 | BI36: =BJ35/2 -> 0 | BJ36: =BI35/2 -> 0 | BK36: =BL35/2 -> 0 | BL36: =BK35/2 -> 0 | BM36: =BN35/2 -> 0 | BN36: =BM35/2 -> 0 | BO36: =BP35/2 -> 0 | BP36: =BO35/2 -> 0 | BR36: co | BS36: =BT35/2 -> -0.1771724679 | BT36: =BS35/2 -> 0.1212396437 | BU36: =BV35/2 -> 0.1463598648 | BV36: =BU35/2 -> -0.1463598648 | BW36: =BX35/2 -> -0.1212396437 | BX36: =BW35/2 -> 0.1771724679 | BY36: =BZ35/2 -> 0 | BZ36: =BY35/2 -> 0 | CA36: =CB35/2 -> 0 | CB36: =CA35/2 -> 0
J37: dis | K37: =(K36)*K23*-1 -> 0.0343653623 | L37: =(L36+M36)*L23*-1 -> -0.03927856116 | M37: =(M36+L36)*M23*-1 -> -0.03244750705 | N37: =(N36+O36)*N23*-1 -> 0.02894485703 | O37: =(O36+N36)*O23*-1 -> 0.03503851114 | P37: =(P36+Q36)*P23*-1 -> -0.03503851114 | Q37: =(Q36+P36)*Q23*-1 -> 0 | R37: =(R36+S36)*R23*-1 -> 0 | S37: =(S36+R36)*S23*-1 -> 0 | T37: =(T36+U36)*T23*-1 -> 0 | V37: dis | W37: =(W36)*W23*-1 -> -0.05045545604 | X37: =(X36+Y36)*X23*-1 -> 0.05656112808 | Y37: =(Y36+X36)*Y23*-1 -> 0.04672441015 | Z37: =(Z36+AA36)*Z23*-1 -> -0.04672441015 | AA37: =(AA36+Z36)*AA23*-1 -> -0.05656112808 | AB37: =(AB36+AC36)*AB23*-1 -> 0.05045545604 | AC37: =(AC36+AB36)*AC23*-1 -> 0 | AD37: =(AD36+AE36)*AD23*-1 -> 0 | AE37: =(AE36+AD36)*AE23*-1 -> 0 | AF37: =(AF36+AG36)*AF23*-1 -> 0 | AH37: dis | AI37: =(AI36)*AI23*-1 -> 0.03503851114 | AJ37: =(AJ36+AK36)*AJ23*-1 -> -0.03503851114 | AK37: =(AK36+AJ36)*AK23*-1 -> -0.02894485703 | AL37: =(AL36+AM36)*AL23*-1 -> 0.03244750705 | AM37: =(AM36+AL36)*AM23*-1 -> 0.03927856116 | AN37: =(AN36+AO36)*AN23*-1 -> -0.0343653623 | AO37: =(AO36+AN36)*AO23*-1 -> 0 | AP37: =(AP36+AQ36)*AP23*-1 -> 0 | AQ37: =(AQ36+AP36)*AQ23*-1 -> 0 | AR37: =(AR36+AS36)*AR23*-1 -> 0 | AT37: dis | AU37: =(AU36)*AU23*-1 -> 0 | AV37: =(AV36+AW36)*AV23*-1 -> 0 | AW37: =(AW36+AV36)*AW23*-1 -> 0 | AX37: =(AX36+AY36)*AX23*-1 -> 0 | AY37: =(AY36+AX36)*AY23*-1 -> 0 | AZ37: =(AZ36+BA36)*AZ23*-1 -> 0 | BA37: =(BA36+AZ36)*BA23*-1 -> 0 | BB37: =(BB36+BC36)*BB23*-1 -> 0 | BC37: =(BC36+BB36)*BC23*-1 -> 0 | BD37: =(BD36+BE36)*BD23*-1 -> 0 | BF37: dis | BG37: =(BG36)*BG23*-1 -> 0 | BH37: =(BH36+BI36)*BH23*-1 -> 0 | BI37: =(BI36+BH36)*BI23*-1 -> 0 | BJ37: =(BJ36+BK36)*BJ23*-1 -> 0 | BK37: =(BK36+BJ36)*BK23*-1 -> 0 | BL37: =(BL36+BM36)*BL23*-1 -> 0 | BM37: =(BM36+BL36)*BM23*-1 -> 0 | BN37: =(BN36+BO36)*BN23*-1 -> 0 | BO37: =(BO36+BN36)*BO23*-1 -> 0 | BP37: =(BP36+BQ36)*BP23*-1 -> 0 | BR37: dis | BS37: =(BS36)*BS23*-1 -> 0.06761984249 | BT37: =(BT36+BU36)*BT23*-1 -> -0.06336434998 | BU37: =(BU36+BT36)*BU23*-1 -> -0.05234446303 | BV37: =(BV36+BW36)*BV23*-1 -> 0.05234446303 | BW37: =(BW36+BV36)*BW23*-1 -> 0.06336434998 | BX37: =(BX36+BY36)*BX23*-1 -> -0.06761984249 | BY37: =(BY36+BX36)*BY23*-1 -> 0 | BZ37: =(BZ36+CA36)*BZ23*-1 -> 0 | CA37: =(CA36+BZ36)*CA23*-1 -> 0 | CB37: =(CB36+CC36)*CB23*-1 -> 0
J38: co | K38: =L37/2 -> -0.01963928058 | L38: =K37/2 -> 0.01718268115 | M38: =N37/2 -> 0.01447242851 | N38: =M37/2 -> -0.01622375352 | O38: =P37/2 -> -0.01751925557 | P38: =O37/2 -> 0.01751925557 | Q38: =R37/2 -> 0 | R38: =Q37/2 -> 0 | S38: =T37/2 -> 0 | T38: =S37/2 -> 0 | V38: co | W38: =X37/2 -> 0.02828056404 | X38: =W37/2 -> -0.02522772802 | Y38: =Z37/2 -> -0.02336220508 | Z38: =Y37/2 -> 0.02336220508 | AA38: =AB37/2 -> 0.02522772802 | AB38: =AA37/2 -> -0.02828056404 | AC38: =AD37/2 -> 0 | AD38: =AC37/2 -> 0 | AE38: =AF37/2 -> 0 | AF38: =AE37/2 -> 0 | AH38: co | AI38: =AJ37/2 -> -0.01751925557 | AJ38: =AI37/2 -> 0.01751925557 | AK38: =AL37/2 -> 0.01622375352 | AL38: =AK37/2 -> -0.01447242851 | AM38: =AN37/2 -> -0.01718268115 | AN38: =AM37/2 -> 0.01963928058 | AO38: =AP37/2 -> 0 | AP38: =AO37/2 -> 0 | AQ38: =AR37/2 -> 0 | AR38: =AQ37/2 -> 0 | AT38: co | AU38: =AV37/2 -> 0 | AV38: =AU37/2 -> 0 | AW38: =AX37/2 -> 0 | AX38: =AW37/2 -> 0 | AY38: =AZ37/2 -> 0 | AZ38: =AY37/2 -> 0 | BA38: =BB37/2 -> 0 | BB38: =BA37/2 -> 0 | BC38: =BD37/2 -> 0 | BD38: =BC37/2 -> 0 | BF38: co | BG38: =BH37/2 -> 0 | BH38: =BG37/2 -> 0 | BI38: =BJ37/2 -> 0 | BJ38: =BI37/2 -> 0 | BK38: =BL37/2 -> 0 | BL38: =BK37/2 -> 0 | BM38: =BN37/2 -> 0 | BN38: =BM37/2 -> 0 | BO38: =BP37/2 -> 0 | BP38: =BO37/2 -> 0 | BR38: co | BS38: =BT37/2 -> -0.03168217499 | BT38: =BS37/2 -> 0.03380992124 | BU38: =BV37/2 -> 0.02617223151 | BV38: =BU37/2 -> -0.02617223151 | BW38: =BX37/2 -> -0.03380992124 | BX38: =BW37/2 -> 0.03168217499 | BY38: =BZ37/2 -> 0 | BZ38: =BY37/2 -> 0 | CA38: =CB37/2 -> 0 | CB38: =CA37/2 -> 0
J39: dis | K39: =(K38)*K23*-1 -> 0.00749554982 | L39: =(L38+M38)*L23*-1 -> -0.00749554982 | M39: =(M38+L38)*M23*-1 -> -0.006191975938 | N39: =(N38+O38)*N23*-1 -> 0.006600384665 | O39: =(O38+N38)*O23*-1 -> 0.007989939331 | P39: =(P38+Q38)*P23*-1 -> -0.006686418699 | Q39: =(Q38+P38)*Q23*-1 -> 0 | R39: =(R38+S38)*R23*-1 -> 0 | S39: =(S38+R38)*S23*-1 -> 0 | T39: =(T38+U38)*T23*-1 -> 0 | V39: dis | W39: =(W38)*W23*-1 -> -0.01079359174 | X39: =(X38+Y38)*X23*-1 -> 0.01150551264 | Y39: =(Y38+X38)*Y23*-1 -> 0.009504553917 | Z39: =(Z38+AA38)*Z23*-1 -> -0.009504553917 | AA39: =(AA38+Z38)*AA23*-1 -> -0.01150551264 | AB39: =(AB38+AC38)*AB23*-1 -> 0.01079359174 | AC39: =(AC38+AB38)*AC23*-1 -> 0 | AD39: =(AD38+AE38)*AD23*-1 -> 0 | AE39: =(AE38+AD38)*AE23*-1 -> 0 | AF39: =(AF38+AG38)*AF23*-1 -> 0 | AH39: dis | AI39: =(AI38)*AI23*-1 -> 0.006686418699 | AJ39: =(AJ38+AK38)*AJ23*-1 -> -0.007989939331 | AK39: =(AK38+AJ38)*AK23*-1 -> -0.006600384665 | AL39: =(AL38+AM38)*AL23*-1 -> 0.006191975938 | AM39: =(AM38+AL38)*AM23*-1 -> 0.00749554982 | AN39: =(AN38+AO38)*AN23*-1 -> -0.00749554982 | AO39: =(AO38+AN38)*AO23*-1 -> 0 | AP39: =(AP38+AQ38)*AP23*-1 -> 0 | AQ39: =(AQ38+AP38)*AQ23*-1 -> 0 | AR39: =(AR38+AS38)*AR23*-1 -> 0 | AT39: dis | AU39: =(AU38)*AU23*-1 -> 0 | AV39: =(AV38+AW38)*AV23*-1 -> 0 | AW39: =(AW38+AV38)*AW23*-1 -> 0 | AX39: =(AX38+AY38)*AX23*-1 -> 0 | AY39: =(AY38+AX38)*AY23*-1 -> 0 | AZ39: =(AZ38+BA38)*AZ23*-1 -> 0 | BA39: =(BA38+AZ38)*BA23*-1 -> 0 | BB39: =(BB38+BC38)*BB23*-1 -> 0 | BC39: =(BC38+BB38)*BC23*-1 -> 0 | BD39: =(BD38+BE38)*BD23*-1 -> 0 | BF39: dis | BG39: =(BG38)*BG23*-1 -> 0 | BH39: =(BH38+BI38)*BH23*-1 -> 0 | BI39: =(BI38+BH38)*BI23*-1 -> 0 | BJ39: =(BJ38+BK38)*BJ23*-1 -> 0 | BK39: =(BK38+BJ38)*BK23*-1 -> 0 | BL39: =(BL38+BM38)*BL23*-1 -> 0 | BM39: =(BM38+BL38)*BM23*-1 -> 0 | BN39: =(BN38+BO38)*BN23*-1 -> 0 | BO39: =(BO38+BN38)*BO23*-1 -> 0 | BP39: =(BP38+BQ38)*BP23*-1 -> 0 | BR39: dis | BS39: =(BS38)*BS23*-1 -> 0.01209185439 | BT39: =(BT38+BU38)*BT23*-1 -> -0.01420305344 | BU39: =(BU38+BT38)*BU23*-1 -> -0.01173295719 | BV39: =(BV38+BW38)*BV23*-1 -> 0.01173295719 | BW39: =(BW38+BV38)*BW23*-1 -> 0.01420305344 | BX39: =(BX38+BY38)*BX23*-1 -> -0.01209185439 | BY39: =(BY38+BX38)*BY23*-1 -> 0 | BZ39: =(BZ38+CA38)*BZ23*-1 -> 0 | CA39: =(CA38+BZ38)*CA23*-1 -> 0 | CB39: =(CB38+CC38)*CB23*-1 -> 0
J40: co | K40: =L39/2 -> -0.00374777491 | L40: =K39/2 -> 0.00374777491 | M40: =N39/2 -> 0.003300192332 | N40: =M39/2 -> -0.003095987969 | O40: =P39/2 -> -0.00334320935 | P40: =O39/2 -> 0.003994969665 | Q40: =R39/2 -> 0 | R40: =Q39/2 -> 0 | S40: =T39/2 -> 0 | T40: =S39/2 -> 0 | V40: co | W40: =X39/2 -> 0.005752756318 | X40: =W39/2 -> -0.00539679587 | Y40: =Z39/2 -> -0.004752276959 | Z40: =Y39/2 -> 0.004752276959 | AA40: =AB39/2 -> 0.00539679587 | AB40: =AA39/2 -> -0.005752756318 | AC40: =AD39/2 -> 0 | AD40: =AC39/2 -> 0 | AE40: =AF39/2 -> 0 | AF40: =AE39/2 -> 0 | AH40: co | AI40: =AJ39/2 -> -0.003994969665 | AJ40: =AI39/2 -> 0.00334320935 | AK40: =AL39/2 -> 0.003095987969 | AL40: =AK39/2 -> -0.003300192332 | AM40: =AN39/2 -> -0.00374777491 | AN40: =AM39/2 -> 0.00374777491 | AO40: =AP39/2 -> 0 | AP40: =AO39/2 -> 0 | AQ40: =AR39/2 -> 0 | AR40: =AQ39/2 -> 0 | AT40: co | AU40: =AV39/2 -> 0 | AV40: =AU39/2 -> 0 | AW40: =AX39/2 -> 0 | AX40: =AW39/2 -> 0 | AY40: =AZ39/2 -> 0 | AZ40: =AY39/2 -> 0 | BA40: =BB39/2 -> 0 | BB40: =BA39/2 -> 0 | BC40: =BD39/2 -> 0 | BD40: =BC39/2 -> 0 | BF40: co | BG40: =BH39/2 -> 0 | BH40: =BG39/2 -> 0 | BI40: =BJ39/2 -> 0 | BJ40: =BI39/2 -> 0 | BK40: =BL39/2 -> 0 | BL40: =BK39/2 -> 0 | BM40: =BN39/2 -> 0 | BN40: =BM39/2 -> 0 | BO40: =BP39/2 -> 0 | BP40: =BO39/2 -> 0 | BR40: co | BS40: =BT39/2 -> -0.007101526721 | BT40: =BS39/2 -> 0.006045927193 | BU40: =BV39/2 -> 0.005866478596 | BV40: =BU39/2 -> -0.005866478596 | BW40: =BX39/2 -> -0.006045927193 | BX40: =BW39/2 -> 0.007101526721 | BY40: =BZ39/2 -> 0 | BZ40: =BY39/2 -> 0 | CA40: =CB39/2 -> 0 | CB40: =CA39/2 -> 0
J41: dis | K41: =(K40)*K23*-1 -> 0.001430379969 | L41: =(L40+M40)*L23*-1 -> -0.001668874003 | M41: =(M40+L40)*M23*-1 -> -0.001378635046 | N41: =(N40+O40)*N23*-1 -> 0.001259555101 | O41: =(O40+N40)*O23*-1 -> 0.001524724596 | P41: =(P40+Q40)*P23*-1 -> -0.001524724596 | Q41: =(Q40+P40)*Q23*-1 -> 0 | R41: =(R40+S40)*R23*-1 -> 0 | S41: =(S40+R40)*S23*-1 -> 0 | T41: =(T40+U40)*T23*-1 -> 0 | V41: dis | W41: =(W40)*W23*-1 -> -0.002195603419 | X41: =(X40+Y40)*X23*-1 -> 0.002403178565 | Y41: =(Y40+X40)*Y23*-1 -> 0.001985234467 | Z41: =(Z40+AA40)*Z23*-1 -> -0.001985234467 | AA41: =(AA40+Z40)*AA23*-1 -> -0.002403178565 | AB41: =(AB40+AC40)*AB23*-1 -> 0.002195603419 | AC41: =(AC40+AB40)*AC23*-1 -> 0 | AD41: =(AD40+AE40)*AD23*-1 -> 0 | AE41: =(AE40+AD40)*AE23*-1 -> 0 | AF41: =(AF40+AG40)*AF23*-1 -> 0 | AH41: dis | AI41: =(AI40)*AI23*-1 -> 0.001524724596 | AJ41: =(AJ40+AK40)*AJ23*-1 -> -0.001524724596 | AK41: =(AK40+AJ40)*AK23*-1 -> -0.001259555101 | AL41: =(AL40+AM40)*AL23*-1 -> 0.001378635046 | AM41: =(AM40+AL40)*AM23*-1 -> 0.001668874003 | AN41: =(AN40+AO40)*AN23*-1 -> -0.001430379969 | AO41: =(AO40+AN40)*AO23*-1 -> 0 | AP41: =(AP40+AQ40)*AP23*-1 -> 0 | AQ41: =(AQ40+AP40)*AQ23*-1 -> 0 | AR41: =(AR40+AS40)*AR23*-1 -> 0 | AT41: dis | AU41: =(AU40)*AU23*-1 -> 0 | AV41: =(AV40+AW40)*AV23*-1 -> 0 | AW41: =(AW40+AV40)*AW23*-1 -> 0 | AX41: =(AX40+AY40)*AX23*-1 -> 0 | AY41: =(AY40+AX40)*AY23*-1 -> 0 | AZ41: =(AZ40+BA40)*AZ23*-1 -> 0 | BA41: =(BA40+AZ40)*BA23*-1 -> 0 | BB41: =(BB40+BC40)*BB23*-1 -> 0 | BC41: =(BC40+BB40)*BC23*-1 -> 0 | BD41: =(BD40+BE40)*BD23*-1 -> 0 | BF41: dis | BG41: =(BG40)*BG23*-1 -> 0 | BH41: =(BH40+BI40)*BH23*-1 -> 0 | BI41: =(BI40+BH40)*BI23*-1 -> 0 | BJ41: =(BJ40+BK40)*BJ23*-1 -> 0 | BK41: =(BK40+BJ40)*BK23*-1 -> 0 | BL41: =(BL40+BM40)*BL23*-1 -> 0 | BM41: =(BM40+BL40)*BM23*-1 -> 0 | BN41: =(BN40+BO40)*BN23*-1 -> 0 | BO41: =(BO40+BN40)*BO23*-1 -> 0 | BP41: =(BP40+BQ40)*BP23*-1 -> 0 | BR41: dis | BS41: =(BS40)*BS23*-1 -> 0.002710376641 | BT41: =(BT40+BU40)*BT23*-1 -> -0.002820714634 | BU41: =(BU40+BT40)*BU23*-1 -> -0.002330155567 | BV41: =(BV40+BW40)*BV23*-1 -> 0.002330155567 | BW41: =(BW40+BV40)*BW23*-1 -> 0.002820714634 | BX41: =(BX40+BY40)*BX23*-1 -> -0.002710376641 | BY41: =(BY40+BX40)*BY23*-1 -> 0 | BZ41: =(BZ40+CA40)*BZ23*-1 -> 0 | CA41: =(CA40+BZ40)*CA23*-1 -> 0 | CB41: =(CB40+CC40)*CB23*-1 -> 0
J42: co | K42: =L41/2 -> -0.0008344370017 | L42: =K41/2 -> 0.0007151899845 | M42: =N41/2 -> 0.0006297775506 | N42: =M41/2 -> -0.0006893175231 | O42: =P41/2 -> -0.0007623622981 | P42: =O41/2 -> 0.0007623622981 | Q42: =R41/2 -> 0 | R42: =Q41/2 -> 0 | S42: =T41/2 -> 0 | T42: =S41/2 -> 0 | V42: co | W42: =X41/2 -> 0.001201589282 | X42: =W41/2 -> -0.001097801709 | Y42: =Z41/2 -> -0.0009926172333 | Z42: =Y41/2 -> 0.0009926172333 | AA42: =AB41/2 -> 0.001097801709 | AB42: =AA41/2 -> -0.001201589282 | AC42: =AD41/2 -> 0 | AD42: =AC41/2 -> 0 | AE42: =AF41/2 -> 0 | AF42: =AE41/2 -> 0 | AH42: co | AI42: =AJ41/2 -> -0.0007623622981 | AJ42: =AI41/2 -> 0.0007623622981 | AK42: =AL41/2 -> 0.0006893175231 | AL42: =AK41/2 -> -0.0006297775506 | AM42: =AN41/2 -> -0.0007151899845 | AN42: =AM41/2 -> 0.0008344370017 | AO42: =AP41/2 -> 0 | AP42: =AO41/2 -> 0 | AQ42: =AR41/2 -> 0 | AR42: =AQ41/2 -> 0 | AT42: co | AU42: =AV41/2 -> 0 | AV42: =AU41/2 -> 0 | AW42: =AX41/2 -> 0 | AX42: =AW41/2 -> 0 | AY42: =AZ41/2 -> 0 | AZ42: =AY41/2 -> 0 | BA42: =BB41/2 -> 0 | BB42: =BA41/2 -> 0 | BC42: =BD41/2 -> 0 | BD42: =BC41/2 -> 0 | BF42: co | BG42: =BH41/2 -> 0 | BH42: =BG41/2 -> 0 | BI42: =BJ41/2 -> 0 | BJ42: =BI41/2 -> 0 | BK42: =BL41/2 -> 0 | BL42: =BK41/2 -> 0 | BM42: =BN41/2 -> 0 | BN42: =BM41/2 -> 0 | BO42: =BP41/2 -> 0 | BP42: =BO41/2 -> 0 | BR42: co | BS42: =BT41/2 -> -0.001410357317 | BT42: =BS41/2 -> 0.001355188321 | BU42: =BV41/2 -> 0.001165077784 | BV42: =BU41/2 -> -0.001165077784 | BW42: =BX41/2 -> -0.001355188321 | BX42: =BW41/2 -> 0.001410357317 | BY42: =BZ41/2 -> 0 | BZ42: =BY41/2 -> 0 | CA42: =CB41/2 -> 0 | CB42: =CA41/2 -> 0
J43: dis | K43: =(K42)*K23*-1 -> 0.0003184721605 | L43: =(L42+M42)*L23*-1 -> -0.0003184721605 | M43: =(M42+L42)*M23*-1 -> -0.0002630856978 | N43: =(N42+O42)*N23*-1 -> 0.0002839594182 | O43: =(O42+N42)*O23*-1 -> 0.0003437403483 | P43: =(P42+Q42)*P23*-1 -> -0.0002909640484 | Q43: =(Q42+P42)*Q23*-1 -> 0 | R43: =(R42+S42)*R23*-1 -> 0 | S43: =(S42+R42)*S23*-1 -> 0 | T43: =(T42+U42)*T23*-1 -> 0 | V43: dis | W43: =(W42)*W23*-1 -> -0.0004585999111 | X43: =(X42+Y42)*X23*-1 -> 0.0004949861016 | Y43: =(Y42+X42)*Y23*-1 -> 0.0004089015622 | Z43: =(Z42+AA42)*Z23*-1 -> -0.0004089015622 | AA43: =(AA42+Z42)*AA23*-1 -> -0.0004949861016 | AB43: =(AB42+AC42)*AB23*-1 -> 0.0004585999111 | AC43: =(AC42+AB42)*AC23*-1 -> 0 | AD43: =(AD42+AE42)*AD23*-1 -> 0 | AE43: =(AE42+AD42)*AE23*-1 -> 0 | AF43: =(AF42+AG42)*AF23*-1 -> 0 | AH43: dis | AI43: =(AI42)*AI23*-1 -> 0.0002909640484 | AJ43: =(AJ42+AK42)*AJ23*-1 -> -0.0003437403483 | AK43: =(AK42+AJ42)*AK23*-1 -> -0.0002839594182 | AL43: =(AL42+AM42)*AL23*-1 -> 0.0002630856978 | AM43: =(AM42+AL42)*AM23*-1 -> 0.0003184721605 | AN43: =(AN42+AO42)*AN23*-1 -> -0.0003184721605 | AO43: =(AO42+AN42)*AO23*-1 -> 0 | AP43: =(AP42+AQ42)*AP23*-1 -> 0 | AQ43: =(AQ42+AP42)*AQ23*-1 -> 0 | AR43: =(AR42+AS42)*AR23*-1 -> 0 | AT43: dis | AU43: =(AU42)*AU23*-1 -> 0 | AV43: =(AV42+AW42)*AV23*-1 -> 0 | AW43: =(AW42+AV42)*AW23*-1 -> 0 | AX43: =(AX42+AY42)*AX23*-1 -> 0 | AY43: =(AY42+AX42)*AY23*-1 -> 0 | AZ43: =(AZ42+BA42)*AZ23*-1 -> 0 | BA43: =(BA42+AZ42)*BA23*-1 -> 0 | BB43: =(BB42+BC42)*BB23*-1 -> 0 | BC43: =(BC42+BB42)*BC23*-1 -> 0 | BD43: =(BD42+BE42)*BD23*-1 -> 0 | BF43: dis | BG43: =(BG42)*BG23*-1 -> 0 | BH43: =(BH42+BI42)*BH23*-1 -> 0 | BI43: =(BI42+BH42)*BI23*-1 -> 0 | BJ43: =(BJ42+BK42)*BJ23*-1 -> 0 | BK43: =(BK42+BJ42)*BK23*-1 -> 0 | BL43: =(BL42+BM42)*BL23*-1 -> 0 | BM43: =(BM42+BL42)*BM23*-1 -> 0 | BN43: =(BN42+BO42)*BN23*-1 -> 0 | BO43: =(BO42+BN42)*BO23*-1 -> 0 | BP43: =(BP42+BQ42)*BP23*-1 -> 0 | BR43: dis | BS43: =(BS42)*BS23*-1 -> 0.0005382785529 | BT43: =(BT42+BU42)*BT23*-1 -> -0.0005967687474 | BU43: =(BU42+BT42)*BU23*-1 -> -0.0004929828783 | BV43: =(BV42+BW42)*BV23*-1 -> 0.0004929828783 | BW43: =(BW42+BV42)*BW23*-1 -> 0.0005967687474 | BX43: =(BX42+BY42)*BX23*-1 -> -0.0005382785529 | BY43: =(BY42+BX42)*BY23*-1 -> 0 | BZ43: =(BZ42+CA42)*BZ23*-1 -> 0 | CA43: =(CA42+BZ42)*CA23*-1 -> 0 | CB43: =(CB42+CC42)*CB23*-1 -> 0
J44: co | K44: =L43/2 -> -0.0001592360802 | L44: =K43/2 -> 0.0001592360802 | M44: =N43/2 -> 0.0001419797091 | N44: =M43/2 -> -0.0001315428489 | O44: =P43/2 -> -0.0001454820242 | P44: =O43/2 -> 0.0001718701742 | Q44: =R43/2 -> 0 | R44: =Q43/2 -> 0 | S44: =T43/2 -> 0 | T44: =S43/2 -> 0 | V44: co | W44: =X43/2 -> 0.0002474930508 | X44: =W43/2 -> -0.0002292999556 | Y44: =Z43/2 -> -0.0002044507811 | Z44: =Y43/2 -> 0.0002044507811 | AA44: =AB43/2 -> 0.0002292999556 | AB44: =AA43/2 -> -0.0002474930508 | AC44: =AD43/2 -> 0 | AD44: =AC43/2 -> 0 | AE44: =AF43/2 -> 0 | AF44: =AE43/2 -> 0 | AH44: co | AI44: =AJ43/2 -> -0.0001718701742 | AJ44: =AI43/2 -> 0.0001454820242 | AK44: =AL43/2 -> 0.0001315428489 | AL44: =AK43/2 -> -0.0001419797091 | AM44: =AN43/2 -> -0.0001592360802 | AN44: =AM43/2 -> 0.0001592360802 | AO44: =AP43/2 -> 0 | AP44: =AO43/2 -> 0 | AQ44: =AR43/2 -> 0 | AR44: =AQ43/2 -> 0 | AT44: co | AU44: =AV43/2 -> 0 | AV44: =AU43/2 -> 0 | AW44: =AX43/2 -> 0 | AX44: =AW43/2 -> 0 | AY44: =AZ43/2 -> 0 | AZ44: =AY43/2 -> 0 | BA44: =BB43/2 -> 0 | BB44: =BA43/2 -> 0 | BC44: =BD43/2 -> 0 | BD44: =BC43/2 -> 0 | BF44: co | BG44: =BH43/2 -> 0 | BH44: =BG43/2 -> 0 | BI44: =BJ43/2 -> 0 | BJ44: =BI43/2 -> 0 | BK44: =BL43/2 -> 0 | BL44: =BK43/2 -> 0 | BM44: =BN43/2 -> 0 | BN44: =BM43/2 -> 0 | BO44: =BP43/2 -> 0 | BP44: =BO43/2 -> 0 | BR44: co | BS44: =BT43/2 -> -0.0002983843737 | BT44: =BS43/2 -> 0.0002691392765 | BU44: =BV43/2 -> 0.0002464914391 | BV44: =BU43/2 -> -0.0002464914391 | BW44: =BX43/2 -> -0.0002691392765 | BX44: =BW43/2 -> 0.0002983843737 | BY44: =BZ43/2 -> 0 | BZ44: =BY43/2 -> 0 | CA44: =CB43/2 -> 0 | CB44: =CA43/2 -> 0
J45: dis | K45: =(K44)*K23*-1 -> 6.07742207e-05 | L45: =(L44+M44)*L23*-1 -> -7.132428159e-05 | M45: =(M44+L44)*M23*-1 -> -5.892005871e-05 | N45: =(N44+O44)*N23*-1 -> 5.418813477e-05 | O45: =(O44+N44)*O23*-1 -> 6.559616314e-05 | P45: =(P44+Q44)*P23*-1 -> -6.559616314e-05 | Q45: =(Q44+P44)*Q23*-1 -> 0 | R45: =(R44+S44)*R23*-1 -> 0 | S45: =(S44+R44)*S23*-1 -> 0 | T45: =(T44+U44)*T23*-1 -> 0 | V45: dis | W45: =(W44)*W23*-1 -> -9.445847492e-05 | X45: =(X44+Y44)*X23*-1 -> 0.0001027069655 | Y45: =(Y44+X44)*Y23*-1 -> 8.484488454e-05 | Z45: =(Z44+AA44)*Z23*-1 -> -8.484488454e-05 | AA45: =(AA44+Z44)*AA23*-1 -> -0.0001027069655 | AB45: =(AB44+AC44)*AB23*-1 -> 9.445847492e-05 | AC45: =(AC44+AB44)*AC23*-1 -> 0 | AD45: =(AD44+AE44)*AD23*-1 -> 0 | AE45: =(AE44+AD44)*AE23*-1 -> 0 | AF45: =(AF44+AG44)*AF23*-1 -> 0 | AH45: dis | AI45: =(AI44)*AI23*-1 -> 6.559616314e-05 | AJ45: =(AJ44+AK44)*AJ23*-1 -> -6.559616314e-05 | AK45: =(AK44+AJ44)*AK23*-1 -> -5.418813477e-05 | AL45: =(AL44+AM44)*AL23*-1 -> 5.892005871e-05 | AM45: =(AM44+AL44)*AM23*-1 -> 7.132428159e-05 | AN45: =(AN44+AO44)*AN23*-1 -> -6.07742207e-05 | AO45: =(AO44+AN44)*AO23*-1 -> 0 | AP45: =(AP44+AQ44)*AP23*-1 -> 0 | AQ45: =(AQ44+AP44)*AQ23*-1 -> 0 | AR45: =(AR44+AS44)*AR23*-1 -> 0 | AT45: dis | AU45: =(AU44)*AU23*-1 -> 0 | AV45: =(AV44+AW44)*AV23*-1 -> 0 | AW45: =(AW44+AV44)*AW23*-1 -> 0 | AX45: =(AX44+AY44)*AX23*-1 -> 0 | AY45: =(AY44+AX44)*AY23*-1 -> 0 | AZ45: =(AZ44+BA44)*AZ23*-1 -> 0 | BA45: =(BA44+AZ44)*BA23*-1 -> 0 | BB45: =(BB44+BC44)*BB23*-1 -> 0 | BC45: =(BC44+BB44)*BC23*-1 -> 0 | BD45: =(BD44+BE44)*BD23*-1 -> 0 | BF45: dis | BG45: =(BG44)*BG23*-1 -> 0 | BH45: =(BH44+BI44)*BH23*-1 -> 0 | BI45: =(BI44+BH44)*BI23*-1 -> 0 | BJ45: =(BJ44+BK44)*BJ23*-1 -> 0 | BK45: =(BK44+BJ44)*BK23*-1 -> 0 | BL45: =(BL44+BM44)*BL23*-1 -> 0 | BM45: =(BM44+BL44)*BM23*-1 -> 0 | BN45: =(BN44+BO44)*BN23*-1 -> 0 | BO45: =(BO44+BN44)*BO23*-1 -> 0 | BP45: =(BP44+BQ44)*BP23*-1 -> 0 | BR45: dis | BS45: =(BS44)*BS23*-1 -> 0.0001138817142 | BT45: =(BT44+BU44)*BT23*-1 -> -0.0001220951612 | BU45: =(BU44+BT44)*BU23*-1 -> -0.0001008612201 | BV45: =(BV44+BW44)*BV23*-1 -> 0.0001008612201 | BW45: =(BW44+BV44)*BW23*-1 -> 0.0001220951612 | BX45: =(BX44+BY44)*BX23*-1 -> -0.0001138817142 | BY45: =(BY44+BX44)*BY23*-1 -> 0 | BZ45: =(BZ44+CA44)*BZ23*-1 -> 0 | CA45: =(CA44+BZ44)*CA23*-1 -> 0 | CB45: =(CB44+CC44)*CB23*-1 -> 0
J46: sum | K46: =SUM(K24:K45) -> -2258.133377 | L46: =SUM(L24:L45) -> 2955.530763 | M46: =SUM(M24:M45) -> -728.9363055 | N46: =SUM(N24:N45) -> -306.8814392 | O46: =SUM(O24:O45) -> 84.07839083 | P46: 28.73632289 | Q46: 0 | R46: 0 | S46: 0 | T46: 0 | V46: sum | W46: =SUM(W24:W45) -> 382.0165117 | X46: 1117.724784 | Y46: -4079.634374 | Z46: 4079.634374 | AA46: -1117.724784 | AB46: -382.0165117 | AC46: 0 | AD46: 0 | AE46: 0 | AF46: 0 | AH46: sum | AI46: =SUM(AI24:AI45) -> -28.73632289 | AJ46: -84.07839083 | AK46: 306.8814392 | AL46: 728.9363055 | AM46: -2955.530763 | AN46: 2258.133377 | AO46: 0 | AP46: 0 | AQ46: 0 | AR46: 0 | AT46: sum | AU46: =SUM(AU24:AU45) -> 0 | AV46: 0 | AW46: 0 | AX46: 0 | AY46: 0 | AZ46: 0 | BA46: 0 | BB46: 0 | BC46: 0 | BD46: 0 | BF46: sum | BG46: =SUM(BG24:BG45) -> 0 | BH46: 0 | BI46: 0 | BJ46: 0 | BK46: 0 | BL46: 0 | BM46: 0 | BN46: 0 | BO46: 0 | BP46: 0 | BR46: sum | BS46: =SUM(BS24:BS45) -> -6797.711376 | BT46: 14235.88711 | BU46: -16064.8518 | BV46: 16064.8518 | BW46: -14235.88711 | BX46: 6797.711376 | BY46: 0 | BZ46: 0 | CA46: 0 | CB46: 0
J47: โมเมนต์บวก span 1 = | K47: =K109 -> 8931.951819 | M47: โมเมนต์บวก span 2 = | N47: =W109 -> 11310.51383 | O47: โมเมนต์บวก span 3 = | P47: =AI109 -> 8931.951819 | Q47: โมเมนต์บวก span 4 = | R47: =AU109 -> 0 | S47: โมเมนต์บวก span 5 = | T47: =BG109 -> 0
J48: โมเมนต์ลบ span 1 ขวา = | K48: =N108 -> -13895.50193 | M48: โมเมนต์ลบ span 2 ขวา = | N48: =AC109 -> -16024.6384 | O48: โมเมนต์ลบ span 3 ขวา = | P48: =AO108 -> -5553.843996 | Q48: โมเมนต์ลบ span 4 ขวา = | R48: =BA108 -> 0 | S48: โมเมนต์ลบ span 5 ขวา = | T48: =BM108 -> 0
J49: โมเมนต์ลบ span 1 ซ้าย = | K49: =Q105 -> -5553.843996 | M49: โมเมนต์ลบ span 2 ซ้าย = | N49: =Z109 -> -16024.6384 | O49: โมเมนต์ลบ span 3 ซ้าย = | P49: =AL108 -> -13895.50193 | Q49: โมเมนต์ลบ span 4 ซ้าย = | R49: =AX108 -> 0 | S49: โมเมนต์ลบ span 5 ซ้าย = | T49: =BJ108 -> 0
G51: ทิศทาง | H51: ช่วงเสา | I51: สัมประสิทธ์ร้อยละ | J51: แถบเสา | K51: แถบกลาง | M51: แถบเสา | N51: แถบกลาง | O51: แถบเสา | P51: แถบกลาง | Q51: แถบเสา | R51: แถบกลาง | S51: แถบเสา | T51: แถบกลาง
H52: โมเมนต์ลบขวา | I52: 0.75 | J52: =IF((-K48>-N49),(K48),(N49))*I52 -> -12018.4788 | K52: =IF((-K48>-N49),(K48),(N49))-J52 -> -4006.159601 | M52: =IF((-N48>-P49),(N48),(P49))*IF(Sheet1!$B$3=2,(I54),(I52)) -> -12018.4788 | N52: =IF((-N48>-P49),(N48),(P49))-M52 -> -4006.159601 | O52: =IF(-P48>-R49,(P48),(R49))*IF(Sheet1!$B$3=3,(1),(0.75)) -> -5553.843996 | P52: =IF(-P48>-R49,(P48),(R49))*IF(Sheet1!$B$3=3,(1),(0.75))-O52 -> 0 | Q52: =IF(-R48>-T49,(R48),(T49))*IF(Sheet1!$B$3=4,(1),(0.75)) -> 0 | R52: =IF(-R48>-T49,(R48),(T49))*IF(Sheet1!$B$3=4,(1),(0.75))-Q52 -> 0 | S52: =IF(-T48>-V49,(T48),(V49))*IF(Sheet1!$B$3=5,(1),(0.75)) -> 0 | T52: =IF(-T48>-V49,(T48),(V49))*IF(Sheet1!$B$3=5,(1),(0.75))-S52 -> 0
H53: โมเมนต์กลางช่วงโมเมนต์บวก | I53: 0.6 | J53: =K47*$I$53 -> 5359.171091 | K53: =K47-J53 -> 3572.780728 | M53: =N47*$I$53 -> 6786.308298 | N53: =N47-M53 -> 4524.205532 | O53: =P47*$I$53 -> 5359.171091 | P53: =P47-O53 -> 3572.780728 | Q53: =R47*$I$53 -> 0 | R53: =R47-Q53 -> 0 | S53: =T47*$I$53 -> 0 | T53: =T47-S53 -> 0
H54: โมเมนต์ลบซ้าย | I54: 1 | J54: =K49*I54 -> -5553.843996 | K54: =K49-J54 -> 0 | M54: =IF((-K48>-N49),(K48),(N49))*I52 -> -12018.4788 | N54: =IF((-K48>-N49),(K48),(N49))-M54 -> -4006.159601 | O54: =IF((-N48>-P49),(N48),(P49))*IF(Sheet1!$B$3<3,(0),(0.75)) -> -12018.4788 | P54: =IF(O54=0,(0),(IF((-N48>-P49),(N48),(P49))-O54)) -> -4006.159601 | Q54: =IF((-P48>-R49),(P48),(R49))*IF(Sheet1!$B$3<4,(0),(0.75)) -> 0 | R54: =IF(Q54=0,(0),(IF((-P48>-R49),(P48),(R49))-Q54)) -> 0 | S54: =IF((-R48>-T49),(R48),(T49))*IF(Sheet1!$B$3<5,(0),(0.75)) -> 0 | T54: =IF(S54=0,(0),(IF((-R48>-T49),(R48),(T49))-S54)) -> 0
G56: เหล็กเสริมในแผ่นพื้น | J56: span r1 | M56: span r2 | O56: span r3 | Q56: span r4 | S56: span r5
H57: รายการ | I57: หน่วย | J57: แถบเสา | K57: แถบกลาง | M57: แถบเสา | N57: แถบกลาง | O57: แถบเสา | P57: แถบกลาง | Q57: แถบเสา | R57: แถบกลาง | S57: แถบเสา | T57: แถบกลาง
H58: ความกว้าง | I58: m | J58: =E2*0.5 -> 1.5 | K58: =MIN(0.5*Sheet1!$L$9)-J58 -> 1.5 | M58: =E2*0.5 -> 1.5 | N58: =MIN(0.5*Sheet1!$L$9)-M58 -> 1.5 | O58: =E2*0.5 -> 1.5 | P58: =MIN(0.5*Sheet1!$L$9)-O58 -> 1.5 | Q58: =E2*0.5 -> 1.5 | R58: =MIN(0.5*Sheet1!$L$9)-Q58 -> 1.5 | S58: =E2*0.5 -> 1.5 | T58: =MIN(0.5*Sheet1!$L$9)-S58 -> 1.5
H59: โมเมนต์ลบขวา | I59: kg-m/m | J59: =J52/(0.9*J58) -> -8902.576891 | K59: =K52/(K58*0.9) -> -2967.52563 | M59: =M52/(0.9*M58) -> -8902.576891 | N59: -2967.52563 | O59: -4113.958515 | P59: 0 | Q59: 0 | R59: 0 | S59: 0 | T59: 0
H60: Rn | I60: kg/m^2 | J60: =J59/(((Sheet1!B16)-(Sheet1!B13/100))^2) -> -175853.3707 | K60: =K59/(((Sheet1!B16)-(Sheet1!B13/100))^2) -> -58617.79023 | M60: =M59/(((Sheet1!B16)-(Sheet1!B13/100))^2) -> -175853.3707 | N60: =N59/(((Sheet1!B16)-(Sheet1!B13/100))^2) -> -58617.79023 | O60: =O59/(((Sheet1!B16)-(Sheet1!B13/100))^2) -> -81263.37808 | P60: =P59/(((Sheet1!B16)-(Sheet1!B13/100))^2) -> 0 | Q60: =Q59/(((Sheet1!B16)-(Sheet1!B13/100))^2) -> 0 | R60: =R59/(((Sheet1!B16)-(Sheet1!B13/100))^2) -> 0 | S60: =S59/(((Sheet1!B16)-(Sheet1!B13/100))^2) -> 0 | T60: =T59/(((Sheet1!B16)-(Sheet1!B13/100))^2) -> 0
H61: p | J61: =ABS((0.85*Sheet1!B10/Sheet1!B9)*(1-(SQRT(1-(2*J60/(0.85*Sheet1!B10*100^2)))))) -> 0.005575834203 | K61: =ABS((0.85*Sheet1!B10/Sheet1!B9)*(1-(SQRT(1-(2*K60/(0.85*Sheet1!B10*100^2)))))) -> 0.001896645528 | M61: =ABS((0.85*Sheet1!B10/Sheet1!B9)*(1-(SQRT(1-(2*M60/(0.85*Sheet1!B10*100^2)))))) -> 0.005575834203 | N61: =ABS((0.85*Sheet1!B10/Sheet1!B9)*(1-(SQRT(1-(2*N60/(0.85*Sheet1!B10*100^2)))))) -> 0.001896645528 | O61: =ABS((0.85*Sheet1!B10/Sheet1!B9)*(1-(SQRT(1-(2*O60/(0.85*Sheet1!B10*100^2)))))) -> 0.002618849678 | P61: =ABS((0.85*Sheet1!B10/Sheet1!B9)*(1-(SQRT(1-(2*P60/(0.85*Sheet1!B10*100^2)))))) -> 0 | Q61: =ABS((0.85*Sheet1!B10/Sheet1!B9)*(1-(SQRT(1-(2*Q60/(0.85*Sheet1!B10*100^2)))))) -> 0 | R61: =ABS((0.85*Sheet1!B10/Sheet1!B9)*(1-(SQRT(1-(2*R60/(0.85*Sheet1!B10*100^2)))))) -> 0 | S61: =ABS((0.85*Sheet1!B10/Sheet1!B9)*(1-(SQRT(1-(2*S60/(0.85*Sheet1!B10*100^2)))))) -> 0 | T61: =ABS((0.85*Sheet1!B10/Sheet1!B9)*(1-(SQRT(1-(2*T60/(0.85*Sheet1!B10*100^2)))))) -> 0
H62: As- | I62: mm^2/m | J62: =IF(J59=0,(0),(IF(J61>(0.0018*4000/Sheet1!$B$9),(ABS(J61*1000*(Sheet1!$B$16*1000-Sheet1!$B$13*10)*-1)),(ABS((0.0018*4000/Sheet1!$B$9)*1000*(Sheet1!$B$16*1000-Sheet1!$B$13*10)*-1))))) -> 1254.562696 | K62: =IF(J59=0,(0),(IF(K61>(0.0018*4000/Sheet1!$B$9),(ABS(K61*1000*(Sheet1!$B$16*1000-Sheet1!$B$13*10)*-1)),(ABS((0.0018*4000/Sheet1!$B$9)*1000*(Sheet1!$B$16*1000-Sheet1!$B$13*10)*-1))))) -> 529.7580118 | M62: =IF(M59=0,(0),(IF(M61>(0.0018*4000/Sheet1!$B$9),(ABS(M61*1000*(Sheet1!$B$16*1000-Sheet1!$B$13*10)*-1)),(ABS((0.0018*4000/Sheet1!$B$9)*1000*(Sheet1!$B$16*1000-Sheet1!$B$13*10)*-1))))) -> 1254.562696 | N62: =IF(M59=0,(0),(IF(N61>(0.0018*4000/Sheet1!$B$9),(ABS(N61*1000*(Sheet1!$B$16*1000-Sheet1!$B$13*10)*-1)),(ABS((0.0018*4000/Sheet1!$B$9)*1000*(Sheet1!$B$16*1000-Sheet1!$B$13*10)*-1))))) -> 529.7580118 | O62: =IF(O59=0,(0),(IF(O61>(0.0018*4000/Sheet1!$B$9),(ABS(O61*1000*(Sheet1!$B$16*1000-Sheet1!$B$13*10)*-1)),(ABS((0.0018*4000/Sheet1!$B$9)*1000*(Sheet1!$B$16*1000-Sheet1!$B$13*10)*-1))))) -> 589.2411775 | P62: =IF(O59=0,(0),(IF(P61>(0.0018*4000/Sheet1!$B$9),(ABS(P61*1000*(Sheet1!$B$16*1000-Sheet1!$B$13*10)*-1)),(ABS((0.0018*4000/Sheet1!$B$9)*1000*(Sheet1!$B$16*1000-Sheet1!$B$13*10)*-1))))) -> 529.7580118 | Q62: =IF(Q59=0,(0),(IF(Q61>(0.0018*4000/Sheet1!$B$9),(ABS(Q61*1000*(Sheet1!$B$16*1000-Sheet1!$B$13*10)*-1)),(ABS((0.0018*4000/Sheet1!$B$9)*1000*(Sheet1!$B$16*1000-Sheet1!$B$13*10)*-1))))) -> 0 | R62: =IF(Q59=0,(0),(IF(R61>(0.0018*4000/Sheet1!$B$9),(ABS(R61*1000*(Sheet1!$B$16*1000-Sheet1!$B$13*10)*-1)),(ABS((0.0018*4000/Sheet1!$B$9)*1000*(Sheet1!$B$16*1000-Sheet1!$B$13*10)*-1))))) -> 0 | S62: =IF(S59=0,(0),(IF(S61>(0.0018*4000/Sheet1!$B$9),(ABS(S61*1000*(Sheet1!$B$16*1000-Sheet1!$B$13*10)*-1)),(ABS((0.0018*4000/Sheet1!$B$9)*1000*(Sheet1!$B$16*1000-Sheet1!$B$13*10)*-1))))) -> 0 | T62: =IF(S59=0,(0),(IF(T61>(0.0018*4000/Sheet1!$B$9),(ABS(T61*1000*(Sheet1!$B$16*1000-Sheet1!$B$13*10)*-1)),(ABS((0.0018*4000/Sheet1!$B$9)*1000*(Sheet1!$B$16*1000-Sheet1!$B$13*10)*-1))))) -> 0
H63: โมเมนต์บวกกลาง | I63: kg-m/m | J63: =J53/(0.9*J58) -> 3969.756364 | K63: =K53/(0.9*K58) -> 2646.504243 | M63: =M53/(0.9*M58) -> 5026.895035 | N63: 3351.263357 | O63: 3969.756364 | P63: 2646.504243 | Q63: 0 | R63: 0 | S63: 0 | T63: 0
H64: Rn | I64: kg/m^2 | J64: =J63/(((Sheet1!B16)-(Sheet1!B13/100))^2) -> 78414.94052 | K64: =K63/(((Sheet1!B16)-(Sheet1!B13/100))^2) -> 52276.62702 | M64: =M63/(((Sheet1!B16)-(Sheet1!B13/100))^2) -> 99296.69205 | N64: =N63/(((Sheet1!B16)-(Sheet1!B13/100))^2) -> 66197.7947 | O64: =O63/(((Sheet1!B16)-(Sheet1!B13/100))^2) -> 78414.94052 | P64: =P63/(((Sheet1!B16)-(Sheet1!B13/100))^2) -> 52276.62702 | Q64: =Q63/(((Sheet1!B16)-(Sheet1!B13/100))^2) -> 0 | R64: =R63/(((Sheet1!B16)-(Sheet1!B13/100))^2) -> 0 | S64: =S63/(((Sheet1!B16)-(Sheet1!B13/100))^2) -> 0 | T64: =T63/(((Sheet1!B16)-(Sheet1!B13/100))^2) -> 0
H65: p | J65: =ABS((0.85*Sheet1!B10/Sheet1!B9)*(1-(SQRT(1-(2*J64/(0.85*Sheet1!B10*100^2)))))) -> 0.002602323845 | K65: =(0.85*Sheet1!B10/Sheet1!B9)*(1-(SQRT(1-(2*K64/(0.85*Sheet1!B10*100^2))))) -> 0.001726255128 | M65: =ABS((0.85*Sheet1!B10/Sheet1!B9)*(1-(SQRT(1-(2*M64/(0.85*Sheet1!B10*100^2)))))) -> 0.003308649779 | N65: =ABS((0.85*Sheet1!B10/Sheet1!B9)*(1-(SQRT(1-(2*N64/(0.85*Sheet1!B10*100^2)))))) -> 0.002191744897 | O65: =ABS((0.85*Sheet1!B10/Sheet1!B9)*(1-(SQRT(1-(2*O64/(0.85*Sheet1!B10*100^2)))))) -> 0.002602323845 | P65: =ABS((0.85*Sheet1!B10/Sheet1!B9)*(1-(SQRT(1-(2*P64/(0.85*Sheet1!B10*100^2)))))) -> 0.001726255128 | Q65: =ABS((0.85*Sheet1!B10/Sheet1!B9)*(1-(SQRT(1-(2*Q64/(0.85*Sheet1!B10*100^2)))))) -> 0 | R65: =ABS((0.85*Sheet1!B10/Sheet1!B9)*(1-(SQRT(1-(2*R64/(0.85*Sheet1!B10*100^2)))))) -> 0 | S65: =ABS((0.85*Sheet1!B10/Sheet1!B9)*(1-(SQRT(1-(2*S64/(0.85*Sheet1!B10*100^2)))))) -> 0 | T65: =ABS((0.85*Sheet1!B10/Sheet1!B9)*(1-(SQRT(1-(2*T64/(0.85*Sheet1!B10*100^2)))))) -> 0
H66: As+ | I66: mm^2/m | J66: =IF(J63=0,(0),(IF(J65>(0.0018*4000/Sheet1!$B$9),(ABS(J65*1000*(Sheet1!$B$16*1000-Sheet1!$B$13*10)*-1)),(ABS((0.0018*4000/Sheet1!$B$9)*1000*(Sheet1!$B$16*1000-Sheet1!$B$13*10)*-1))))) -> 585.5228652 | K66: =IF(K63=0,(0),(IF(K65>(0.0018*4000/Sheet1!$B$9),(ABS(K65*1000*(Sheet1!$B$16*1000-Sheet1!$B$13*10)*-1)),(ABS((0.0018*4000/Sheet1!$B$9)*1000*(Sheet1!$B$16*1000-Sheet1!$B$13*10)*-1))))) -> 529.7580118 | M66: =IF(M63=0,(0),(IF(M65>(0.0018*4000/Sheet1!$B$9),(ABS(M65*1000*(Sheet1!$B$16*1000-Sheet1!$B$13*10)*-1)),(ABS((0.0018*4000/Sheet1!$B$9)*1000*(Sheet1!$B$16*1000-Sheet1!$B$13*10)*-1))))) -> 744.4462003 | N66: =IF(N63=0,(0),(IF(N65>(0.0018*4000/Sheet1!$B$9),(ABS(N65*1000*(Sheet1!$B$16*1000-Sheet1!$B$13*10)*-1)),(ABS((0.0018*4000/Sheet1!$B$9)*1000*(Sheet1!$B$16*1000-Sheet1!$B$13*10)*-1))))) -> 529.7580118 | O66: =IF(O63=0,(0),(IF(O65>(0.0018*4000/Sheet1!$B$9),(ABS(O65*1000*(Sheet1!$B$16*1000-Sheet1!$B$13*10)*-1)),(ABS((0.0018*4000/Sheet1!$B$9)*1000*(Sheet1!$B$16*1000-Sheet1!$B$13*10)*-1))))) -> 585.5228652 | P66: =IF(P63=0,(0),(IF(P65>(0.0018*4000/Sheet1!$B$9),(ABS(P65*1000*(Sheet1!$B$16*1000-Sheet1!$B$13*10)*-1)),(ABS((0.0018*4000/Sheet1!$B$9)*1000*(Sheet1!$B$16*1000-Sheet1!$B$13*10)*-1))))) -> 529.7580118 | Q66: =IF(Q63=0,(0),(IF(Q65>(0.0018*4000/Sheet1!$B$9),(ABS(Q65*1000*(Sheet1!$B$16*1000-Sheet1!$B$13*10)*-1)),(ABS((0.0018*4000/Sheet1!$B$9)*1000*(Sheet1!$B$16*1000-Sheet1!$B$13*10)*-1))))) -> 0 | R66: =IF(R63=0,(0),(IF(R65>(0.0018*4000/Sheet1!$B$9),(ABS(R65*1000*(Sheet1!$B$16*1000-Sheet1!$B$13*10)*-1)),(ABS((0.0018*4000/Sheet1!$B$9)*1000*(Sheet1!$B$16*1000-Sheet1!$B$13*10)*-1))))) -> 0 | S66: =IF(S63=0,(0),(IF(S65>(0.0018*4000/Sheet1!$B$9),(ABS(S65*1000*(Sheet1!$B$16*1000-Sheet1!$B$13*10)*-1)),(ABS((0.0018*4000/Sheet1!$B$9)*1000*(Sheet1!$B$16*1000-Sheet1!$B$13*10)*-1))))) -> 0 | T66: =IF(T63=0,(0),(IF(T65>(0.0018*4000/Sheet1!$B$9),(ABS(T65*1000*(Sheet1!$B$16*1000-Sheet1!$B$13*10)*-1)),(ABS((0.0018*4000/Sheet1!$B$9)*1000*(Sheet1!$B$16*1000-Sheet1!$B$13*10)*-1))))) -> 0
H67: โมเมนต์ลบซ้าย | I67: kg-m/m | J67: =J54/(0.9*J58) -> -4113.958515 | K67: =K54/(0.9*K58) -> 0 | M67: =M54/(0.9*M58) -> -8902.576891 | N67: =N54/(0.9*N58) -> -2967.52563 | O67: =O54/(0.9*O58) -> -8902.576891 | P67: =P54/(0.9*P58) -> -2967.52563 | Q67: 0 | R67: 0 | S67: 0 | T67: 0
H68: Rn | I68: kg/m^2 | J68: =J67/(((Sheet1!B16)-(Sheet1!B13/100))^2) -> -81263.37808 | K68: =K67/(((Sheet1!B16)-(Sheet1!B13/100))^2) -> 0 | M68: =M67/(((Sheet1!B16)-(Sheet1!B13/100))^2) -> -175853.3707 | N68: =N67/(((Sheet1!B16)-(Sheet1!B13/100))^2) -> -58617.79023 | O68: =O67/(((Sheet1!B16)-(Sheet1!B13/100))^2) -> -175853.3707 | P68: =P67/(((Sheet1!B16)-(Sheet1!B13/100))^2) -> -58617.79023 | Q68: =Q67/(((Sheet1!B16)-(Sheet1!B13/100))^2) -> 0 | R68: =R67/(((Sheet1!B16)-(Sheet1!B13/100))^2) -> 0 | S68: =S67/(((Sheet1!B16)-(Sheet1!B13/100))^2) -> 0 | T68: =T67/(((Sheet1!B16)-(Sheet1!B13/100))^2) -> 0
H69: p | J69: =ABS((0.85*Sheet1!B10/Sheet1!B9)*(1-(SQRT(1-(2*J68/(0.85*Sheet1!B10*100^2)))))) -> 0.002618849678 | K69: =(0.85*Sheet1!B10/Sheet1!B9)*(1-(SQRT(1-(2*K68/(0.85*Sheet1!B10*100^2))))) -> 0 | M69: =ABS((0.85*Sheet1!B10/Sheet1!B9)*(1-(SQRT(1-(2*M68/(0.85*Sheet1!B10*100^2)))))) -> 0.005575834203 | N69: =ABS((0.85*Sheet1!B10/Sheet1!B9)*(1-(SQRT(1-(2*N68/(0.85*Sheet1!B10*100^2)))))) -> 0.001896645528 | O69: =ABS((0.85*Sheet1!B10/Sheet1!B9)*(1-(SQRT(1-(2*O68/(0.85*Sheet1!B10*100^2)))))) -> 0.005575834203 | P69: =ABS((0.85*Sheet1!B10/Sheet1!B9)*(1-(SQRT(1-(2*P68/(0.85*Sheet1!B10*100^2)))))) -> 0.001896645528 | Q69: =ABS((0.85*Sheet1!B10/Sheet1!B9)*(1-(SQRT(1-(2*Q68/(0.85*Sheet1!B10*100^2)))))) -> 0 | R69: =ABS((0.85*Sheet1!B10/Sheet1!B9)*(1-(SQRT(1-(2*R68/(0.85*Sheet1!B10*100^2)))))) -> 0 | S69: =ABS((0.85*Sheet1!B10/Sheet1!B9)*(1-(SQRT(1-(2*S68/(0.85*Sheet1!B10*100^2)))))) -> 0 | T69: =ABS((0.85*Sheet1!B10/Sheet1!B9)*(1-(SQRT(1-(2*T68/(0.85*Sheet1!B10*100^2)))))) -> 0
H70: As- | I70: mm^2/m | J70: =IF(J67=0,(0),(IF(J69>(0.0018*4000/Sheet1!$B$9),(ABS(J69*1000*(Sheet1!$B$16*1000-Sheet1!$B$13*10)*-1)),(ABS((0.0018*4000/Sheet1!$B$9)*1000*(Sheet1!$B$16*1000-Sheet1!$B$13*10)*-1))))) -> 589.2411775 | K70: =IF(J67=0,(0),(IF(K69>(0.0018*4000/Sheet1!$B$9),(ABS(K69*1000*(Sheet1!$B$16*1000-Sheet1!$B$13*10)*-1)),(ABS((0.0018*4000/Sheet1!$B$9)*1000*(Sheet1!$B$16*1000-Sheet1!$B$13*10)*-1))))) -> 529.7580118 | M70: =IF(M67=0,(0),(IF(M69>(0.0018*4000/Sheet1!$B$9),(ABS(M69*1000*(Sheet1!$B$16*1000-Sheet1!$B$13*10)*-1)),(ABS((0.0018*4000/Sheet1!$B$9)*1000*(Sheet1!$B$16*1000-Sheet1!$B$13*10)*-1))))) -> 1254.562696 | N70: =IF(M67=0,(0),(IF(N69>(0.0018*4000/Sheet1!$B$9),(ABS(N69*1000*(Sheet1!$B$16*1000-Sheet1!$B$13*10)*-1)),(ABS((0.0018*4000/Sheet1!$B$9)*1000*(Sheet1!$B$16*1000-Sheet1!$B$13*10)*-1))))) -> 529.7580118 | O70: =IF(O67=0,(0),(IF(O69>(0.0018*4000/Sheet1!$B$9),(ABS(O69*1000*(Sheet1!$B$16*1000-Sheet1!$B$13*10)*-1)),(ABS((0.0018*4000/Sheet1!$B$9)*1000*(Sheet1!$B$16*1000-Sheet1!$B$13*10)*-1))))) -> 1254.562696 | P70: =IF(O67=0,(0),(IF(P69>(0.0018*4000/Sheet1!$B$9),(ABS(P69*1000*(Sheet1!$B$16*1000-Sheet1!$B$13*10)*-1)),(ABS((0.0018*4000/Sheet1!$B$9)*1000*(Sheet1!$B$16*1000-Sheet1!$B$13*10)*-1))))) -> 529.7580118 | Q70: =IF(Q67=0,(0),(IF(Q69>(0.0018*4000/Sheet1!$B$9),(ABS(Q69*1000*(Sheet1!$B$16*1000-Sheet1!$B$13*10)*-1)),(ABS((0.0018*4000/Sheet1!$B$9)*1000*(Sheet1!$B$16*1000-Sheet1!$B$13*10)*-1))))) -> 0 | R70: =IF(Q67=0,(0),(IF(R69>(0.0018*4000/Sheet1!$B$9),(ABS(R69*1000*(Sheet1!$B$16*1000-Sheet1!$B$13*10)*-1)),(ABS((0.0018*4000/Sheet1!$B$9)*1000*(Sheet1!$B$16*1000-Sheet1!$B$13*10)*-1))))) -> 0 | S70: =IF(S67=0,(0),(IF(S69>(0.0018*4000/Sheet1!$B$9),(ABS(S69*1000*(Sheet1!$B$16*1000-Sheet1!$B$13*10)*-1)),(ABS((0.0018*4000/Sheet1!$B$9)*1000*(Sheet1!$B$16*1000-Sheet1!$B$13*10)*-1))))) -> 0 | T70: =IF(S67=0,(0),(IF(T69>(0.0018*4000/Sheet1!$B$9),(ABS(T69*1000*(Sheet1!$B$16*1000-Sheet1!$B$13*10)*-1)),(ABS((0.0018*4000/Sheet1!$B$9)*1000*(Sheet1!$B$16*1000-Sheet1!$B$13*10)*-1))))) -> 0
J104: โมเมนต์บวก span 1 | M104: โมเมนต์ลบ span 1 ขวา | P104: โมเมนต์ลบ span 1 ซ้าย | V104: โมเมนต์บวก span 2 | Y104: โมเมนต์ลบ span 2 ซ้าย | AB104: โมเมนต์ลบspan 2 ขวา | AH104: โมเมนต์บวกสแปน 3 | AK104: โมเมนต์ลบspan 3 ซ้าย | AN104: โมเมนต์ลบspan 3 ขวา | AT104: โมเมนต์บวกสแปน 4 | AW104: โมเมนต์ลบสแปน 4 ซ้าย | AZ104: โมเมนต์ลบสแปน 4 ขวา | BF104: โมเมนต์บวกสแปน 5 | BI104: โมเมนต์ลบ span 5 ซ้าย | BL104: โมเมนต์ลบ span 5 ขวา
J105: M 1l = | K105: =(K46+AI46+BG46+BS46)*-1 -> 9084.581076 | M105: M 1l = | N105: =(K46+W46+AU46+BS46)*-1 -> 8673.828241 | P105: M- max span1l = | Q105: =-K105+0.5*K107*Sheet1!D9-0.25*'r1'!E2*('r1'!B7+'r1'!E7)*Sheet1!D9^2 -> -5553.843996 | V105: M 2l = | W105: =(Y46+AW46+BU46)*-1 -> 20144.48617 | Y105: M 2l = | Z105: =(M46+Y46+AW46+BU46)*-1 -> 20873.42248 | AB105: M 2l = | AC105: =(Y46+AK46+BU46+BI46)*-1 -> 19837.60473 | AH105: M 3l = | AI105: =(AM46+O46+BK46+BW46)*-1 -> 17107.33948 | AK105: M3l = | AL105: =(AM46+AA46+BW46+BK46)*-1 -> 18309.14265 | AN105: M3l = | AO105: =(AM46+AY46+O46+BW46)*-1 -> 17107.33948 | AT105: m 4l = | AU105: =(BA46+AC46+BY46)*-1 -> 0 | AW105: m4l = | AX105: =(BA46+AO46+Q46+BY46)*-1 -> 0 | AZ105: m4l = | BA105: =(BA46+BM46+AC46+BY46)*-1 -> 0 | BF105: m5l = | BG105: =(BO46+AQ46+S46+CA46)*-1 -> 0 | BI105: m5l = | BJ105: =(BO46+BC46+AE46+CA46)*-1 -> 0 | BL105: m5l = | BM105: =(BO46+AQ46+S46+CA46)*-1 -> 0
J106: M 1r = | K106: =(L46+AJ46+BH46+BT46) -> 17107.33948 | M106: M 1r = | N106: =(L46+X46+AV46+BT46) -> 18309.14265 | V106: M 2r = | W106: =(Z46+AX46+BV46) -> 20144.48617 | Y106: M 2r = | Z106: =Z46+N46+AX46+BV46 -> 19837.60473 | AB106: M 2r = | AC106: =(Z46+AL46+BV46)+BJ46 -> 20873.42248 | AH106: M 3r = | AI106: =(AN46+P46+BL46+BX46) -> 9084.581076 | AK106: M3r = | AL106: =AN46+AB46+BL46+BX46 -> 8673.828241 | AN106: M3r = | AO106: =AN46+AZ46+P46+BX46 -> 9084.581076 | AT106: m 4r = | AU106: =(BB46+AD46+BZ46) -> 0 | AW106: m4r = | AX106: =BB46+AP46+R46+BZ46 -> 0 | AZ106: m4r = | BA106: =(BB46+BN46+BZ46+AD46) -> 0 | BF106: m5r = | BG106: =(BP46+AR46+T46+CB46) -> 0 | BI106: m5r = | BJ106: =BP46+CB46+BD46+AF46 -> 0 | BL106: m5r = | BM106: =BP46+CB46+AR46+T46 -> 0
J107: V1l = | K107: =IF(K105=0,(0),((-K106+K105+(0.5*(B7+E7)*E2*Sheet1!F9^2))/Sheet1!F9)) -> 15870.44832 | M107: V 1r = | N107: =IF(N105=0,(0),((N106-N105+0.5*(B7+E7)*E2*Sheet1!$F$9^2)/Sheet1!$F$9)) -> 19402.06288 | V107: V2l = | W107: =IF(W105=0,(0),((-W106+W105+0.5*(B8+E8)*E2*Sheet1!F10^2)/Sheet1!F10)) -> 20970 | Y107: V2l = | Z107: =IF(Z105=0,(0),((-Z106+Z105+0.5*(B8+E8)*E2*Sheet1!F10^2)/Sheet1!F10)) -> 21142.63629 | AB107: V2l = | AC107: =IF(AC105=0,(0),((-AC106+AC105+0.5*(B8+E8)*E2*Sheet1!F10^2)/Sheet1!F10)) -> 20797.36371 | AH107: V3l = | AI107: =IF(AI105=0,(0),((-AI106+AI105+0.5*(B9+E9)*E2*Sheet1!F11^2)/Sheet1!F11)) -> 19079.55168 | AK107: V3l = | AL107: =IF(AL105=0,(0),((-AL106+AL105+0.5*(B9+E9)*Sheet1!F11^2*E2)/Sheet1!F11)) -> 19402.06288 | AN107: V3r = | AO107: =IF(AO105=0,(0),((AO106-AO105+0.5*(B9+E9)*E2*Sheet1!F11^2)/Sheet1!F11)) -> 15870.44832 | AT107: v4l = | AU107: =IF(AU105=0,(0),((-AU106+AU105+0.5*(B10+E10)*E2*Sheet1!F12^2)/Sheet1!F12)) -> 0 | AW107: V4l = | AX107: =IF(AX105=0,(0),((-AX106+AX105+0.5*(B10+E10)*Sheet1!F12^2*E2)/Sheet1!F12)) -> 0 | AZ107: v4r = | BA107: =IF(BA105=0,(0),((BA106-BA105+0.5*(B10+E10)*E2*Sheet1!F12^2)/Sheet1!F12)) -> 0 | BF107: v5l = | BG107: =IF(BG105=0,(0),((-BG106+BG105+0.5*(B11+E11)*E2*Sheet1!F13^2)/Sheet1!F13)) -> 0 | BI107: v5l = | BJ107: =IF(BJ105=0,(0),((-BJ106+BJ105+0.5*(B11+E11)*E2*Sheet1!F13^2)/Sheet1!F13)) -> 0 | BL107: v5r = | BM107: =IF(BM105=0,(0),((BM106-BM105+0.5*(B11+E11)*E2*Sheet1!F13^2)/Sheet1!F13)) -> 0
J108: ระยะที่ V=0 | K108: =K107/((B7+E7)*E2) -> 2.270450403 | M108: M- max span1r = | N108: =0.5*Sheet1!$D$9*'r1'!N107-'r1'!N106-0.25*('r1'!B7+'r1'!E7)*'r1'!E2*Sheet1!$D$9^2 -> -13895.50193 | V108: ระยะที่ V=0 | W108: =W107/((B8+E8)*E2) -> 3 | Y108: V2 r = | Z108: =IF(Z105=0,(0),((Z106-Z105+0.5*(B8+E8)*E2*Sheet1!F10^2)/Sheet1!F10)) -> 20797.36371 | AB108: v2r = | AC108: =IF(AC105=0,(0),((AC106-AC105+0.5*(B8+E8)*E2*Sheet1!F10^2)/Sheet1!F10)) -> 21142.63629 | AH108: ระยะที่ V=0 | AI108: =AI107/((B9+E9)*E2) -> 2.729549597 | AK108: M- max span3l = | AL108: =-AL105+0.5*AL107*Sheet1!D9-0.25*Sheet1!D9^2*'r1'!E2*('r1'!B9+'r1'!E9) -> -13895.50193 | AN108: M- max span3r = | AO108: =0.5*AO107*Sheet1!D9-'r1'!AO106-0.25*('r1'!B9+'r1'!E9)*'r1'!E2*Sheet1!D9^2 -> -5553.843996 | AT108: ระยะที่ v=0 | AU108: =AU107/((B10+E10)*E2) ->  | AW108: M- max span4l = | AX108: =-AX105+0.5*AX107*Sheet1!D9-0.25*Sheet1!D9^2*'r1'!E2*('r1'!B10+'r1'!E10) -> 0 | AZ108: M- max span4r = | BA108: =0.5*BA107*Sheet1!D9-'r1'!BA106-0.25*('r1'!B10+'r1'!E10)*'r1'!E2*Sheet1!D9^2 -> 0 | BF108: ระยะที่ v=0 | BG108: =IF(BG107=0,(0),(BG107/((B11+E11)*E2))) -> 0 | BI108: M- max span 5l = | BJ108: =-BJ105+0.5*BJ107*Sheet1!D9-0.25*Sheet1!D9^2*'r1'!E2*('r1'!B11+'r1'!E11) -> 0 | BL108: M- max span 5r = | BM108: =0.5*BM107*Sheet1!D9-'r1'!BM106-0.25*('r1'!B11+'r1'!E11)*'r1'!E2*Sheet1!D9^2 -> 0
J109: M1+max= | K109: =K107*K108-0.5*(B7+E7)*K108^2*E2-K105 -> 8931.951819 | M109: V1l = | N109: =(B7+E7)*E2*Sheet1!$F$9-'r1'!N107 -> 15547.93712 | V109: M2+max= | W109: =(W107*W108)-0.5*(B8+E8)*E2*W108^2-W105 -> 11310.51383 | Y109: M- max span2l = | Z109: =-Z105+0.5*Z107*Sheet1!D9-0.25*(B8+E8)*E2*Sheet1!D9^2 -> -16024.6384 | AB109: M- max span2r = | AC109: =0.5*AC108*Sheet1!D9-'r1'!AC106-0.25*('r1'!B8+'r1'!E8)*'r1'!E2*Sheet1!D9^2 -> -16024.6384 | AH109: M3+ max = | AI109: =IF(AI105=0,(0),(AI107*AI108-0.5*(B9+E9)*E2*AI108^2-AI105)) -> 8931.951819 | AT109: M4+ max = | AU109: =IF(AU105=0,(0),(AU107*AU108-0.5*(B10+E10)*AU108^2*E2-AU105)) -> 0 | BF109: M5+ max = | BG109: =IF(BG105=0,(0),(BG107*BG108-0.5*(B11+E11)*E2*BG108^2-BG105)) -> 0

Sheet r2
A1: รายการคำนวณโมเมนต์แถบในและกลางตามแกน x
A2: ระยะช่วงพื้น (unit: m) | B2: =MAX(Sheet1!F9,Sheet1!F10,Sheet1!F11,Sheet1!F12,Sheet1!F13,Sheet1!L9,Sheet1!L10,Sheet1!L11,Sheet1!L12,Sheet1!F13) -> 6 | D2: ความกว้างแถบ = | E2: =(Sheet1!L9+Sheet1!L10)/2 -> 5.5
A3: ตัวคูณหาความหนาพื้นขั้นต่ำ | B3: =0.01*LN(Sheet1!B9)-0.05 -> 0.03025516386
A5: ความหนาพื้น (unit:m) | B5: =IF((B2*B3)>0.12,(B2*B3),(0.12)) -> 0.1815309832
A6: น้ำหนัก DL+WDS | D6: น้ำหนัก LL
A7: Wdl1+Wsd1 (unit:KG/m^2) = | B7: =((Sheet1!$B$16*Sheet1!$B$11)+Sheet1!$J$9)*1.4 -> 1820 | D7: Wtl1 (unit:kg/m^2) = | E7: =(1.7*Sheet1!H9) -> 510
A8: Wdl2+Wsd2 (unit:KG/m^2) = | B8: =((Sheet1!$B$16*Sheet1!$B$11)+Sheet1!$J$10)*1.4 -> 1820 | D8: Wtl2 (unit:kg/m^2) = | E8: =1.7*Sheet1!H10 -> 510
A9: =IF(Sheet1!B3>2,("Wdl3+Wsd3 (unit:KG/m^2) ="),("")) -> Wdl3+Wsd3 (unit:KG/m^2) = | B9: =IF(Sheet1!$B$3>=3,(((Sheet1!$B$16*Sheet1!$B$11)+Sheet1!$J$11)*1.4),(0)) -> 1820 | D9: =IF(Sheet1!B3>2,("Wtl3 (unit:KG/m^2) ="),("")) -> Wtl3 (unit:KG/m^2) = | E9: =(1.7*Sheet1!H11) -> 510
A10: =IF(Sheet1!B3>3,("Wdl4+Wsd4 (unit:KG/m^2) ="),("")) ->  | B10: =IF(Sheet1!$B$3>=4,(((Sheet1!$B$16*Sheet1!$B$11)+Sheet1!$J$12)*1.4),(0)) -> 0 | D10: =IF(Sheet1!B3>3,("Wtl4 (unit:KG/m^2) ="),("")) ->  | E10: =1.7*Sheet1!H12 -> 0
A11: =IF(Sheet1!B3>4,("Wdl5+Wsd5 (unit:KG/m^2) ="),("")) ->  | B11: =IF(Sheet1!$B$3>=5,(((Sheet1!$B$16*Sheet1!$B$11)+Sheet1!$J$13)*1.4),(0)) -> 0 | D11: =IF(Sheet1!B3>4,("Wtl5 (unit:KG/m^2) ="),("")) ->  | E11: =(1.7*Sheet1!H13) -> 0
A13: โมเมนต์ DL+WSD | D13: โมเมนต LL
A14: FEM.DL1 (unit:kg*m) = | B14: =B7*E2*Sheet1!F9^2/12 -> 20854.16667 | D14: FEM.TL1 (unit:kg*m) = | E14: =E7*E2*Sheet1!F9^2/12 -> 5843.75
A15: FEM.DL2 (unit:kg*m) = | B15: =B8*E2*Sheet1!F10^2/12 -> 30030 | D15: FEM.TL2 (unit:kg*m) = | E15: =E8*E2*Sheet1!F10^2/12 -> 8415
A16: =IF(Sheet1!B3>=3,("FEM.DL3 (unit:kg*m) ="),("")) -> FEM.DL3 (unit:kg*m) = | B16: =IF(Sheet1!B3>=3,('r2'!B9*'r2'!E2*Sheet1!F11^2/12),(0)) -> 20854.16667 | D16: =IF(Sheet1!B3>=3,("FEM.TL3 (unit:kg*m) ="),("")) -> FEM.TL3 (unit:kg*m) = | E16: =IF(Sheet1!B3>=3,('r2'!E9*'r2'!E2*Sheet1!F11^2/12),(0)) -> 5843.75
A17: =IF(Sheet1!B3>=4,("FEM.DL4 (unit:kg*m) ="),("")) ->  | B17: =IF(Sheet1!B3>=4,('r2'!B10*'r2'!E2*Sheet1!F12^2/12),(0)) -> 0 | D17: =IF(Sheet1!B3>=4,("FEM.TL4 (unit:kg*m) ="),("")) ->  | E17: =IF(Sheet1!B3>=4,('r2'!E10*'r2'!E2*Sheet1!F12^2/12),(0)) -> 0
A18: =IF(Sheet1!B3>=5,("FEM.DL5 (unit:kg*m) ="),("")) ->  | B18: =IF(Sheet1!B3>=5,('r2'!B11*'r2'!E2*Sheet1!F13^2/12),(0)) -> 0 | D18: =IF(Sheet1!B3>=5,("FEM.TL5 (unit:kg*m) ="),("")) ->  | E18: =IF(Sheet1!B3>=5,('r2'!E11*'r2'!E2*Sheet1!F13^2/12),(0)) -> 0
J21: วางน้ำหนัก LL สแปน 1 | V21: วางน้ำหนัก LL สแปน 2 | AH21: วางน้ำหนัก LL สแปน 3 | AT21: วางน้ำหนัก LL สแปน 4 | BF21: วางน้ำหนัก LL สแปน 5 | BR21: วางน้ำหนัก DL ทุกสแปน
K22: 1r | L22: 2l | M22: 2r | N22: 3l | O22: 3r | P22: 4l | Q22: 4r | R22: 5l | S22: 5r | T22: 6l | W22: 1r | X22: 2l | Y22: 2r | Z22: 3l | AA22: 3r | AB22: 4l | AC22: 4r | AD22: 5l | AE22: 5r | AF22: 6l | AI22: 1r | AJ22: 2l | AK22: 2r | AL22: 3l | AM22: 3r | AN22: 4l | AO22: 4r | AP22: 5l | AQ22: 5r | AR22: 6l | AU22: 1r | AV22: 2l | AW22: 2r | AX22: 3l | AY22: 3r | AZ22: 4l | BA22: 4r | BB22: 5l | BC22: 5r | BD22: 6l | BG22: 1r | BH22: 2l | BI22: 2r | BJ22: 3l | BK22: 3r | BL22: 4l | BM22: 4r | BN22: 5l | BO22: 5r | BP22: 6l | BS22: 1r | BT22: 2l | BU22: 2r | BV22: 3l | BW22: 3r | BX22: 4l | BY22: 4r | BZ22: 5l | CA22: 5r | CB22: 6l
J23: D.o.f | K23: 0.6716191491 | L23: 0.378120186 | M23: 0.3123601536 | N23: 0.3123601536 | O23: 0.378120186 | P23: 0.6716191491 | V23: D.o.f | W23: 0.6716191491 | X23: 0.378120186 | Y23: 0.3123601536 | Z23: 0.3123601536 | AA23: 0.378120186 | AB23: 0.6716191491 | AH23: D.o.f | AI23: 0.6716191491 | AJ23: 0.378120186 | AK23: 0.3123601536 | AL23: 0.3123601536 | AM23: 0.378120186 | AN23: 0.6716191491 | AT23: D.o.f | AU23: 0.6716191491 | AV23: 0.378120186 | AW23: 0.3123601536 | AX23: 0.3123601536 | AY23: 0.378120186 | AZ23: 0.6716191491 | BF23: D.o.f | BG23: 0.6716191491 | BH23: 0.378120186 | BI23: 0.3123601536 | BJ23: 0.3123601536 | BK23: 0.378120186 | BL23: 0.6716191491 | BR23: D.o.f | BS23: 0.6716191491 | BT23: 0.378120186 | BU23: 0.3123601536 | BV23: 0.3123601536 | BW23: 0.378120186 | BX23: 0.6716191491
J24: FEM | K24: =E14*-1 -> -5843.75 | L24: =E14 -> 5843.75 | V24: FEM | Y24: =-E15 -> -8415 | Z24: =E15 -> 8415 | AH24: FEM | AM24: =-E16 -> -5843.75 | AN24: =E16 -> 5843.75 | AT24: FEM | BA24: =-E17 -> 0 | BB24: =E17 -> 0 | BF24: FEM | BO24: =-E18 -> 0 | BP24: =E18 -> 0 | BR24: FEM | BS24: =-B14 -> -20854.16667 | BT24: =B14 -> 20854.16667 | BU24: =-B15 -> -30030 | BV24: =B15 -> 30030 | BW24: =-B16 -> -20854.16667 | BX24: =B16 -> 20854.16667 | BY24: =-B17 -> 0 | BZ24: =B17 -> 0 | CA24: =-B18 -> 0 | CB24: =B18 -> 0
J25: Dis | K25: =(K24)*K23*-1 -> 3924.774402 | L25: =(L24+M24)*L23*-1 -> -2209.639837 | M25: =(M24+L24)*M23*-1 -> -1825.354648 | N25: =(N24+O24)*N23*-1 -> 0 | O25: =(O24+N24)*O23*-1 -> 0 | P25: =(P24+Q24)*P23*-1 -> 0 | Q25: =(Q24+P24)*Q23*-1 -> 0 | R25: =(R24+S24)*R23*-1 -> 0 | S25: =(S24+R24)*S23*-1 -> 0 | T25: =(T24+U24)*T23*-1 -> 0 | V25: Dis | W25: =(W24)*W23*-1 -> 0 | X25: =(X24+Y24)*X23*-1 -> 3181.881365 | Y25: =(Y24+X24)*Y23*-1 -> 2628.510693 | Z25: =(Z24+AA24)*Z23*-1 -> -2628.510693 | AA25: =(AA24+Z24)*AA23*-1 -> -3181.881365 | AB25: =(AB24+AC24)*AB23*-1 -> 0 | AC25: =(AC24+AB24)*AC23*-1 -> 0 | AD25: =(AD24+AE24)*AD23*-1 -> 0 | AE25: =(AE24+AD24)*AE23*-1 -> 0 | AF25: =(AF24+AG24)*AF23*-1 -> 0 | AH25: Dis | AI25: =(AI24)*AI23*-1 -> 0 | AJ25: =(AJ24+AK24)*AJ23*-1 -> 0 | AK25: =(AK24+AJ24)*AK23*-1 -> 0 | AL25: =(AL24+AM24)*AL23*-1 -> 1825.354648 | AM25: =(AM24+AL24)*AM23*-1 -> 2209.639837 | AN25: =(AN24+AO24)*AN23*-1 -> -3924.774402 | AO25: =(AO24+AN24)*AO23*-1 -> 0 | AP25: =(AP24+AQ24)*AP23*-1 -> 0 | AQ25: =(AQ24+AP24)*AQ23*-1 -> 0 | AR25: =(AR24+AS24)*AR23*-1 -> 0 | AT25: Dis | AU25: =(AU24)*AU23*-1 -> 0 | AV25: =(AV24+AW24)*AV23*-1 -> 0 | AW25: =(AW24+AV24)*AW23*-1 -> 0 | AX25: =(AX24+AY24)*AX23*-1 -> 0 | AY25: =(AY24+AX24)*AY23*-1 -> 0 | AZ25: =(AZ24+BA24)*AZ23*-1 -> 0 | BA25: =(BA24+AZ24)*BA23*-1 -> 0 | BB25: =(BB24+BC24)*BB23*-1 -> 0 | BC25: =(BC24+BB24)*BC23*-1 -> 0 | BD25: =(BD24+BE24)*BD23*-1 -> 0 | BF25: Dis | BG25: =(BG24)*BG23*-1 -> 0 | BH25: =(BH24+BI24)*BH23*-1 -> 0 | BI25: =(BI24+BH24)*BI23*-1 -> 0 | BJ25: =(BJ24+BK24)*BJ23*-1 -> 0 | BK25: =(BK24+BJ24)*BK23*-1 -> 0 | BL25: =(BL24+BM24)*BL23*-1 -> 0 | BM25: =(BM24+BL24)*BM23*-1 -> 0 | BN25: =(BN24+BO24)*BN23*-1 -> 0 | BO25: =(BO24+BN24)*BO23*-1 -> 0 | BP25: =(BP24+BQ24)*BP23*-1 -> 0 | BR25: Dis | BS25: =(BS24)*BS23*-1 -> 14006.05767 | BT25: =(BT24+BU24)*BT23*-1 -> 3469.567806 | BU25: =(BU24+BT24)*BU23*-1 -> 2866.16471 | BV25: =(BV24+BW24)*BV23*-1 -> -2866.16471 | BW25: =(BW24+BV24)*BW23*-1 -> -3469.567806 | BX25: =(BX24+BY24)*BX23*-1 -> -14006.05767 | BY25: =(BY24+BX24)*BY23*-1 -> 0 | BZ25: =(BZ24+CA24)*BZ23*-1 -> 0 | CA25: =(CA24+BZ24)*CA23*-1 -> 0 | CB25: =(CB24+CC24)*CB23*-1 -> 0
J26: Co | K26: =L25/2 -> -1104.819918 | L26: =K25/2 -> 1962.387201 | M26: =N25/2 -> 0 | N26: =M25/2 -> -912.6773239 | O26: =P25/2 -> 0 | P26: =O25/2 -> 0 | Q26: =R25/2 -> 0 | R26: =Q25/2 -> 0 | S26: =T25/2 -> 0 | T26: =S25/2 -> 0 | V26: Co | W26: =X25/2 -> 1590.940682 | X26: =W25/2 -> 0 | Y26: =Z25/2 -> -1314.255346 | Z26: =Y25/2 -> 1314.255346 | AA26: =AB25/2 -> 0 | AB26: =AA25/2 -> -1590.940682 | AC26: =AD25/2 -> 0 | AD26: =AC25/2 -> 0 | AE26: =AF25/2 -> 0 | AF26: =AE25/2 -> 0 | AH26: Co | AI26: =AJ25/2 -> 0 | AJ26: =AI25/2 -> 0 | AK26: =AL25/2 -> 912.6773239 | AL26: =AK25/2 -> 0 | AM26: =AN25/2 -> -1962.387201 | AN26: =AM25/2 -> 1104.819918 | AO26: =AP25/2 -> 0 | AP26: =AO25/2 -> 0 | AQ26: =AR25/2 -> 0 | AR26: =AQ25/2 -> 0 | AT26: Co | AU26: =AV25/2 -> 0 | AV26: =AU25/2 -> 0 | AW26: =AX25/2 -> 0 | AX26: =AW25/2 -> 0 | AY26: =AZ25/2 -> 0 | AZ26: =AY25/2 -> 0 | BA26: =BB25/2 -> 0 | BB26: =BA25/2 -> 0 | BC26: =BD25/2 -> 0 | BD26: =BC25/2 -> 0 | BF26: Co | BG26: =BH25/2 -> 0 | BH26: =BG25/2 -> 0 | BI26: =BJ25/2 -> 0 | BJ26: =BI25/2 -> 0 | BK26: =BL25/2 -> 0 | BL26: =BK25/2 -> 0 | BM26: =BN25/2 -> 0 | BN26: =BM25/2 -> 0 | BO26: =BP25/2 -> 0 | BP26: =BO25/2 -> 0 | BR26: Co | BS26: =BT25/2 -> 1734.783903 | BT26: =BS25/2 -> 7003.028836 | BU26: =BV25/2 -> -1433.082355 | BV26: =BU25/2 -> 1433.082355 | BW26: =BX25/2 -> -7003.028836 | BX26: =BW25/2 -> -1734.783903 | BY26: =BZ25/2 -> 0 | BZ26: =BY25/2 -> 0 | CA26: =CB25/2 -> 0 | CB26: =CA25/2 -> 0
J27: dis | K27: =(K26)*K23*-1 -> 742.0182135 | L27: =(L26+M26)*L23*-1 -> -742.0182135 | M27: =(M26+L26)*M23*-1 -> -612.9715676 | N27: =(N26+O26)*N23*-1 -> 285.0840291 | O27: =(O26+N26)*O23*-1 -> 345.1017194 | P27: =(P26+Q26)*P23*-1 -> 0 | Q27: =(Q26+P26)*Q23*-1 -> 0 | R27: =(R26+S26)*R23*-1 -> 0 | S27: =(S26+R26)*S23*-1 -> 0 | T27: =(T26+U26)*T23*-1 -> 0 | V27: dis | W27: =(W26)*W23*-1 -> -1068.506227 | X27: =(X26+Y26)*X23*-1 -> 496.946476 | Y27: =(Y26+X26)*Y23*-1 -> 410.5210019 | Z27: =(Z26+AA26)*Z23*-1 -> -410.5210019 | AA27: =(AA26+Z26)*AA23*-1 -> -496.946476 | AB27: =(AB26+AC26)*AB23*-1 -> 1068.506227 | AC27: =(AC26+AB26)*AC23*-1 -> 0 | AD27: =(AD26+AE26)*AD23*-1 -> 0 | AE27: =(AE26+AD26)*AE23*-1 -> 0 | AF27: =(AF26+AG26)*AF23*-1 -> 0 | AH27: dis | AI27: =(AI26)*AI23*-1 -> 0 | AJ27: =(AJ26+AK26)*AJ23*-1 -> -345.1017194 | AK27: =(AK26+AJ26)*AK23*-1 -> -285.0840291 | AL27: =(AL26+AM26)*AL23*-1 -> 612.9715676 | AM27: =(AM26+AL26)*AM23*-1 -> 742.0182135 | AN27: =(AN26+AO26)*AN23*-1 -> -742.0182135 | AO27: =(AO26+AN26)*AO23*-1 -> 0 | AP27: =(AP26+AQ26)*AP23*-1 -> 0 | AQ27: =(AQ26+AP26)*AQ23*-1 -> 0 | AR27: =(AR26+AS26)*AR23*-1 -> 0 | AT27: dis | AU27: =(AU26)*AU23*-1 -> 0 | AV27: =(AV26+AW26)*AV23*-1 -> 0 | AW27: =(AW26+AV26)*AW23*-1 -> 0 | AX27: =(AX26+AY26)*AX23*-1 -> 0 | AY27: =(AY26+AX26)*AY23*-1 -> 0 | AZ27: =(AZ26+BA26)*AZ23*-1 -> 0 | BA27: =(BA26+AZ26)*BA23*-1 -> 0 | BB27: =(BB26+BC26)*BB23*-1 -> 0 | BC27: =(BC26+BB26)*BC23*-1 -> 0 | BD27: =(BD26+BE26)*BD23*-1 -> 0 | BF27: dis | BG27: =(BG26)*BG23*-1 -> 0 | BH27: =(BH26+BI26)*BH23*-1 -> 0 | BI27: =(BI26+BH26)*BI23*-1 -> 0 | BJ27: =(BJ26+BK26)*BJ23*-1 -> 0 | BK27: =(BK26+BJ26)*BK23*-1 -> 0 | BL27: =(BL26+BM26)*BL23*-1 -> 0 | BM27: =(BM26+BL26)*BM23*-1 -> 0 | BN27: =(BN26+BO26)*BN23*-1 -> 0 | BO27: =(BO26+BN26)*BO23*-1 -> 0 | BP27: =(BP26+BQ26)*BP23*-1 -> 0 | BR27: dis | BS27: =(BS26)*BS23*-1 -> -1165.114089 | BT27: =(BT26+BU26)*BT23*-1 -> -2106.109199 | BU27: =(BU26+BT26)*BU23*-1 -> -1739.829338 | BV27: =(BV26+BW26)*BV23*-1 -> 1739.829338 | BW27: =(BW26+BV26)*BW23*-1 -> 2106.109199 | BX27: =(BX26+BY26)*BX23*-1 -> 1165.114089 | BY27: =(BY26+BX26)*BY23*-1 -> 0 | BZ27: =(BZ26+CA26)*BZ23*-1 -> 0 | CA27: =(CA26+BZ26)*CA23*-1 -> 0 | CB27: =(CB26+CC26)*CB23*-1 -> 0
J28: co | K28: =L27/2 -> -371.0091067 | L28: =K27/2 -> 371.0091067 | M28: =N27/2 -> 142.5420145 | N28: =M27/2 -> -306.4857838 | O28: =P27/2 -> 0 | P28: =O27/2 -> 172.5508597 | Q28: =R27/2 -> 0 | R28: =Q27/2 -> 0 | S28: =T27/2 -> 0 | T28: =S27/2 -> 0 | V28: co | W28: =X27/2 -> 248.473238 | X28: =W27/2 -> -534.2531137 | Y28: =Z27/2 -> -205.2605009 | Z28: =Y27/2 -> 205.2605009 | AA28: =AB27/2 -> 534.2531137 | AB28: =AA27/2 -> -248.473238 | AC28: =AD27/2 -> 0 | AD28: =AC27/2 -> 0 | AE28: =AF27/2 -> 0 | AF28: =AE27/2 -> 0 | AH28: co | AI28: =AJ27/2 -> -172.5508597 | AJ28: =AI27/2 -> 0 | AK28: =AL27/2 -> 306.4857838 | AL28: =AK27/2 -> -142.5420145 | AM28: =AN27/2 -> -371.0091067 | AN28: =AM27/2 -> 371.0091067 | AO28: =AP27/2 -> 0 | AP28: =AO27/2 -> 0 | AQ28: =AR27/2 -> 0 | AR28: =AQ27/2 -> 0 | AT28: co | AU28: =AV27/2 -> 0 | AV28: =AU27/2 -> 0 | AW28: =AX27/2 -> 0 | AX28: =AW27/2 -> 0 | AY28: =AZ27/2 -> 0 | AZ28: =AY27/2 -> 0 | BA28: =BB27/2 -> 0 | BB28: =BA27/2 -> 0 | BC28: =BD27/2 -> 0 | BD28: =BC27/2 -> 0 | BF28: co | BG28: =BH27/2 -> 0 | BH28: =BG27/2 -> 0 | BI28: =BJ27/2 -> 0 | BJ28: =BI27/2 -> 0 | BK28: =BL27/2 -> 0 | BL28: =BK27/2 -> 0 | BM28: =BN27/2 -> 0 | BN28: =BM27/2 -> 0 | BO28: =BP27/2 -> 0 | BP28: =BO27/2 -> 0 | BR28: co | BS28: =BT27/2 -> -1053.0546 | BT28: =BS27/2 -> -582.5570445 | BU28: =BV27/2 -> 869.9146692 | BV28: =BU27/2 -> -869.9146692 | BW28: =BX27/2 -> 582.5570445 | BX28: =BW27/2 -> 1053.0546 | BY28: =BZ27/2 -> 0 | BZ28: =BY27/2 -> 0 | CA28: =CB27/2 -> 0 | CB28: =CA27/2 -> 0
J29: dis | K29: =(K28)*K23*-1 -> 249.1768206 | L29: =(L28+M28)*L23*-1 -> -194.1840455 | M29: =(M28+L28)*M23*-1 -> -160.4129071 | N29: =(N28+O28)*N23*-1 -> 95.73394652 | O29: =(O28+N28)*O23*-1 -> 115.8884616 | P29: =(P28+Q28)*P23*-1 -> -115.8884616 | Q29: =(Q28+P28)*Q23*-1 -> 0 | R29: =(R28+S28)*R23*-1 -> 0 | S29: =(S28+R28)*S23*-1 -> 0 | T29: =(T28+U28)*T23*-1 -> 0 | V29: dis | W29: =(W28)*W23*-1 -> -166.8793847 | X29: =(X28+Y28)*X23*-1 -> 279.6250255 | Y29: =(Y28+X28)*Y23*-1 -> 230.9945863 | Z29: =(Z28+AA28)*Z23*-1 -> -230.9945863 | AA29: =(AA28+Z28)*AA23*-1 -> -279.6250255 | AB29: =(AB28+AC28)*AB23*-1 -> 166.8793847 | AC29: =(AC28+AB28)*AC23*-1 -> 0 | AD29: =(AD28+AE28)*AD23*-1 -> 0 | AE29: =(AE28+AD28)*AE23*-1 -> 0 | AF29: =(AF28+AG28)*AF23*-1 -> 0 | AH29: dis | AI29: =(AI28)*AI23*-1 -> 115.8884616 | AJ29: =(AJ28+AK28)*AJ23*-1 -> -115.8884616 | AK29: =(AK28+AJ28)*AK23*-1 -> -95.73394652 | AL29: =(AL28+AM28)*AL23*-1 -> 160.4129071 | AM29: =(AM28+AL28)*AM23*-1 -> 194.1840455 | AN29: =(AN28+AO28)*AN23*-1 -> -249.1768206 | AO29: =(AO28+AN28)*AO23*-1 -> 0 | AP29: =(AP28+AQ28)*AP23*-1 -> 0 | AQ29: =(AQ28+AP28)*AQ23*-1 -> 0 | AR29: =(AR28+AS28)*AR23*-1 -> 0 | AT29: dis | AU29: =(AU28)*AU23*-1 -> 0 | AV29: =(AV28+AW28)*AV23*-1 -> 0 | AW29: =(AW28+AV28)*AW23*-1 -> 0 | AX29: =(AX28+AY28)*AX23*-1 -> 0 | AY29: =(AY28+AX28)*AY23*-1 -> 0 | AZ29: =(AZ28+BA28)*AZ23*-1 -> 0 | BA29: =(BA28+AZ28)*BA23*-1 -> 0 | BB29: =(BB28+BC28)*BB23*-1 -> 0 | BC29: =(BC28+BB28)*BC23*-1 -> 0 | BD29: =(BD28+BE28)*BD23*-1 -> 0 | BF29: dis | BG29: =(BG28)*BG23*-1 -> 0 | BH29: =(BH28+BI28)*BH23*-1 -> 0 | BI29: =(BI28+BH28)*BI23*-1 -> 0 | BJ29: =(BJ28+BK28)*BJ23*-1 -> 0 | BK29: =(BK28+BJ28)*BK23*-1 -> 0 | BL29: =(BL28+BM28)*BL23*-1 -> 0 | BM29: =(BM28+BL28)*BM23*-1 -> 0 | BN29: =(BN28+BO28)*BN23*-1 -> 0 | BO29: =(BO28+BN28)*BO23*-1 -> 0 | BP29: =(BP28+BQ28)*BP23*-1 -> 0 | BR29: dis | BS29: =(BS28)*BS23*-1 -> 707.2516341 | BT29: =(BT28+BU28)*BT23*-1 -> -108.6557185 | BU29: =(BU28+BT28)*BU23*-1 -> -89.75907182 | BV29: =(BV28+BW28)*BV23*-1 -> 89.75907182 | BW29: =(BW28+BV28)*BW23*-1 -> 108.6557185 | BX29: =(BX28+BY28)*BX23*-1 -> -707.2516341 | BY29: =(BY28+BX28)*BY23*-1 -> 0 | BZ29: =(BZ28+CA28)*BZ23*-1 -> 0 | CA29: =(CA28+BZ28)*CA23*-1 -> 0 | CB29: =(CB28+CC28)*CB23*-1 -> 0
J30: co | K30: =L29/2 -> -97.09202274 | L30: =K29/2 -> 124.5884103 | M30: =N29/2 -> 47.86697326 | N30: =M29/2 -> -80.20645357 | O30: =P29/2 -> -57.94423079 | P30: =O29/2 -> 57.94423079 | Q30: =R29/2 -> 0 | R30: =Q29/2 -> 0 | S30: =T29/2 -> 0 | T30: =S29/2 -> 0 | V30: co | W30: =X29/2 -> 139.8125127 | X30: -83.43969233 | Y30: =Z29/2 -> -115.4972931 | Z30: =Y29/2 -> 115.4972931 | AA30: =AB29/2 -> 83.43969233 | AB30: =AA29/2 -> -139.8125127 | AC30: =AD29/2 -> 0 | AD30: =AC29/2 -> 0 | AE30: =AF29/2 -> 0 | AF30: =AE29/2 -> 0 | AH30: co | AI30: =AJ29/2 -> -57.94423079 | AJ30: =AI29/2 -> 57.94423079 | AK30: =AL29/2 -> 80.20645357 | AL30: =AK29/2 -> -47.86697326 | AM30: =AN29/2 -> -124.5884103 | AN30: =AM29/2 -> 97.09202274 | AO30: =AP29/2 -> 0 | AP30: =AO29/2 -> 0 | AQ30: =AR29/2 -> 0 | AR30: =AQ29/2 -> 0 | AT30: co | AU30: =AV29/2 -> 0 | AV30: =AU29/2 -> 0 | AW30: =AX29/2 -> 0 | AX30: =AW29/2 -> 0 | AY30: =AZ29/2 -> 0 | AZ30: =AY29/2 -> 0 | BA30: =BB29/2 -> 0 | BB30: =BA29/2 -> 0 | BC30: =BD29/2 -> 0 | BD30: =BC29/2 -> 0 | BF30: co | BG30: =BH29/2 -> 0 | BH30: =BG29/2 -> 0 | BI30: =BJ29/2 -> 0 | BJ30: =BI29/2 -> 0 | BK30: =BL29/2 -> 0 | BL30: =BK29/2 -> 0 | BM30: =BN29/2 -> 0 | BN30: =BM29/2 -> 0 | BO30: =BP29/2 -> 0 | BP30: =BO29/2 -> 0 | BR30: co | BS30: =BT29/2 -> -54.32785926 | BT30: =BS29/2 -> 353.6258171 | BU30: =BV29/2 -> 44.87953591 | BV30: =BU29/2 -> -44.87953591 | BW30: =BX29/2 -> -353.6258171 | BX30: =BW29/2 -> 54.32785926 | BY30: =BZ29/2 -> 0 | BZ30: =BY29/2 -> 0 | CA30: =CB29/2 -> 0 | CB30: =CA29/2 -> 0
J31: dis | K31: =(K30)*K23*-1 -> 65.2088617 | L31: =(L30+M30)*L23*-1 -> -65.2088617 | M31: =(M30+L30)*M23*-1 -> -53.8681901 | N31: =(N30+O30)*N23*-1 -> 43.15276899 | O31: =(O30+N30)*O23*-1 -> 52.23756246 | P31: =(P30+Q30)*P23*-1 -> -38.91645498 | Q31: =(Q30+P30)*Q23*-1 -> 0 | R31: =(R30+S30)*R23*-1 -> 0 | S31: =(S30+R30)*S23*-1 -> 0 | T31: =(T30+U30)*T23*-1 -> 0 | V31: dis | W31: =(W30)*W23*-1 -> -93.90076084 | X31: =(X30+Y30)*X23*-1 -> 75.22208994 | Y31: =(Y30+X30)*Y23*-1 -> 62.13998734 | Z31: =(Z30+AA30)*Z23*-1 -> -62.13998734 | AA31: =(AA30+Z30)*AA23*-1 -> -75.22208994 | AB31: =(AB30+AC30)*AB23*-1 -> 93.90076084 | AC31: =(AC30+AB30)*AC23*-1 -> 0 | AD31: =(AD30+AE30)*AD23*-1 -> 0 | AE31: =(AE30+AD30)*AE23*-1 -> 0 | AF31: =(AF30+AG30)*AF23*-1 -> 0 | AH31: dis | AI31: =(AI30)*AI23*-1 -> 38.91645498 | AJ31: =(AJ30+AK30)*AJ23*-1 -> -52.23756246 | AK31: =(AK30+AJ30)*AK23*-1 -> -43.15276899 | AL31: =(AL30+AM30)*AL23*-1 -> 53.8681901 | AM31: =(AM30+AL30)*AM23*-1 -> 65.2088617 | AN31: =(AN30+AO30)*AN23*-1 -> -65.2088617 | AO31: =(AO30+AN30)*AO23*-1 -> 0 | AP31: =(AP30+AQ30)*AP23*-1 -> 0 | AQ31: =(AQ30+AP30)*AQ23*-1 -> 0 | AR31: =(AR30+AS30)*AR23*-1 -> 0 | AT31: dis | AU31: =(AU30)*AU23*-1 -> 0 | AV31: =(AV30+AW30)*AV23*-1 -> 0 | AW31: =(AW30+AV30)*AW23*-1 -> 0 | AX31: =(AX30+AY30)*AX23*-1 -> 0 | AY31: =(AY30+AX30)*AY23*-1 -> 0 | AZ31: =(AZ30+BA30)*AZ23*-1 -> 0 | BA31: =(BA30+AZ30)*BA23*-1 -> 0 | BB31: =(BB30+BC30)*BB23*-1 -> 0 | BC31: =(BC30+BB30)*BC23*-1 -> 0 | BD31: =(BD30+BE30)*BD23*-1 -> 0 | BF31: dis | BG31: =(BG30)*BG23*-1 -> 0 | BH31: =(BH30+BI30)*BH23*-1 -> 0 | BI31: =(BI30+BH30)*BI23*-1 -> 0 | BJ31: =(BJ30+BK30)*BJ23*-1 -> 0 | BK31: =(BK30+BJ30)*BK23*-1 -> 0 | BL31: =(BL30+BM30)*BL23*-1 -> 0 | BM31: =(BM30+BL30)*BM23*-1 -> 0 | BN31: =(BN30+BO30)*BN23*-1 -> 0 | BO31: =(BO30+BN30)*BO23*-1 -> 0 | BP31: =(BP30+BQ30)*BP23*-1 -> 0 | BR31: dis | BS31: =(BS30)*BS23*-1 -> 36.48763061 | BT31: =(BT30+BU30)*BT23*-1 -> -150.6829182 | BU31: =(BU30+BT30)*BU23*-1 -> -124.4771933 | BV31: =(BV30+BW30)*BV23*-1 -> 124.4771933 | BW31: =(BW30+BV30)*BW23*-1 -> 150.6829182 | BX31: =(BX30+BY30)*BX23*-1 -> -36.48763061 | BY31: =(BY30+BX30)*BY23*-1 -> 0 | BZ31: =(BZ30+CA30)*BZ23*-1 -> 0 | CA31: =(CA30+BZ30)*CA23*-1 -> 0 | CB31: =(CB30+CC30)*CB23*-1 -> 0
J32: co | K32: =L31/2 -> -32.60443085 | L32: =K31/2 -> 32.60443085 | M32: =N31/2 -> 21.57638449 | N32: =M31/2 -> -26.93409505 | O32: =P31/2 -> -19.45822749 | P32: =O31/2 -> 26.11878123 | Q32: =R31/2 -> 0 | R32: =Q31/2 -> 0 | S32: =T31/2 -> 0 | T32: =S31/2 -> 0 | V32: co | W32: =X31/2 -> 37.61104497 | X32: =W31/2 -> -46.95038042 | Y32: =Z31/2 -> -31.06999367 | Z32: =Y31/2 -> 31.06999367 | AA32: =AB31/2 -> 46.95038042 | AB32: =AA31/2 -> -37.61104497 | AC32: =AD31/2 -> 0 | AD32: =AC31/2 -> 0 | AE32: =AF31/2 -> 0 | AF32: =AE31/2 -> 0 | AH32: co | AI32: =AJ31/2 -> -26.11878123 | AJ32: =AI31/2 -> 19.45822749 | AK32: =AL31/2 -> 26.93409505 | AL32: =AK31/2 -> -21.57638449 | AM32: =AN31/2 -> -32.60443085 | AN32: =AM31/2 -> 32.60443085 | AO32: =AP31/2 -> 0 | AP32: =AO31/2 -> 0 | AQ32: =AR31/2 -> 0 | AR32: =AQ31/2 -> 0 | AT32: co | AU32: =AV31/2 -> 0 | AV32: =AU31/2 -> 0 | AW32: =AX31/2 -> 0 | AX32: =AW31/2 -> 0 | AY32: =AZ31/2 -> 0 | AZ32: =AY31/2 -> 0 | BA32: =BB31/2 -> 0 | BB32: =BA31/2 -> 0 | BC32: =BD31/2 -> 0 | BD32: =BC31/2 -> 0 | BF32: co | BG32: =BH31/2 -> 0 | BH32: =BG31/2 -> 0 | BI32: =BJ31/2 -> 0 | BJ32: =BI31/2 -> 0 | BK32: =BL31/2 -> 0 | BL32: =BK31/2 -> 0 | BM32: =BN31/2 -> 0 | BN32: =BM31/2 -> 0 | BO32: =BP31/2 -> 0 | BP32: =BO31/2 -> 0 | BR32: co | BS32: =BT31/2 -> -75.34145909 | BT32: =BS31/2 -> 18.2438153 | BU32: =BV31/2 -> 62.23859664 | BV32: =BU31/2 -> -62.23859664 | BW32: =BX31/2 -> -18.2438153 | BX32: =BW31/2 -> 75.34145909 | BY32: =BZ31/2 -> 0 | BZ32: =BY31/2 -> 0 | CA32: =CB31/2 -> 0 | CB32: =CA31/2 -> 0
J33: dis | K33: =(K32)*K23*-1 -> 21.8977601 | L33: =(L32+M32)*L23*-1 -> -20.48685997 | M33: =(M32+L32)*M23*-1 -> -16.9239278 | N33: =(N32+O32)*N23*-1 -> 14.49111299 | O33: =(O32+N32)*O23*-1 -> 17.54187362 | P33: =(P32+Q32)*P23*-1 -> -17.54187362 | Q33: =(Q32+P32)*Q23*-1 -> 0 | R33: =(R32+S32)*R23*-1 -> 0 | S33: =(S32+R32)*S23*-1 -> 0 | T33: =(T32+U32)*T23*-1 -> 0 | V33: dis | W33: =(W32)*W23*-1 -> -25.26029802 | X33: =(X32+Y32)*X23*-1 -> 29.50107836 | Y33: =(Y32+X32)*Y23*-1 -> 24.37045604 | Z33: =(Z32+AA32)*Z23*-1 -> -24.37045604 | AA33: =(AA32+Z32)*AA23*-1 -> -29.50107836 | AB33: =(AB32+AC32)*AB23*-1 -> 25.26029802 | AC33: =(AC32+AB32)*AC23*-1 -> 0 | AD33: =(AD32+AE32)*AD23*-1 -> 0 | AE33: =(AE32+AD32)*AE23*-1 -> 0 | AF33: =(AF32+AG32)*AF23*-1 -> 0 | AH33: dis | AI33: =(AI32)*AI23*-1 -> 17.54187362 | AJ33: =(AJ32+AK32)*AJ23*-1 -> -17.54187362 | AK33: =(AK32+AJ32)*AK23*-1 -> -14.49111299 | AL33: =(AL32+AM32)*AL23*-1 -> 16.9239278 | AM33: =(AM32+AL32)*AM23*-1 -> 20.48685997 | AN33: =(AN32+AO32)*AN23*-1 -> -21.8977601 | AO33: =(AO32+AN32)*AO23*-1 -> 0 | AP33: =(AP32+AQ32)*AP23*-1 -> 0 | AQ33: =(AQ32+AP32)*AQ23*-1 -> 0 | AR33: =(AR32+AS32)*AR23*-1 -> 0 | AT33: dis | AU33: =(AU32)*AU23*-1 -> 0 | AV33: =(AV32+AW32)*AV23*-1 -> 0 | AW33: =(AW32+AV32)*AW23*-1 -> 0 | AX33: =(AX32+AY32)*AX23*-1 -> 0 | AY33: =(AY32+AX32)*AY23*-1 -> 0 | AZ33: =(AZ32+BA32)*AZ23*-1 -> 0 | BA33: =(BA32+AZ32)*BA23*-1 -> 0 | BB33: =(BB32+BC32)*BB23*-1 -> 0 | BC33: =(BC32+BB32)*BC23*-1 -> 0 | BD33: =(BD32+BE32)*BD23*-1 -> 0 | BF33: dis | BG33: =(BG32)*BG23*-1 -> 0 | BH33: =(BH32+BI32)*BH23*-1 -> 0 | BI33: =(BI32+BH32)*BI23*-1 -> 0 | BJ33: =(BJ32+BK32)*BJ23*-1 -> 0 | BK33: =(BK32+BJ32)*BK23*-1 -> 0 | BL33: =(BL32+BM32)*BL23*-1 -> 0 | BM33: =(BM32+BL32)*BM23*-1 -> 0 | BN33: =(BN32+BO32)*BN23*-1 -> 0 | BO33: =(BO32+BN32)*BO23*-1 -> 0 | BP33: =(BP32+BQ32)*BP23*-1 -> 0 | BR33: dis | BS33: =(BS32)*BS23*-1 -> 50.60076664 | BT33: =(BT32+BU32)*BT23*-1 -> -30.43202457 | BU33: =(BU32+BT32)*BU23*-1 -> -25.13949856 | BV33: =(BV32+BW32)*BV23*-1 -> 25.13949856 | BW33: =(BW32+BV32)*BW23*-1 -> 30.43202457 | BX33: =(BX32+BY32)*BX23*-1 -> -50.60076664 | BY33: =(BY32+BX32)*BY23*-1 -> 0 | BZ33: =(BZ32+CA32)*BZ23*-1 -> 0 | CA33: =(CA32+BZ32)*CA23*-1 -> 0 | CB33: =(CB32+CC32)*CB23*-1 -> 0
J34: co | K34: =L33/2 -> -10.24342999 | L34: =K33/2 -> 10.94888005 | M34: =N33/2 -> 7.245556497 | N34: =M33/2 -> -8.461963902 | O34: =P33/2 -> -8.770936812 | P34: =O33/2 -> 8.770936812 | Q34: =R33/2 -> 0 | R34: =Q33/2 -> 0 | S34: =T33/2 -> 0 | T34: =S33/2 -> 0 | V34: co | W34: =X33/2 -> 14.75053918 | X34: =W33/2 -> -12.63014901 | Y34: =Z33/2 -> -12.18522802 | Z34: =Y33/2 -> 12.18522802 | AA34: =AB33/2 -> 12.63014901 | AB34: =AA33/2 -> -14.75053918 | AC34: =AD33/2 -> 0 | AD34: =AC33/2 -> 0 | AE34: =AF33/2 -> 0 | AF34: =AE33/2 -> 0 | AH34: co | AI34: =AJ33/2 -> -8.770936812 | AJ34: =AI33/2 -> 8.770936812 | AK34: =AL33/2 -> 8.461963902 | AL34: =AK33/2 -> -7.245556497 | AM34: =AN33/2 -> -10.94888005 | AN34: =AM33/2 -> 10.24342999 | AO34: =AP33/2 -> 0 | AP34: =AO33/2 -> 0 | AQ34: =AR33/2 -> 0 | AR34: =AQ33/2 -> 0 | AT34: co | AU34: =AV33/2 -> 0 | AV34: =AU33/2 -> 0 | AW34: =AX33/2 -> 0 | AX34: =AW33/2 -> 0 | AY34: =AZ33/2 -> 0 | AZ34: =AY33/2 -> 0 | BA34: =BB33/2 -> 0 | BB34: =BA33/2 -> 0 | BC34: =BD33/2 -> 0 | BD34: =BC33/2 -> 0 | BF34: co | BG34: =BH33/2 -> 0 | BH34: =BG33/2 -> 0 | BI34: =BJ33/2 -> 0 | BJ34: =BI33/2 -> 0 | BK34: =BL33/2 -> 0 | BL34: =BK33/2 -> 0 | BM34: =BN33/2 -> 0 | BN34: =BM33/2 -> 0 | BO34: =BP33/2 -> 0 | BP34: =BO33/2 -> 0 | BR34: co | BS34: =BT33/2 -> -15.21601228 | BT34: =BS33/2 -> 25.30038332 | BU34: =BV33/2 -> 12.56974928 | BV34: =BU33/2 -> -12.56974928 | BW34: =BX33/2 -> -25.30038332 | BX34: =BW33/2 -> 15.21601228 | BY34: =BZ33/2 -> 0 | BZ34: =BY33/2 -> 0 | CA34: =CB33/2 -> 0 | CB34: =CA33/2 -> 0
J35: dis | K35: =(K34)*K23*-1 -> 6.879683731 | L35: =(L34+M34)*L23*-1 -> -6.879683731 | M35: =(M34+L34)*M23*-1 -> -5.683216995 | N35: =(N34+O34)*N23*-1 -> 5.382871514 | O35: =(O34+N34)*O23*-1 -> 6.516107623 | P35: =(P34+Q34)*P23*-1 -> -5.890729119 | Q35: =(Q34+P34)*Q23*-1 -> 0 | R35: =(R34+S34)*R23*-1 -> 0 | S35: =(S34+R34)*S23*-1 -> 0 | T35: =(T34+U34)*T23*-1 -> 0 | V35: dis | W35: =(W34)*W23*-1 -> -9.906744573 | X35: =(X34+Y34)*X23*-1 -> 9.383194977 | Y35: =(Y34+X34)*Y23*-1 -> 7.751334981 | Z35: =(Z34+AA34)*Z23*-1 -> -7.751334981 | AA35: =(AA34+Z34)*AA23*-1 -> -9.383194977 | AB35: =(AB34+AC34)*AB23*-1 -> 9.906744573 | AC35: =(AC34+AB34)*AC23*-1 -> 0 | AD35: =(AD34+AE34)*AD23*-1 -> 0 | AE35: =(AE34+AD34)*AE23*-1 -> 0 | AF35: =(AF34+AG34)*AF23*-1 -> 0 | AH35: dis | AI35: =(AI34)*AI23*-1 -> 5.890729119 | AJ35: =(AJ34+AK34)*AJ23*-1 -> -6.516107623 | AK35: =(AK34+AJ34)*AK23*-1 -> -5.382871514 | AL35: =(AL34+AM34)*AL23*-1 -> 5.683216995 | AM35: =(AM34+AL34)*AM23*-1 -> 6.879683731 | AN35: =(AN34+AO34)*AN23*-1 -> -6.879683731 | AO35: =(AO34+AN34)*AO23*-1 -> 0 | AP35: =(AP34+AQ34)*AP23*-1 -> 0 | AQ35: =(AQ34+AP34)*AQ23*-1 -> 0 | AR35: =(AR34+AS34)*AR23*-1 -> 0 | AT35: dis | AU35: =(AU34)*AU23*-1 -> 0 | AV35: =(AV34+AW34)*AV23*-1 -> 0 | AW35: =(AW34+AV34)*AW23*-1 -> 0 | AX35: =(AX34+AY34)*AX23*-1 -> 0 | AY35: =(AY34+AX34)*AY23*-1 -> 0 | AZ35: =(AZ34+BA34)*AZ23*-1 -> 0 | BA35: =(BA34+AZ34)*BA23*-1 -> 0 | BB35: =(BB34+BC34)*BB23*-1 -> 0 | BC35: =(BC34+BB34)*BC23*-1 -> 0 | BD35: =(BD34+BE34)*BD23*-1 -> 0 | BF35: dis | BG35: =(BG34)*BG23*-1 -> 0 | BH35: =(BH34+BI34)*BH23*-1 -> 0 | BI35: =(BI34+BH34)*BI23*-1 -> 0 | BJ35: =(BJ34+BK34)*BJ23*-1 -> 0 | BK35: =(BK34+BJ34)*BK23*-1 -> 0 | BL35: =(BL34+BM34)*BL23*-1 -> 0 | BM35: =(BM34+BL34)*BM23*-1 -> 0 | BN35: =(BN34+BO34)*BN23*-1 -> 0 | BO35: =(BO34+BN34)*BO23*-1 -> 0 | BP35: =(BP34+BQ34)*BP23*-1 -> 0 | BR35: dis | BS35: =(BS34)*BS23*-1 -> 10.21936522 | BT35: =(BT34+BU34)*BT23*-1 -> -14.31946158 | BU35: =(BU34+BT34)*BU23*-1 -> -11.82912044 | BV35: =(BV34+BW34)*BV23*-1 -> 11.82912044 | BW35: =(BW34+BV34)*BW23*-1 -> 14.31946158 | BX35: =(BX34+BY34)*BX23*-1 -> -10.21936522 | BY35: =(BY34+BX34)*BY23*-1 -> 0 | BZ35: =(BZ34+CA34)*BZ23*-1 -> 0 | CA35: =(CA34+BZ34)*CA23*-1 -> 0 | CB35: =(CB34+CC34)*CB23*-1 -> 0
J36: co | K36: =L35/2 -> -3.439841866 | L36: =K35/2 -> 3.439841866 | M36: =N35/2 -> 2.691435757 | N36: =M35/2 -> -2.841608498 | O36: =P35/2 -> -2.945364559 | P36: =O35/2 -> 3.258053811 | Q36: =R35/2 -> 0 | R36: =Q35/2 -> 0 | S36: =T35/2 -> 0 | T36: =S35/2 -> 0 | V36: co | W36: =X35/2 -> 4.691597488 | X36: -4.953372286 | Y36: =Z35/2 -> -3.87566749 | Z36: =Y35/2 -> 3.87566749 | AA36: =AB35/2 -> 4.953372286 | AB36: =AA35/2 -> -4.691597488 | AC36: =AD35/2 -> 0 | AD36: =AC35/2 -> 0 | AE36: =AF35/2 -> 0 | AF36: =AE35/2 -> 0 | AH36: co | AI36: =AJ35/2 -> -3.258053811 | AJ36: =AI35/2 -> 2.945364559 | AK36: =AL35/2 -> 2.841608498 | AL36: =AK35/2 -> -2.691435757 | AM36: =AN35/2 -> -3.439841866 | AN36: =AM35/2 -> 3.439841866 | AO36: =AP35/2 -> 0 | AP36: =AO35/2 -> 0 | AQ36: =AR35/2 -> 0 | AR36: =AQ35/2 -> 0 | AT36: co | AU36: =AV35/2 -> 0 | AV36: =AU35/2 -> 0 | AW36: =AX35/2 -> 0 | AX36: =AW35/2 -> 0 | AY36: =AZ35/2 -> 0 | AZ36: =AY35/2 -> 0 | BA36: =BB35/2 -> 0 | BB36: =BA35/2 -> 0 | BC36: =BD35/2 -> 0 | BD36: =BC35/2 -> 0 | BF36: co | BG36: =BH35/2 -> 0 | BH36: =BG35/2 -> 0 | BI36: =BJ35/2 -> 0 | BJ36: =BI35/2 -> 0 | BK36: =BL35/2 -> 0 | BL36: =BK35/2 -> 0 | BM36: =BN35/2 -> 0 | BN36: =BM35/2 -> 0 | BO36: =BP35/2 -> 0 | BP36: =BO35/2 -> 0 | BR36: co | BS36: =BT35/2 -> -7.159730791 | BT36: =BS35/2 -> 5.109682612 | BU36: =BV35/2 -> 5.914560218 | BV36: =BU35/2 -> -5.914560218 | BW36: =BX35/2 -> -5.109682612 | BX36: =BW35/2 -> 7.159730791 | BY36: =BZ35/2 -> 0 | BZ36: =BY35/2 -> 0 | CA36: =CB35/2 -> 0 | CB36: =CA35/2 -> 0
J37: dis | K37: =(K36)*K23*-1 -> 2.310263667 | L37: =(L36+M36)*L23*-1 -> -2.318359835 | M37: =(M36+L36)*M23*-1 -> -1.91516682 | N37: =(N36+O36)*N23*-1 -> 1.807619793 | O37: =(O36+N36)*O23*-1 -> 2.188171328 | P37: =(P36+Q36)*P23*-1 -> -2.188171328 | Q37: =(Q36+P36)*Q23*-1 -> 0 | R37: =(R36+S36)*R23*-1 -> 0 | S37: =(S36+R36)*S23*-1 -> 0 | T37: =(T36+U36)*T23*-1 -> 0 | V37: dis | W37: =(W36)*W23*-1 -> -3.150966713 | X37: =(X36+Y36)*X23*-1 -> 3.338438162 | Y37: =(Y36+X36)*Y23*-1 -> 2.757840221 | Z37: =(Z36+AA36)*Z23*-1 -> -2.757840221 | AA37: =(AA36+Z36)*AA23*-1 -> -3.338438162 | AB37: =(AB36+AC36)*AB23*-1 -> 3.150966713 | AC37: =(AC36+AB36)*AC23*-1 -> 0 | AD37: =(AD36+AE36)*AD23*-1 -> 0 | AE37: =(AE36+AD36)*AE23*-1 -> 0 | AF37: =(AF36+AG36)*AF23*-1 -> 0 | AH37: dis | AI37: =(AI36)*AI23*-1 -> 2.188171328 | AJ37: =(AJ36+AK36)*AJ23*-1 -> -2.188171328 | AK37: =(AK36+AJ36)*AK23*-1 -> -1.807619793 | AL37: =(AL36+AM36)*AL23*-1 -> 1.91516682 | AM37: =(AM36+AL36)*AM23*-1 -> 2.318359835 | AN37: =(AN36+AO36)*AN23*-1 -> -2.310263667 | AO37: =(AO36+AN36)*AO23*-1 -> 0 | AP37: =(AP36+AQ36)*AP23*-1 -> 0 | AQ37: =(AQ36+AP36)*AQ23*-1 -> 0 | AR37: =(AR36+AS36)*AR23*-1 -> 0 | AT37: dis | AU37: =(AU36)*AU23*-1 -> 0 | AV37: =(AV36+AW36)*AV23*-1 -> 0 | AW37: =(AW36+AV36)*AW23*-1 -> 0 | AX37: =(AX36+AY36)*AX23*-1 -> 0 | AY37: =(AY36+AX36)*AY23*-1 -> 0 | AZ37: =(AZ36+BA36)*AZ23*-1 -> 0 | BA37: =(BA36+AZ36)*BA23*-1 -> 0 | BB37: =(BB36+BC36)*BB23*-1 -> 0 | BC37: =(BC36+BB36)*BC23*-1 -> 0 | BD37: =(BD36+BE36)*BD23*-1 -> 0 | BF37: dis | BG37: =(BG36)*BG23*-1 -> 0 | BH37: =(BH36+BI36)*BH23*-1 -> 0 | BI37: =(BI36+BH36)*BI23*-1 -> 0 | BJ37: =(BJ36+BK36)*BJ23*-1 -> 0 | BK37: =(BK36+BJ36)*BK23*-1 -> 0 | BL37: =(BL36+BM36)*BL23*-1 -> 0 | BM37: =(BM36+BL36)*BM23*-1 -> 0 | BN37: =(BN36+BO36)*BN23*-1 -> 0 | BO37: =(BO36+BN36)*BO23*-1 -> 0 | BP37: =(BP36+BQ36)*BP23*-1 -> 0 | BR37: dis | BS37: =(BS36)*BS23*-1 -> 4.808612301 | BT37: =(BT36+BU36)*BT23*-1 -> -4.168488749 | BU37: =(BU36+BT36)*BU23*-1 -> -3.443534184 | BV37: =(BV36+BW36)*BV23*-1 -> 3.443534184 | BW37: =(BW36+BV36)*BW23*-1 -> 4.168488749 | BX37: =(BX36+BY36)*BX23*-1 -> -4.808612301 | BY37: =(BY36+BX36)*BY23*-1 -> 0 | BZ37: =(BZ36+CA36)*BZ23*-1 -> 0 | CA37: =(CA36+BZ36)*CA23*-1 -> 0 | CB37: =(CB36+CC36)*CB23*-1 -> 0
J38: co | K38: =L37/2 -> -1.159179917 | L38: =K37/2 -> 1.155131833 | M38: =N37/2 -> 0.9038098965 | N38: =M37/2 -> -0.9575834101 | O38: =P37/2 -> -1.094085664 | P38: =O37/2 -> 1.094085664 | Q38: =R37/2 -> 0 | R38: =Q37/2 -> 0 | S38: =T37/2 -> 0 | T38: =S37/2 -> 0 | V38: co | W38: =X37/2 -> 1.669219081 | X38: =W37/2 -> -1.575483356 | Y38: =Z37/2 -> -1.37892011 | Z38: =Y37/2 -> 1.37892011 | AA38: =AB37/2 -> 1.575483356 | AB38: =AA37/2 -> -1.669219081 | AC38: =AD37/2 -> 0 | AD38: =AC37/2 -> 0 | AE38: =AF37/2 -> 0 | AF38: =AE37/2 -> 0 | AH38: co | AI38: =AJ37/2 -> -1.094085664 | AJ38: =AI37/2 -> 1.094085664 | AK38: =AL37/2 -> 0.9575834101 | AL38: =AK37/2 -> -0.9038098965 | AM38: =AN37/2 -> -1.155131833 | AN38: =AM37/2 -> 1.159179917 | AO38: =AP37/2 -> 0 | AP38: =AO37/2 -> 0 | AQ38: =AR37/2 -> 0 | AR38: =AQ37/2 -> 0 | AT38: co | AU38: =AV37/2 -> 0 | AV38: =AU37/2 -> 0 | AW38: =AX37/2 -> 0 | AX38: =AW37/2 -> 0 | AY38: =AZ37/2 -> 0 | AZ38: =AY37/2 -> 0 | BA38: =BB37/2 -> 0 | BB38: =BA37/2 -> 0 | BC38: =BD37/2 -> 0 | BD38: =BC37/2 -> 0 | BF38: co | BG38: =BH37/2 -> 0 | BH38: =BG37/2 -> 0 | BI38: =BJ37/2 -> 0 | BJ38: =BI37/2 -> 0 | BK38: =BL37/2 -> 0 | BL38: =BK37/2 -> 0 | BM38: =BN37/2 -> 0 | BN38: =BM37/2 -> 0 | BO38: =BP37/2 -> 0 | BP38: =BO37/2 -> 0 | BR38: co | BS38: =BT37/2 -> -2.084244374 | BT38: =BS37/2 -> 2.404306151 | BU38: =BV37/2 -> 1.721767092 | BV38: =BU37/2 -> -1.721767092 | BW38: =BX37/2 -> -2.404306151 | BX38: =BW37/2 -> 2.084244374 | BY38: =BZ37/2 -> 0 | BZ38: =BY37/2 -> 0 | CA38: =CB37/2 -> 0 | CB38: =CA37/2 -> 0
J39: dis | K39: =(K38)*K23*-1 -> 0.7785274298 | L39: =(L38+M38)*L23*-1 -> -0.7785274298 | M39: =(M38+L38)*M23*-1 -> -0.6431313551 | N39: =(N38+O38)*N23*-1 -> 0.6408596672 | O39: =(O38+N38)*O23*-1 -> 0.7757774919 | P39: =(P38+Q38)*P23*-1 -> -0.7348088828 | Q39: =(Q38+P38)*Q23*-1 -> 0 | R39: =(R38+S38)*R23*-1 -> 0 | S39: =(S38+R38)*S23*-1 -> 0 | T39: =(T38+U38)*T23*-1 -> 0 | V39: dis | W39: =(W38)*W23*-1 -> -1.121079499 | X39: =(X38+Y38)*X23*-1 -> 1.117119588 | Y39: =(Y38+X38)*Y23*-1 -> 0.9228379208 | Z39: =(Z38+AA38)*Z23*-1 -> -0.9228379208 | AA39: =(AA38+Z38)*AA23*-1 -> -1.117119588 | AB39: =(AB38+AC38)*AB23*-1 -> 1.121079499 | AC39: =(AC38+AB38)*AC23*-1 -> 0 | AD39: =(AD38+AE38)*AD23*-1 -> 0 | AE39: =(AE38+AD38)*AE23*-1 -> 0 | AF39: =(AF38+AG38)*AF23*-1 -> 0 | AH39: dis | AI39: =(AI38)*AI23*-1 -> 0.7348088828 | AJ39: =(AJ38+AK38)*AJ23*-1 -> -0.7757774919 | AK39: =(AK38+AJ38)*AK23*-1 -> -0.6408596672 | AL39: =(AL38+AM38)*AL23*-1 -> 0.6431313551 | AM39: =(AM38+AL38)*AM23*-1 -> 0.7785274298 | AN39: =(AN38+AO38)*AN23*-1 -> -0.7785274298 | AO39: =(AO38+AN38)*AO23*-1 -> 0 | AP39: =(AP38+AQ38)*AP23*-1 -> 0 | AQ39: =(AQ38+AP38)*AQ23*-1 -> 0 | AR39: =(AR38+AS38)*AR23*-1 -> 0 | AT39: dis | AU39: =(AU38)*AU23*-1 -> 0 | AV39: =(AV38+AW38)*AV23*-1 -> 0 | AW39: =(AW38+AV38)*AW23*-1 -> 0 | AX39: =(AX38+AY38)*AX23*-1 -> 0 | AY39: =(AY38+AX38)*AY23*-1 -> 0 | AZ39: =(AZ38+BA38)*AZ23*-1 -> 0 | BA39: =(BA38+AZ38)*BA23*-1 -> 0 | BB39: =(BB38+BC38)*BB23*-1 -> 0 | BC39: =(BC38+BB38)*BC23*-1 -> 0 | BD39: =(BD38+BE38)*BD23*-1 -> 0 | BF39: dis | BG39: =(BG38)*BG23*-1 -> 0 | BH39: =(BH38+BI38)*BH23*-1 -> 0 | BI39: =(BI38+BH38)*BI23*-1 -> 0 | BJ39: =(BJ38+BK38)*BJ23*-1 -> 0 | BK39: =(BK38+BJ38)*BK23*-1 -> 0 | BL39: =(BL38+BM38)*BL23*-1 -> 0 | BM39: =(BM38+BL38)*BM23*-1 -> 0 | BN39: =(BN38+BO38)*BN23*-1 -> 0 | BO39: =(BO38+BN38)*BO23*-1 -> 0 | BP39: =(BP38+BQ38)*BP23*-1 -> 0 | BR39: dis | BS39: =(BS38)*BS23*-1 -> 1.399818433 | BT39: =(BT38+BU38)*BT23*-1 -> -1.560151582 | BU39: =(BU38+BT38)*BU23*-1 -> -1.288820872 | BV39: =(BV38+BW38)*BV23*-1 -> 1.288820872 | BW39: =(BW38+BV38)*BW23*-1 -> 1.560151582 | BX39: =(BX38+BY38)*BX23*-1 -> -1.399818433 | BY39: =(BY38+BX38)*BY23*-1 -> 0 | BZ39: =(BZ38+CA38)*BZ23*-1 -> 0 | CA39: =(CA38+BZ38)*CA23*-1 -> 0 | CB39: =(CB38+CC38)*CB23*-1 -> 0
J40: co | K40: =L39/2 -> -0.3892637149 | L40: =K39/2 -> 0.3892637149 | M40: =N39/2 -> 0.3204298336 | N40: =M39/2 -> -0.3215656775 | O40: =P39/2 -> -0.3674044414 | P40: =O39/2 -> 0.387888746 | Q40: =R39/2 -> 0 | R40: =Q39/2 -> 0 | S40: =T39/2 -> 0 | T40: =S39/2 -> 0 | V40: co | W40: =X39/2 -> 0.5585597942 | X40: =W39/2 -> -0.5605397495 | Y40: =Z39/2 -> -0.4614189604 | Z40: =Y39/2 -> 0.4614189604 | AA40: =AB39/2 -> 0.5605397495 | AB40: =AA39/2 -> -0.5585597942 | AC40: =AD39/2 -> 0 | AD40: =AC39/2 -> 0 | AE40: =AF39/2 -> 0 | AF40: =AE39/2 -> 0 | AH40: co | AI40: =AJ39/2 -> -0.387888746 | AJ40: =AI39/2 -> 0.3674044414 | AK40: =AL39/2 -> 0.3215656775 | AL40: =AK39/2 -> -0.3204298336 | AM40: =AN39/2 -> -0.3892637149 | AN40: =AM39/2 -> 0.3892637149 | AO40: =AP39/2 -> 0 | AP40: =AO39/2 -> 0 | AQ40: =AR39/2 -> 0 | AR40: =AQ39/2 -> 0 | AT40: co | AU40: =AV39/2 -> 0 | AV40: =AU39/2 -> 0 | AW40: =AX39/2 -> 0 | AX40: =AW39/2 -> 0 | AY40: =AZ39/2 -> 0 | AZ40: =AY39/2 -> 0 | BA40: =BB39/2 -> 0 | BB40: =BA39/2 -> 0 | BC40: =BD39/2 -> 0 | BD40: =BC39/2 -> 0 | BF40: co | BG40: =BH39/2 -> 0 | BH40: =BG39/2 -> 0 | BI40: =BJ39/2 -> 0 | BJ40: =BI39/2 -> 0 | BK40: =BL39/2 -> 0 | BL40: =BK39/2 -> 0 | BM40: =BN39/2 -> 0 | BN40: =BM39/2 -> 0 | BO40: =BP39/2 -> 0 | BP40: =BO39/2 -> 0 | BR40: co | BS40: =BT39/2 -> -0.7800757909 | BT40: =BS39/2 -> 0.6999092166 | BU40: =BV39/2 -> 0.644410436 | BV40: =BU39/2 -> -0.644410436 | BW40: =BX39/2 -> -0.6999092166 | BX40: =BW39/2 -> 0.7800757909 | BY40: =BZ39/2 -> 0 | BZ40: =BY39/2 -> 0 | CA40: =CB39/2 -> 0 | CB40: =CA39/2 -> 0
J41: dis | K41: =(K40)*K23*-1 -> 0.261436965 | L41: =(L40+M40)*L23*-1 -> -0.2683494565 | M41: =(M40+L40)*M23*-1 -> -0.2216799858 | N41: =(N40+O40)*N23*-1 -> 0.2152068122 | O41: =(O40+N40)*O23*-1 -> 0.2605135095 | P41: =(P40+Q40)*P23*-1 -> -0.2605135095 | Q41: =(Q40+P40)*Q23*-1 -> 0 | R41: =(R40+S40)*R23*-1 -> 0 | S41: =(S40+R40)*S23*-1 -> 0 | T41: =(T40+U40)*T23*-1 -> 0 | V41: dis | W41: =(W40)*W23*-1 -> -0.3751394537 | X41: =(X40+Y40)*X23*-1 -> 0.3864232174 | Y41: =(Y40+X40)*Y23*-1 -> 0.3192191796 | Z41: =(Z40+AA40)*Z23*-1 -> -0.3192191796 | AA41: =(AA40+Z40)*AA23*-1 -> -0.3864232174 | AB41: =(AB40+AC40)*AB23*-1 -> 0.3751394537 | AC41: =(AC40+AB40)*AC23*-1 -> 0 | AD41: =(AD40+AE40)*AD23*-1 -> 0 | AE41: =(AE40+AD40)*AE23*-1 -> 0 | AF41: =(AF40+AG40)*AF23*-1 -> 0 | AH41: dis | AI41: =(AI40)*AI23*-1 -> 0.2605135095 | AJ41: =(AJ40+AK40)*AJ23*-1 -> -0.2605135095 | AK41: =(AK40+AJ40)*AK23*-1 -> -0.2152068122 | AL41: =(AL40+AM40)*AL23*-1 -> 0.2216799858 | AM41: =(AM40+AL40)*AM23*-1 -> 0.2683494565 | AN41: =(AN40+AO40)*AN23*-1 -> -0.261436965 | AO41: =(AO40+AN40)*AO23*-1 -> 0 | AP41: =(AP40+AQ40)*AP23*-1 -> 0 | AQ41: =(AQ40+AP40)*AQ23*-1 -> 0 | AR41: =(AR40+AS40)*AR23*-1 -> 0 | AT41: dis | AU41: =(AU40)*AU23*-1 -> 0 | AV41: =(AV40+AW40)*AV23*-1 -> 0 | AW41: =(AW40+AV40)*AW23*-1 -> 0 | AX41: =(AX40+AY40)*AX23*-1 -> 0 | AY41: =(AY40+AX40)*AY23*-1 -> 0 | AZ41: =(AZ40+BA40)*AZ23*-1 -> 0 | BA41: =(BA40+AZ40)*BA23*-1 -> 0 | BB41: =(BB40+BC40)*BB23*-1 -> 0 | BC41: =(BC40+BB40)*BC23*-1 -> 0 | BD41: =(BD40+BE40)*BD23*-1 -> 0 | BF41: dis | BG41: =(BG40)*BG23*-1 -> 0 | BH41: =(BH40+BI40)*BH23*-1 -> 0 | BI41: =(BI40+BH40)*BI23*-1 -> 0 | BJ41: =(BJ40+BK40)*BJ23*-1 -> 0 | BK41: =(BK40+BJ40)*BK23*-1 -> 0 | BL41: =(BL40+BM40)*BL23*-1 -> 0 | BM41: =(BM40+BL40)*BM23*-1 -> 0 | BN41: =(BN40+BO40)*BN23*-1 -> 0 | BO41: =(BO40+BN40)*BO23*-1 -> 0 | BP41: =(BP40+BQ40)*BP23*-1 -> 0 | BR41: dis | BS41: =(BS40)*BS23*-1 -> 0.5239138389 | BT41: =(BT40+BU40)*BT23*-1 -> -0.508314397 | BU41: =(BU40+BT40)*BU23*-1 -> -0.4199118932 | BV41: =(BV40+BW40)*BV23*-1 -> 0.4199118932 | BW41: =(BW40+BV40)*BW23*-1 -> 0.508314397 | BX41: =(BX40+BY40)*BX23*-1 -> -0.5239138389 | BY41: =(BY40+BX40)*BY23*-1 -> 0 | BZ41: =(BZ40+CA40)*BZ23*-1 -> 0 | CA41: =(CA40+BZ40)*CA23*-1 -> 0 | CB41: =(CB40+CC40)*CB23*-1 -> 0
J42: co | K42: =L41/2 -> -0.1341747283 | L42: =K41/2 -> 0.1307184825 | M42: =N41/2 -> 0.1076034061 | N42: =M41/2 -> -0.1108399929 | O42: =P41/2 -> -0.1302567547 | P42: =O41/2 -> 0.1302567547 | Q42: =R41/2 -> 0 | R42: =Q41/2 -> 0 | S42: =T41/2 -> 0 | T42: =S41/2 -> 0 | V42: co | W42: =X41/2 -> 0.1932116087 | X42: =W41/2 -> -0.1875697268 | Y42: =Z41/2 -> -0.1596095898 | Z42: =Y41/2 -> 0.1596095898 | AA42: =AB41/2 -> 0.1875697268 | AB42: =AA41/2 -> -0.1932116087 | AC42: =AD41/2 -> 0 | AD42: =AC41/2 -> 0 | AE42: =AF41/2 -> 0 | AF42: =AE41/2 -> 0 | AH42: co | AI42: =AJ41/2 -> -0.1302567547 | AJ42: =AI41/2 -> 0.1302567547 | AK42: =AL41/2 -> 0.1108399929 | AL42: =AK41/2 -> -0.1076034061 | AM42: =AN41/2 -> -0.1307184825 | AN42: =AM41/2 -> 0.1341747283 | AO42: =AP41/2 -> 0 | AP42: =AO41/2 -> 0 | AQ42: =AR41/2 -> 0 | AR42: =AQ41/2 -> 0 | AT42: co | AU42: =AV41/2 -> 0 | AV42: =AU41/2 -> 0 | AW42: =AX41/2 -> 0 | AX42: =AW41/2 -> 0 | AY42: =AZ41/2 -> 0 | AZ42: =AY41/2 -> 0 | BA42: =BB41/2 -> 0 | BB42: =BA41/2 -> 0 | BC42: =BD41/2 -> 0 | BD42: =BC41/2 -> 0 | BF42: co | BG42: =BH41/2 -> 0 | BH42: =BG41/2 -> 0 | BI42: =BJ41/2 -> 0 | BJ42: =BI41/2 -> 0 | BK42: =BL41/2 -> 0 | BL42: =BK41/2 -> 0 | BM42: =BN41/2 -> 0 | BN42: =BM41/2 -> 0 | BO42: =BP41/2 -> 0 | BP42: =BO41/2 -> 0 | BR42: co | BS42: =BT41/2 -> -0.2541571985 | BT42: =BS41/2 -> 0.2619569195 | BU42: =BV41/2 -> 0.2099559466 | BV42: =BU41/2 -> -0.2099559466 | BW42: =BX41/2 -> -0.2619569195 | BX42: =BW41/2 -> 0.2541571985 | BY42: =BZ41/2 -> 0 | BZ42: =BY41/2 -> 0 | CA42: =CB41/2 -> 0 | CB42: =CA41/2 -> 0
J43: dis | K43: =(K42)*K23*-1 -> 0.09011431683 | L43: =(L42+M42)*L23*-1 -> -0.09011431683 | M43: =(M42+L42)*M23*-1 -> -0.07444226173 | N43: =(N42+O42)*N23*-1 -> 0.07530901714 | O43: =(O42+N42)*O23*-1 -> 0.09116354706 | P43: =(P42+Q42)*P23*-1 -> -0.08748293079 | Q43: =(Q42+P42)*Q23*-1 -> 0 | R43: =(R42+S42)*R23*-1 -> 0 | S43: =(S42+R42)*S23*-1 -> 0 | T43: =(T42+U42)*T23*-1 -> 0 | V43: dis | W43: =(W42)*W23*-1 -> -0.1297646162 | X43: =(X42+Y42)*X23*-1 -> 0.1312755078 | Y43: =(Y42+X42)*Y23*-1 -> 0.1084449847 | Z43: =(Z42+AA42)*Z23*-1 -> -0.1084449847 | AA43: =(AA42+Z42)*AA23*-1 -> -0.1312755078 | AB43: =(AB42+AC42)*AB23*-1 -> 0.1297646162 | AC43: =(AC42+AB42)*AC23*-1 -> 0 | AD43: =(AD42+AE42)*AD23*-1 -> 0 | AE43: =(AE42+AD42)*AE23*-1 -> 0 | AF43: =(AF42+AG42)*AF23*-1 -> 0 | AH43: dis | AI43: =(AI42)*AI23*-1 -> 0.08748293079 | AJ43: =(AJ42+AK42)*AJ23*-1 -> -0.09116354706 | AK43: =(AK42+AJ42)*AK23*-1 -> -0.07530901714 | AL43: =(AL42+AM42)*AL23*-1 -> 0.07444226173 | AM43: =(AM42+AL42)*AM23*-1 -> 0.09011431683 | AN43: =(AN42+AO42)*AN23*-1 -> -0.09011431683 | AO43: =(AO42+AN42)*AO23*-1 -> 0 | AP43: =(AP42+AQ42)*AP23*-1 -> 0 | AQ43: =(AQ42+AP42)*AQ23*-1 -> 0 | AR43: =(AR42+AS42)*AR23*-1 -> 0 | AT43: dis | AU43: =(AU42)*AU23*-1 -> 0 | AV43: =(AV42+AW42)*AV23*-1 -> 0 | AW43: =(AW42+AV42)*AW23*-1 -> 0 | AX43: =(AX42+AY42)*AX23*-1 -> 0 | AY43: =(AY42+AX42)*AY23*-1 -> 0 | AZ43: =(AZ42+BA42)*AZ23*-1 -> 0 | BA43: =(BA42+AZ42)*BA23*-1 -> 0 | BB43: =(BB42+BC42)*BB23*-1 -> 0 | BC43: =(BC42+BB42)*BC23*-1 -> 0 | BD43: =(BD42+BE42)*BD23*-1 -> 0 | BF43: dis | BG43: =(BG42)*BG23*-1 -> 0 | BH43: =(BH42+BI42)*BH23*-1 -> 0 | BI43: =(BI42+BH42)*BI23*-1 -> 0 | BJ43: =(BJ42+BK42)*BJ23*-1 -> 0 | BK43: =(BK42+BJ42)*BK23*-1 -> 0 | BL43: =(BL42+BM42)*BL23*-1 -> 0 | BM43: =(BM42+BL42)*BM23*-1 -> 0 | BN43: =(BN42+BO42)*BN23*-1 -> 0 | BO43: =(BO42+BN42)*BO23*-1 -> 0 | BP43: =(BP42+BQ42)*BP23*-1 -> 0 | BR43: dis | BS43: =(BS42)*BS23*-1 -> 0.1706968414 | BT43: =(BT42+BU42)*BT23*-1 -> -0.1784397807 | BU43: =(BU42+BT42)*BU23*-1 -> -0.1474067753 | BV43: =(BV42+BW42)*BV23*-1 -> 0.1474067753 | BW43: =(BW42+BV42)*BW23*-1 -> 0.1784397807 | BX43: =(BX42+BY42)*BX23*-1 -> -0.1706968414 | BY43: =(BY42+BX42)*BY23*-1 -> 0 | BZ43: =(BZ42+CA42)*BZ23*-1 -> 0 | CA43: =(CA42+BZ42)*CA23*-1 -> 0 | CB43: =(CB42+CC42)*CB23*-1 -> 0
J44: co | K44: =L43/2 -> -0.04505715841 | L44: =K43/2 -> 0.04505715841 | M44: =N43/2 -> 0.03765450857 | N44: =M43/2 -> -0.03722113086 | O44: =P43/2 -> -0.04374146539 | P44: =O43/2 -> 0.04558177353 | Q44: =R43/2 -> 0 | R44: =Q43/2 -> 0 | S44: =T43/2 -> 0 | T44: =S43/2 -> 0 | V44: co | W44: =X43/2 -> 0.06563775389 | X44: =W43/2 -> -0.06488230812 | Y44: =Z43/2 -> -0.05422249234 | Z44: =Y43/2 -> 0.05422249234 | AA44: =AB43/2 -> 0.06488230812 | AB44: =AA43/2 -> -0.06563775389 | AC44: =AD43/2 -> 0 | AD44: =AC43/2 -> 0 | AE44: =AF43/2 -> 0 | AF44: =AE43/2 -> 0 | AH44: co | AI44: =AJ43/2 -> -0.04558177353 | AJ44: =AI43/2 -> 0.04374146539 | AK44: =AL43/2 -> 0.03722113086 | AL44: =AK43/2 -> -0.03765450857 | AM44: =AN43/2 -> -0.04505715841 | AN44: =AM43/2 -> 0.04505715841 | AO44: =AP43/2 -> 0 | AP44: =AO43/2 -> 0 | AQ44: =AR43/2 -> 0 | AR44: =AQ43/2 -> 0 | AT44: co | AU44: =AV43/2 -> 0 | AV44: =AU43/2 -> 0 | AW44: =AX43/2 -> 0 | AX44: =AW43/2 -> 0 | AY44: =AZ43/2 -> 0 | AZ44: =AY43/2 -> 0 | BA44: =BB43/2 -> 0 | BB44: =BA43/2 -> 0 | BC44: =BD43/2 -> 0 | BD44: =BC43/2 -> 0 | BF44: co | BG44: =BH43/2 -> 0 | BH44: =BG43/2 -> 0 | BI44: =BJ43/2 -> 0 | BJ44: =BI43/2 -> 0 | BK44: =BL43/2 -> 0 | BL44: =BK43/2 -> 0 | BM44: =BN43/2 -> 0 | BN44: =BM43/2 -> 0 | BO44: =BP43/2 -> 0 | BP44: =BO43/2 -> 0 | BR44: co | BS44: =BT43/2 -> -0.08921989034 | BT44: =BS43/2 -> 0.0853484207 | BU44: =BV43/2 -> 0.07370338767 | BV44: =BU43/2 -> -0.07370338767 | BW44: =BX43/2 -> -0.0853484207 | BX44: =BW43/2 -> 0.08921989034 | BY44: =BZ43/2 -> 0 | BZ44: =BY43/2 -> 0 | CA44: =CB43/2 -> 0 | CB44: =CA43/2 -> 0
J45: dis | K45: =(K44)*K23*-1 -> 0.0302612504 | L45: =(L44+M44)*L23*-1 -> -0.0312749509 | M45: =(M44+L44)*M23*-1 -> -0.02583582901 | N45: =(N44+O44)*N23*-1 -> 0.025289489 | O45: =(O44+N44)*O23*-1 -> 0.03061359195 | P45: =(P44+Q44)*P23*-1 -> -0.03061359195 | Q45: =(Q44+P44)*Q23*-1 -> 0 | R45: =(R44+S44)*R23*-1 -> 0 | S45: =(S44+R44)*S23*-1 -> 0 | T45: =(T44+U44)*T23*-1 -> 0 | V45: dis | W45: =(W44)*W23*-1 -> -0.04408357241 | X45: =(X44+Y44)*X23*-1 -> 0.0450359293 | Y45: =(Y44+X44)*Y23*-1 -> 0.03720359377 | Z45: =(Z44+AA44)*Z23*-1 -> -0.03720359377 | AA45: =(AA44+Z44)*AA23*-1 -> -0.0450359293 | AB45: =(AB44+AC44)*AB23*-1 -> 0.04408357241 | AC45: =(AC44+AB44)*AC23*-1 -> 0 | AD45: =(AD44+AE44)*AD23*-1 -> 0 | AE45: =(AE44+AD44)*AE23*-1 -> 0 | AF45: =(AF44+AG44)*AF23*-1 -> 0 | AH45: dis | AI45: =(AI44)*AI23*-1 -> 0.03061359195 | AJ45: =(AJ44+AK44)*AJ23*-1 -> -0.03061359195 | AK45: =(AK44+AJ44)*AK23*-1 -> -0.025289489 | AL45: =(AL44+AM44)*AL23*-1 -> 0.02583582901 | AM45: =(AM44+AL44)*AM23*-1 -> 0.0312749509 | AN45: =(AN44+AO44)*AN23*-1 -> -0.0302612504 | AO45: =(AO44+AN44)*AO23*-1 -> 0 | AP45: =(AP44+AQ44)*AP23*-1 -> 0 | AQ45: =(AQ44+AP44)*AQ23*-1 -> 0 | AR45: =(AR44+AS44)*AR23*-1 -> 0 | AT45: dis | AU45: =(AU44)*AU23*-1 -> 0 | AV45: =(AV44+AW44)*AV23*-1 -> 0 | AW45: =(AW44+AV44)*AW23*-1 -> 0 | AX45: =(AX44+AY44)*AX23*-1 -> 0 | AY45: =(AY44+AX44)*AY23*-1 -> 0 | AZ45: =(AZ44+BA44)*AZ23*-1 -> 0 | BA45: =(BA44+AZ44)*BA23*-1 -> 0 | BB45: =(BB44+BC44)*BB23*-1 -> 0 | BC45: =(BC44+BB44)*BC23*-1 -> 0 | BD45: =(BD44+BE44)*BD23*-1 -> 0 | BF45: dis | BG45: =(BG44)*BG23*-1 -> 0 | BH45: =(BH44+BI44)*BH23*-1 -> 0 | BI45: =(BI44+BH44)*BI23*-1 -> 0 | BJ45: =(BJ44+BK44)*BJ23*-1 -> 0 | BK45: =(BK44+BJ44)*BK23*-1 -> 0 | BL45: =(BL44+BM44)*BL23*-1 -> 0 | BM45: =(BM44+BL44)*BM23*-1 -> 0 | BN45: =(BN44+BO44)*BN23*-1 -> 0 | BO45: =(BO44+BN44)*BO23*-1 -> 0 | BP45: =(BP44+BQ44)*BP23*-1 -> 0 | BR45: dis | BS45: =(BS44)*BS23*-1 -> 0.05992178683 | BT45: =(BT44+BU44)*BT23*-1 -> -0.06014069936 | BU45: =(BU44+BT44)*BU23*-1 -> -0.0496814473 | BV45: =(BV44+BW44)*BV23*-1 -> 0.0496814473 | BW45: =(BW44+BV44)*BW23*-1 -> 0.06014069936 | BX45: =(BX44+BY44)*BX23*-1 -> -0.05992178683 | BY45: =(BY44+BX44)*BY23*-1 -> 0 | BZ45: =(BZ44+CA44)*BZ23*-1 -> 0 | CA45: =(CA44+BZ44)*CA23*-1 -> 0 | CB45: =(CB44+CC44)*CB23*-1 -> 0
J46: sum | K46: =SUM(K24:K45) -> -2451.26008 | L46: =SUM(L24:L45) -> 5108.543915 | M46: =SUM(M24:M45) -> -2454.802851 | N46: =SUM(N24:N45) -> -892.425425 | O46: =SUM(O24:O45) -> 449.8777162 | P46: 88.76156575 | Q46: 0 | R46: 0 | S46: 0 | T46: 0 | V46: sum | W46: =SUM(W24:W45) -> 669.4917937 | X46: 3392.962339 | Y46: -6730.764596 | Z46: 6730.764596 | AA46: -3392.962339 | AB46: -669.4917937 | AC46: 0 | AD46: 0 | AE46: 0 | AF46: 0 | AH46: sum | AI46: =SUM(AI24:AI45) -> -88.76156575 | AJ46: -449.8777162 | AK46: 892.425425 | AL46: 2454.802851 | AM46: -5108.543915 | AN46: 2451.26008 | AO46: 0 | AP46: 0 | AQ46: 0 | AR46: 0 | AT46: sum | AU46: =SUM(AU24:AU45) -> 0 | AV46: 0 | AW46: 0 | AX46: 0 | AY46: 0 | AZ46: 0 | BA46: 0 | BB46: 0 | BC46: 0 | BD46: 0 | BF46: sum | BG46: =SUM(BG24:BG45) -> 0 | BH46: 0 | BI46: 0 | BJ46: 0 | BK46: 0 | BL46: 0 | BM46: 0 | BN46: 0 | BO46: 0 | BP46: 0 | BR46: sum | BS46: =SUM(BS24:BS45) -> -6675.224179 | BT46: 28733.26263 | BU46: -29595.13427 | BV46: 29595.13427 | BW46: -28733.26263 | BX46: 6675.224179 | BY46: 0 | BZ46: 0 | CA46: 0 | CB46: 0
J47: โมเมนต์บวก span 1 = | K47: =K110 -> 19655.51866 | M47: โมเมนต์บวก span 2 = | N47: =W110 -> 21341.60113 | O47: โมเมนต์บวก span 3 = | P47: =AI110 -> 19655.51866 | Q47: โมเมนต์บวก span 4 = | R47: =AU110 -> 0 | S47: โมเมนต์บวก span 5 = | T47: =BG110 -> 0
J48: โมเมนต์ลบ span 1 ขวา = | K48: =N109 -> -28587.44256 | M48: โมเมนต์ลบ span 2 ขวา = | N48: =AC110 -> -29830.92138 | O48: โมเมนต์ลบ span 3 ขวา = | P48: =AO109 -> -3215.642475 | Q48: โมเมนต์ลบ span 4 ขวา = | R48: =BA109 -> 0 | S48: โมเมนต์ลบ span 5 ขวา = | T48: =BM109 -> 0
J49: โมเมนต์ลบ span 1 ซ้าย = | K49: =-K106+0.5*K108*Sheet1!D9-0.25*'r2'!E2*('r2'!B7+'r2'!E7)*Sheet1!D9^2 -> -3215.642475 | M49: โมเมนต์ลบ span 2 ซ้าย = | N49: =Z110 -> -29830.92138 | O49: โมเมนต์ลบ span 3 ซ้าย = | P49: =AL109 -> -28587.44256 | Q49: โมเมนต์ลบ span 4 ซ้าย = | R49: =AX109 -> 0 | S49: โมเมนต์ลบ span 5 ซ้าย = | T49: =BJ109 -> 0
J50: span1 | M50: span2 | O50: span3 | Q50: span4 | S50: span5
G51: ทิศทาง | H51: ช่วงเสา | I51: สัมประสิทธ์ร้อยละ | J51: แถบเสา | K51: แถบกลาง | M51: แถบเสา | N51: แถบกลาง | O51: แถบเสา | P51: แถบกลาง | Q51: แถบเสา | R51: แถบกลาง | S51: แถบเสา | T51: แถบกลาง
H52: โมเมนต์ลบขวา | I52: 0.75 | J52: =IF((-K48>-N49),(K48),(N49))*I52 -> -22373.19103 | K52: =IF((-K48>-N49),(K48),(N49))-J52 -> -7457.730344 | M52: =IF((-N48>-P49),(N48),(P49))*IF(Sheet1!$B$3=2,(I54),(I52)) -> -22373.19103 | N52: =IF((-N48>-P49),(N48),(P49))-M52 -> -7457.730344 | O52: =IF(-P48>-R49,(P48),(R49))*IF(Sheet1!$B$3=3,(1),(0.75)) -> -3215.642475 | P52: =IF(-P48>-R49,(P48),(R49))*IF(Sheet1!$B$3=3,(1),(0.75))-O52 -> 0 | Q52: =IF(-R48>-T49,(R48),(T49))*IF(Sheet1!$B$3=4,(1),(0.75)) -> 0 | R52: =IF(-R48>-T49,(R48),(T49))*IF(Sheet1!$B$3=4,(1),(0.75))-Q52 -> 0 | S52: =IF(-T48>-T48,(T48),(V49))*IF(Sheet1!$B$3=5,(1),(0.75)) -> 0 | T52: =IF(-T48>-V49,(T48),(V49))*IF(Sheet1!$B$3=5,(1),(0.75))-S52 -> 0
H53: โมเมนต์กลางช่วงโมเมนต์บวก | I53: 0.6 | J53: =K47*$I$53 -> 11793.31119 | K53: =K47-J53 -> 7862.207462 | M53: =N47*$I$53 -> 12804.96068 | N53: =N47-M53 -> 8536.640452 | O53: =P47*$I$53 -> 11793.31119 | P53: =P47-O53 -> 7862.207462 | Q53: =R47*$I$53 -> 0 | R53: =R47-Q53 -> 0 | S53: =T47*$I$53 -> 0 | T53: =T47-S53 -> 0
H54: โมเมนต์ลบซ้าย | I54: 1 | J54: =K49*I54 -> -3215.642475 | K54: =K49-J54 -> 0 | M54: =IF((-K48>-N49),(K48),(N49))*I52 -> -22373.19103 | N54: =IF((-K48>-N49),(K48),(N49))-M54 -> -7457.730344 | O54: =IF((-N48>-P49),(N48),(P49))*IF(Sheet1!$B$3<3,(0),(0.75)) -> -22373.19103 | P54: =IF(O54=0,(0),(IF((-N48>-P49),(N48),(P49))-O54)) -> -7457.730344 | Q54: =IF((-P48>-R49),(P48),(R49))*IF(Sheet1!$B$3<4,(0),(0.75)) -> 0 | R54: =IF(Q54=0,(0),(IF((-P48>-R49),(P48),(R49))-Q54)) -> 0 | S54: =IF((-R48>-T49),(R48),(T49))*IF(Sheet1!$B$3<5,(0),(0.75)) -> 0 | T54: =IF(S54=0,(0),(IF((-R48>-T49),(R48),(T49))-S54)) -> 0
G56: เหล็กเสริมในแผ่นพื้น | J56: span r1 | M56: span r2 | O56: span r3 | Q56: span r4 | S56: span r5
H57: รายการ | I57: หน่วย | J57: แถบเสา | K57: แถบกลาง | M57: แถบเสา | N57: แถบกลาง | O57: แถบเสา | P57: แถบกลาง | Q57: แถบเสา | R57: แถบกลาง | S57: แถบเสา | T57: แถบกลาง
H58: ความกว้าง | I58: m | J58: =E2*0.5 -> 2.75 | K58: =MIN(Sheet1!L9,Sheet1!L10)-J58 -> 2.25 | M58: =J58 -> 2.75 | N58: =MIN(Sheet1!L9,Sheet1!L10)-M58 -> 2.25 | O58: =M58 -> 2.75 | P58: =MIN(Sheet1!L9,Sheet1!L10)-O58 -> 2.25 | Q58: =O58 -> 2.75 | R58: =MIN(Sheet1!L9,Sheet1!L10)-Q58 -> 2.25 | S58: =Q58 -> 2.75 | T58: =MIN(Sheet1!L9,Sheet1!L10)-S58 -> 2.25
H59: โมเมนต์ลบขวา | I59: kg-m/m | J59: =J52/(0.9*J58) -> -9039.673145 | K59: =K52/(K58*0.9) -> -3682.8298 | M59: =M52/(0.9*M58) -> -9039.673145 | N59: =N52/(0.9*N58) -> -3682.8298 | O59: =O52/(0.9*O58) -> -1299.249485 | P59: =P52/(0.9*P58) -> 0 | Q59: =Q52/(0.9*Q58) -> 0 | R59: 0 | S59: =S52/(0.9*S58) -> 0 | T59: =T52/(0.9*T58) -> 0
H60: Rn | I60: kg/m^2 | J60: =J59/(((Sheet1!B16)-(Sheet1!B13/100))^2) -> -178561.4448 | K60: =K59/(((Sheet1!B16)-(Sheet1!B13/100))^2) -> -72747.2553 | M60: =M59/(((Sheet1!B16)-(Sheet1!B13/100))^2) -> -178561.4448 | N60: =N59/(((Sheet1!B16)-(Sheet1!B13/100))^2) -> -72747.2553 | O60: =O59/(((Sheet1!B16)-(Sheet1!B13/100))^2) -> -25664.18736 | P60: =P59/(((Sheet1!B16)-(Sheet1!B13/100))^2) -> 0 | Q60: =Q59/(((Sheet1!B16)-(Sheet1!B13/100))^2) -> 0 | R60: =R59/(((Sheet1!B16)-(Sheet1!B13/100))^2) -> 0 | S60: =S59/(((Sheet1!B16)-(Sheet1!B13/100))^2) -> 0 | T60: =T59/(((Sheet1!B16)-(Sheet1!B13/100))^2) -> 0
H61: p | J61: =ABS((0.85*Sheet1!B10/Sheet1!B9)*(1-(SQRT(1-(2*J60/(0.85*Sheet1!B10*100^2)))))) -> 0.005659130622 | K61: =ABS((0.85*Sheet1!B10/Sheet1!B9)*(1-(SQRT(1-(2*K60/(0.85*Sheet1!B10*100^2)))))) -> 0.002347927114 | M61: =ABS((0.85*Sheet1!B10/Sheet1!B9)*(1-(SQRT(1-(2*M60/(0.85*Sheet1!B10*100^2)))))) -> 0.005659130622 | N61: =ABS((0.85*Sheet1!B10/Sheet1!B9)*(1-(SQRT(1-(2*N60/(0.85*Sheet1!B10*100^2)))))) -> 0.002347927114 | O61: =ABS((0.85*Sheet1!B10/Sheet1!B9)*(1-(SQRT(1-(2*O60/(0.85*Sheet1!B10*100^2)))))) -> 0.0008353250814 | P61: =ABS((0.85*Sheet1!B10/Sheet1!B9)*(1-(SQRT(1-(2*P60/(0.85*Sheet1!B10*100^2)))))) -> 0 | Q61: =ABS((0.85*Sheet1!B10/Sheet1!B9)*(1-(SQRT(1-(2*Q60/(0.85*Sheet1!B10*100^2)))))) -> 0 | R61: =ABS((0.85*Sheet1!B10/Sheet1!B9)*(1-(SQRT(1-(2*R60/(0.85*Sheet1!B10*100^2)))))) -> 0 | S61: =ABS((0.85*Sheet1!B10/Sheet1!B9)*(1-(SQRT(1-(2*S60/(0.85*Sheet1!B10*100^2)))))) -> 0 | T61: =ABS((0.85*Sheet1!B10/Sheet1!B9)*(1-(SQRT(1-(2*T60/(0.85*Sheet1!B10*100^2)))))) -> 0
H62: As- | I62: mm^2/m | J62: =IF(J59=0,(0),(IF(J61>(0.0018*4000/Sheet1!$B$9),(ABS(J61*1000*(Sheet1!$B$16*1000-Sheet1!$B$13*10)*-1)),(ABS((0.0018*4000/Sheet1!$B$9)*1000*(Sheet1!$B$16*1000-Sheet1!$B$13*10)*-1))))) -> 1273.30439 | K62: =IF(J59=0,(0),(IF(K61>(0.0018*4000/Sheet1!$B$9),(ABS(K61*1000*(Sheet1!$B$16*1000-Sheet1!$B$13*10)*-1)),(ABS((0.0018*4000/Sheet1!$B$9)*1000*(Sheet1!$B$16*1000-Sheet1!$B$13*10)*-1))))) -> 529.7580118 | M62: =IF(M59=0,(0),(IF(M61>(0.0018*4000/Sheet1!$B$9),(ABS(M61*1000*(Sheet1!$B$16*1000-Sheet1!$B$13*10)*-1)),(ABS((0.0018*4000/Sheet1!$B$9)*1000*(Sheet1!$B$16*1000-Sheet1!$B$13*10)*-1))))) -> 1273.30439 | N62: =IF(M59=0,(0),(IF(N61>(0.0018*4000/Sheet1!$B$9),(ABS(N61*1000*(Sheet1!$B$16*1000-Sheet1!$B$13*10)*-1)),(ABS((0.0018*4000/Sheet1!$B$9)*1000*(Sheet1!$B$16*1000-Sheet1!$B$13*10)*-1))))) -> 529.7580118 | O62: =IF(O59=0,(0),(IF(O61>(0.0018*4000/Sheet1!$B$9),(ABS(O61*1000*(Sheet1!$B$16*1000-Sheet1!$B$13*10)*-1)),(ABS((0.0018*4000/Sheet1!$B$9)*1000*(Sheet1!$B$16*1000-Sheet1!$B$13*10)*-1))))) -> 529.7580118 | P62: =IF(O59=0,(0),(IF(P61>(0.0018*4000/Sheet1!$B$9),(ABS(P61*1000*(Sheet1!$B$16*1000-Sheet1!$B$13*10)*-1)),(ABS((0.0018*4000/Sheet1!$B$9)*1000*(Sheet1!$B$16*1000-Sheet1!$B$13*10)*-1))))) -> 529.7580118 | Q62: =IF(Q59=0,(0),(IF(Q61>(0.0018*4000/Sheet1!$B$9),(ABS(Q61*1000*(Sheet1!$B$16*1000-Sheet1!$B$13*10)*-1)),(ABS((0.0018*4000/Sheet1!$B$9)*1000*(Sheet1!$B$16*1000-Sheet1!$B$13*10)*-1))))) -> 0 | R62: =IF(Q59=0,(0),(IF(R61>(0.0018*4000/Sheet1!$B$9),(ABS(R61*1000*(Sheet1!$B$16*1000-Sheet1!$B$13*10)*-1)),(ABS((0.0018*4000/Sheet1!$B$9)*1000*(Sheet1!$B$16*1000-Sheet1!$B$13*10)*-1))))) -> 0 | S62: =IF(S53=0,(0),(IF(S61>(0.0018*4000/Sheet1!$B$9),(ABS(S61*1000*(Sheet1!$B$16*1000-Sheet1!$B$13*10)*-1)),(ABS((0.0018*4000/Sheet1!$B$9)*1000*(Sheet1!$B$16*1000-Sheet1!$B$13*10)*-1))))) -> 0 | T62: =IF(T53=0,(0),(IF(T61>(0.0018*4000/Sheet1!$B$9),(ABS(T61*1000*(Sheet1!$B$16*1000-Sheet1!$B$13*10)*-1)),(ABS((0.0018*4000/Sheet1!$B$9)*1000*(Sheet1!$B$16*1000-Sheet1!$B$13*10)*-1))))) -> 0
H63: โมเมนต์บวกกลาง | I63: kg-m/m | J63: =J53/(0.9*J58) -> 4764.97422 | K63: =K53/(0.9*K58) -> 3882.571586 | M63: =M53/(0.9*M58) -> 5173.721486 | N63: =N53/(0.9*N58) -> 4215.624914 | O63: =O53/(0.9*O58) -> 4764.97422 | P63: =P53/(0.9*P58) -> 3882.571586 | Q63: 0 | R63: =R53/(0.9*R58) -> 0 | S63: =S53/(0.9*S58) -> 0 | T63: =T53/(0.9*T58) -> 0
H64: Rn | I64: kg/m^2 | J64: =J63/(((Sheet1!B16)-(Sheet1!B13/100))^2) -> 94122.94755 | K64: =K63/(((Sheet1!B16)-(Sheet1!B13/100))^2) -> 76692.77207 | M64: =M63/(((Sheet1!B16)-(Sheet1!B13/100))^2) -> 102196.9676 | N64: =N63/(((Sheet1!B16)-(Sheet1!B13/100))^2) -> 83271.60325 | O64: =O63/(((Sheet1!B16)-(Sheet1!B13/100))^2) -> 94122.94755 | P64: =P63/(((Sheet1!B16)-(Sheet1!B13/100))^2) -> 76692.77207 | Q64: =Q63/(((Sheet1!B16)-(Sheet1!B13/100))^2) -> 0 | R64: =R63/(((Sheet1!B16)-(Sheet1!B13/100))^2) -> 0 | S64: =S63/(((Sheet1!B16)-(Sheet1!B13/100))^2) -> 0 | T64: =T63/(((Sheet1!B16)-(Sheet1!B13/100))^2) -> 0
H65: p | J65: =ABS((0.85*Sheet1!B10/Sheet1!B9)*(1-(SQRT(1-(2*J64/(0.85*Sheet1!B10*100^2)))))) -> 0.003133105929 | K65: =(0.85*Sheet1!B10/Sheet1!B9)*(1-(SQRT(1-(2*K64/(0.85*Sheet1!B10*100^2))))) -> 0.002544329178 | M65: =ABS((0.85*Sheet1!B10/Sheet1!B9)*(1-(SQRT(1-(2*M64/(0.85*Sheet1!B10*100^2)))))) -> 0.003407212976 | N65: =ABS((0.85*Sheet1!B10/Sheet1!B9)*(1-(SQRT(1-(2*N64/(0.85*Sheet1!B10*100^2)))))) -> 0.002766083998 | O65: =ABS((0.85*Sheet1!B10/Sheet1!B9)*(1-(SQRT(1-(2*O64/(0.85*Sheet1!B10*100^2)))))) -> 0.003133105929 | P65: =ABS((0.85*Sheet1!B10/Sheet1!B9)*(1-(SQRT(1-(2*P64/(0.85*Sheet1!B10*100^2)))))) -> 0.002544329178 | Q65: =ABS((0.85*Sheet1!B10/Sheet1!B9)*(1-(SQRT(1-(2*Q64/(0.85*Sheet1!B10*100^2)))))) -> 0 | R65: =ABS((0.85*Sheet1!B10/Sheet1!B9)*(1-(SQRT(1-(2*R64/(0.85*Sheet1!B10*100^2)))))) -> 0 | S65: =ABS((0.85*Sheet1!B10/Sheet1!B9)*(1-(SQRT(1-(2*S64/(0.85*Sheet1!B10*100^2)))))) -> 0 | T65: =ABS((0.85*Sheet1!B10/Sheet1!B9)*(1-(SQRT(1-(2*T64/(0.85*Sheet1!B10*100^2)))))) -> 0
H66: As+ | I66: mm^2/m | J66: =IF(J63=0,(0),(IF(J65>(0.0018*4000/Sheet1!$B$9),(ABS(J65*1000*(Sheet1!$B$16*1000-Sheet1!$B$13*10)*-1)),(ABS((0.0018*4000/Sheet1!$B$9)*1000*(Sheet1!$B$16*1000-Sheet1!$B$13*10)*-1))))) -> 704.948834 | K66: =IF(K63=0,(0),(IF(K65>(0.0018*4000/Sheet1!$B$9),(ABS(K65*1000*(Sheet1!$B$16*1000-Sheet1!$B$13*10)*-1)),(ABS((0.0018*4000/Sheet1!$B$9)*1000*(Sheet1!$B$16*1000-Sheet1!$B$13*10)*-1))))) -> 572.4740651 | M66: =IF(M63=0,(0),(IF(M65>(0.0018*4000/Sheet1!$B$9),(ABS(M65*1000*(Sheet1!$B$16*1000-Sheet1!$B$13*10)*-1)),(ABS((0.0018*4000/Sheet1!$B$9)*1000*(Sheet1!$B$16*1000-Sheet1!$B$13*10)*-1))))) -> 766.6229197 | N66: =IF(N63=0,(0),(IF(N65>(0.0018*4000/Sheet1!$B$9),(ABS(N65*1000*(Sheet1!$B$16*1000-Sheet1!$B$13*10)*-1)),(ABS((0.0018*4000/Sheet1!$B$9)*1000*(Sheet1!$B$16*1000-Sheet1!$B$13*10)*-1))))) -> 622.3688995 | O66: =IF(O63=0,(0),(IF(O65>(0.0018*4000/Sheet1!$B$9),(ABS(O65*1000*(Sheet1!$B$16*1000-Sheet1!$B$13*10)*-1)),(ABS((0.0018*4000/Sheet1!$B$9)*1000*(Sheet1!$B$16*1000-Sheet1!$B$13*10)*-1))))) -> 704.948834 | P66: =IF(P63=0,(0),(IF(P65>(0.0018*4000/Sheet1!$B$9),(ABS(P65*1000*(Sheet1!$B$16*1000-Sheet1!$B$13*10)*-1)),(ABS((0.0018*4000/Sheet1!$B$9)*1000*(Sheet1!$B$16*1000-Sheet1!$B$13*10)*-1))))) -> 572.4740651 | Q66: =IF(Q63=0,(0),(IF(Q65>(0.0018*4000/Sheet1!$B$9),(ABS(Q65*1000*(Sheet1!$B$16*1000-Sheet1!$B$13*10)*-1)),(ABS((0.0018*4000/Sheet1!$B$9)*1000*(Sheet1!$B$16*1000-Sheet1!$B$13*10)*-1))))) -> 0 | R66: =IF(R63=0,(0),(IF(R65>(0.0018*4000/Sheet1!$B$9),(ABS(R65*1000*(Sheet1!$B$16*1000-Sheet1!$B$13*10)*-1)),(ABS((0.0018*4000/Sheet1!$B$9)*1000*(Sheet1!$B$16*1000-Sheet1!$B$13*10)*-1))))) -> 0 | S66: =IF(S63=0,(0),(IF(S65>(0.0018*4000/Sheet1!$B$9),(ABS(S65*1000*(Sheet1!$B$16*1000-Sheet1!$B$13*10)*-1)),(ABS((0.0018*4000/Sheet1!$B$9)*1000*(Sheet1!$B$16*1000-Sheet1!$B$13*10)*-1))))) -> 0 | T66: =IF(T63=0,(0),(IF(T65>(0.0018*4000/Sheet1!$B$9),(ABS(T65*1000*(Sheet1!$B$16*1000-Sheet1!$B$13*10)*-1)),(ABS((0.0018*4000/Sheet1!$B$9)*1000*(Sheet1!$B$16*1000-Sheet1!$B$13*10)*-1))))) -> 0
H67: โมเมนต์ลบซ้าย | I67: kg-m/m | J67: =J54/(0.9*J58) -> -1299.249485 | K67: =K54/(0.9*K58) -> 0 | M67: =M54/(0.9*M58) -> -9039.673145 | N67: =N54/(0.9*N58) -> -3682.8298 | O67: =O54/(0.9*O58) -> -9039.673145 | P67: =P54/(0.9*P58) -> -3682.8298 | Q67: 0 | R67: 0 | S67: 0 | T67: 0
H68: Rn | I68: kg/m^2 | J68: =J67/(((Sheet1!B16)-(Sheet1!B13/100))^2) -> -25664.18736 | K68: =K67/(((Sheet1!B16)-(Sheet1!B13/100))^2) -> 0 | M68: =M67/(((Sheet1!B16)-(Sheet1!B13/100))^2) -> -178561.4448 | N68: =N67/(((Sheet1!B16)-(Sheet1!B13/100))^2) -> -72747.2553 | O68: =O67/(((Sheet1!B16)-(Sheet1!B13/100))^2) -> -178561.4448 | P68: =P67/(((Sheet1!B16)-(Sheet1!B13/100))^2) -> -72747.2553 | Q68: =Q67/(((Sheet1!B16)-(Sheet1!B13/100))^2) -> 0 | R68: =R67/(((Sheet1!B16)-(Sheet1!B13/100))^2) -> 0 | S68: =S67/(((Sheet1!B16)-(Sheet1!B13/100))^2) -> 0 | T68: =T67/(((Sheet1!B16)-(Sheet1!B13/100))^2) -> 0
H69: p | J69: =ABS((0.85*Sheet1!B10/Sheet1!B9)*(1-(SQRT(1-(2*J68/(0.85*Sheet1!B10*100^2)))))) -> 0.0008353250814 | K69: =(0.85*Sheet1!B10/Sheet1!B9)*(1-(SQRT(1-(2*K68/(0.85*Sheet1!B10*100^2))))) -> 0 | M69: =ABS((0.85*Sheet1!B10/Sheet1!B9)*(1-(SQRT(1-(2*M68/(0.85*Sheet1!B10*100^2)))))) -> 0.005659130622 | N69: =ABS((0.85*Sheet1!B10/Sheet1!B9)*(1-(SQRT(1-(2*N68/(0.85*Sheet1!B10*100^2)))))) -> 0.002347927114 | O69: =ABS((0.85*Sheet1!B10/Sheet1!B9)*(1-(SQRT(1-(2*O68/(0.85*Sheet1!B10*100^2)))))) -> 0.005659130622 | P69: =ABS((0.85*Sheet1!B10/Sheet1!B9)*(1-(SQRT(1-(2*P68/(0.85*Sheet1!B10*100^2)))))) -> 0.002347927114 | Q69: =ABS((0.85*Sheet1!B10/Sheet1!B9)*(1-(SQRT(1-(2*Q68/(0.85*Sheet1!B10*100^2)))))) -> 0 | R69: =ABS((0.85*Sheet1!B10/Sheet1!B9)*(1-(SQRT(1-(2*R68/(0.85*Sheet1!B10*100^2)))))) -> 0 | S69: =ABS((0.85*Sheet1!B10/Sheet1!B9)*(1-(SQRT(1-(2*S68/(0.85*Sheet1!B10*100^2)))))) -> 0 | T69: =ABS((0.85*Sheet1!B10/Sheet1!B9)*(1-(SQRT(1-(2*T68/(0.85*Sheet1!B10*100^2)))))) -> 0
H70: As- | I70: mm^2/m | J70: =IF(J67=0,(0),(IF(J69>(0.0018*4000/Sheet1!$B$9),(ABS(J69*1000*(Sheet1!$B$16*1000-Sheet1!$B$13*10)*-1)),(ABS((0.0018*4000/Sheet1!$B$9)*1000*(Sheet1!$B$16*1000-Sheet1!$B$13*10)*-1))))) -> 529.7580118 | K70: =IF(J67=0,(0),(IF(K69>(0.0018*4000/Sheet1!$B$9),(ABS(K69*1000*(Sheet1!$B$16*1000-Sheet1!$B$13*10)*-1)),(ABS((0.0018*4000/Sheet1!$B$9)*1000*(Sheet1!$B$16*1000-Sheet1!$B$13*10)*-1))))) -> 529.7580118 | M70: =IF(M67=0,(0),(IF(M69>(0.0018*4000/Sheet1!$B$9),(ABS(M69*1000*(Sheet1!$B$16*1000-Sheet1!$B$13*10)*-1)),(ABS((0.0018*4000/Sheet1!$B$9)*1000*(Sheet1!$B$16*1000-Sheet1!$B$13*10)*-1))))) -> 1273.30439 | N70: =IF(M67=0,(0),(IF(N69>(0.0018*4000/Sheet1!$B$9),(ABS(N69*1000*(Sheet1!$B$16*1000-Sheet1!$B$13*10)*-1)),(ABS((0.0018*4000/Sheet1!$B$9)*1000*(Sheet1!$B$16*1000-Sheet1!$B$13*10)*-1))))) -> 529.7580118 | O70: =IF(O67=0,(0),(IF(O69>(0.0018*4000/Sheet1!$B$9),(ABS(O69*1000*(Sheet1!$B$16*1000-Sheet1!$B$13*10)*-1)),(ABS((0.0018*4000/Sheet1!$B$9)*1000*(Sheet1!$B$16*1000-Sheet1!$B$13*10)*-1))))) -> 1273.30439 | P70: =IF(O67=0,(0),(IF(P69>(0.0018*4000/Sheet1!$B$9),(ABS(P69*1000*(Sheet1!$B$16*1000-Sheet1!$B$13*10)*-1)),(ABS((0.0018*4000/Sheet1!$B$9)*1000*(Sheet1!$B$16*1000-Sheet1!$B$13*10)*-1))))) -> 529.7580118 | Q70: =IF(Q67=0,(0),(IF(Q69>(0.0018*4000/Sheet1!$B$9),(ABS(Q69*1000*(Sheet1!$B$16*1000-Sheet1!$B$13*10)*-1)),(ABS((0.0018*4000/Sheet1!$B$9)*1000*(Sheet1!$B$16*1000-Sheet1!$B$13*10)*-1))))) -> 0 | R70: =IF(Q67=0,(0),(IF(R69>(0.0018*4000/Sheet1!$B$9),(ABS(R69*1000*(Sheet1!$B$16*1000-Sheet1!$B$13*10)*-1)),(ABS((0.0018*4000/Sheet1!$B$9)*1000*(Sheet1!$B$16*1000-Sheet1!$B$13*10)*-1))))) -> 0 | S70: =IF(S67=0,(0),(IF(S69>(0.0018*4000/Sheet1!$B$9),(ABS(S69*1000*(Sheet1!$B$16*1000-Sheet1!$B$13*10)*-1)),(ABS((0.0018*4000/Sheet1!$B$9)*1000*(Sheet1!$B$16*1000-Sheet1!$B$13*10)*-1))))) -> 0 | T70: =IF(S67=0,(0),(IF(T69>(0.0018*4000/Sheet1!$B$9),(ABS(T69*1000*(Sheet1!$B$16*1000-Sheet1!$B$13*10)*-1)),(ABS((0.0018*4000/Sheet1!$B$9)*1000*(Sheet1!$B$16*1000-Sheet1!$B$13*10)*-1))))) -> 0
G72: เช็ค punching shear ต้นใน | N72: เช็ค punching shear ต้นริม
G74: V | I74: kg | J74: =$K$108 -> 27202.1634 | M74: =$N$108+$Z$108 -> 76795.92666 | N74: =$AC$109+$AL$108 -> 76795.92666 | O74: =$AO$108+$AX$108 -> 27202.1634 | P74: =$BA$108+$BJ$108 -> 0 | Q74: =$BM$108 -> 0
G75: V(max) | I75: kg | J75: =MAX(J74,M74,N74,O74,P74,Q74) -> 76795.92666 | N75: V(max) | P75: kg | Q75: =IF(Sheet1!$B$3=2,(MAX($J$74,$N$74)),(IF(Sheet1!$B$3=3,(MAX($J$74,$O$74)),(IF(Sheet1!$B$3=4,(MAX($J$74,$P$74)),(IF(Sheet1!$B$3=5,(MAX($J$74,$Q$74)),(0)))))))) -> 27202.1634
G76: Vc | I76: kg | J76: =1.06*SQRT(Sheet1!$B$10) -> 18.96185645 | N76: Vc | P76: kg | Q76: =1.06*SQRT(Sheet1!$B$10) -> 18.96185645
G77: b1 | I77: cm | J77: =(Sheet1!D9*100)+(Sheet1!$B$16*100)-Sheet1!$B$13 -> 72.5 | N77: b1 | P77: cm | Q77: =(Sheet1!$D$9*100)+((Sheet1!$B$16*100)-Sheet1!$B$13)/2 -> 61.25
G78: b2 | I78: cm | J78: =(Sheet1!$D$10*100)+(Sheet1!$B$16*100)-Sheet1!$B$13 -> 62.5 | N78: b2 | P78: cm | Q78: =(Sheet1!$D$10*100)+(Sheet1!$B$16*100)-Sheet1!$B$13 -> 62.5
G79: d | I79: cm | J79: =((Sheet1!$B$16*100)-Sheet1!$B$13) -> 22.5 | N79: d | P79: cm | Q79: =((Sheet1!$B$16*100)-Sheet1!$B$13) -> 22.5
G80: Ac | I80: cm^2 | J80: =(J77*J79*2)+(J78*J79*2) -> 6075 | N80: Ac | P80: cm^2 | Q80: =2*($Q$77*$Q$79)+($Q$78*$Q$79) -> 4162.5
G81: X1 | I81: cm | J81: =J77/2 -> 36.25 | N81: x2,x1 | P81: cm | Q81: =$Q$77^2*$Q$79/$Q$80 -> 20.27871622 | R81: =$Q$77-$Q$81 -> 40.97128378
G82: Jc | I82: cm^4 | J82: =(J77^3*J79/6)+(J77*J79^3/6)+(J78*J77^2*J79/2) -> 5262480.469 | N82: Jc | P82: cm^4 | Q82: =(Q77*Q79^3/6)+(2/3*(R81^3+Q81^3)*Q79)+Q78*Q81^2*Q79 -> 1851297.739
G83: Mu | I83: kg*m | J83: =IF(M74=J75,ABS(N107-Z106),(IF(N74=J75,ABS(AC107-AL106),(IF(O74=J75,ABS(AO107-AX106),(IF(P74=J75,ABS(BA107-BJ106),(0)))))))) -> 1545.932841 | N83: Mu | P83: kg*m | Q83: =IF(Sheet1!$B$3=2,(MAX(K106,AC107)),(IF(Sheet1!$B$3=3,(MAX(K106,AO107)),(IF(Sheet1!$B$3=4,(MAX(K106,BA107)),(IF(Sheet1!$B$3=5,(MAX(K106,BM107)),(0)))))))) -> 9215.245825
G84: Mub | I84: kg*m | J84: =J83/(1+(2/3)*SQRT(J77/J78)) -> 899.832985 | N84: Mub | P84: kg*m | Q84: =Q83/(1+2/3*SQRT(Q77/Q78)) -> 5551.465511
G85: Muv | I85: kg*m | J85: =J83-J84 -> 646.0998564 | N85: Muv | P85: kg*m | Q85: =Q83-Q84 -> 3663.780314
G86: Vu2 | I86: kg/cm^2 | J86: =(J75/J80)+((J85*100)*J81/J82) -> 13.08636336 | N86: Vu2 | P86: kg/cm^2 | Q86: =Q75/Q80+(Q85*100*Q81/Q82) -> 10.54828022
G87: Vc | I87: kg/cm^2 | J87: =1.06*SQRT(Sheet1!$B$10) -> 18.96185645 | N87: Vc | P87: kg/cm^2 | Q87: =1.06*SQRT(Sheet1!$B$10) -> 18.96185645
J105: โมเมนต์บวก span 1 | M105: โมเมนต์ลบ span 1 ขวา | P105: โมเมนต์ลบ span 1 ซ้าย | V105: โมเมนต์บวก span 2 | Y105: โมเมนต์ลบ span 2 ซ้าย | AB105: โมเมนต์ลบspan 2 ขวา | AH105: โมเมนต์บวกสแปน 3 | AK105: โมเมนต์ลบspan 3 ซ้าย | AN105: โมเมนต์ลบspan 3 ขวา | AT105: โมเมนต์บวกสแปน 4 | AW105: โมเมนต์ลบสแปน 4 ซ้าย | AZ105: โมเมนต์ลบสแปน 4 ขวา | BF105: โมเมนต์บวกสแปน 5 | BI105: โมเมนต์ลบ span 5 ซ้าย | BL105: โมเมนต์ลบ span 5 ขวา
J106: M 1l = | K106: =(K46+AI46+BG46+BS46)*-1 -> 9215.245825 | M106: M 1l = | N106: =(K46+W46+AU46+BS46)*-1 -> 8456.992466 | P106: M- max span1l = | Q106: =-K106+0.5*K108*Sheet1!D9-0.25*'r2'!E2*('r2'!B7+'r2'!E7)*Sheet1!D9^2 -> -3215.642475 | V106: M 2l = | W106: =(Y46+AW46+BU46)*-1 -> 36325.89887 | Y106: M 2l = | Z106: =(M46+Y46+AW46+BU46)*-1 -> 38780.70172 | AB106: M 2l = | AC106: =(Y46+AK46+BU46+BI46)*-1 -> 35433.47345 | AH106: M 3l = | AI106: =(AM46+O46+BK46+BW46)*-1 -> 33391.92883 | AK106: M3l = | AL106: =(AM46+AA46+BW46+BK46)*-1 -> 37234.76888 | AN106: M3l = | AO106: =(AM46+AY46+O46+BW46)*-1 -> 33391.92883 | AT106: m 4l = | AU106: =(BA46+AC46+BY46)*-1 -> 0 | AW106: m4l = | AX106: =(BA46+AO46+Q46+BY46)*-1 -> 0 | AZ106: m4l = | BA106: =(BA46+BM46+AC46+BY46)*-1 -> 0 | BF106: m5l = | BG106: =(BO46+AQ46+S46+CA46)*-1 -> 0 | BI106: m5l = | BJ106: =(BO46+BC46+AE46+CA46)*-1 -> 0 | BL106: m5l = | BM106: =(BO46+AQ46+S46+CA46)*-1 -> 0
J107: M 1r = | K107: =(L46+AJ46+BH46+BT46) -> 33391.92883 | M107: M 1r = | N107: =(L46+X46+AV46+BT46) -> 37234.76888 | V107: M 2r = | W107: =(Z46+AX46+BV46) -> 36325.89887 | Y107: M 2r = | Z107: =Z46+N46+AX46+BV46 -> 35433.47345 | AB107: M 2r = | AC107: =(Z46+AL46+BV46)+BJ46 -> 38780.70172 | AH107: M 3r = | AI107: =(AN46+P46+BL46+BX46) -> 9215.245825 | AK107: M3r = | AL107: =AN46+AB46+BL46+BX46 -> 8456.992466 | AN107: M3r = | AO107: =AN46+AZ46+P46+BX46 -> 9215.245825 | AT107: m 4r = | AU107: =(BB46+AD46+BZ46) -> 0 | AW107: m4r = | AX107: =BB46+AP46+R46+BZ46 -> 0 | AZ107: m4r = | BA107: =(BB46+BN46+BZ46+AD46) -> 0 | BF107: m5r = | BG107: =(BP46+AR46+T46+CB46) -> 0 | BI107: m5r = | BJ107: =BP46+CB46+BD46+AF46 -> 0 | BL107: m5r = | BM107: =BP46+CB46+AR46+T46 -> 0
J108: V1l = | K108: =IF(K106=0,(0),((-K107+K106+(0.5*(B7+E7)*E2*Sheet1!F9^2))/Sheet1!F9)) -> 27202.1634 | M108: V 1r = | N108: =IF(N106=0,(0),((N107-N106+0.5*(B7+E7)*E2*Sheet1!$F$9^2)/Sheet1!$F$9)) -> 37793.05528 | V108: V2l = | W108: =(-W107+W106+0.5*(B8+E8)*E2*Sheet1!F10^2)/Sheet1!F10 -> 38445 | Y108: V2l = | Z108: =IF(Z106=0,(0),((-Z107+Z106+0.5*(B8+E8)*E2*Sheet1!F10^2)/Sheet1!F10)) -> 39002.87138 | AB108: V2l = | AC108: =(-AC107+AC106+0.5*(B8+E8)*E2*Sheet1!F10^2)/Sheet1!F10 -> 37887.12862 | AH108: V3l = | AI108: =(-AI107+AI106+0.5*(B9+E9)*E2*Sheet1!F11^2)/Sheet1!F11 -> 36872.8366 | AK108: V3l = | AL108: =IF(AL106=0,(0),((-AL107+AL106+0.5*(B9+E9)*Sheet1!F11^2*E2)/Sheet1!F11)) -> 37793.05528 | AN108: V3r = | AO108: =IF(AO106=0,(0),((AO107-AO106+0.5*(B9+E9)*E2*Sheet1!F11^2)/Sheet1!F11)) -> 27202.1634 | AT108: v4l = | AU108: =(-AU107+AU106+0.5*(B10+E10)*E2*Sheet1!F12^2)/Sheet1!F12 ->  | AW108: V4l = | AX108: =IF(AX106=0,(0),((-AX107+AX106+0.5*(B10+E10)*Sheet1!F12^2*E2)/Sheet1!F12)) -> 0 | AZ108: v4r = | BA108: =IF(BA106=0,(0),((BA107-BA106+0.5*(B10+E10)*E2*Sheet1!F12^2)/Sheet1!F12)) -> 0 | BF108: v5l = | BG108: =(-BG107+BG106+0.5*(B11+E11)*E2*Sheet1!F13^2)/Sheet1!F13 ->  | BI108: v5l = | BJ108: =IF(BJ106=0,(0),((-BJ107+BJ106+0.5*(B11+E11)*E2*Sheet1!F13^2)/Sheet1!F13)) -> 0 | BL108: v5r = | BM108: =IF(BM106=0,(0),((BM107-BM106+0.5*(B11+E11)*E2*Sheet1!F13^2)/Sheet1!F13)) -> 0
J109: ระยะที่ V=0 | K109: =K108/((B7+E7)*E2) -> 2.122681498 | M109: M- max span1r = | N109: =0.5*Sheet1!$D$9*'r2'!N108-'r2'!N107-0.25*('r2'!B7+'r2'!E7)*'r2'!E2*Sheet1!$D$9^2 -> -28587.44256 | V109: ระยะที่ V=0 | W109: =W108/((B8+E8)*E2) -> 3 | Y109: V2 r = | Z109: =(Z107-Z106+0.5*(B8+E8)*E2*Sheet1!F10^2)/Sheet1!F10 -> 37887.12862 | AB109: v2r = | AC109: =IF(AC106=0,(0),((AC107-AC106+0.5*(B8+E8)*E2*Sheet1!F10^2)/Sheet1!F10)) -> 39002.87138 | AH109: ระยะที่ V=0 | AI109: =AI108/((B9+E9)*E2) -> 2.877318502 | AK109: M- max span3l = | AL109: =IF(AL106=0,(0),(-AL106+0.5*AL108*Sheet1!D9-0.25*Sheet1!D9^2*'r2'!E2*('r2'!B9+'r2'!E9))) -> -28587.44256 | AN109: M- max span3r = | AO109: =IF(AO106=0,(0),(0.5*AO108*Sheet1!D9-'r2'!AO107-0.25*('r2'!B9+'r2'!E9)*'r2'!E2*Sheet1!D9^2)) -> -3215.642475 | AT109: ระยะที่ v=0 | AU109: =AU108/((B10+E10)*E2) ->  | AW109: M- max span4l = | AX109: =IF(AX106=0,(0),(-AX106+0.5*AX108*Sheet1!D9-0.25*Sheet1!D9^2*'r2'!E2*('r2'!B10+'r2'!E10))) -> 0 | AZ109: M- max span4r = | BA109: =IF(BA107=0,(0),(0.5*BA108*Sheet1!D9-'r2'!BA107-0.25*('r2'!B10+'r2'!E10)*'r2'!E2*Sheet1!D9^2)) -> 0 | BF109: ระยะที่ v=0 | BG109: =IF(BG108=0,(0),(BG108/((B11+E11)*E2))) ->  | BI109: M- max span 5l = | BJ109: =IF(BJ106=0,(0),(-BJ106+0.5*BJ108*Sheet1!D9-0.25*Sheet1!D9^2*'r2'!E2*('r2'!B11+'r2'!E11))) -> 0 | BL109: M- max span 5r = | BM109: =IF(BM107=0,(0),(0.5*BM108*Sheet1!D9-'r2'!BM107-0.25*('r2'!B11+'r2'!E11)*'r2'!E2*Sheet1!D9^2)) -> 0
J110: M1+max= | K110: =K108*K109-0.5*(B7+E7)*K109^2*E2-K106 -> 19655.51866 | M110: V1l = | N110: =(B7+E7)*E2*Sheet1!$F$9-'r2'!N108 -> 26281.94472 | V110: M2+max= | W110: =(W108*W109)-0.5*(B8+E8)*E2*W109^2-W106 -> 21341.60113 | Y110: M- max span2l = | Z110: =-Z106+0.5*Z108*Sheet1!D9-0.25*(B8+E8)*E2*Sheet1!D9^2 -> -29830.92138 | AB110: M- max span2r = | AC110: =0.5*AC109*Sheet1!D9-'r2'!AC107-0.25*('r2'!B8+'r2'!E8)*'r2'!E2*Sheet1!D9^2 -> -29830.92138 | AH110: M3+ max = | AI110: =IF(AI106=0,(0),(AI108*AI109-0.5*(B9+E9)*E2*AI109^2-AI106)) -> 19655.51866 | AT110: M4+ max = | AU110: =IF(AU106=0,(0),(AU108*AU109-0.5*(B10+E10)*AU109^2*E2-AU106)) -> 0 | BF110: M5+ max = | BG110: =IF(BG106=0,(0),(BG108*BG109-0.5*(B11+E11)*E2*BG109^2-BG106)) -> 0

Sheet r3
A1: รายการคำนวณโมเมนต์แถบในและกลางตามแกน x
A2: ระยะช่วงพื้น (unit: m) | B2: =MAX(Sheet1!F9,Sheet1!F10,Sheet1!F11,Sheet1!F12,Sheet1!F13,Sheet1!L9,Sheet1!L10,Sheet1!L11,Sheet1!L12,Sheet1!F13) -> 6 | D2: ความกว้างแถบเสา = | E2: =(Sheet1!L10+Sheet1!L11)/2 -> 2.5
A3: ตัวคูณหาความหนาพื้นขั้นต่ำ | B3: =0.01*LN(Sheet1!B9)-0.05 -> 0.03025516386 | D3: DL+SDL (unit:KG/m^2) = | E3: =IF(Sheet1!B4<3,(0),(Sheet1!B16*Sheet1!B11)) -> 0
A5: ความหนาพื้น (unit:m) | B5: =IF((B2*B3)>0.12,(B2*B3),(0.12)) -> 0.1815309832
A6: น้ำหนัก DL+WDS | D6: น้ำหนัก LL
A7: Wdl1+Wsd1 (unit:KG/m^2) = | B7: =((Sheet1!$B$16*Sheet1!$B$11)+Sheet1!$J$9)*1.4 -> 1820 | D7: Wtl1 (unit:kg/m^2) = | E7: =(1.7*Sheet1!H9) -> 510
A8: Wdl2+Wsd2 (unit:KG/m^2) = | B8: =((Sheet1!$B$16*Sheet1!$B$11)+Sheet1!$J$10)*1.4 -> 1820 | D8: Wtl2 (unit:kg/m^2) = | E8: =1.7*Sheet1!H10 -> 510
A9: =IF(Sheet1!B3>2,("Wdl3+Wsd3 (unit:KG/m^2) ="),("")) -> Wdl3+Wsd3 (unit:KG/m^2) = | B9: =IF(Sheet1!$B$3>=3,(((Sheet1!$B$16*Sheet1!$B$11)+Sheet1!$J$11)*1.4),(0)) -> 1820 | D9: =IF(Sheet1!B3>2,("Wtl3 (unit:KG/m^2) ="),("")) -> Wtl3 (unit:KG/m^2) = | E9: =IF(Sheet1!B3>=3,(1.7*Sheet1!H11),(0)) -> 510
A10: =IF(Sheet1!B3>3,("Wdl4+Wsd4 (unit:KG/m^2) ="),("")) ->  | B10: =IF(Sheet1!$B$3>=4,(((Sheet1!$B$16*Sheet1!$B$11)+Sheet1!$J$12)*1.4),(0)) -> 0 | D10: =IF(Sheet1!B3>3,("Wtl4 (unit:KG/m^2) ="),("")) ->  | E10: =IF(Sheet1!B3>=4,(1.7*Sheet1!H12),(0)) -> 0
A11: =IF(Sheet1!B3>4,("Wdl5+Wsd5 (unit:KG/m^2) ="),("")) ->  | B11: =IF(Sheet1!$B$3>=5,(((Sheet1!$B$16*Sheet1!$B$11)+Sheet1!$J$13)*1.4),(0)) -> 0 | D11: =IF(Sheet1!B3>4,("Wtl5 (unit:KG/m^2) ="),("")) ->  | E11: =IF(Sheet1!B3=5,(1.7*Sheet1!H13),(0)) -> 0
A13: โมเมนต์ DL+WSD | D13: โมเมนต LL
A14: FEM.DL1 (unit:kg*m) = | B14: =B7*E2*Sheet1!F9^2/12 -> 9479.166667 | D14: FEM.TL1 (unit:kg*m) = | E14: =E7*E2*Sheet1!F9^2/12 -> 2656.25
A15: FEM.DL2 (unit:kg*m) = | B15: =B8*E2*Sheet1!F10^2/12 -> 13650 | D15: FEM.TL2 (unit:kg*m) = | E15: =E8*E2*Sheet1!F10^2/12 -> 3825
A16: =IF(Sheet1!B3>=3,("FEM.DL3 (unit:kg*m) ="),("")) -> FEM.DL3 (unit:kg*m) = | B16: =IF(Sheet1!B3>=3,('r3'!B9*'r3'!E2*Sheet1!F11^2/12),(0)) -> 9479.166667 | D16: =IF(Sheet1!B3>=3,("FEM.TL3 (unit:kg*m) ="),("")) -> FEM.TL3 (unit:kg*m) = | E16: =IF(Sheet1!B3>=3,('r3'!E9*'r3'!E2*Sheet1!F11^2/12),(0)) -> 2656.25
A17: =IF(Sheet1!B3>=4,("FEM.DL4 (unit:kg*m) ="),("")) ->  | B17: =IF(Sheet1!B3>=4,('r3'!B10*'r3'!E2*Sheet1!F12^2/12),(0)) -> 0 | D17: =IF(Sheet1!B3>=4,("FEM.TL4 (unit:kg*m) ="),("")) ->  | E17: =IF(Sheet1!B3>=4,('r3'!E10*'r3'!E2*Sheet1!F12^2/12),(0)) -> 0
A18: =IF(Sheet1!B3>=5,("FEM.DL5 (unit:kg*m) ="),("")) ->  | B18: =IF(Sheet1!B3>=5,('r3'!B11*'r3'!E2*Sheet1!F13^2/12),(0)) -> 0 | D18: =IF(Sheet1!B3>=5,("FEM.TL5 (unit:kg*m) ="),("")) ->  | E18: =IF(Sheet1!B3>=5,('r3'!E11*'r3'!E2*Sheet1!F13^2/12),(0)) -> 0
J21: วางน้ำหนัก LL สแปน 1 | V21: วางน้ำหนัก LL สแปน 2 | AH21: วางน้ำหนัก LL สแปน 3 | AT21: วางน้ำหนัก LL สแปน 4 | BF21: วางน้ำหนัก LL สแปน 5 | BR21: วางน้ำหนัก DL ทุกสแปน
K22: 1r | L22: 2l | M22: 2r | N22: 3l | O22: 3r | P22: 4l | Q22: 4r | R22: 5l | S22: 5r | T22: 6l | W22: 1r | X22: 2l | Y22: 2r | Z22: 3l | AA22: 3r | AB22: 4l | AC22: 4r | AD22: 5l | AE22: 5r | AF22: 6l | AI22: 1r | AJ22: 2l | AK22: 2r | AL22: 3l | AM22: 3r | AN22: 4l | AO22: 4r | AP22: 5l | AQ22: 5r | AR22: 6l | AU22: 1r | AV22: 2l | AW22: 2r | AX22: 3l | AY22: 3r | AZ22: 4l | BA22: 4r | BB22: 5l | BC22: 5r | BD22: 6l | BG22: 1r | BH22: 2l | BI22: 2r | BJ22: 3l | BK22: 3r | BL22: 4l | BM22: 4r | BN22: 5l | BO22: 5r | BP22: 6l | BS22: 1r | BT22: 2l | BU22: 2r | BV22: 3l | BW22: 3r | BX22: 4l | BY22: 4r | BZ22: 5l | CA22: 5r | CB22: 6l
J23: D.o.f | K23: 0.3026117231 | L23: 0.1968909895 | M23: 0.1626490783 | N23: 0.1626490783 | O23: 0.1968909895 | P23: 0.3026117231 | V23: D.o.f | W23: 0.3026117231 | X23: 0.1968909895 | Y23: 0.1626490783 | Z23: 0.1626490783 | AA23: 0.1968909895 | AB23: 0.3026117231 | AH23: D.o.f | AI23: 0.3026117231 | AJ23: 0.1968909895 | AK23: 0.1626490783 | AL23: 0.1626490783 | AM23: 0.1968909895 | AN23: 0.3026117231 | AT23: D.o.f | AU23: 0.3026117231 | AV23: 0.1968909895 | AW23: 0.1626490783 | AX23: 0.1626490783 | AY23: 0.1968909895 | AZ23: 0.3026117231 | BF23: D.o.f | BG23: 0.3026117231 | BH23: 0.1968909895 | BI23: 0.1626490783 | BJ23: 0.1626490783 | BK23: 0.1968909895 | BL23: 0.3026117231 | BR23: D.o.f | BS23: 0.3026117231 | BT23: 0.1968909895 | BU23: 0.1626490783 | BV23: 0.1626490783 | BW23: 0.1968909895 | BX23: 0.3026117231
J24: FEM | K24: =E14*-1 -> -2656.25 | L24: =E14 -> 2656.25 | V24: FEM | Y24: =-E15 -> -3825 | Z24: =E15 -> 3825 | AH24: FEM | AM24: =-E16 -> -2656.25 | AN24: =E16 -> 2656.25 | AT24: FEM | BA24: =-E17 -> 0 | BB24: =E17 -> 0 | BF24: FEM | BO24: =-E18 -> 0 | BP24: =E18 -> 0 | BR24: FEM | BS24: =-B14 -> -9479.166667 | BT24: =B14 -> 9479.166667 | BU24: =-B15 -> -13650 | BV24: =B15 -> 13650 | BW24: =-B16 -> -9479.166667 | BX24: =B16 -> 9479.166667 | BY24: =-B17 -> 0 | BZ24: =B17 -> 0 | CA24: =-B18 -> 0 | CB24: =B18 -> 0
J25: Dis | K25: =(K24)*K23*-1 -> 803.8123895 | L25: =(L24+M24)*L23*-1 -> -522.991691 | M25: =(M24+L24)*M23*-1 -> -432.0366143 | N25: =(N24+O24)*N23*-1 -> 0 | O25: =(O24+N24)*O23*-1 -> 0 | P25: =(P24+Q24)*P23*-1 -> 0 | Q25: =(Q24+P24)*Q23*-1 -> 0 | R25: =(R24+S24)*R23*-1 -> 0 | S25: =(S24+R24)*S23*-1 -> 0 | T25: =(T24+U24)*T23*-1 -> 0 | V25: Dis | W25: =(W24)*W23*-1 -> 0 | X25: =(X24+Y24)*X23*-1 -> 753.108035 | Y25: =(Y24+X24)*Y23*-1 -> 622.1327245 | Z25: =(Z24+AA24)*Z23*-1 -> -622.1327245 | AA25: =(AA24+Z24)*AA23*-1 -> -753.108035 | AB25: =(AB24+AC24)*AB23*-1 -> 0 | AC25: =(AC24+AB24)*AC23*-1 -> 0 | AD25: =(AD24+AE24)*AD23*-1 -> 0 | AE25: =(AE24+AD24)*AE23*-1 -> 0 | AF25: =(AF24+AG24)*AF23*-1 -> 0 | AH25: Dis | AI25: =(AI24)*AI23*-1 -> 0 | AJ25: =(AJ24+AK24)*AJ23*-1 -> 0 | AK25: =(AK24+AJ24)*AK23*-1 -> 0 | AL25: =(AL24+AM24)*AL23*-1 -> 432.0366143 | AM25: =(AM24+AL24)*AM23*-1 -> 522.991691 | AN25: =(AN24+AO24)*AN23*-1 -> -803.8123895 | AO25: =(AO24+AN24)*AO23*-1 -> 0 | AP25: =(AP24+AQ24)*AP23*-1 -> 0 | AQ25: =(AQ24+AP24)*AQ23*-1 -> 0 | AR25: =(AR24+AS24)*AR23*-1 -> 0 | AT25: Dis | AU25: =(AU24)*AU23*-1 -> 0 | AV25: =(AV24+AW24)*AV23*-1 -> 0 | AW25: =(AW24+AV24)*AW23*-1 -> 0 | AX25: =(AX24+AY24)*AX23*-1 -> 0 | AY25: =(AY24+AX24)*AY23*-1 -> 0 | AZ25: =(AZ24+BA24)*AZ23*-1 -> 0 | BA25: =(BA24+AZ24)*BA23*-1 -> 0 | BB25: =(BB24+BC24)*BB23*-1 -> 0 | BC25: =(BC24+BB24)*BC23*-1 -> 0 | BD25: =(BD24+BE24)*BD23*-1 -> 0 | BF25: Dis | BG25: =(BG24)*BG23*-1 -> 0 | BH25: =(BH24+BI24)*BH23*-1 -> 0 | BI25: =(BI24+BH24)*BI23*-1 -> 0 | BJ25: =(BJ24+BK24)*BJ23*-1 -> 0 | BK25: =(BK24+BJ24)*BK23*-1 -> 0 | BL25: =(BL24+BM24)*BL23*-1 -> 0 | BM25: =(BM24+BL24)*BM23*-1 -> 0 | BN25: =(BN24+BO24)*BN23*-1 -> 0 | BO25: =(BO24+BN24)*BO23*-1 -> 0 | BP25: =(BP24+BQ24)*BP23*-1 -> 0 | BR25: Dis | BS25: =(BS24)*BS23*-1 -> 2868.506959 | BT25: =(BT24+BU24)*BT23*-1 -> 821.1995022 | BU25: =(BU24+BT24)*BU23*-1 -> 678.3821975 | BV25: =(BV24+BW24)*BV23*-1 -> -678.3821975 | BW25: =(BW24+BV24)*BW23*-1 -> -821.1995022 | BX25: =(BX24+BY24)*BX23*-1 -> -2868.506959 | BY25: =(BY24+BX24)*BY23*-1 -> 0 | BZ25: =(BZ24+CA24)*BZ23*-1 -> 0 | CA25: =(CA24+BZ24)*CA23*-1 -> 0 | CB25: =(CB24+CC24)*CB23*-1 -> 0
J26: Co | K26: =L25/2 -> -261.4958455 | L26: =K25/2 -> 401.9061948 | M26: =N25/2 -> 0 | N26: =M25/2 -> -216.0183071 | O26: =P25/2 -> 0 | P26: =O25/2 -> 0 | Q26: =R25/2 -> 0 | R26: =Q25/2 -> 0 | S26: =T25/2 -> 0 | T26: =S25/2 -> 0 | V26: Co | W26: =X25/2 -> 376.5540175 | X26: =W25/2 -> 0 | Y26: =Z25/2 -> -311.0663623 | Z26: =Y25/2 -> 311.0663623 | AA26: =AB25/2 -> 0 | AB26: =AA25/2 -> -376.5540175 | AC26: =AD25/2 -> 0 | AD26: =AC25/2 -> 0 | AE26: =AF25/2 -> 0 | AF26: =AE25/2 -> 0 | AH26: Co | AI26: =AJ25/2 -> 0 | AJ26: =AI25/2 -> 0 | AK26: =AL25/2 -> 216.0183071 | AL26: =AK25/2 -> 0 | AM26: =AN25/2 -> -401.9061948 | AN26: =AM25/2 -> 261.4958455 | AO26: =AP25/2 -> 0 | AP26: =AO25/2 -> 0 | AQ26: =AR25/2 -> 0 | AR26: =AQ25/2 -> 0 | AT26: Co | AU26: =AV25/2 -> 0 | AV26: =AU25/2 -> 0 | AW26: =AX25/2 -> 0 | AX26: =AW25/2 -> 0 | AY26: =AZ25/2 -> 0 | AZ26: =AY25/2 -> 0 | BA26: =BB25/2 -> 0 | BB26: =BA25/2 -> 0 | BC26: =BD25/2 -> 0 | BD26: =BC25/2 -> 0 | BF26: Co | BG26: =BH25/2 -> 0 | BH26: =BG25/2 -> 0 | BI26: =BJ25/2 -> 0 | BJ26: =BI25/2 -> 0 | BK26: =BL25/2 -> 0 | BL26: =BK25/2 -> 0 | BM26: =BN25/2 -> 0 | BN26: =BM25/2 -> 0 | BO26: =BP25/2 -> 0 | BP26: =BO25/2 -> 0 | BR26: Co | BS26: =BT25/2 -> 410.5997511 | BT26: =BS25/2 -> 1434.253479 | BU26: =BV25/2 -> -339.1910987 | BV26: =BU25/2 -> 339.1910987 | BW26: =BX25/2 -> -1434.253479 | BX26: =BW25/2 -> -410.5997511 | BY26: =BZ25/2 -> 0 | BZ26: =BY25/2 -> 0 | CA26: =CB25/2 -> 0 | CB26: =CA25/2 -> 0
J27: dis | K27: =(K26)*K23*-1 -> 79.13170839 | L27: =(L26+M26)*L23*-1 -> -79.13170839 | M27: =(M26+L26)*M23*-1 -> -65.36967215 | N27: =(N26+O26)*N23*-1 -> 35.13517855 | O27: =(O26+N26)*O23*-1 -> 42.53205825 | P27: =(P26+Q26)*P23*-1 -> 0 | Q27: =(Q26+P26)*Q23*-1 -> 0 | R27: =(R26+S26)*R23*-1 -> 0 | S27: =(S26+R26)*S23*-1 -> 0 | T27: =(T26+U26)*T23*-1 -> 0 | V27: dis | W27: =(W26)*W23*-1 -> -113.9496601 | X27: =(X26+Y26)*X23*-1 -> 61.24616388 | Y27: =(Y26+X26)*Y23*-1 -> 50.59465712 | Z27: =(Z26+AA26)*Z23*-1 -> -50.59465712 | AA27: =(AA26+Z26)*AA23*-1 -> -61.24616388 | AB27: =(AB26+AC26)*AB23*-1 -> 113.9496601 | AC27: =(AC26+AB26)*AC23*-1 -> 0 | AD27: =(AD26+AE26)*AD23*-1 -> 0 | AE27: =(AE26+AD26)*AE23*-1 -> 0 | AF27: =(AF26+AG26)*AF23*-1 -> 0 | AH27: dis | AI27: =(AI26)*AI23*-1 -> 0 | AJ27: =(AJ26+AK26)*AJ23*-1 -> -42.53205825 | AK27: =(AK26+AJ26)*AK23*-1 -> -35.13517855 | AL27: =(AL26+AM26)*AL23*-1 -> 65.36967215 | AM27: =(AM26+AL26)*AM23*-1 -> 79.13170839 | AN27: =(AN26+AO26)*AN23*-1 -> -79.13170839 | AO27: =(AO26+AN26)*AO23*-1 -> 0 | AP27: =(AP26+AQ26)*AP23*-1 -> 0 | AQ27: =(AQ26+AP26)*AQ23*-1 -> 0 | AR27: =(AR26+AS26)*AR23*-1 -> 0 | AT27: dis | AU27: =(AU26)*AU23*-1 -> 0 | AV27: =(AV26+AW26)*AV23*-1 -> 0 | AW27: =(AW26+AV26)*AW23*-1 -> 0 | AX27: =(AX26+AY26)*AX23*-1 -> 0 | AY27: =(AY26+AX26)*AY23*-1 -> 0 | AZ27: =(AZ26+BA26)*AZ23*-1 -> 0 | BA27: =(BA26+AZ26)*BA23*-1 -> 0 | BB27: =(BB26+BC26)*BB23*-1 -> 0 | BC27: =(BC26+BB26)*BC23*-1 -> 0 | BD27: =(BD26+BE26)*BD23*-1 -> 0 | BF27: dis | BG27: =(BG26)*BG23*-1 -> 0 | BH27: =(BH26+BI26)*BH23*-1 -> 0 | BI27: =(BI26+BH26)*BI23*-1 -> 0 | BJ27: =(BJ26+BK26)*BJ23*-1 -> 0 | BK27: =(BK26+BJ26)*BK23*-1 -> 0 | BL27: =(BL26+BM26)*BL23*-1 -> 0 | BM27: =(BM26+BL26)*BM23*-1 -> 0 | BN27: =(BN26+BO26)*BN23*-1 -> 0 | BO27: =(BO26+BN26)*BO23*-1 -> 0 | BP27: =(BP26+BQ26)*BP23*-1 -> 0 | BR27: dis | BS27: =(BS26)*BS23*-1 -> -124.2522982 | BT27: =(BT26+BU26)*BT23*-1 -> -215.6079157 | BU27: =(BU26+BT26)*BU23*-1 -> -178.1108869 | BV27: =(BV26+BW26)*BV23*-1 -> 178.1108869 | BW27: =(BW26+BV26)*BW23*-1 -> 215.6079157 | BX27: =(BX26+BY26)*BX23*-1 -> 124.2522982 | BY27: =(BY26+BX26)*BY23*-1 -> 0 | BZ27: =(BZ26+CA26)*BZ23*-1 -> 0 | CA27: =(CA26+BZ26)*CA23*-1 -> 0 | CB27: =(CB26+CC26)*CB23*-1 -> 0
J28: co | K28: =L27/2 -> -39.56585419 | L28: =K27/2 -> 39.56585419 | M28: =N27/2 -> 17.56758928 | N28: =M27/2 -> -32.68483607 | O28: =P27/2 -> 0 | P28: =O27/2 -> 21.26602912 | Q28: =R27/2 -> 0 | R28: =Q27/2 -> 0 | S28: =T27/2 -> 0 | T28: =S27/2 -> 0 | V28: co | W28: =X27/2 -> 30.62308194 | X28: =W27/2 -> -56.97483004 | Y28: =Z27/2 -> -25.29732856 | Z28: =Y27/2 -> 25.29732856 | AA28: =AB27/2 -> 56.97483004 | AB28: =AA27/2 -> -30.62308194 | AC28: =AD27/2 -> 0 | AD28: =AC27/2 -> 0 | AE28: =AF27/2 -> 0 | AF28: =AE27/2 -> 0 | AH28: co | AI28: =AJ27/2 -> -21.26602912 | AJ28: =AI27/2 -> 0 | AK28: =AL27/2 -> 32.68483607 | AL28: =AK27/2 -> -17.56758928 | AM28: =AN27/2 -> -39.56585419 | AN28: =AM27/2 -> 39.56585419 | AO28: =AP27/2 -> 0 | AP28: =AO27/2 -> 0 | AQ28: =AR27/2 -> 0 | AR28: =AQ27/2 -> 0 | AT28: co | AU28: =AV27/2 -> 0 | AV28: =AU27/2 -> 0 | AW28: =AX27/2 -> 0 | AX28: =AW27/2 -> 0 | AY28: =AZ27/2 -> 0 | AZ28: =AY27/2 -> 0 | BA28: =BB27/2 -> 0 | BB28: =BA27/2 -> 0 | BC28: =BD27/2 -> 0 | BD28: =BC27/2 -> 0 | BF28: co | BG28: =BH27/2 -> 0 | BH28: =BG27/2 -> 0 | BI28: =BJ27/2 -> 0 | BJ28: =BI27/2 -> 0 | BK28: =BL27/2 -> 0 | BL28: =BK27/2 -> 0 | BM28: =BN27/2 -> 0 | BN28: =BM27/2 -> 0 | BO28: =BP27/2 -> 0 | BP28: =BO27/2 -> 0 | BR28: co | BS28: =BT27/2 -> -107.8039579 | BT28: =BS27/2 -> -62.12614909 | BU28: =BV27/2 -> 89.05544345 | BV28: =BU27/2 -> -89.05544345 | BW28: =BX27/2 -> 62.12614909 | BX28: =BW27/2 -> 107.8039579 | BY28: =BZ27/2 -> 0 | BZ28: =BY27/2 -> 0 | CA28: =CB27/2 -> 0 | CB28: =CA27/2 -> 0
J29: dis | K29: =(K28)*K23*-1 -> 11.97309131 | L29: =(L28+M28)*L23*-1 -> -11.24906022 | M29: =(M28+L28)*M23*-1 -> -9.292701921 | N29: =(N28+O28)*N23*-1 -> 5.316158462 | O29: =(O28+N28)*O23*-1 -> 6.435349717 | P29: =(P28+Q28)*P23*-1 -> -6.435349717 | Q29: =(Q28+P28)*Q23*-1 -> 0 | R29: =(R28+S28)*R23*-1 -> 0 | S29: =(S28+R28)*S23*-1 -> 0 | T29: =(T28+U28)*T23*-1 -> 0 | V29: dis | W29: =(W28)*W23*-1 -> -9.266903593 | X29: =(X28+Y28)*X23*-1 -> 16.19864672 | Y29: =(Y28+X28)*Y23*-1 -> 13.38149077 | Z29: =(Z28+AA28)*Z23*-1 -> -13.38149077 | AA29: =(AA28+Z28)*AA23*-1 -> -16.19864672 | AB29: =(AB28+AC28)*AB23*-1 -> 9.266903593 | AC29: =(AC28+AB28)*AC23*-1 -> 0 | AD29: =(AD28+AE28)*AD23*-1 -> 0 | AE29: =(AE28+AD28)*AE23*-1 -> 0 | AF29: =(AF28+AG28)*AF23*-1 -> 0 | AH29: dis | AI29: =(AI28)*AI23*-1 -> 6.435349717 | AJ29: =(AJ28+AK28)*AJ23*-1 -> -6.435349717 | AK29: =(AK28+AJ28)*AK23*-1 -> -5.316158462 | AL29: =(AL28+AM28)*AL23*-1 -> 9.292701921 | AM29: =(AM28+AL28)*AM23*-1 -> 11.24906022 | AN29: =(AN28+AO28)*AN23*-1 -> -11.97309131 | AO29: =(AO28+AN28)*AO23*-1 -> 0 | AP29: =(AP28+AQ28)*AP23*-1 -> 0 | AQ29: =(AQ28+AP28)*AQ23*-1 -> 0 | AR29: =(AR28+AS28)*AR23*-1 -> 0 | AT29: dis | AU29: =(AU28)*AU23*-1 -> 0 | AV29: =(AV28+AW28)*AV23*-1 -> 0 | AW29: =(AW28+AV28)*AW23*-1 -> 0 | AX29: =(AX28+AY28)*AX23*-1 -> 0 | AY29: =(AY28+AX28)*AY23*-1 -> 0 | AZ29: =(AZ28+BA28)*AZ23*-1 -> 0 | BA29: =(BA28+AZ28)*BA23*-1 -> 0 | BB29: =(BB28+BC28)*BB23*-1 -> 0 | BC29: =(BC28+BB28)*BC23*-1 -> 0 | BD29: =(BD28+BE28)*BD23*-1 -> 0 | BF29: dis | BG29: =(BG28)*BG23*-1 -> 0 | BH29: =(BH28+BI28)*BH23*-1 -> 0 | BI29: =(BI28+BH28)*BI23*-1 -> 0 | BJ29: =(BJ28+BK28)*BJ23*-1 -> 0 | BK29: =(BK28+BJ28)*BK23*-1 -> 0 | BL29: =(BL28+BM28)*BL23*-1 -> 0 | BM29: =(BM28+BL28)*BM23*-1 -> 0 | BN29: =(BN28+BO28)*BN23*-1 -> 0 | BO29: =(BO28+BN28)*BO23*-1 -> 0 | BP29: =(BP28+BQ28)*BP23*-1 -> 0 | BR29: dis | BS29: =(BS28)*BS23*-1 -> 32.62274145 | BT29: =(BT28+BU28)*BT23*-1 -> -5.302135413 | BU29: =(BU28+BT28)*BU23*-1 -> -4.380024907 | BV29: =(BV28+BW28)*BV23*-1 -> 4.380024907 | BW29: =(BW28+BV28)*BW23*-1 -> 5.302135413 | BX29: =(BX28+BY28)*BX23*-1 -> -32.62274145 | BY29: =(BY28+BX28)*BY23*-1 -> 0 | BZ29: =(BZ28+CA28)*BZ23*-1 -> 0 | CA29: =(CA28+BZ28)*CA23*-1 -> 0 | CB29: =(CB28+CC28)*CB23*-1 -> 0
J30: co | K30: =L29/2 -> -5.62453011 | L30: =K29/2 -> 5.986545657 | M30: =N29/2 -> 2.658079231 | N30: =M29/2 -> -4.646350961 | O30: =P29/2 -> -3.217674859 | P30: =O29/2 -> 3.217674859 | Q30: =R29/2 -> 0 | R30: =Q29/2 -> 0 | S30: =T29/2 -> 0 | T30: =S29/2 -> 0 | V30: co | W30: =X29/2 -> 8.099323359 | X30: -4.633451796 | Y30: =Z29/2 -> -6.690745383 | Z30: =Y29/2 -> 6.690745383 | AA30: =AB29/2 -> 4.633451796 | AB30: =AA29/2 -> -8.099323359 | AC30: =AD29/2 -> 0 | AD30: =AC29/2 -> 0 | AE30: =AF29/2 -> 0 | AF30: =AE29/2 -> 0 | AH30: co | AI30: =AJ29/2 -> -3.217674859 | AJ30: =AI29/2 -> 3.217674859 | AK30: =AL29/2 -> 4.646350961 | AL30: =AK29/2 -> -2.658079231 | AM30: =AN29/2 -> -5.986545657 | AN30: =AM29/2 -> 5.62453011 | AO30: =AP29/2 -> 0 | AP30: =AO29/2 -> 0 | AQ30: =AR29/2 -> 0 | AR30: =AQ29/2 -> 0 | AT30: co | AU30: =AV29/2 -> 0 | AV30: =AU29/2 -> 0 | AW30: =AX29/2 -> 0 | AX30: =AW29/2 -> 0 | AY30: =AZ29/2 -> 0 | AZ30: =AY29/2 -> 0 | BA30: =BB29/2 -> 0 | BB30: =BA29/2 -> 0 | BC30: =BD29/2 -> 0 | BD30: =BC29/2 -> 0 | BF30: co | BG30: =BH29/2 -> 0 | BH30: =BG29/2 -> 0 | BI30: =BJ29/2 -> 0 | BJ30: =BI29/2 -> 0 | BK30: =BL29/2 -> 0 | BL30: =BK29/2 -> 0 | BM30: =BN29/2 -> 0 | BN30: =BM29/2 -> 0 | BO30: =BP29/2 -> 0 | BP30: =BO29/2 -> 0 | BR30: co | BS30: =BT29/2 -> -2.651067707 | BT30: =BS29/2 -> 16.31137072 | BU30: =BV29/2 -> 2.190012453 | BV30: =BU29/2 -> -2.190012453 | BW30: =BX29/2 -> -16.31137072 | BX30: =BW29/2 -> 2.651067707 | BY30: =BZ29/2 -> 0 | BZ30: =BY29/2 -> 0 | CA30: =CB29/2 -> 0 | CB30: =CA29/2 -> 0
J31: dis | K31: =(K30)*K23*-1 -> 1.702048748 | L31: =(L30+M30)*L23*-1 -> -1.702048748 | M31: =(M30+L30)*M23*-1 -> -1.40604027 | N31: =(N30+O30)*N23*-1 -> 1.279076551 | O31: =(O30+N30)*O23*-1 -> 1.548355825 | P31: =(P30+Q30)*P23*-1 -> -0.9737061334 | Q31: =(Q30+P30)*Q23*-1 -> 0 | R31: =(R30+S30)*R23*-1 -> 0 | S31: =(S30+R30)*S23*-1 -> 0 | T31: =(T30+U30)*T23*-1 -> 0 | V31: dis | W31: =(W30)*W23*-1 -> -2.450950198 | X31: =(X30+Y30)*X23*-1 -> 2.229632388 | Y31: =(Y30+X30)*Y23*-1 -> 1.841870234 | Z31: =(Z30+AA30)*Z23*-1 -> -1.841870234 | AA31: =(AA30+Z30)*AA23*-1 -> -2.229632388 | AB31: =(AB30+AC30)*AB23*-1 -> 2.450950198 | AC31: =(AC30+AB30)*AC23*-1 -> 0 | AD31: =(AD30+AE30)*AD23*-1 -> 0 | AE31: =(AE30+AD30)*AE23*-1 -> 0 | AF31: =(AF30+AG30)*AF23*-1 -> 0 | AH31: dis | AI31: =(AI30)*AI23*-1 -> 0.9737061334 | AJ31: =(AJ30+AK30)*AJ23*-1 -> -1.548355825 | AK31: =(AK30+AJ30)*AK23*-1 -> -1.279076551 | AL31: =(AL30+AM30)*AL23*-1 -> 1.40604027 | AM31: =(AM30+AL30)*AM23*-1 -> 1.702048748 | AN31: =(AN30+AO30)*AN23*-1 -> -1.702048748 | AO31: =(AO30+AN30)*AO23*-1 -> 0 | AP31: =(AP30+AQ30)*AP23*-1 -> 0 | AQ31: =(AQ30+AP30)*AQ23*-1 -> 0 | AR31: =(AR30+AS30)*AR23*-1 -> 0 | AT31: dis | AU31: =(AU30)*AU23*-1 -> 0 | AV31: =(AV30+AW30)*AV23*-1 -> 0 | AW31: =(AW30+AV30)*AW23*-1 -> 0 | AX31: =(AX30+AY30)*AX23*-1 -> 0 | AY31: =(AY30+AX30)*AY23*-1 -> 0 | AZ31: =(AZ30+BA30)*AZ23*-1 -> 0 | BA31: =(BA30+AZ30)*BA23*-1 -> 0 | BB31: =(BB30+BC30)*BB23*-1 -> 0 | BC31: =(BC30+BB30)*BC23*-1 -> 0 | BD31: =(BD30+BE30)*BD23*-1 -> 0 | BF31: dis | BG31: =(BG30)*BG23*-1 -> 0 | BH31: =(BH30+BI30)*BH23*-1 -> 0 | BI31: =(BI30+BH30)*BI23*-1 -> 0 | BJ31: =(BJ30+BK30)*BJ23*-1 -> 0 | BK31: =(BK30+BJ30)*BK23*-1 -> 0 | BL31: =(BL30+BM30)*BL23*-1 -> 0 | BM31: =(BM30+BL30)*BM23*-1 -> 0 | BN31: =(BN30+BO30)*BN23*-1 -> 0 | BO31: =(BO30+BN30)*BO23*-1 -> 0 | BP31: =(BP30+BQ30)*BP23*-1 -> 0 | BR31: dis | BS31: =(BS30)*BS23*-1 -> 0.8022441668 | BT31: =(BT30+BU30)*BT23*-1 -> -3.642755641 | BU31: =(BU30+BT30)*BU23*-1 -> -3.009232921 | BV31: =(BV30+BW30)*BV23*-1 -> 3.009232921 | BW31: =(BW30+BV30)*BW23*-1 -> 3.642755641 | BX31: =(BX30+BY30)*BX23*-1 -> -0.8022441668 | BY31: =(BY30+BX30)*BY23*-1 -> 0 | BZ31: =(BZ30+CA30)*BZ23*-1 -> 0 | CA31: =(CA30+BZ30)*CA23*-1 -> 0 | CB31: =(CB30+CC30)*CB23*-1 -> 0
J32: co | K32: =L31/2 -> -0.8510243742 | L32: =K31/2 -> 0.8510243742 | M32: =N31/2 -> 0.6395382757 | N32: =M31/2 -> -0.7030201352 | O32: =P31/2 -> -0.4868530667 | P32: =O31/2 -> 0.7741779126 | Q32: =R31/2 -> 0 | R32: =Q31/2 -> 0 | S32: =T31/2 -> 0 | T32: =S31/2 -> 0 | V32: co | W32: =X31/2 -> 1.114816194 | X32: =W31/2 -> -1.225475099 | Y32: =Z31/2 -> -0.9209351169 | Z32: =Y31/2 -> 0.9209351169 | AA32: =AB31/2 -> 1.225475099 | AB32: =AA31/2 -> -1.114816194 | AC32: =AD31/2 -> 0 | AD32: =AC31/2 -> 0 | AE32: =AF31/2 -> 0 | AF32: =AE31/2 -> 0 | AH32: co | AI32: =AJ31/2 -> -0.7741779126 | AJ32: =AI31/2 -> 0.4868530667 | AK32: =AL31/2 -> 0.7030201352 | AL32: =AK31/2 -> -0.6395382757 | AM32: =AN31/2 -> -0.8510243742 | AN32: =AM31/2 -> 0.8510243742 | AO32: =AP31/2 -> 0 | AP32: =AO31/2 -> 0 | AQ32: =AR31/2 -> 0 | AR32: =AQ31/2 -> 0 | AT32: co | AU32: =AV31/2 -> 0 | AV32: =AU31/2 -> 0 | AW32: =AX31/2 -> 0 | AX32: =AW31/2 -> 0 | AY32: =AZ31/2 -> 0 | AZ32: =AY31/2 -> 0 | BA32: =BB31/2 -> 0 | BB32: =BA31/2 -> 0 | BC32: =BD31/2 -> 0 | BD32: =BC31/2 -> 0 | BF32: co | BG32: =BH31/2 -> 0 | BH32: =BG31/2 -> 0 | BI32: =BJ31/2 -> 0 | BJ32: =BI31/2 -> 0 | BK32: =BL31/2 -> 0 | BL32: =BK31/2 -> 0 | BM32: =BN31/2 -> 0 | BN32: =BM31/2 -> 0 | BO32: =BP31/2 -> 0 | BP32: =BO31/2 -> 0 | BR32: co | BS32: =BT31/2 -> -1.821377821 | BT32: =BS31/2 -> 0.4011220834 | BU32: =BV31/2 -> 1.504616461 | BV32: =BU31/2 -> -1.504616461 | BW32: =BX31/2 -> -0.4011220834 | BX32: =BW31/2 -> 1.821377821 | BY32: =BZ31/2 -> 0 | BZ32: =BY31/2 -> 0 | CA32: =CB31/2 -> 0 | CB32: =CA31/2 -> 0
J33: dis | K33: =(K32)*K23*-1 -> 0.2575299523 | L33: =(L32+M32)*L23*-1 -> -0.2934783551 | M33: =(M32+L32)*M23*-1 -> -0.2424386412 | N33: =(N32+O32)*N23*-1 -> 0.1935317796 | O33: =(O32+N32)*O23*-1 -> 0.2342753121 | P33: =(P32+Q32)*P23*-1 -> -0.2342753121 | Q33: =(Q32+P32)*Q23*-1 -> 0 | R33: =(R32+S32)*R23*-1 -> 0 | S33: =(S32+R32)*S23*-1 -> 0 | T33: =(T32+U32)*T23*-1 -> 0 | V33: dis | W33: =(W32)*W23*-1 -> -0.3373564495 | X33: =(X32+Y32)*X23*-1 -> 0.4226088313 | Y33: =(Y32+X32)*Y23*-1 -> 0.3491116433 | Z33: =(Z32+AA32)*Z23*-1 -> -0.3491116433 | AA33: =(AA32+Z32)*AA23*-1 -> -0.4226088313 | AB33: =(AB32+AC32)*AB23*-1 -> 0.3373564495 | AC33: =(AC32+AB32)*AC23*-1 -> 0 | AD33: =(AD32+AE32)*AD23*-1 -> 0 | AE33: =(AE32+AD32)*AE23*-1 -> 0 | AF33: =(AF32+AG32)*AF23*-1 -> 0 | AH33: dis | AI33: =(AI32)*AI23*-1 -> 0.2342753121 | AJ33: =(AJ32+AK32)*AJ23*-1 -> -0.2342753121 | AK33: =(AK32+AJ32)*AK23*-1 -> -0.1935317796 | AL33: =(AL32+AM32)*AL23*-1 -> 0.2424386412 | AM33: =(AM32+AL32)*AM23*-1 -> 0.2934783551 | AN33: =(AN32+AO32)*AN23*-1 -> -0.2575299523 | AO33: =(AO32+AN32)*AO23*-1 -> 0 | AP33: =(AP32+AQ32)*AP23*-1 -> 0 | AQ33: =(AQ32+AP32)*AQ23*-1 -> 0 | AR33: =(AR32+AS32)*AR23*-1 -> 0 | AT33: dis | AU33: =(AU32)*AU23*-1 -> 0 | AV33: =(AV32+AW32)*AV23*-1 -> 0 | AW33: =(AW32+AV32)*AW23*-1 -> 0 | AX33: =(AX32+AY32)*AX23*-1 -> 0 | AY33: =(AY32+AX32)*AY23*-1 -> 0 | AZ33: =(AZ32+BA32)*AZ23*-1 -> 0 | BA33: =(BA32+AZ32)*BA23*-1 -> 0 | BB33: =(BB32+BC32)*BB23*-1 -> 0 | BC33: =(BC32+BB32)*BC23*-1 -> 0 | BD33: =(BD32+BE32)*BD23*-1 -> 0 | BF33: dis | BG33: =(BG32)*BG23*-1 -> 0 | BH33: =(BH32+BI32)*BH23*-1 -> 0 | BI33: =(BI32+BH32)*BI23*-1 -> 0 | BJ33: =(BJ32+BK32)*BJ23*-1 -> 0 | BK33: =(BK32+BJ32)*BK23*-1 -> 0 | BL33: =(BL32+BM32)*BL23*-1 -> 0 | BM33: =(BM32+BL32)*BM23*-1 -> 0 | BN33: =(BN32+BO32)*BN23*-1 -> 0 | BO33: =(BO32+BN32)*BO23*-1 -> 0 | BP33: =(BP32+BQ32)*BP23*-1 -> 0 | BR33: dis | BS33: =(BS32)*BS23*-1 -> 0.5511702808 | BT33: =(BT32+BU32)*BT23*-1 -> -0.3752227477 | BU33: =(BU32+BT32)*BU23*-1 -> -0.3099666177 | BV33: =(BV32+BW32)*BV23*-1 -> 0.3099666177 | BW33: =(BW32+BV32)*BW23*-1 -> 0.3752227477 | BX33: =(BX32+BY32)*BX23*-1 -> -0.5511702808 | BY33: =(BY32+BX32)*BY23*-1 -> 0 | BZ33: =(BZ32+CA32)*BZ23*-1 -> 0 | CA33: =(CA32+BZ32)*CA23*-1 -> 0 | CB33: =(CB32+CC32)*CB23*-1 -> 0
J34: co | K34: =L33/2 -> -0.1467391775 | L34: =K33/2 -> 0.1287649761 | M34: =N33/2 -> 0.0967658898 | N34: =M33/2 -> -0.1212193206 | O34: =P33/2 -> -0.1171376561 | P34: =O33/2 -> 0.1171376561 | Q34: =R33/2 -> 0 | R34: =Q33/2 -> 0 | S34: =T33/2 -> 0 | T34: =S33/2 -> 0 | V34: co | W34: =X33/2 -> 0.2113044157 | X34: =W33/2 -> -0.1686782247 | Y34: =Z33/2 -> -0.1745558216 | Z34: =Y33/2 -> 0.1745558216 | AA34: =AB33/2 -> 0.1686782247 | AB34: =AA33/2 -> -0.2113044157 | AC34: =AD33/2 -> 0 | AD34: =AC33/2 -> 0 | AE34: =AF33/2 -> 0 | AF34: =AE33/2 -> 0 | AH34: co | AI34: =AJ33/2 -> -0.1171376561 | AJ34: =AI33/2 -> 0.1171376561 | AK34: =AL33/2 -> 0.1212193206 | AL34: =AK33/2 -> -0.0967658898 | AM34: =AN33/2 -> -0.1287649761 | AN34: =AM33/2 -> 0.1467391775 | AO34: =AP33/2 -> 0 | AP34: =AO33/2 -> 0 | AQ34: =AR33/2 -> 0 | AR34: =AQ33/2 -> 0 | AT34: co | AU34: =AV33/2 -> 0 | AV34: =AU33/2 -> 0 | AW34: =AX33/2 -> 0 | AX34: =AW33/2 -> 0 | AY34: =AZ33/2 -> 0 | AZ34: =AY33/2 -> 0 | BA34: =BB33/2 -> 0 | BB34: =BA33/2 -> 0 | BC34: =BD33/2 -> 0 | BD34: =BC33/2 -> 0 | BF34: co | BG34: =BH33/2 -> 0 | BH34: =BG33/2 -> 0 | BI34: =BJ33/2 -> 0 | BJ34: =BI33/2 -> 0 | BK34: =BL33/2 -> 0 | BL34: =BK33/2 -> 0 | BM34: =BN33/2 -> 0 | BN34: =BM33/2 -> 0 | BO34: =BP33/2 -> 0 | BP34: =BO33/2 -> 0 | BR34: co | BS34: =BT33/2 -> -0.1876113739 | BT34: =BS33/2 -> 0.2755851404 | BU34: =BV33/2 -> 0.1549833088 | BV34: =BU33/2 -> -0.1549833088 | BW34: =BX33/2 -> -0.2755851404 | BX34: =BW33/2 -> 0.1876113739 | BY34: =BZ33/2 -> 0 | BZ34: =BY33/2 -> 0 | CA34: =CB33/2 -> 0 | CB34: =CA33/2 -> 0
J35: dis | K35: =(K34)*K23*-1 -> 0.04440499537 | L35: =(L34+M34)*L23*-1 -> -0.04440499537 | M35: =(M34+L34)*M23*-1 -> -0.03668238748 | N35: =(N34+O34)*N23*-1 -> 0.03876854256 | O35: =(O34+N34)*O23*-1 -> 0.046930341 | P35: =(P34+Q34)*P23*-1 -> -0.03544722794 | Q35: =(Q34+P34)*Q23*-1 -> 0 | R35: =(R34+S34)*R23*-1 -> 0 | S35: =(S34+R34)*S23*-1 -> 0 | T35: =(T34+U34)*T23*-1 -> 0 | V35: dis | W35: =(W34)*W23*-1 -> -0.06394319333 | X35: =(X34+Y34)*X23*-1 -> 0.06757969103 | Y35: =(Y34+X34)*Y23*-1 -> 0.05582670129 | Z35: =(Z34+AA34)*Z23*-1 -> -0.05582670129 | AA35: =(AA34+Z34)*AA23*-1 -> -0.06757969103 | AB35: =(AB34+AC34)*AB23*-1 -> 0.06394319333 | AC35: =(AC34+AB34)*AC23*-1 -> 0 | AD35: =(AD34+AE34)*AD23*-1 -> 0 | AE35: =(AE34+AD34)*AE23*-1 -> 0 | AF35: =(AF34+AG34)*AF23*-1 -> 0 | AH35: dis | AI35: =(AI34)*AI23*-1 -> 0.03544722794 | AJ35: =(AJ34+AK34)*AJ23*-1 -> -0.046930341 | AK35: =(AK34+AJ34)*AK23*-1 -> -0.03876854256 | AL35: =(AL34+AM34)*AL23*-1 -> 0.03668238748 | AM35: =(AM34+AL34)*AM23*-1 -> 0.04440499537 | AN35: =(AN34+AO34)*AN23*-1 -> -0.04440499537 | AO35: =(AO34+AN34)*AO23*-1 -> 0 | AP35: =(AP34+AQ34)*AP23*-1 -> 0 | AQ35: =(AQ34+AP34)*AQ23*-1 -> 0 | AR35: =(AR34+AS34)*AR23*-1 -> 0 | AT35: dis | AU35: =(AU34)*AU23*-1 -> 0 | AV35: =(AV34+AW34)*AV23*-1 -> 0 | AW35: =(AW34+AV34)*AW23*-1 -> 0 | AX35: =(AX34+AY34)*AX23*-1 -> 0 | AY35: =(AY34+AX34)*AY23*-1 -> 0 | AZ35: =(AZ34+BA34)*AZ23*-1 -> 0 | BA35: =(BA34+AZ34)*BA23*-1 -> 0 | BB35: =(BB34+BC34)*BB23*-1 -> 0 | BC35: =(BC34+BB34)*BC23*-1 -> 0 | BD35: =(BD34+BE34)*BD23*-1 -> 0 | BF35: dis | BG35: =(BG34)*BG23*-1 -> 0 | BH35: =(BH34+BI34)*BH23*-1 -> 0 | BI35: =(BI34+BH34)*BI23*-1 -> 0 | BJ35: =(BJ34+BK34)*BJ23*-1 -> 0 | BK35: =(BK34+BJ34)*BK23*-1 -> 0 | BL35: =(BL34+BM34)*BL23*-1 -> 0 | BM35: =(BM34+BL34)*BM23*-1 -> 0 | BN35: =(BN34+BO34)*BN23*-1 -> 0 | BO35: =(BO34+BN34)*BO23*-1 -> 0 | BP35: =(BP34+BQ34)*BP23*-1 -> 0 | BR35: dis | BS35: =(BS34)*BS23*-1 -> 0.05677340112 | BT35: =(BT34+BU34)*BT23*-1 -> -0.08477504803 | BU35: =(BU34+BT34)*BU23*-1 -> -0.07003156142 | BV35: =(BV34+BW34)*BV23*-1 -> 0.07003156142 | BW35: =(BW34+BV34)*BW23*-1 -> 0.08477504803 | BX35: =(BX34+BY34)*BX23*-1 -> -0.05677340112 | BY35: =(BY34+BX34)*BY23*-1 -> 0 | BZ35: =(BZ34+CA34)*BZ23*-1 -> 0 | CA35: =(CA34+BZ34)*CA23*-1 -> 0 | CB35: =(CB34+CC34)*CB23*-1 -> 0
J36: co | K36: =L35/2 -> -0.02220249768 | L36: =K35/2 -> 0.02220249768 | M36: =N35/2 -> 0.01938427128 | N36: =M35/2 -> -0.01834119374 | O36: =P35/2 -> -0.01772361397 | P36: =O35/2 -> 0.0234651705 | Q36: =R35/2 -> 0 | R36: =Q35/2 -> 0 | S36: =T35/2 -> 0 | T36: =S35/2 -> 0 | V36: co | W36: =X35/2 -> 0.03378984552 | X36: -0.03197159666 | Y36: =Z35/2 -> -0.02791335064 | Z36: =Y35/2 -> 0.02791335064 | AA36: =AB35/2 -> 0.03197159666 | AB36: =AA35/2 -> -0.03378984552 | AC36: =AD35/2 -> 0 | AD36: =AC35/2 -> 0 | AE36: =AF35/2 -> 0 | AF36: =AE35/2 -> 0 | AH36: co | AI36: =AJ35/2 -> -0.0234651705 | AJ36: =AI35/2 -> 0.01772361397 | AK36: =AL35/2 -> 0.01834119374 | AL36: =AK35/2 -> -0.01938427128 | AM36: =AN35/2 -> -0.02220249768 | AN36: =AM35/2 -> 0.02220249768 | AO36: =AP35/2 -> 0 | AP36: =AO35/2 -> 0 | AQ36: =AR35/2 -> 0 | AR36: =AQ35/2 -> 0 | AT36: co | AU36: =AV35/2 -> 0 | AV36: =AU35/2 -> 0 | AW36: =AX35/2 -> 0 | AX36: =AW35/2 -> 0 | AY36: =AZ35/2 -> 0 | AZ36: =AY35/2 -> 0 | BA36: =BB35/2 -> 0 | BB36: =BA35/2 -> 0 | BC36: =BD35/2 -> 0 | BD36: =BC35/2 -> 0 | BF36: co | BG36: =BH35/2 -> 0 | BH36: =BG35/2 -> 0 | BI36: =BJ35/2 -> 0 | BJ36: =BI35/2 -> 0 | BK36: =BL35/2 -> 0 | BL36: =BK35/2 -> 0 | BM36: =BN35/2 -> 0 | BN36: =BM35/2 -> 0 | BO36: =BP35/2 -> 0 | BP36: =BO35/2 -> 0 | BR36: co | BS36: =BT35/2 -> -0.04238752402 | BT36: =BS35/2 -> 0.02838670056 | BU36: =BV35/2 -> 0.03501578071 | BV36: =BU35/2 -> -0.03501578071 | BW36: =BX35/2 -> -0.02838670056 | BX36: =BW35/2 -> 0.04238752402 | BY36: =BZ35/2 -> 0 | BZ36: =BY35/2 -> 0 | CA36: =CB35/2 -> 0 | CB36: =CA35/2 -> 0
J37: dis | K37: =(K36)*K23*-1 -> 0.006718736081 | L37: =(L36+M36)*L23*-1 -> -0.008188060093 | M37: =(M36+L36)*M23*-1 -> -0.006764049642 | N37: =(N36+O36)*N23*-1 -> 0.005865907734 | O37: =(O36+N36)*O23*-1 -> 0.007100835677 | P37: =(P36+Q36)*P23*-1 -> -0.007100835677 | Q37: =(Q36+P36)*Q23*-1 -> 0 | R37: =(R36+S36)*R23*-1 -> 0 | S37: =(S36+R36)*S23*-1 -> 0 | T37: =(T36+U36)*T23*-1 -> 0 | V37: dis | W37: =(W36)*W23*-1 -> -0.01022520338 | X37: =(X36+Y36)*X23*-1 -> 0.01179080653 | Y37: =(Y36+X36)*Y23*-1 -> 0.009740231484 | Z37: =(Z36+AA36)*Z23*-1 -> -0.009740231484 | AA37: =(AA36+Z36)*AA23*-1 -> -0.01179080653 | AB37: =(AB36+AC36)*AB23*-1 -> 0.01022520338 | AC37: =(AC36+AB36)*AC23*-1 -> 0 | AD37: =(AD36+AE36)*AD23*-1 -> 0 | AE37: =(AE36+AD36)*AE23*-1 -> 0 | AF37: =(AF36+AG36)*AF23*-1 -> 0 | AH37: dis | AI37: =(AI36)*AI23*-1 -> 0.007100835677 | AJ37: =(AJ36+AK36)*AJ23*-1 -> -0.007100835677 | AK37: =(AK36+AJ36)*AK23*-1 -> -0.005865907734 | AL37: =(AL36+AM36)*AL23*-1 -> 0.006764049642 | AM37: =(AM36+AL36)*AM23*-1 -> 0.008188060093 | AN37: =(AN36+AO36)*AN23*-1 -> -0.006718736081 | AO37: =(AO36+AN36)*AO23*-1 -> 0 | AP37: =(AP36+AQ36)*AP23*-1 -> 0 | AQ37: =(AQ36+AP36)*AQ23*-1 -> 0 | AR37: =(AR36+AS36)*AR23*-1 -> 0 | AT37: dis | AU37: =(AU36)*AU23*-1 -> 0 | AV37: =(AV36+AW36)*AV23*-1 -> 0 | AW37: =(AW36+AV36)*AW23*-1 -> 0 | AX37: =(AX36+AY36)*AX23*-1 -> 0 | AY37: =(AY36+AX36)*AY23*-1 -> 0 | AZ37: =(AZ36+BA36)*AZ23*-1 -> 0 | BA37: =(BA36+AZ36)*BA23*-1 -> 0 | BB37: =(BB36+BC36)*BB23*-1 -> 0 | BC37: =(BC36+BB36)*BC23*-1 -> 0 | BD37: =(BD36+BE36)*BD23*-1 -> 0 | BF37: dis | BG37: =(BG36)*BG23*-1 -> 0 | BH37: =(BH36+BI36)*BH23*-1 -> 0 | BI37: =(BI36+BH36)*BI23*-1 -> 0 | BJ37: =(BJ36+BK36)*BJ23*-1 -> 0 | BK37: =(BK36+BJ36)*BK23*-1 -> 0 | BL37: =(BL36+BM36)*BL23*-1 -> 0 | BM37: =(BM36+BL36)*BM23*-1 -> 0 | BN37: =(BN36+BO36)*BN23*-1 -> 0 | BO37: =(BO36+BN36)*BO23*-1 -> 0 | BP37: =(BP36+BQ36)*BP23*-1 -> 0 | BR37: dis | BS37: =(BS36)*BS23*-1 -> 0.01282696168 | BT37: =(BT36+BU36)*BT23*-1 -> -0.01248337728 | BU37: =(BU36+BT36)*BU23*-1 -> -0.01031235514 | BV37: =(BV36+BW36)*BV23*-1 -> 0.01031235514 | BW37: =(BW36+BV36)*BW23*-1 -> 0.01248337728 | BX37: =(BX36+BY36)*BX23*-1 -> -0.01282696168 | BY37: =(BY36+BX36)*BY23*-1 -> 0 | BZ37: =(BZ36+CA36)*BZ23*-1 -> 0 | CA37: =(CA36+BZ36)*CA23*-1 -> 0 | CB37: =(CB36+CC36)*CB23*-1 -> 0
J38: co | K38: =L37/2 -> -0.004094030046 | L38: =K37/2 -> 0.003359368041 | M38: =N37/2 -> 0.002932953867 | N38: =M37/2 -> -0.003382024821 | O38: =P37/2 -> -0.003550417839 | P38: =O37/2 -> 0.003550417839 | Q38: =R37/2 -> 0 | R38: =Q37/2 -> 0 | S38: =T37/2 -> 0 | T38: =S37/2 -> 0 | V38: co | W38: =X37/2 -> 0.005895403267 | X38: =W37/2 -> -0.005112601688 | Y38: =Z37/2 -> -0.004870115742 | Z38: =Y37/2 -> 0.004870115742 | AA38: =AB37/2 -> 0.005112601688 | AB38: =AA37/2 -> -0.005895403267 | AC38: =AD37/2 -> 0 | AD38: =AC37/2 -> 0 | AE38: =AF37/2 -> 0 | AF38: =AE37/2 -> 0 | AH38: co | AI38: =AJ37/2 -> -0.003550417839 | AJ38: =AI37/2 -> 0.003550417839 | AK38: =AL37/2 -> 0.003382024821 | AL38: =AK37/2 -> -0.002932953867 | AM38: =AN37/2 -> -0.003359368041 | AN38: =AM37/2 -> 0.004094030046 | AO38: =AP37/2 -> 0 | AP38: =AO37/2 -> 0 | AQ38: =AR37/2 -> 0 | AR38: =AQ37/2 -> 0 | AT38: co | AU38: =AV37/2 -> 0 | AV38: =AU37/2 -> 0 | AW38: =AX37/2 -> 0 | AX38: =AW37/2 -> 0 | AY38: =AZ37/2 -> 0 | AZ38: =AY37/2 -> 0 | BA38: =BB37/2 -> 0 | BB38: =BA37/2 -> 0 | BC38: =BD37/2 -> 0 | BD38: =BC37/2 -> 0 | BF38: co | BG38: =BH37/2 -> 0 | BH38: =BG37/2 -> 0 | BI38: =BJ37/2 -> 0 | BJ38: =BI37/2 -> 0 | BK38: =BL37/2 -> 0 | BL38: =BK37/2 -> 0 | BM38: =BN37/2 -> 0 | BN38: =BM37/2 -> 0 | BO38: =BP37/2 -> 0 | BP38: =BO37/2 -> 0 | BR38: co | BS38: =BT37/2 -> -0.006241688638 | BT38: =BS37/2 -> 0.00641348084 | BU38: =BV37/2 -> 0.00515617757 | BV38: =BU37/2 -> -0.00515617757 | BW38: =BX37/2 -> -0.00641348084 | BX38: =BW37/2 -> 0.006241688638 | BY38: =BZ37/2 -> 0 | BZ38: =BY37/2 -> 0 | CA38: =CB37/2 -> 0 | CB38: =CA37/2 -> 0
J39: dis | K39: =(K38)*K23*-1 -> 0.001238901487 | L39: =(L38+M38)*L23*-1 -> -0.001238901487 | M39: =(M38+L38)*M23*-1 -> -0.001023440359 | N39: =(N38+O38)*N23*-1 -> 0.001127555409 | O39: =(O38+N38)*O23*-1 -> 0.001364935495 | P39: =(P38+Q38)*P23*-1 -> -0.00107439806 | Q39: =(Q38+P38)*Q23*-1 -> 0 | R39: =(R38+S38)*R23*-1 -> 0 | S39: =(S38+R38)*S23*-1 -> 0 | T39: =(T38+U38)*T23*-1 -> 0 | V39: dis | W39: =(W38)*W23*-1 -> -0.001784018141 | X39: =(X38+Y38)*X23*-1 -> 0.001965507113 | Y39: =(Y38+X38)*Y23*-1 -> 0.001623679789 | Z39: =(Z38+AA38)*Z23*-1 -> -0.001623679789 | AA39: =(AA38+Z38)*AA23*-1 -> -0.001965507113 | AB39: =(AB38+AC38)*AB23*-1 -> 0.001784018141 | AC39: =(AC38+AB38)*AC23*-1 -> 0 | AD39: =(AD38+AE38)*AD23*-1 -> 0 | AE39: =(AE38+AD38)*AE23*-1 -> 0 | AF39: =(AF38+AG38)*AF23*-1 -> 0 | AH39: dis | AI39: =(AI38)*AI23*-1 -> 0.00107439806 | AJ39: =(AJ38+AK38)*AJ23*-1 -> -0.001364935495 | AK39: =(AK38+AJ38)*AK23*-1 -> -0.001127555409 | AL39: =(AL38+AM38)*AL23*-1 -> 0.001023440359 | AM39: =(AM38+AL38)*AM23*-1 -> 0.001238901487 | AN39: =(AN38+AO38)*AN23*-1 -> -0.001238901487 | AO39: =(AO38+AN38)*AO23*-1 -> 0 | AP39: =(AP38+AQ38)*AP23*-1 -> 0 | AQ39: =(AQ38+AP38)*AQ23*-1 -> 0 | AR39: =(AR38+AS38)*AR23*-1 -> 0 | AT39: dis | AU39: =(AU38)*AU23*-1 -> 0 | AV39: =(AV38+AW38)*AV23*-1 -> 0 | AW39: =(AW38+AV38)*AW23*-1 -> 0 | AX39: =(AX38+AY38)*AX23*-1 -> 0 | AY39: =(AY38+AX38)*AY23*-1 -> 0 | AZ39: =(AZ38+BA38)*AZ23*-1 -> 0 | BA39: =(BA38+AZ38)*BA23*-1 -> 0 | BB39: =(BB38+BC38)*BB23*-1 -> 0 | BC39: =(BC38+BB38)*BC23*-1 -> 0 | BD39: =(BD38+BE38)*BD23*-1 -> 0 | BF39: dis | BG39: =(BG38)*BG23*-1 -> 0 | BH39: =(BH38+BI38)*BH23*-1 -> 0 | BI39: =(BI38+BH38)*BI23*-1 -> 0 | BJ39: =(BJ38+BK38)*BJ23*-1 -> 0 | BK39: =(BK38+BJ38)*BK23*-1 -> 0 | BL39: =(BL38+BM38)*BL23*-1 -> 0 | BM39: =(BM38+BL38)*BM23*-1 -> 0 | BN39: =(BN38+BO38)*BN23*-1 -> 0 | BO39: =(BO38+BN38)*BO23*-1 -> 0 | BP39: =(BP38+BQ38)*BP23*-1 -> 0 | BR39: dis | BS39: =(BS38)*BS23*-1 -> 0.001888808154 | BT39: =(BT38+BU38)*BT23*-1 -> -0.002277961493 | BU39: =(BU38+BT38)*BU23*-1 -> -0.001881794277 | BV39: =(BV38+BW38)*BV23*-1 -> 0.001881794277 | BW39: =(BW38+BV38)*BW23*-1 -> 0.002277961493 | BX39: =(BX38+BY38)*BX23*-1 -> -0.001888808154 | BY39: =(BY38+BX38)*BY23*-1 -> 0 | BZ39: =(BZ38+CA38)*BZ23*-1 -> 0 | CA39: =(CA38+BZ38)*CA23*-1 -> 0 | CB39: =(CB38+CC38)*CB23*-1 -> 0
J40: co | K40: =L39/2 -> -0.0006194507434 | L40: =K39/2 -> 0.0006194507434 | M40: =N39/2 -> 0.0005637777045 | N40: =M39/2 -> -0.0005117201793 | O40: =P39/2 -> -0.00053719903 | P40: =O39/2 -> 0.0006824677476 | Q40: =R39/2 -> 0 | R40: =Q39/2 -> 0 | S40: =T39/2 -> 0 | T40: =S39/2 -> 0 | V40: co | W40: =X39/2 -> 0.0009827535565 | X40: =W39/2 -> -0.0008920090705 | Y40: =Z39/2 -> -0.0008118398945 | Z40: =Y39/2 -> 0.0008118398945 | AA40: =AB39/2 -> 0.0008920090705 | AB40: =AA39/2 -> -0.0009827535565 | AC40: =AD39/2 -> 0 | AD40: =AC39/2 -> 0 | AE40: =AF39/2 -> 0 | AF40: =AE39/2 -> 0 | AH40: co | AI40: =AJ39/2 -> -0.0006824677476 | AJ40: =AI39/2 -> 0.00053719903 | AK40: =AL39/2 -> 0.0005117201793 | AL40: =AK39/2 -> -0.0005637777045 | AM40: =AN39/2 -> -0.0006194507434 | AN40: =AM39/2 -> 0.0006194507434 | AO40: =AP39/2 -> 0 | AP40: =AO39/2 -> 0 | AQ40: =AR39/2 -> 0 | AR40: =AQ39/2 -> 0 | AT40: co | AU40: =AV39/2 -> 0 | AV40: =AU39/2 -> 0 | AW40: =AX39/2 -> 0 | AX40: =AW39/2 -> 0 | AY40: =AZ39/2 -> 0 | AZ40: =AY39/2 -> 0 | BA40: =BB39/2 -> 0 | BB40: =BA39/2 -> 0 | BC40: =BD39/2 -> 0 | BD40: =BC39/2 -> 0 | BF40: co | BG40: =BH39/2 -> 0 | BH40: =BG39/2 -> 0 | BI40: =BJ39/2 -> 0 | BJ40: =BI39/2 -> 0 | BK40: =BL39/2 -> 0 | BL40: =BK39/2 -> 0 | BM40: =BN39/2 -> 0 | BN40: =BM39/2 -> 0 | BO40: =BP39/2 -> 0 | BP40: =BO39/2 -> 0 | BR40: co | BS40: =BT39/2 -> -0.001138980747 | BT40: =BS39/2 -> 0.0009444040769 | BU40: =BV39/2 -> 0.0009408971385 | BV40: =BU39/2 -> -0.0009408971385 | BW40: =BX39/2 -> -0.0009444040769 | BX40: =BW39/2 -> 0.001138980747 | BY40: =BZ39/2 -> 0 | BZ40: =BY39/2 -> 0 | CA40: =CB39/2 -> 0 | CB40: =CA39/2 -> 0
J41: dis | K41: =(K40)*K23*-1 -> 0.0001874530568 | L41: =(L40+M40)*L23*-1 -> -0.00023296702 | M41: =(M40+L40)*M23*-1 -> -0.0001924510165 | N41: =(N40+O40)*N23*-1 -> 0.0001706057426 | O41: =(O40+N40)*O23*-1 -> 0.0002065227411 | P41: =(P40+Q40)*P23*-1 -> -0.0002065227411 | Q41: =(Q40+P40)*Q23*-1 -> 0 | R41: =(R40+S40)*R23*-1 -> 0 | S41: =(S40+R40)*S23*-1 -> 0 | T41: =(T40+U40)*T23*-1 -> 0 | V41: dis | W41: =(W40)*W23*-1 -> -0.0002973927471 | X41: =(X40+Y40)*X23*-1 -> 0.0003354725087 | Y41: =(Y40+X40)*Y23*-1 -> 0.0002771294637 | Z41: =(Z40+AA40)*Z23*-1 -> -0.0002771294637 | AA41: =(AA40+Z40)*AA23*-1 -> -0.0003354725087 | AB41: =(AB40+AC40)*AB23*-1 -> 0.0002973927471 | AC41: =(AC40+AB40)*AC23*-1 -> 0 | AD41: =(AD40+AE40)*AD23*-1 -> 0 | AE41: =(AE40+AD40)*AE23*-1 -> 0 | AF41: =(AF40+AG40)*AF23*-1 -> 0 | AH41: dis | AI41: =(AI40)*AI23*-1 -> 0.0002065227411 | AJ41: =(AJ40+AK40)*AJ23*-1 -> -0.0002065227411 | AK41: =(AK40+AJ40)*AK23*-1 -> -0.0001706057426 | AL41: =(AL40+AM40)*AL23*-1 -> 0.0001924510165 | AM41: =(AM40+AL40)*AM23*-1 -> 0.00023296702 | AN41: =(AN40+AO40)*AN23*-1 -> -0.0001874530568 | AO41: =(AO40+AN40)*AO23*-1 -> 0 | AP41: =(AP40+AQ40)*AP23*-1 -> 0 | AQ41: =(AQ40+AP40)*AQ23*-1 -> 0 | AR41: =(AR40+AS40)*AR23*-1 -> 0 | AT41: dis | AU41: =(AU40)*AU23*-1 -> 0 | AV41: =(AV40+AW40)*AV23*-1 -> 0 | AW41: =(AW40+AV40)*AW23*-1 -> 0 | AX41: =(AX40+AY40)*AX23*-1 -> 0 | AY41: =(AY40+AX40)*AY23*-1 -> 0 | AZ41: =(AZ40+BA40)*AZ23*-1 -> 0 | BA41: =(BA40+AZ40)*BA23*-1 -> 0 | BB41: =(BB40+BC40)*BB23*-1 -> 0 | BC41: =(BC40+BB40)*BC23*-1 -> 0 | BD41: =(BD40+BE40)*BD23*-1 -> 0 | BF41: dis | BG41: =(BG40)*BG23*-1 -> 0 | BH41: =(BH40+BI40)*BH23*-1 -> 0 | BI41: =(BI40+BH40)*BI23*-1 -> 0 | BJ41: =(BJ40+BK40)*BJ23*-1 -> 0 | BK41: =(BK40+BJ40)*BK23*-1 -> 0 | BL41: =(BL40+BM40)*BL23*-1 -> 0 | BM41: =(BM40+BL40)*BM23*-1 -> 0 | BN41: =(BN40+BO40)*BN23*-1 -> 0 | BO41: =(BO40+BN40)*BO23*-1 -> 0 | BP41: =(BP40+BQ40)*BP23*-1 -> 0 | BR41: dis | BS41: =(BS40)*BS23*-1 -> 0.0003446689263 | BT41: =(BT40+BU40)*BT23*-1 -> -0.0003711988219 | BU41: =(BU40+BT40)*BU23*-1 -> -0.000306642505 | BV41: =(BV40+BW40)*BV23*-1 -> 0.000306642505 | BW41: =(BW40+BV40)*BW23*-1 -> 0.0003711988219 | BX41: =(BX40+BY40)*BX23*-1 -> -0.0003446689263 | BY41: =(BY40+BX40)*BY23*-1 -> 0 | BZ41: =(BZ40+CA40)*BZ23*-1 -> 0 | CA41: =(CA40+BZ40)*CA23*-1 -> 0 | CB41: =(CB40+CC40)*CB23*-1 -> 0
J42: co | K42: =L41/2 -> -0.00011648351 | L42: =K41/2 -> 9.372652842e-05 | M42: =N41/2 -> 8.530287131e-05 | N42: =M41/2 -> -9.622550824e-05 | O42: =P41/2 -> -0.0001032613705 | P42: =O41/2 -> 0.0001032613705 | Q42: =R41/2 -> 0 | R42: =Q41/2 -> 0 | S42: =T41/2 -> 0 | T42: =S41/2 -> 0 | V42: co | W42: =X41/2 -> 0.0001677362544 | X42: =W41/2 -> -0.0001486963736 | Y42: =Z41/2 -> -0.0001385647319 | Z42: =Y41/2 -> 0.0001385647319 | AA42: =AB41/2 -> 0.0001486963736 | AB42: =AA41/2 -> -0.0001677362544 | AC42: =AD41/2 -> 0 | AD42: =AC41/2 -> 0 | AE42: =AF41/2 -> 0 | AF42: =AE41/2 -> 0 | AH42: co | AI42: =AJ41/2 -> -0.0001032613705 | AJ42: =AI41/2 -> 0.0001032613705 | AK42: =AL41/2 -> 9.622550824e-05 | AL42: =AK41/2 -> -8.530287131e-05 | AM42: =AN41/2 -> -9.372652842e-05 | AN42: =AM41/2 -> 0.00011648351 | AO42: =AP41/2 -> 0 | AP42: =AO41/2 -> 0 | AQ42: =AR41/2 -> 0 | AR42: =AQ41/2 -> 0 | AT42: co | AU42: =AV41/2 -> 0 | AV42: =AU41/2 -> 0 | AW42: =AX41/2 -> 0 | AX42: =AW41/2 -> 0 | AY42: =AZ41/2 -> 0 | AZ42: =AY41/2 -> 0 | BA42: =BB41/2 -> 0 | BB42: =BA41/2 -> 0 | BC42: =BD41/2 -> 0 | BD42: =BC41/2 -> 0 | BF42: co | BG42: =BH41/2 -> 0 | BH42: =BG41/2 -> 0 | BI42: =BJ41/2 -> 0 | BJ42: =BI41/2 -> 0 | BK42: =BL41/2 -> 0 | BL42: =BK41/2 -> 0 | BM42: =BN41/2 -> 0 | BN42: =BM41/2 -> 0 | BO42: =BP41/2 -> 0 | BP42: =BO41/2 -> 0 | BR42: co | BS42: =BT41/2 -> -0.0001855994109 | BT42: =BS41/2 -> 0.0001723344632 | BU42: =BV41/2 -> 0.0001533212525 | BV42: =BU41/2 -> -0.0001533212525 | BW42: =BX41/2 -> -0.0001723344632 | BX42: =BW41/2 -> 0.0001855994109 | BY42: =BZ41/2 -> 0 | BZ42: =BY41/2 -> 0 | CA42: =CB41/2 -> 0 | CB42: =CA41/2 -> 0
J43: dis | K43: =(K42)*K23*-1 -> 3.524927567e-05 | L43: =(L42+M42)*L23*-1 -> -3.524927567e-05 | M43: =(M42+L42)*M23*-1 -> -2.911896686e-05 | N43: =(N42+O42)*N23*-1 -> 3.244635697e-05 | O43: =(O42+N42)*O23*-1 -> 3.927716896e-05 | P43: =(P42+Q42)*P23*-1 -> -3.124810127e-05 | Q43: =(Q42+P42)*Q23*-1 -> 0 | R43: =(R42+S42)*R23*-1 -> 0 | S43: =(S42+R42)*S23*-1 -> 0 | T43: =(T42+U42)*T23*-1 -> 0 | V43: dis | W43: =(W42)*W23*-1 -> -5.075895696e-05 | X43: =(X42+Y42)*X23*-1 -> 5.65591233e-05 | Y43: =(Y42+X42)*Y23*-1 -> 4.672275403e-05 | Z43: =(Z42+AA42)*Z23*-1 -> -4.672275403e-05 | AA43: =(AA42+Z42)*AA23*-1 -> -5.65591233e-05 | AB43: =(AB42+AC42)*AB23*-1 -> 5.075895696e-05 | AC43: =(AC42+AB42)*AC23*-1 -> 0 | AD43: =(AD42+AE42)*AD23*-1 -> 0 | AE43: =(AE42+AD42)*AE23*-1 -> 0 | AF43: =(AF42+AG42)*AF23*-1 -> 0 | AH43: dis | AI43: =(AI42)*AI23*-1 -> 3.124810127e-05 | AJ43: =(AJ42+AK42)*AJ23*-1 -> -3.927716896e-05 | AK43: =(AK42+AJ42)*AK23*-1 -> -3.244635697e-05 | AL43: =(AL42+AM42)*AL23*-1 -> 2.911896686e-05 | AM43: =(AM42+AL42)*AM23*-1 -> 3.524927567e-05 | AN43: =(AN42+AO42)*AN23*-1 -> -3.524927567e-05 | AO43: =(AO42+AN42)*AO23*-1 -> 0 | AP43: =(AP42+AQ42)*AP23*-1 -> 0 | AQ43: =(AQ42+AP42)*AQ23*-1 -> 0 | AR43: =(AR42+AS42)*AR23*-1 -> 0 | AT43: dis | AU43: =(AU42)*AU23*-1 -> 0 | AV43: =(AV42+AW42)*AV23*-1 -> 0 | AW43: =(AW42+AV42)*AW23*-1 -> 0 | AX43: =(AX42+AY42)*AX23*-1 -> 0 | AY43: =(AY42+AX42)*AY23*-1 -> 0 | AZ43: =(AZ42+BA42)*AZ23*-1 -> 0 | BA43: =(BA42+AZ42)*BA23*-1 -> 0 | BB43: =(BB42+BC42)*BB23*-1 -> 0 | BC43: =(BC42+BB42)*BC23*-1 -> 0 | BD43: =(BD42+BE42)*BD23*-1 -> 0 | BF43: dis | BG43: =(BG42)*BG23*-1 -> 0 | BH43: =(BH42+BI42)*BH23*-1 -> 0 | BI43: =(BI42+BH42)*BI23*-1 -> 0 | BJ43: =(BJ42+BK42)*BJ23*-1 -> 0 | BK43: =(BK42+BJ42)*BK23*-1 -> 0 | BL43: =(BL42+BM42)*BL23*-1 -> 0 | BM43: =(BM42+BL42)*BM23*-1 -> 0 | BN43: =(BN42+BO42)*BN23*-1 -> 0 | BO43: =(BO42+BN42)*BO23*-1 -> 0 | BP43: =(BP42+BQ42)*BP23*-1 -> 0 | BR43: dis | BS43: =(BS42)*BS23*-1 -> 5.616455755e-05 | BT43: =(BT42+BU42)*BT23*-1 -> -6.411867611e-05 | BU43: =(BU42+BT42)*BU23*-1 -> -5.2967602e-05 | BV43: =(BV42+BW42)*BV23*-1 -> 5.2967602e-05 | BW43: =(BW42+BV42)*BW23*-1 -> 6.411867611e-05 | BX43: =(BX42+BY42)*BX23*-1 -> -5.616455755e-05 | BY43: =(BY42+BX42)*BY23*-1 -> 0 | BZ43: =(BZ42+CA42)*BZ23*-1 -> 0 | CA43: =(CA42+BZ42)*CA23*-1 -> 0 | CB43: =(CB42+CC42)*CB23*-1 -> 0
J44: co | K44: =L43/2 -> -1.762463783e-05 | L44: =K43/2 -> 1.762463783e-05 | M44: =N43/2 -> 1.622317848e-05 | N44: =M43/2 -> -1.455948343e-05 | O44: =P43/2 -> -1.562405063e-05 | P44: =O43/2 -> 1.963858448e-05 | Q44: =R43/2 -> 0 | R44: =Q43/2 -> 0 | S44: =T43/2 -> 0 | T44: =S43/2 -> 0 | V44: co | W44: =X43/2 -> 2.827956165e-05 | X44: =W43/2 -> -2.537947848e-05 | Y44: =Z43/2 -> -2.336137702e-05 | Z44: =Y43/2 -> 2.336137702e-05 | AA44: =AB43/2 -> 2.537947848e-05 | AB44: =AA43/2 -> -2.827956165e-05 | AC44: =AD43/2 -> 0 | AD44: =AC43/2 -> 0 | AE44: =AF43/2 -> 0 | AF44: =AE43/2 -> 0 | AH44: co | AI44: =AJ43/2 -> -1.963858448e-05 | AJ44: =AI43/2 -> 1.562405063e-05 | AK44: =AL43/2 -> 1.455948343e-05 | AL44: =AK43/2 -> -1.622317848e-05 | AM44: =AN43/2 -> -1.762463783e-05 | AN44: =AM43/2 -> 1.762463783e-05 | AO44: =AP43/2 -> 0 | AP44: =AO43/2 -> 0 | AQ44: =AR43/2 -> 0 | AR44: =AQ43/2 -> 0 | AT44: co | AU44: =AV43/2 -> 0 | AV44: =AU43/2 -> 0 | AW44: =AX43/2 -> 0 | AX44: =AW43/2 -> 0 | AY44: =AZ43/2 -> 0 | AZ44: =AY43/2 -> 0 | BA44: =BB43/2 -> 0 | BB44: =BA43/2 -> 0 | BC44: =BD43/2 -> 0 | BD44: =BC43/2 -> 0 | BF44: co | BG44: =BH43/2 -> 0 | BH44: =BG43/2 -> 0 | BI44: =BJ43/2 -> 0 | BJ44: =BI43/2 -> 0 | BK44: =BL43/2 -> 0 | BL44: =BK43/2 -> 0 | BM44: =BN43/2 -> 0 | BN44: =BM43/2 -> 0 | BO44: =BP43/2 -> 0 | BP44: =BO43/2 -> 0 | BR44: co | BS44: =BT43/2 -> -3.205933805e-05 | BT44: =BS43/2 -> 2.808227878e-05 | BU44: =BV43/2 -> 2.6483801e-05 | BV44: =BU43/2 -> -2.6483801e-05 | BW44: =BX43/2 -> -2.808227878e-05 | BX44: =BW43/2 -> 3.205933805e-05 | BY44: =BZ43/2 -> 0 | BZ44: =BY43/2 -> 0 | CA44: =CB43/2 -> 0 | CB44: =CA43/2 -> 0
J45: dis | K45: =(K44)*K23*-1 -> 5.333422024e-06 | L45: =(L44+M44)*L23*-1 -> -6.664330049e-06 | M45: =(M44+L44)*M23*-1 -> -5.505316127e-06 | N45: =(N44+O44)*N23*-1 -> 4.909323995e-06 | O45: =(O44+N44)*O23*-1 -> 5.942865889e-06 | P45: =(P44+Q44)*P23*-1 -> -5.942865889e-06 | Q45: =(Q44+P44)*Q23*-1 -> 0 | R45: =(R44+S44)*R23*-1 -> 0 | S45: =(S44+R44)*S23*-1 -> 0 | T45: =(T44+U44)*T23*-1 -> 0 | V45: dis | W45: =(W44)*W23*-1 -> -8.55772688e-06 | X45: =(X44+Y44)*X23*-1 -> 9.59663527e-06 | Y45: =(Y44+X44)*Y23*-1 -> 7.927655223e-06 | Z45: =(Z44+AA44)*Z23*-1 -> -7.927655223e-06 | AA45: =(AA44+Z44)*AA23*-1 -> -9.59663527e-06 | AB45: =(AB44+AC44)*AB23*-1 -> 8.55772688e-06 | AC45: =(AC44+AB44)*AC23*-1 -> 0 | AD45: =(AD44+AE44)*AD23*-1 -> 0 | AE45: =(AE44+AD44)*AE23*-1 -> 0 | AF45: =(AF44+AG44)*AF23*-1 -> 0 | AH45: dis | AI45: =(AI44)*AI23*-1 -> 5.942865889e-06 | AJ45: =(AJ44+AK44)*AJ23*-1 -> -5.942865889e-06 | AK45: =(AK44+AJ44)*AK23*-1 -> -4.909323995e-06 | AL45: =(AL44+AM44)*AL23*-1 -> 5.505316127e-06 | AM45: =(AM44+AL44)*AM23*-1 -> 6.664330049e-06 | AN45: =(AN44+AO44)*AN23*-1 -> -5.333422024e-06 | AO45: =(AO44+AN44)*AO23*-1 -> 0 | AP45: =(AP44+AQ44)*AP23*-1 -> 0 | AQ45: =(AQ44+AP44)*AQ23*-1 -> 0 | AR45: =(AR44+AS44)*AR23*-1 -> 0 | AT45: dis | AU45: =(AU44)*AU23*-1 -> 0 | AV45: =(AV44+AW44)*AV23*-1 -> 0 | AW45: =(AW44+AV44)*AW23*-1 -> 0 | AX45: =(AX44+AY44)*AX23*-1 -> 0 | AY45: =(AY44+AX44)*AY23*-1 -> 0 | AZ45: =(AZ44+BA44)*AZ23*-1 -> 0 | BA45: =(BA44+AZ44)*BA23*-1 -> 0 | BB45: =(BB44+BC44)*BB23*-1 -> 0 | BC45: =(BC44+BB44)*BC23*-1 -> 0 | BD45: =(BD44+BE44)*BD23*-1 -> 0 | BF45: dis | BG45: =(BG44)*BG23*-1 -> 0 | BH45: =(BH44+BI44)*BH23*-1 -> 0 | BI45: =(BI44+BH44)*BI23*-1 -> 0 | BJ45: =(BJ44+BK44)*BJ23*-1 -> 0 | BK45: =(BK44+BJ44)*BK23*-1 -> 0 | BL45: =(BL44+BM44)*BL23*-1 -> 0 | BM45: =(BM44+BL44)*BM23*-1 -> 0 | BN45: =(BN44+BO44)*BN23*-1 -> 0 | BO45: =(BO44+BN44)*BO23*-1 -> 0 | BP45: =(BP44+BQ44)*BP23*-1 -> 0 | BR45: dis | BS45: =(BS44)*BS23*-1 -> 9.70153153e-06 | BT45: =(BT44+BU44)*BT23*-1 -> -1.074356944e-05 | BU45: =(BU44+BT44)*BU23*-1 -> -8.875122583e-06 | BV45: =(BV44+BW44)*BV23*-1 -> 8.875122583e-06 | BW45: =(BW44+BV44)*BW23*-1 -> 1.074356944e-05 | BX45: =(BX44+BY44)*BX23*-1 -> -9.70153153e-06 | BY45: =(BY44+BX44)*BY23*-1 -> 0 | BZ45: =(BZ44+CA44)*BZ23*-1 -> 0 | CA45: =(CA44+BZ44)*CA23*-1 -> 0 | CB45: =(CB44+CC44)*CB23*-1 -> 0
J46: sum | K46: =SUM(K24:K45) -> -2067.031685 | L46: =SUM(L24:L45) -> 2489.292583 | M46: =SUM(M24:M45) -> -487.407209 | N46: =SUM(N24:N45) -> -212.226164 | O46: =SUM(O24:O45) -> 46.96209126 | P46: 17.71564317 | Q46: 0 | R46: 0 | S46: 0 | T46: 0 | V46: sum | W46: =SUM(W24:W45) -> 290.562228 | X46: 770.246239 | Y46: -3480.816308 | Z46: 3480.816308 | AA46: -770.246239 | AB46: -290.562228 | AC46: 0 | AD46: 0 | AE46: 0 | AF46: 0 | AH46: sum | AI46: =SUM(AI24:AI45) -> -17.71564317 | AJ46: -46.96209126 | AK46: 212.226164 | AL46: 487.407209 | AM46: -2489.292583 | AN46: 2067.031685 | AO46: 0 | AP46: 0 | AQ46: 0 | AR46: 0 | AT46: sum | AU46: =SUM(AU24:AU45) -> 0 | AV46: 0 | AW46: 0 | AX46: 0 | AY46: 0 | AZ46: 0 | BA46: 0 | BB46: 0 | BC46: 0 | BD46: 0 | BF46: sum | BG46: =SUM(BG24:BG45) -> 0 | BH46: 0 | BI46: 0 | BJ46: 0 | BK46: 0 | BL46: 0 | BM46: 0 | BN46: 0 | BO46: 0 | BP46: 0 | BR46: sum | BS46: =SUM(BS24:BS45) -> -6402.7782 | BT46: 11464.48951 | BU46: -13403.75526 | BV46: 13403.75526 | BW46: -11464.48951 | BX46: 6402.7782 | BY46: 0 | BZ46: 0 | CA46: 0 | CB46: 0
J47: โมเมนต์บวก span 1 = | K47: =K111 -> 7106.789154 | M47: โมเมนต์บวก span 2 = | N47: =W111 -> 9327.928434 | O47: โมเมนต์บวก span 3 = | P47: =AI111 -> 7106.789154 | Q47: โมเมนต์บวก span 4 = | R47: =AU111 -> 0 | S47: โมเมนต์บวก span 5 = | T47: =BG111 -> 0
J48: โมเมนต์ลบ span 1 ขวา = | K48: =N110 -> -11120.2268 | M48: โมเมนต์ลบ span 2 ขวา = | N48: =AC111 -> -13338.13988 | O48: โมเมนต์ลบ span 3 ขวา = | P48: =AO110 -> -5481.927752 | Q48: โมเมนต์ลบ span 4 ขวา = | R48: =BA110 -> 0 | S48: โมเมนต์ลบ span 5 ขวา = | T48: =BM110 -> 0
J49: โมเมนต์ลบ span 1 ซ้าย = | K49: =-K107+0.5*K109*Sheet1!D9-0.25*'r3'!E2*('r3'!B7+'r3'!E7)*Sheet1!D9^2 -> -5481.927752 | M49: โมเมนต์ลบ span 2 ซ้าย = | N49: =Z111 -> -13338.13988 | O49: โมเมนต์ลบ span 3 ซ้าย = | P49: =AL110 -> -11120.2268 | Q49: โมเมนต์ลบ span 4 ซ้าย = | R49: =AX110 -> 0 | S49: โมเมนต์ลบ span 5 ซ้าย = | T49: =BJ110 -> 0
J50: span1 | M50: span2 | O50: span3 | Q50: span4 | S50: span5
G51: ทิศทาง | H51: ช่วงเสา | I51: สัมประสิทธ์ร้อยละ | J51: แถบเสา | K51: แถบกลาง | M51: แถบเสา | N51: แถบกลาง | O51: แถบเสา | P51: แถบกลาง | Q51: แถบเสา | R51: แถบกลาง | S51: แถบเสา | T51: แถบกลาง
H52: โมเมนต์ลบขวา | I52: 0.75 | J52: =IF((-K48>-N49),(K48),(N49))*I52 -> -10003.60491 | K52: =IF((-K48>-N49),(K48),(N49))-J52 -> -3334.534971 | M52: =IF((-N48>-P49),(N48),(P49))*IF(Sheet1!$B$3=2,(I54),(I52)) -> -10003.60491 | N52: =IF((-N48>-P49),(N48),(P49))-M52 -> -3334.534971 | O52: =IF(-P48>-R49,(P48),(R49))*IF(Sheet1!$B$3=3,(1),(0.75)) -> -5481.927752 | P52: =IF(-P48>-R49,(P48),(R49))*IF(Sheet1!$B$3=3,(1),(0.75))-O52 -> 0 | Q52: =IF(-R48>-T49,(R48),(T49))*IF(Sheet1!$B$3=4,(1),(0.75)) -> 0 | R52: =IF(-R48>-T49,(R48),(T49))*IF(Sheet1!$B$3=4,(1),(0.75))-Q52 -> 0 | S52: =IF(-T48>-V49,(T48),(V49))*IF(Sheet1!$B$3=5,(1),(0.75)) -> 0 | T52: =IF(-T48>-V49,(T48),(V49))*IF(Sheet1!$B$3=5,(1),(0.75))-S52 -> 0
H53: โมเมนต์กลางช่วงโมเมนต์บวก | I53: 0.6 | J53: =K47*$I$53 -> 4264.073492 | K53: =K47-J53 -> 2842.715662 | M53: =N47*$I$53 -> 5596.75706 | N53: =N47-M53 -> 3731.171374 | O53: =P47*$I$53 -> 4264.073492 | P53: =P47-O53 -> 2842.715662 | Q53: =R47*$I$53 -> 0 | R53: =R47-Q53 -> 0 | S53: =T47*$I$53 -> 0 | T53: =T47-S53 -> 0
H54: โมเมนต์ลบซ้าย | I54: 1 | J54: =K49*I54 -> -5481.927752 | K54: =K49-J54 -> 0 | M54: =IF((-K48>-N49),(K48),(N49))*I52 -> -10003.60491 | N54: =IF((-K48>-N49),(K48),(N49))-M54 -> -3334.534971 | O54: =IF((-N48>-P49),(N48),(P49))*IF(Sheet1!$B$3<3,(0),(0.75)) -> -10003.60491 | P54: =IF(O54=0,(0),(IF((-N48>-P49),(N48),(P49))-O54)) -> -3334.534971 | Q54: =IF((-P48>-R49),(P48),(R49))*IF(Sheet1!$B$3<4,(0),(0.75)) -> 0 | R54: =IF(Q54=0,(0),(IF((-P48>-R49),(P48),(R49))-Q54)) -> 0 | S54: =IF((-R48>-T49),(R48),(T49))*IF(Sheet1!$B$3<5,(0),(0.75)) -> 0 | T54: =IF(S54=0,(0),(IF((-R48>-T49),(R48),(T49))-S54)) -> 0
G56: เหล็กเสริมในแผ่นพื้น | J56: span r1 | M56: span r2 | O56: span r3 | Q56: span r4 | S56: span r5
H57: รายการ | I57: หน่วย | J57: แถบเสา | K57: แถบกลาง | M57: แถบเสา | N57: แถบกลาง | O57: แถบเสา | P57: แถบกลาง | Q57: แถบเสา | R57: แถบกลาง | S57: แถบเสา | T57: แถบกลาง
H58: ความกว้าง | I58: m | J58: =IF(Sheet1!B4=2,(0.25*Sheet1!L10),(Sheet1!L11+Sheet1!L10)/4) -> 1.25 | K58: =IF(Sheet1!B4=2,(0.5*Sheet1!L10-'r3'!J58),('r3'!E2)/2) -> 1.25 | M58: =IF(Sheet1!B4=2,(0.25*Sheet1!L10),(Sheet1!L11+Sheet1!L10)/4) -> 1.25 | N58: =K58 -> 1.25 | O58: =M58 -> 1.25 | P58: 1.25 | Q58: 1.25 | R58: 1.25 | S58: 1.25 | T58: 1.25
H59: โมเมนต์ลบขวา | I59: kg-m/m | J59: =J52/(0.9*J58) -> -8892.093256 | K59: =K52/(K58*0.9) -> -2964.031085 | M59: =M52/(0.9*M58) -> -8892.093256 | N59: =N52/(0.9*N58) -> -2964.031085 | O59: =O52/(0.9*O58) -> -4872.824668 | P59: =P52/(0.9*P58) -> 0 | Q59: =Q52/(0.9*Q58) -> 0 | R59: 0 | S59: =S52/(0.9*S58) -> 0 | T59: =T52/(0.9*T58) -> 0
H60: Rn | I60: kg/m^2 | J60: =J59/(((Sheet1!B16)-(Sheet1!B13/100))^2) -> -175646.2865 | K60: =K59/(((Sheet1!B16)-(Sheet1!B13/100))^2) -> -58548.76218 | M60: =M59/(((Sheet1!B16)-(Sheet1!B13/100))^2) -> -175646.2865 | N60: =N59/(((Sheet1!B16)-(Sheet1!B13/100))^2) -> -58548.76218 | O60: =O59/(((Sheet1!B16)-(Sheet1!B13/100))^2) -> -96253.32678 | P60: =P59/(((Sheet1!B16)-(Sheet1!B13/100))^2) -> 0 | Q60: =Q59/(((Sheet1!B16)-(Sheet1!B13/100))^2) -> 0 | R60: =R59/(((Sheet1!B16)-(Sheet1!B13/100))^2) -> 0 | S60: =S59/(((Sheet1!B16)-(Sheet1!B13/100))^2) -> 0 | T60: =T59/(((Sheet1!B16)-(Sheet1!B13/100))^2) -> 0
H61: p | J61: =ABS((0.85*Sheet1!B10/Sheet1!B9)*(1-(SQRT(1-(2*J60/(0.85*Sheet1!B10*100^2)))))) -> 0.005569461575 | K61: =ABS((0.85*Sheet1!B10/Sheet1!B9)*(1-(SQRT(1-(2*K60/(0.85*Sheet1!B10*100^2)))))) -> 0.001894435335 | M61: =ABS((0.85*Sheet1!B10/Sheet1!B9)*(1-(SQRT(1-(2*M60/(0.85*Sheet1!B10*100^2)))))) -> 0.005569461575 | N61: =ABS((0.85*Sheet1!B10/Sheet1!B9)*(1-(SQRT(1-(2*N60/(0.85*Sheet1!B10*100^2)))))) -> 0.001894435335 | O61: =ABS((0.85*Sheet1!B10/Sheet1!B9)*(1-(SQRT(1-(2*O60/(0.85*Sheet1!B10*100^2)))))) -> 0.003093786231 | P61: =ABS((0.85*Sheet1!B10/Sheet1!B9)*(1-(SQRT(1-(2*P60/(0.85*Sheet1!B10*100^2)))))) -> 0 | Q61: =ABS((0.85*Sheet1!B10/Sheet1!B9)*(1-(SQRT(1-(2*Q60/(0.85*Sheet1!B10*100^2)))))) -> 0 | R61: =ABS((0.85*Sheet1!B10/Sheet1!B9)*(1-(SQRT(1-(2*R60/(0.85*Sheet1!B10*100^2)))))) -> 0 | S61: =ABS((0.85*Sheet1!B10/Sheet1!B9)*(1-(SQRT(1-(2*S60/(0.85*Sheet1!B10*100^2)))))) -> 0 | T61: =ABS((0.85*Sheet1!B10/Sheet1!B9)*(1-(SQRT(1-(2*T60/(0.85*Sheet1!B10*100^2)))))) -> 0
H62: As- | I62: mm^2/m | J62: =IF(J59=0,(0),(IF(J61>(0.0018*4000/Sheet1!$B$9),(ABS(J61*1000*(Sheet1!$B$16*1000-Sheet1!$B$13*10)*-1)),(ABS((0.0018*4000/Sheet1!$B$9)*1000*(Sheet1!$B$16*1000-Sheet1!$B$13*10)*-1))))) -> 1253.128854 | K62: =IF(J59=0,(0),(IF(K61>(0.0018*4000/Sheet1!$B$9),(ABS(K61*1000*(Sheet1!$B$16*1000-Sheet1!$B$13*10)*-1)),(ABS((0.0018*4000/Sheet1!$B$9)*1000*(Sheet1!$B$16*1000-Sheet1!$B$13*10)*-1))))) -> 529.7580118 | M62: =IF(M59=0,(0),(IF(M61>(0.0018*4000/Sheet1!$B$9),(ABS(M61*1000*(Sheet1!$B$16*1000-Sheet1!$B$13*10)*-1)),(ABS((0.0018*4000/Sheet1!$B$9)*1000*(Sheet1!$B$16*1000-Sheet1!$B$13*10)*-1))))) -> 1253.128854 | N62: =IF(M59=0,(0),(IF(N61>(0.0018*4000/Sheet1!$B$9),(ABS(N61*1000*(Sheet1!$B$16*1000-Sheet1!$B$13*10)*-1)),(ABS((0.0018*4000/Sheet1!$B$9)*1000*(Sheet1!$B$16*1000-Sheet1!$B$13*10)*-1))))) -> 529.7580118 | O62: =IF(O59=0,(0),(IF(O61>(0.0018*4000/Sheet1!$B$9),(ABS(O61*1000*(Sheet1!$B$16*1000-Sheet1!$B$13*10)*-1)),(ABS((0.0018*4000/Sheet1!$B$9)*1000*(Sheet1!$B$16*1000-Sheet1!$B$13*10)*-1))))) -> 696.101902 | P62: =IF(O59=0,(0),(IF(P61>(0.0018*4000/Sheet1!$B$9),(ABS(P61*1000*(Sheet1!$B$16*1000-Sheet1!$B$13*10)*-1)),(ABS((0.0018*4000/Sheet1!$B$9)*1000*(Sheet1!$B$16*1000-Sheet1!$B$13*10)*-1))))) -> 529.7580118 | Q62: =IF(Q59=0,(0),(IF(Q61>(0.0018*4000/Sheet1!$B$9),(ABS(Q61*1000*(Sheet1!$B$16*1000-Sheet1!$B$13*10)*-1)),(ABS((0.0018*4000/Sheet1!$B$9)*1000*(Sheet1!$B$16*1000-Sheet1!$B$13*10)*-1))))) -> 0 | R62: =IF(Q59=0,(0),(IF(R61>(0.0018*4000/Sheet1!$B$9),(ABS(R61*1000*(Sheet1!$B$16*1000-Sheet1!$B$13*10)*-1)),(ABS((0.0018*4000/Sheet1!$B$9)*1000*(Sheet1!$B$16*1000-Sheet1!$B$13*10)*-1))))) -> 0 | S62: =IF(S53=0,(0),(IF(S61>(0.0018*4000/Sheet1!$B$9),(ABS(S61*1000*(Sheet1!$B$16*1000-Sheet1!$B$13*10)*-1)),(ABS((0.0018*4000/Sheet1!$B$9)*1000*(Sheet1!$B$16*1000-Sheet1!$B$13*10)*-1))))) -> 0 | T62: =IF(T53=0,(0),(IF(T61>(0.0018*4000/Sheet1!$B$9),(ABS(T61*1000*(Sheet1!$B$16*1000-Sheet1!$B$13*10)*-1)),(ABS((0.0018*4000/Sheet1!$B$9)*1000*(Sheet1!$B$16*1000-Sheet1!$B$13*10)*-1))))) -> 0
H63: โมเมนต์บวกกลาง | I63: kg-m/m | J63: =J53/(0.9*J58) -> 3790.287549 | K63: =K53/(0.9*K58) -> 2526.858366 | M63: =M53/(0.9*M58) -> 4974.895165 | N63: =N53/(0.9*N58) -> 3316.596776 | O63: =O53/(0.9*O58) -> 3790.287549 | P63: 2526.858366 | Q63: 0 | R63: =R53/(0.9*R58) -> 0 | S63: 0 | T63: =T53/(0.9*T58) -> 0
H64: Rn | I64: kg/m^2 | J64: =J63/(((Sheet1!B16)-(Sheet1!B13/100))^2) -> 74869.8775 | K64: =K63/(((Sheet1!B16)-(Sheet1!B13/100))^2) -> 49913.25167 | M64: =M63/(((Sheet1!B16)-(Sheet1!B13/100))^2) -> 98269.53412 | N64: =N63/(((Sheet1!B16)-(Sheet1!B13/100))^2) -> 65513.02275 | O64: =O63/(((Sheet1!B16)-(Sheet1!B13/100))^2) -> 74869.8775 | P64: =P63/(((Sheet1!B16)-(Sheet1!B13/100))^2) -> 49913.25167 | Q64: =Q63/(((Sheet1!B16)-(Sheet1!B13/100))^2) -> 0 | R64: =R63/(((Sheet1!B16)-(Sheet1!B13/100))^2) -> 0 | S64: =S63/(((Sheet1!B16)-(Sheet1!B13/100))^2) -> 0 | T64: =T63/(((Sheet1!B16)-(Sheet1!B13/100))^2) -> 0
H65: p | J65: =ABS((0.85*Sheet1!B10/Sheet1!B9)*(1-(SQRT(1-(2*J64/(0.85*Sheet1!B10*100^2)))))) -> 0.0024829849 | K65: =(0.85*Sheet1!B10/Sheet1!B9)*(1-(SQRT(1-(2*K64/(0.85*Sheet1!B10*100^2))))) -> 0.001647476095 | M65: =ABS((0.85*Sheet1!B10/Sheet1!B9)*(1-(SQRT(1-(2*M64/(0.85*Sheet1!B10*100^2)))))) -> 0.003273769952 | N65: =ABS((0.85*Sheet1!B10/Sheet1!B9)*(1-(SQRT(1-(2*N64/(0.85*Sheet1!B10*100^2)))))) -> 0.002168789408 | O65: =ABS((0.85*Sheet1!B10/Sheet1!B9)*(1-(SQRT(1-(2*O64/(0.85*Sheet1!B10*100^2)))))) -> 0.0024829849 | P65: =ABS((0.85*Sheet1!B10/Sheet1!B9)*(1-(SQRT(1-(2*P64/(0.85*Sheet1!B10*100^2)))))) -> 0.001647476095 | Q65: =ABS((0.85*Sheet1!B10/Sheet1!B9)*(1-(SQRT(1-(2*Q64/(0.85*Sheet1!B10*100^2)))))) -> 0 | R65: =ABS((0.85*Sheet1!B10/Sheet1!B9)*(1-(SQRT(1-(2*R64/(0.85*Sheet1!B10*100^2)))))) -> 0 | S65: =ABS((0.85*Sheet1!B10/Sheet1!B9)*(1-(SQRT(1-(2*S64/(0.85*Sheet1!B10*100^2)))))) -> 0 | T65: =ABS((0.85*Sheet1!B10/Sheet1!B9)*(1-(SQRT(1-(2*T64/(0.85*Sheet1!B10*100^2)))))) -> 0
H66: As+ | I66: mm^2/m | J66: =IF(J63=0,(0),(IF(J65>(0.0018*4000/Sheet1!$B$9),(ABS(J65*1000*(Sheet1!$B$16*1000-Sheet1!$B$13*10)*-1)),(ABS((0.0018*4000/Sheet1!$B$9)*1000*(Sheet1!$B$16*1000-Sheet1!$B$13*10)*-1))))) -> 558.6716025 | K66: =IF(K63=0,(0),(IF(K65>(0.0018*4000/Sheet1!$B$9),(ABS(K65*1000*(Sheet1!$B$16*1000-Sheet1!$B$13*10)*-1)),(ABS((0.0018*4000/Sheet1!$B$9)*1000*(Sheet1!$B$16*1000-Sheet1!$B$13*10)*-1))))) -> 529.7580118 | M66: =IF(M63=0,(0),(IF(M65>(0.0018*4000/Sheet1!$B$9),(ABS(M65*1000*(Sheet1!$B$16*1000-Sheet1!$B$13*10)*-1)),(ABS((0.0018*4000/Sheet1!$B$9)*1000*(Sheet1!$B$16*1000-Sheet1!$B$13*10)*-1))))) -> 736.5982392 | N66: =IF(N63=0,(0),(IF(N65>(0.0018*4000/Sheet1!$B$9),(ABS(N65*1000*(Sheet1!$B$16*1000-Sheet1!$B$13*10)*-1)),(ABS((0.0018*4000/Sheet1!$B$9)*1000*(Sheet1!$B$16*1000-Sheet1!$B$13*10)*-1))))) -> 529.7580118 | O66: =IF(O63=0,(0),(IF(O65>(0.0018*4000/Sheet1!$B$9),(ABS(O65*1000*(Sheet1!$B$16*1000-Sheet1!$B$13*10)*-1)),(ABS((0.0018*4000/Sheet1!$B$9)*1000*(Sheet1!$B$16*1000-Sheet1!$B$13*10)*-1))))) -> 558.6716025 | P66: =IF(P63=0,(0),(IF(P65>(0.0018*4000/Sheet1!$B$9),(ABS(P65*1000*(Sheet1!$B$16*1000-Sheet1!$B$13*10)*-1)),(ABS((0.0018*4000/Sheet1!$B$9)*1000*(Sheet1!$B$16*1000-Sheet1!$B$13*10)*-1))))) -> 529.7580118 | Q66: =IF(Q63=0,(0),(IF(Q65>(0.0018*4000/Sheet1!$B$9),(ABS(Q65*1000*(Sheet1!$B$16*1000-Sheet1!$B$13*10)*-1)),(ABS((0.0018*4000/Sheet1!$B$9)*1000*(Sheet1!$B$16*1000-Sheet1!$B$13*10)*-1))))) -> 0 | R66: =IF(R63=0,(0),(IF(R65>(0.0018*4000/Sheet1!$B$9),(ABS(R65*1000*(Sheet1!$B$16*1000-Sheet1!$B$13*10)*-1)),(ABS((0.0018*4000/Sheet1!$B$9)*1000*(Sheet1!$B$16*1000-Sheet1!$B$13*10)*-1))))) -> 0 | S66: =IF(S63=0,(0),(IF(S65>(0.0018*4000/Sheet1!$B$9),(ABS(S65*1000*(Sheet1!$B$16*1000-Sheet1!$B$13*10)*-1)),(ABS((0.0018*4000/Sheet1!$B$9)*1000*(Sheet1!$B$16*1000-Sheet1!$B$13*10)*-1))))) -> 0 | T66: =IF(T53=0,(0),(IF(T65>(0.0018*4000/Sheet1!$B$9),(ABS(T65*1000*(Sheet1!$B$16*1000-Sheet1!$B$13*10)*-1)),(ABS((0.0018*4000/Sheet1!$B$9)*1000*(Sheet1!$B$16*1000-Sheet1!$B$13*10)*-1))))) -> 0
H67: โมเมนต์ลบซ้าย | I67: kg-m/m | J67: =J54/(0.9*J58) -> -4872.824668 | K67: =K54/(0.9*K58) -> 0 | M67: =M54/(0.9*M58) -> -8892.093256 | N67: =N54/(0.9*N58) -> -2964.031085 | O67: =O54/(0.9*O58) -> -8892.093256 | P67: =P54/(0.9*P58) -> -2964.031085 | Q67: 0 | R67: 0 | S67: 0 | T67: 0
H68: Rn | I68: kg/m^2 | J68: =J67/(((Sheet1!B16)-(Sheet1!B13/100))^2) -> -96253.32678 | K68: =K67/(((Sheet1!B16)-(Sheet1!B13/100))^2) -> 0 | M68: =M67/(((Sheet1!B16)-(Sheet1!B13/100))^2) -> -175646.2865 | N68: =N67/(((Sheet1!B16)-(Sheet1!B13/100))^2) -> -58548.76218 | O68: =O67/(((Sheet1!B16)-(Sheet1!B13/100))^2) -> -175646.2865 | P68: =P67/(((Sheet1!B16)-(Sheet1!B13/100))^2) -> -58548.76218 | Q68: =Q67/(((Sheet1!B16)-(Sheet1!B13/100))^2) -> 0 | R68: =R67/(((Sheet1!B16)-(Sheet1!B13/100))^2) -> 0 | S68: =S67/(((Sheet1!B16)-(Sheet1!B13/100))^2) -> 0 | T68: =T67/(((Sheet1!B16)-(Sheet1!B13/100))^2) -> 0
H69: p | J69: =ABS((0.85*Sheet1!B10/Sheet1!B9)*(1-(SQRT(1-(2*J68/(0.85*Sheet1!B10*100^2)))))) -> 0.003093786231 | K69: =(0.85*Sheet1!B10/Sheet1!B9)*(1-(SQRT(1-(2*K68/(0.85*Sheet1!B10*100^2))))) -> 0 | M69: =ABS((0.85*Sheet1!B10/Sheet1!B9)*(1-(SQRT(1-(2*M68/(0.85*Sheet1!B10*100^2)))))) -> 0.005569461575 | N69: =ABS((0.85*Sheet1!B10/Sheet1!B9)*(1-(SQRT(1-(2*N68/(0.85*Sheet1!B10*100^2)))))) -> 0.001894435335 | O69: =ABS((0.85*Sheet1!B10/Sheet1!B9)*(1-(SQRT(1-(2*O68/(0.85*Sheet1!B10*100^2)))))) -> 0.005569461575 | P69: =ABS((0.85*Sheet1!B10/Sheet1!B9)*(1-(SQRT(1-(2*P68/(0.85*Sheet1!B10*100^2)))))) -> 0.001894435335 | Q69: =ABS((0.85*Sheet1!B10/Sheet1!B9)*(1-(SQRT(1-(2*Q68/(0.85*Sheet1!B10*100^2)))))) -> 0 | R69: =ABS((0.85*Sheet1!B10/Sheet1!B9)*(1-(SQRT(1-(2*R68/(0.85*Sheet1!B10*100^2)))))) -> 0 | S69: =ABS((0.85*Sheet1!B10/Sheet1!B9)*(1-(SQRT(1-(2*S68/(0.85*Sheet1!B10*100^2)))))) -> 0 | T69: =ABS((0.85*Sheet1!B10/Sheet1!B9)*(1-(SQRT(1-(2*T68/(0.85*Sheet1!B10*100^2)))))) -> 0
H70: As- | I70: mm^2/m | J70: =IF(J67=0,(0),(IF(J69>(0.0018*4000/Sheet1!$B$9),(ABS(J69*1000*(Sheet1!$B$16*1000-Sheet1!$B$13*10)*-1)),(ABS((0.0018*4000/Sheet1!$B$9)*1000*(Sheet1!$B$16*1000-Sheet1!$B$13*10)*-1))))) -> 696.101902 | K70: =IF(J67=0,(0),(IF(K69>(0.0018*4000/Sheet1!$B$9),(ABS(K69*1000*(Sheet1!$B$16*1000-Sheet1!$B$13*10)*-1)),(ABS((0.0018*4000/Sheet1!$B$9)*1000*(Sheet1!$B$16*1000-Sheet1!$B$13*10)*-1))))) -> 529.7580118 | M70: =IF(M67=0,(0),(IF(M69>(0.0018*4000/Sheet1!$B$9),(ABS(M69*1000*(Sheet1!$B$16*1000-Sheet1!$B$13*10)*-1)),(ABS((0.0018*4000/Sheet1!$B$9)*1000*(Sheet1!$B$16*1000-Sheet1!$B$13*10)*-1))))) -> 1253.128854 | N70: =IF(M67=0,(0),(IF(N69>(0.0018*4000/Sheet1!$B$9),(ABS(N69*1000*(Sheet1!$B$16*1000-Sheet1!$B$13*10)*-1)),(ABS((0.0018*4000/Sheet1!$B$9)*1000*(Sheet1!$B$16*1000-Sheet1!$B$13*10)*-1))))) -> 529.7580118 | O70: =IF(O67=0,(0),(IF(O69>(0.0018*4000/Sheet1!$B$9),(ABS(O69*1000*(Sheet1!$B$16*1000-Sheet1!$B$13*10)*-1)),(ABS((0.0018*4000/Sheet1!$B$9)*1000*(Sheet1!$B$16*1000-Sheet1!$B$13*10)*-1))))) -> 1253.128854 | P70: =IF(O67=0,(0),(IF(P69>(0.0018*4000/Sheet1!$B$9),(ABS(P69*1000*(Sheet1!$B$16*1000-Sheet1!$B$13*10)*-1)),(ABS((0.0018*4000/Sheet1!$B$9)*1000*(Sheet1!$B$16*1000-Sheet1!$B$13*10)*-1))))) -> 529.7580118 | Q70: =IF(Q67=0,(0),(IF(Q69>(0.0018*4000/Sheet1!$B$9),(ABS(Q69*1000*(Sheet1!$B$16*1000-Sheet1!$B$13*10)*-1)),(ABS((0.0018*4000/Sheet1!$B$9)*1000*(Sheet1!$B$16*1000-Sheet1!$B$13*10)*-1))))) -> 0 | R70: =IF(Q67=0,(0),(IF(R69>(0.0018*4000/Sheet1!$B$9),(ABS(R69*1000*(Sheet1!$B$16*1000-Sheet1!$B$13*10)*-1)),(ABS((0.0018*4000/Sheet1!$B$9)*1000*(Sheet1!$B$16*1000-Sheet1!$B$13*10)*-1))))) -> 0 | S70: =IF(S53=0,(0),(IF(S69>(0.0018*4000/Sheet1!$B$9),(ABS(S69*1000*(Sheet1!$B$16*1000-Sheet1!$B$13*10)*-1)),(ABS((0.0018*4000/Sheet1!$B$9)*1000*(Sheet1!$B$16*1000-Sheet1!$B$13*10)*-1))))) -> 0 | T70: =IF(T53=0,(0),(IF(T69>(0.0018*4000/Sheet1!$B$9),(ABS(T69*1000*(Sheet1!$B$16*1000-Sheet1!$B$13*10)*-1)),(ABS((0.0018*4000/Sheet1!$B$9)*1000*(Sheet1!$B$16*1000-Sheet1!$B$13*10)*-1))))) -> 0
G73: เช็ค punching shear | O73: เช็ค punching shear ต้นริม
G75: V | I75: kg | J75: =$K$109 -> 13478.64111 | M75: =$N$109+$Z$109 -> 33463.0617 | N75: =$AC$110+$AL$109 -> 33463.0617 | O75: =$AO$109+$AX$109 -> 13478.64111 | P75: =$BA$109+$BJ$109 -> 0 | Q75: =$BM$109 -> 0
G76: V(max) | I76: kg | J76: =MAX(J75,M75,N75,O75,P75,Q75) -> 33463.0617 | O76: V(max) | Q76: kg | R76: =IF(Sheet1!$B$3=2,(MAX($J$75,$N$75)),(IF(Sheet1!$B$3=3,(MAX($J$75,$O$75)),(IF(Sheet1!$B$3=4,(MAX($J$75,$P$75)),(IF(Sheet1!$B$3=5,(MAX($J$75,$Q$75)),(0)))))))) -> 13478.64111
G77: Vc | I77: kg | J77: =1.06*SQRT(Sheet1!$B$10) -> 18.96185645 | O77: Vc | Q77: kg | R77: =1.06*SQRT(Sheet1!$B$10) -> 18.96185645
G78: b1 | I78: cm | J78: =(Sheet1!$D$9*100)+(Sheet1!$B$16*100)-Sheet1!$B$13 -> 72.5 | O78: b1 | Q78: cm | R78: =(Sheet1!$D$9*100)+((Sheet1!$B$16*100)-Sheet1!$B$13)/2 -> 61.25
G79: b2 | I79: cm | J79: =(Sheet1!$D$10*100)+(Sheet1!$B$16*100)-Sheet1!$B$13 -> 62.5 | O79: b2 | Q79: cm | R79: =(Sheet1!$D$10*100)+(Sheet1!$B$16*100)-Sheet1!$B$13 -> 62.5
G80: d | I80: cm | J80: =((Sheet1!$B$16*100)-Sheet1!$B$13) -> 22.5 | O80: d | Q80: cm | R80: =((Sheet1!$B$16*100)-Sheet1!$B$13) -> 22.5
G81: Ac | I81: cm^2 | J81: =(J78*J80*2)+(J79*J80*2) -> 6075 | O81: Ac | Q81: cm^2 | R81: =2*($R$78*$R$80)+($R$79*$R$80) -> 4162.5
G82: X1 | I82: cm | J82: =J78/2 -> 36.25 | O82: X2,X1 | Q82: cm | R82: =$R$78^2*$R$80/$R$81 -> 20.27871622 | S82: =R78-R82 -> 40.97128378
G83: Jc | I83: cm^4 | J83: =(J78^3*J80/6)+(J78*J80^3/6)+(J79*J78^2*J80/2) -> 5262480.469 | O83: Jc | Q83: cm^4 | R83: =(R78*R80^3/6)+(2/3*(S82^3+R82^3)*R80)+R79*R82^2*R80 -> 1851297.739
G84: Mu | I84: kg*m | J84: =IF(M75=J76,ABS(N108-Z107),(IF(N75=J76,ABS(AC108-AL107),(IF(O75=J76,ABS(AO108-AX107),(IF(P75=J76,ABS(BA108-BJ107),(0)))))))) -> 2647.950443 | O84: Mu | Q84: kg*m | R84: =IF(Sheet1!$B$3=2,(MAX(K107,AC108)),(IF(Sheet1!$B$3=3,(MAX(K107,AO108)),(IF(Sheet1!$B$3=4,(MAX(K107,BA108)),(IF(Sheet1!$B$3=5,(MAX(K107,BM108)),(0)))))))) -> 8487.525528
G85: Mub | I85: kg*m | J85: =J84/(1+(2/3)*SQRT(J78/J79)) -> 1541.278565 | O85: Mub | Q85: kg*m | R85: =R84/(1+2/3*SQRT(R78/R79)) -> 5113.070897
G86: Muv | I86: kg*m | J86: =J84-J85 -> 1106.671878 | O86: Muv | Q86: kg*m | R86: =R84-R85 -> 3374.454631
G87: Vu2 | I87: kg/cm^2 | J87: =(J76/J81)+((J86*100)*J82/J83) -> 6.270641288 | O87: Vu2 | Q87: kg/cm^2 | R87: =R76/R81+(R86*100*R82/R83) -> 6.934416812
G88: Vc | I88: kg/cm^2 | J88: =1.06*SQRT(Sheet1!$B$10) -> 18.96185645 | O88: Vc | Q88: kg/cm^2 | R88: =1.06*SQRT(Sheet1!$B$10) -> 18.96185645
J106: โมเมนต์บวก span 1 | M106: โมเมนต์ลบ span 1 ขวา | P106: โมเมนต์ลบ span 1 ซ้าย | V106: โมเมนต์บวก span 2 | Y106: โมเมนต์ลบ span 2 ซ้าย | AB106: โมเมนต์ลบspan 2 ขวา | AH106: โมเมนต์บวกสแปน 3 | AK106: โมเมนต์ลบspan 3 ซ้าย | AN106: โมเมนต์ลบspan 3 ขวา | AT106: โมเมนต์บวกสแปน 4 | AW106: โมเมนต์ลบสแปน 4 ซ้าย | AZ106: โมเมนต์ลบสแปน 4 ขวา | BF106: โมเมนต์บวกสแปน 5 | BI106: โมเมนต์ลบ span 5 ซ้าย | BL106: โมเมนต์ลบ span 5 ขวา
J107: M 1l = | K107: =(K46+AI46+BG46+BS46)*-1 -> 8487.525528 | M107: M 1l = | N107: =(K46+W46+AU46+BS46)*-1 -> 8179.247657 | P107: M- max span1l = | Q107: =IF(K107=0,(0),(-K107+0.5*K109*Sheet1!D9-0.25*'r3'!E2*('r3'!B7+'r3'!E7)*Sheet1!D9^2)) -> -5481.927752 | V107: M 2l = | W107: =(Y46+AW46+BU46)*-1 -> 16884.57157 | Y107: M 2l = | Z107: =(M46+Y46+AW46+BU46)*-1 -> 17371.97878 | AB107: M 2l = | AC107: =(Y46+AK46+BU46+BI46)*-1 -> 16672.3454 | AH107: M 3l = | AI107: =(AM46+O46+BK46+BW46)*-1 -> 13906.82 | AK107: M3l = | AL107: =(AM46+AA46+BW46+BK46)*-1 -> 14724.02833 | AN107: M3l = | AO107: =(AM46+AY46+O46+BW46)*-1 -> 13906.82 | AT107: m 4l = | AU107: =(BA46+AC46+BY46)*-1 -> 0 | AW107: m4l = | AX107: =(BA46+AO46+Q46+BY46)*-1 -> 0 | AZ107: m4l = | BA107: =(BA46+BM46+AC46+BY46)*-1 -> 0 | BF107: m5l = | BG107: =(BO46+AQ46+S46+CA46)*-1 -> 0 | BI107: m5l = | BJ107: =(BO46+BC46+AE46+CA46)*-1 -> 0 | BL107: m5l = | BM107: =(BO46+AQ46+S46+CA46)*-1 -> 0
J108: M 1r = | K108: =(L46+AJ46+BH46+BT46) -> 13906.82 | M108: M 1r = | N108: =(L46+X46+AV46+BT46) -> 14724.02833 | V108: M 2r = | W108: =(Z46+AX46+BV46) -> 16884.57157 | Y108: M 2r = | Z108: =Z46+N46+AX46+BV46 -> 16672.3454 | AB108: M 2r = | AC108: =(Z46+AL46+BV46)+BJ46 -> 17371.97878 | AH108: M 3r = | AI108: =(AN46+P46+BL46+BX46) -> 8487.525528 | AK108: M3r = | AL108: =AN46+AB46+BL46+BX46 -> 8179.247657 | AN108: M3r = | AO108: =AN46+AZ46+P46+BX46 -> 8487.525528 | AT108: m 4r = | AU108: =(BB46+AD46+BZ46) -> 0 | AW108: m4r = | AX108: =BB46+AP46+R46+BZ46 -> 0 | AZ108: m4r = | BA108: =(BB46+BN46+BZ46+AD46) -> 0 | BF108: m5r = | BG108: =(BP46+AR46+T46+CB46) -> 0 | BI108: m5r = | BJ108: =BP46+CB46+BD46+AF46 -> 0 | BL108: m5r = | BM108: =BP46+CB46+AR46+T46 -> 0
J109: V1l = | K109: =IF(K107=0,(0),((-K108+K107+(0.5*(B7+E7)*E2*Sheet1!F9^2))/Sheet1!F9)) -> 13478.64111 | M109: V 1r = | N109: =IF(N107=0,(0),((N108-N107+0.5*(B7+E7)*E2*Sheet1!$F$9^2)/Sheet1!$F$9)) -> 15871.45614 | V109: V2l = | W109: =(-W108+W107+0.5*(B8+E8)*E2*Sheet1!F10^2)/Sheet1!F10 -> 17475 | Y109: V2l = | Z109: =IF(Z107=0,(0),((-Z108+Z107+0.5*(B8+E8)*E2*Sheet1!F10^2)/Sheet1!F10)) -> 17591.60556 | AB109: V2l = | AC109: =(-AC108+AC107+0.5*(B8+E8)*E2*Sheet1!F10^2)/Sheet1!F10 -> 17358.39444 | AH109: V3l = | AI109: =(-AI108+AI107+0.5*(B9+E9)*E2*Sheet1!F11^2)/Sheet1!F11 -> 15646.35889 | AK109: V3l = | AL109: =IF(AL107=0,(0),((-AL108+AL107+0.5*(B9+E9)*Sheet1!F11^2*E2)/Sheet1!F11)) -> 15871.45614 | AN109: V3r = | AO109: =IF(AO107=0,(0),((AO108-AO107+0.5*(B9+E9)*E2*Sheet1!F11^2)/Sheet1!F11)) -> 13478.64111 | AT109: v4l = | AU109: =(-AU108+AU107+0.5*(B10+E10)*E2*Sheet1!F12^2)/Sheet1!F12 ->  | AW109: V4l = | AX109: =IF(AX107=0,(0),((-AX108+AX107+0.5*(B10+E10)*Sheet1!F12^2*E2)/Sheet1!F12)) -> 0 | AZ109: v4r = | BA109: =IF(BA107=0,(0),((BA108-BA107+0.5*(B10+E10)*E2*Sheet1!F12^2)/Sheet1!F12)) -> 0 | BF109: v5l = | BG109: =(-BG108+BG107+0.5*(B11+E11)*E2*Sheet1!F13^2)/Sheet1!F13 ->  | BI109: v5l = | BJ109: =IF(BJ107=0,(0),((-BJ108+BJ107+0.5*(B11+E11)*E2*Sheet1!F13^2)/Sheet1!F13)) -> 0 | BL109: v5r = | BM109: =IF(BM107=0,(0),((BM108-BM107+0.5*(B11+E11)*E2*Sheet1!F13^2)/Sheet1!F13)) -> 0
J110: ระยะที่ V=0 | K110: =K109/((B7+E7)*E2) -> 2.313929803 | M110: M- max span1r = | N110: =IF(N108=0,(0),(0.5*Sheet1!$D$9*'r3'!N109-'r3'!N108-0.25*('r3'!B7+'r3'!E7)*'r3'!E2*Sheet1!$D$9^2)) -> -11120.2268 | V110: ระยะที่ V=0 | W110: =W109/((B8+E8)*E2) -> 3 | Y110: V2 r = | Z110: =(Z108-Z107+0.5*(B8+E8)*E2*Sheet1!F10^2)/Sheet1!F10 -> 17358.39444 | AB110: v2r = | AC110: =IF(AC107=0,(0),((AC108-AC107+0.5*(B8+E8)*E2*Sheet1!F10^2)/Sheet1!F10)) -> 17591.60556 | AH110: ระยะที่ V=0 | AI110: =AI109/((B9+E9)*E2) -> 2.686070197 | AK110: M- max span3l = | AL110: =IF(AL107=0,(0),(-AL107+0.5*AL109*Sheet1!D9-0.25*Sheet1!D9^2*'r3'!E2*('r3'!B9+'r3'!E9))) -> -11120.2268 | AN110: M- max span3r = | AO110: =IF(AO108=0,(0),(0.5*AO109*Sheet1!D9-'r3'!AO108-0.25*('r3'!B9+'r3'!E9)*'r3'!E2*Sheet1!D9^2)) -> -5481.927752 | AT110: ระยะที่ v=0 | AU110: =AU109/((B10+E10)*E2) ->  | AW110: M- max span4l = | AX110: =IF(AX107=0,(0),(-AX107+0.5*AX109*Sheet1!D9-0.25*Sheet1!D9^2*'r3'!E2*('r3'!B10+'r3'!E10))) -> 0 | AZ110: M- max span4r = | BA110: =IF(BA108=0,(0),(0.5*BA109*Sheet1!D9-'r3'!BA108-0.25*('r3'!B10+'r3'!E10)*'r3'!E2*Sheet1!D9^2)) -> 0 | BF110: ระยะที่ v=0 | BG110: =BG109/((B11+E11)*E2) ->  | BI110: M- max span 5l = | BJ110: =IF(BJ107=0,(0),(-BJ107+0.5*BJ109*Sheet1!D9-0.25*Sheet1!D9^2*'r3'!E2*('r3'!B11+'r3'!E11))) -> 0 | BL110: M- max span 5r = | BM110: =IF(BM108=0,(0),(0.5*BM109*Sheet1!D9-'r3'!BM108-0.25*('r3'!B11+'r3'!E11)*'r3'!E2*Sheet1!D9^2)) -> 0
J111: M1+max= | K111: =IF(K107=0,(0),(K109*K110-0.5*(B7+E7)*K110^2*E2-K107)) -> 7106.789154 | M111: V1l = | N111: =(B7+E7)*E2*Sheet1!$F$9-'r3'!N109 -> 13253.54386 | V111: M2+max= | W111: =IF(W107=0,(0),((W109*W110)-0.5*(B8+E8)*E2*W110^2-W107)) -> 9327.928434 | Y111: M- max span2l = | Z111: =IF(Z107=0,(0),(-Z107+0.5*Z109*Sheet1!D9-0.25*(B8+E8)*E2*Sheet1!D9^2)) -> -13338.13988 | AB111: M- max span2r = | AC111: =IF(AC108=0,(0),(0.5*AC110*Sheet1!D9-'r3'!AC108-0.25*('r3'!B8+'r3'!E8)*'r3'!E2*Sheet1!D9^2)) -> -13338.13988 | AH111: M3+ max = | AI111: =IF(AI107=0,(0),(AI109*AI110-0.5*(B9+E9)*E2*AI110^2-AI107)) -> 7106.789154 | AT111: M4+ max = | AU111: =IF(AU107=0,(0),(AU109*AU110-0.5*(B10+E10)*AU110^2*E2-AU107)) -> 0 | BF111: M5+ max = | BG111: =IF(BG107=0,(0),(BG109*BG110-0.5*(B11+E11)*E2*BG110^2-BG107)) -> 0

Sheet r4
A1: รายการคำนวณโมเมนต์แถบในและกลางตามแกน x
A2: ระยะช่วงพื้น (unit: m) | B2: =MAX(Sheet1!F9,Sheet1!F10,Sheet1!F11,Sheet1!F12,Sheet1!F13,Sheet1!L9,Sheet1!L10,Sheet1!L11,Sheet1!L12,Sheet1!F13) -> 6 | D2: ความกว้างแถบเสา = | E2: =(Sheet1!L11+Sheet1!L12)/2 -> 0
A3: ตัวคูณหาความหนาพื้นขั้นต่ำ | B3: =0.01*LN(Sheet1!B9)-0.05 -> 0.03025516386
A5: ความหนาพื้น (unit:m) | B5: =IF((B2*B3)>0.12,(B2*B3),(0.12)) -> 0.1815309832
A6: น้ำหนัก DL+WDS | D6: น้ำหนัก LL
A7: Wdl1+Wsd1 (unit:KG/m^2) = | B7: =IF(Sheet1!$B$4<=2,(0),(IF(Sheet1!$B$3>=2,(((Sheet1!$B$16*Sheet1!$B$11)+Sheet1!$J$9)*1.4),(0)))) -> 0 | D7: Wtl1 (unit:kg/m^2) = | E7: =IF(Sheet1!$B$4<=2,(0),(IF(Sheet1!$B$3>=2,(1.7*Sheet1!H9),(0)))) -> 0
A8: Wdl2+Wsd2 (unit:KG/m^2) = | B8: =IF(Sheet1!$B$4<=2,(0),(IF(Sheet1!$B$3>=2,(((Sheet1!$B$16*Sheet1!$B$11)+Sheet1!$J$10)*1.4),(0)))) -> 0 | D8: Wtl2 (unit:kg/m^2) = | E8: =IF(Sheet1!$B$4<=2,(0),(IF(Sheet1!$B$3>=2,(1.7*Sheet1!H10),(0)))) -> 0
A9: =IF(Sheet1!B3>2,("Wdl3+Wsd3 (unit:KG/m^2) ="),("")) -> Wdl3+Wsd3 (unit:KG/m^2) = | B9: =IF(Sheet1!$B$4<=2,(0),(IF(Sheet1!$B$3>=3,(((Sheet1!$B$16*Sheet1!$B$11)+Sheet1!$J$11)*1.4),(0)))) -> 0 | D9: =IF(Sheet1!B3>2,("Wtl3 (unit:KG/m^2) ="),("")) -> Wtl3 (unit:KG/m^2) = | E9: =IF(Sheet1!$B$4<=2,(0),(IF(Sheet1!$B$3>=2,(1.7*Sheet1!H11),(0)))) -> 0
A10: =IF(Sheet1!B3>3,("Wdl4+Wsd4 (unit:KG/m^2) ="),("")) ->  | B10: =IF(Sheet1!$B$4<=2,(0),(IF(Sheet1!$B$3>=4,(((Sheet1!$B$16*Sheet1!$B$11)+Sheet1!$J$12)*1.4),(0)))) -> 0 | D10: =IF(Sheet1!B3>3,("Wtl4 (unit:KG/m^2) ="),("")) ->  | E10: =IF(Sheet1!$B$4<=2,(0),(IF(Sheet1!$B$3>=2,(1.7*Sheet1!H12),(0)))) -> 0
A11: =IF(Sheet1!B3>4,("Wdl5+Wsd5 (unit:KG/m^2) ="),("")) ->  | B11: =IF(Sheet1!$B$4<=2,(0),(IF(Sheet1!$B$3>=5,(((Sheet1!$B$16*Sheet1!$B$11)+Sheet1!$J$13)*1.4),(0)))) -> 0 | D11: =IF(Sheet1!B3>4,("Wtl5 (unit:KG/m^2) ="),("")) ->  | E11: =IF(Sheet1!$B$4<=2,(0),(IF(Sheet1!$B$3>=2,(1.7*Sheet1!H13),(0)))) -> 0
A13: โมเมนต์ DL+WSD | D13: โมเมนต LL
